Workbook

Sheet Introduction
C4: Joint Monitoring Programme for Water Supply, Sanitation and Hygiene
C6: Estimates on household water, sanitation and hygiene by wealth quintile and sub-national region in
C7: =+Water!B5 -> Uganda
C9: Updated April 2021
C11: Follow the links below to find the following information:
C13: JMP Estimates
C14: WASH status and trends by wealth quintile (customized quintiles made without water and sanitation assets)
C15: Water
C16: Sanitation
C17: Hygiene
C19: Data inputs
C20: customized wealth quintiles and subnational data:
C21: =IF(INDIRECT(CONCATENATE("Water","!B105"))=0,"",INDIRECT(CONCATENATE("Water","!B105"))) -> DHS01
C22: =IF(INDIRECT(CONCATENATE("Water","!B106"))=0,"",INDIRECT(CONCATENATE("Water","!B106"))) -> DHS06
C23: =IF(INDIRECT(CONCATENATE("Water","!B107"))=0,"",INDIRECT(CONCATENATE("Water","!B107"))) -> MIS09
C24: =IF(INDIRECT(CONCATENATE("Water","!B108"))=0,"",INDIRECT(CONCATENATE("Water","!B108"))) -> AIS11
C25: =IF(INDIRECT(CONCATENATE("Water","!B109"))=0,"",INDIRECT(CONCATENATE("Water","!B109"))) -> DHS11
C26: =IF(INDIRECT(CONCATENATE("Water","!B110"))=0,"",INDIRECT(CONCATENATE("Water","!B110"))) -> MIS15
C27: =IF(INDIRECT(CONCATENATE("Water","!B111"))=0,"",INDIRECT(CONCATENATE("Water","!B111"))) -> DHS16
C28: =IF(INDIRECT(CONCATENATE("Water","!B112"))=0,"",INDIRECT(CONCATENATE("Water","!B112"))) -> MIS19
C29: =IF(INDIRECT(CONCATENATE("Water","!B113"))=0,"",INDIRECT(CONCATENATE("Water","!B113"))) -> 
C30: =IF(INDIRECT(CONCATENATE("Water","!B114"))=0,"",INDIRECT(CONCATENATE("Water","!B114"))) -> 
C31: =IF(INDIRECT(CONCATENATE("Water","!B115"))=0,"",INDIRECT(CONCATENATE("Water","!B115"))) -> 
C32: =IF(INDIRECT(CONCATENATE("Water","!B116"))=0,"",INDIRECT(CONCATENATE("Water","!B116"))) -> 
L55: =+IF(ISNUMBER(M48), "", "Insufficient data to estimate safely managed sanitation services at national level") -> Insufficient data to estimate safely managed sanitation services at national level

Sheet Water
A1: BGD
B4: Summary of trends in use of drinking water by wealth quintile (%)
B5: =IF(ISERROR(INDIRECT(CONCATENATE($B105,"!A2"))),"",INDIRECT(CONCATENATE($B105,"!A2"))) -> Uganda
B7: =B118 -> National use of drinking water sources, 2000–2020 | J7: =B218 -> Urban use of drinking water sources, 2000–2020 | R7: =B318 -> Rural use of drinking water sources, 2000–2020
B31: =IF(ISERROR(INDIRECT(CONCATENATE($B105,"!A2"))),"",INDIRECT(CONCATENATE($B105,"!A2"))) -> Uganda | F31: Poorest | J31: Poor | N31: Middle | R31: Rich | V31: Richest
F32: Basic | G32: Limited | H32: Unimproved | I32: Surface water | J32: Basic | K32: Limited | L32: Unimproved | M32: Surface water | N32: Basic | O32: Limited | P32: Unimproved | Q32: Surface water | R32: Basic | S32: Limited | T32: Unimproved | U32: Surface water | V32: Basic | W32: Limited | X32: Unimproved | Y32: Surface water
B33: NATIONAL | D33: Estimate | E33: =C99 -> 2000 | F33: =E99 -> 25.79676301 | G33: =F99 -> 29.30160172 | H33: 26.7152043 | I33: 18.18643097 | J33: =J99 -> 28.88586335 | K33: =K99 -> 25.76692967 | L33: 28.30717813 | M33: 17.04002885 | N33: =O99 -> 26.83932489 | O33: =P99 -> 21.60490542 | P33: 32.42755966 | Q33: 19.12821003 | R33: =T99 -> 36.00908837 | S33: =U99 -> 22.01057135 | T33: 26.6357908 | U33: 15.34454948 | V33: =Y99 -> 65.87764706 | W33: =Z99 -> 13.33193464 | X33: 15.95175469 | Y33: 4.83866361
E34: =C100 -> 2020 | F34: =E100 -> 36.63144781 | G34: 41.60832481 | H34: 14.03409436 | I34: 7.726133019 | J34: =J100 -> 40.95224528 | K34: 36.5304513 | L34: 14.3332828 | M34: 8.184020616 | N34: =O100 -> 43.49427048 | O34: 35.01167051 | P34: 13.16772702 | Q34: 8.326331995 | R34: =T100 -> 49.02193843 | S34: 29.96468176 | T34: 15.39032544 | U34: 5.62305437 | V34: =Y100 -> 78.23710765 | W34: 15.83317031 | X34: 3.687392839 | Y34: 2.242329193
B36: URBAN | D36: Estimate | E36: =C199 -> 2000 | F36: =E199 -> 58.30864779 | G36: =F199 -> 29.84009539 | H36: 4.445402345 | I36: 7.405854476 | J36: =J199 -> 71.77349534 | K36: =K199 -> 20.15843032 | L36: 5.204738027 | M36: 2.863336315 | N36: =O199 -> 80.06760167 | O36: =P199 -> 11.93951705 | P36: 5.895140799 | Q36: 2.097740477 | R36: =T199 -> 87.17919087 | S36: =U199 -> 6.587921879 | T36: 5.28936411 | U36: 0.9435231386 | V36: =Y199 -> 91.47528704 | W36: =Z199 -> 3.799983457 | X36: 4.724729505 | Y36: 0
E37: =C200 -> 2020 | F37: =E200 -> 51.1096958 | G37: 26.15595208 | H37: 18.91396949 | I37: 3.820382627 | J37: =J200 -> 65.41825082 | K37: 18.37348514 | L37: 12.8052298 | M37: 3.403034238 | N37: =O200 -> 82.05005008 | O37: 12.23513571 | P37: 4.004389095 | Q37: 1.710425119 | R37: =T200 -> 90.09982851 | S37: 6.808627444 | T37: 2.761986508 | U37: 0.3295575389 | V37: =Y200 -> 95.91747737 | W37: 3.984516901 | X37: 0 | Y37: 0.09800572616
B39: RURAL | D39: Estimate | E39: =C299 -> 2000 | F39: =E299 -> 25.24084341 | G39: =F299 -> 29.88277327 | H39: 26.79742922 | I39: 18.0789541 | J39: =J299 -> 28.53845603 | K39: =K299 -> 26.30816047 | L39: 27.77603231 | M39: 17.37735119 | N39: =O299 -> 25.65710458 | O39: =P299 -> 21.76837938 | P39: 33.16796424 | Q39: 19.4065518 | R39: =T299 -> 28.70349452 | S39: =U299 -> 22.46182863 | T39: 31.34369401 | U39: 17.49098284 | V39: =Y299 -> 42.42808478 | W39: =Z299 -> 22.01608648 | X39: 25.27611051 | Y39: 10.27971823
E40: =C300 -> 2020 | F40: =E300 -> 35.66447144 | G40: 42.22336379 | H40: 13.72991939 | I40: 8.382245366 | J40: =J300 -> 40.36635182 | K40: 37.21169991 | L40: 14.28995601 | M40: 8.131992258 | N40: =O300 -> 41.9125371 | O40: 35.56005338 | P40: 14.07542355 | Q40: 8.451985973 | R40: =T300 -> 43.63300267 | S40: 34.1448679 | T40: 14.13621598 | U40: 8.08591345 | V40: =Y300 -> 53.6852885 | W40: 27.85749016 | X40: 12.36177732 | Y40: 6.095444024
A97: NATIONAL | D97: Poorest | I97: Poor | N97: Middle | S97: Rich | X97: Richest
D98: Improved | E98: Basic | F98: Limited | G98: Unimproved | H98: Surface water | I98: Improved | J98: Basic | K98: Limited | L98: Unimproved | M98: Surface water | N98: Improved | O98: Basic | P98: Limited | Q98: Unimproved | R98: Surface water | S98: Improved | T98: Basic | U98: Limited | V98: Unimproved | W98: Surface water | X98: Improved | Y98: Basic | Z98: Limited | AA98: Unimproved | AB98: Surface water
A99: Forecast period: | C99: 2000 | D99: =IF((D101+H101)>100,D101*100/(D101+H101),D101) -> 55.09836473 | E99: =D99*AVERAGEIF(E105:E116,">0")/100 -> 25.79676301 | F99: =D99*(100-AVERAGEIF(E105:E116,">0"))/100 -> 29.30160172 | G99: =100-(E99+F99+H99) -> 26.7152043 | H99: =IF((D101+H101)>100,H101*100/(D101+H101),H101) -> 18.18643097 | I99: =IF((I101+M101)>100,I101*100/(I101+M101),I101) -> 54.65279302 | J99: =I99*AVERAGEIF(J105:J116,">0")/100 -> 28.88586335 | K99: =I99*(100-AVERAGEIF(J105:J116,">0"))/100 -> 25.76692967 | L99: =100-(J99+K99+M99) -> 28.30717813 | M99: =IF((I101+M101)>100,M101*100/(I101+M101),M101) -> 17.04002885 | N99: =IF((N101+R101)>100,N101*100/(N101+R101),N101) -> 48.44423031 | O99: =N99*AVERAGEIF(O105:O116,">0")/100 -> 26.83932489 | P99: =N99*(100-AVERAGEIF(O105:O116,">0"))/100 -> 21.60490542 | Q99: =100-(O99+P99+R99) -> 32.42755966 | R99: =IF((N101+R101)>100,R101*100/(N101+R101),R101) -> 19.12821003 | S99: =IF((S101+W101)>100,S101*100/(S101+W101),S101) -> 58.01965972 | T99: =S99*AVERAGEIF(T105:T116,">0")/100 -> 36.00908837 | U99: =S99*(100-AVERAGEIF(T105:T116,">0"))/100 -> 22.01057135 | V99: =100-(T99+U99+W99) -> 26.6357908 | W99: =IF((S101+W101)>100,W101*100/(S101+W101),W101) -> 15.34454948 | X99: =IF((X101+AB101)>100,X101*100/(X101+AB101),X101) -> 79.2095817 | Y99: =X99*AVERAGEIF(Y105:Y116,">0")/100 -> 65.87764706 | Z99: =X99*(100-AVERAGEIF(Y105:Y116,">0"))/100 -> 13.33193464 | AA99: =100-(Y99+Z99+AB99) -> 15.95175469 | AB99: =IF((X101+AB101)>100,AB101*100/(X101+AB101),AB101) -> 4.83866361
C100: 2020 | D100: =IF((D102+H102)>100,D102*100/(D102+H102),D102) -> 78.23977262 | E100: =D100*AVERAGEIF(E105:E116,">0")/100 -> 36.63144781 | F100: =D100*(100-AVERAGEIF(E105:E116,">0"))/100 -> 41.60832481 | G100: =100-(E100+F100+H100) -> 14.03409436 | H100: =IF((D102+H102)>100,H102*100/(D102+H102),H102) -> 7.726133019 | I100: =IF((I102+M102)>100,I102*100/(I102+M102),I102) -> 77.48269658 | J100: =I100*AVERAGEIF(J105:J116,">0")/100 -> 40.95224528 | K100: =I100*(100-AVERAGEIF(J105:J116,">0"))/100 -> 36.5304513 | L100: =100-(J100+K100+M100) -> 14.3332828 | M100: =IF((I102+M102)>100,M102*100/(I102+M102),M102) -> 8.184020616 | N100: =IF((N102+R102)>100,N102*100/(N102+R102),N102) -> 78.50594099 | O100: =N100*AVERAGEIF(O105:O116,">0")/100 -> 43.49427048 | P100: =N100*(100-AVERAGEIF(O105:O116,">0"))/100 -> 35.01167051 | Q100: =100-(O100+P100+R100) -> 13.16772702 | R100: =IF((N102+R102)>100,R102*100/(N102+R102),R102) -> 8.326331995 | S100: =IF((S102+W102)>100,S102*100/(S102+W102),S102) -> 78.98662019 | T100: =S100*AVERAGEIF(T105:T116,">0")/100 -> 49.02193843 | U100: =S100*(100-AVERAGEIF(T105:T116,">0"))/100 -> 29.96468176 | V100: =100-(T100+U100+W100) -> 15.39032544 | W100: =IF((S102+W102)>100,W102*100/(S102+W102),W102) -> 5.62305437 | X100: =IF((X102+AB102)>100,X102*100/(X102+AB102),X102) -> 94.07027797 | Y100: =X100*AVERAGEIF(Y105:Y116,">0")/100 -> 78.23710765 | Z100: =X100*(100-AVERAGEIF(Y105:Y116,">0"))/100 -> 15.83317031 | AA100: =100-(Y100+Z100+AB100) -> 3.687392839 | AB100: =IF((X102+AB102)>100,AB102*100/(X102+AB102),AB102) -> 2.242329193
A101: Regression period: | C101: =MinRegYear(C99,C105:C116) -> 2000 | D101: =IF(MAX(C105:C116)-MIN(C105:C116)<5,AVERAGEIF(C105:C116,">0",D105:D116), IF(FORECAST($C101,D$105:D$116,$C$105:$C$116)<0,0, IF(FORECAST($C101,D$105:D$116,$C$105:$C$116)>100,100, FORECAST($C101,D$105:D$116,$C$105:$C$116)))) -> 55.09836473 | H101: =IF(MAX(C105:C116)-MIN(C105:C116)<5,AVERAGEIF(C105:C116,">0",H105:H116), IF(FORECAST($C101,H$105:H$116,$C$105:$C$116)<0,0, IF(FORECAST($C101,H$105:H$116,$C$105:$C$116)>100,100, FORECAST($C101,H$105:H$116,$C$105:$C$116)))) -> 18.18643097 | I101: =IF(MAX(C105:C116)-MIN(C105:C116)<5,AVERAGEIF(C105:C116,">0",I105:I116), IF(FORECAST($C101,I$105:I$116,$C$105:$C$116)<0,0, IF(FORECAST($C101,I$105:I$116,$C$105:$C$116)>100,100, FORECAST($C101,I$105:I$116,$C$105:$C$116)))) -> 54.65279302 | M101: =IF(MAX(C105:C116)-MIN(C105:C116)<5,AVERAGEIF(C105:C116,">0",M105:M116), IF(FORECAST($C101,M$105:M$116,$C$105:$C$116)<0,0, IF(FORECAST($C101,M$105:M$116,$C$105:$C$116)>100,100, FORECAST($C101,M$105:M$116,$C$105:$C$116)))) -> 17.04002885 | N101: =IF(MAX(C105:C116)-MIN(C105:C116)<5,AVERAGEIF(C105:C116,">0",N105:N116), IF(FORECAST($C101,N$105:N$116,$C$105:$C$116)<0,0, IF(FORECAST($C101,N$105:N$116,$C$105:$C$116)>100,100, FORECAST($C101,N$105:N$116,$C$105:$C$116)))) -> 48.44423031 | R101: =IF(MAX(C105:C116)-MIN(C105:C116)<5,AVERAGEIF(C105:C116,">0",R105:R116), IF(FORECAST($C101,R$105:R$116,$C$105:$C$116)<0,0, IF(FORECAST($C101,R$105:R$116,$C$105:$C$116)>100,100, FORECAST($C101,R$105:R$116,$C$105:$C$116)))) -> 19.12821003 | S101: =IF(MAX(C105:C116)-MIN(C105:C116)<5,AVERAGEIF(C105:C116,">0",S105:S116), IF(FORECAST($C101,S$105:S$116,$C$105:$C$116)<0,0, IF(FORECAST($C101,S$105:S$116,$C$105:$C$116)>100,100, FORECAST($C101,S$105:S$116,$C$105:$C$116)))) -> 58.01965972 | W101: =IF(MAX(C105:C116)-MIN(C105:C116)<5,AVERAGEIF(C105:C116,">0",W105:W116), IF(FORECAST($C101,W$105:W$116,$C$105:$C$116)<0,0, IF(FORECAST($C101,W$105:W$116,$C$105:$C$116)>100,100, FORECAST($C101,W$105:W$116,$C$105:$C$116)))) -> 15.34454948 | X101: =IF(MAX(C105:C116)-MIN(C105:C116)<5,AVERAGEIF(C105:C116,">0",X105:X116), IF(FORECAST($C101,X$105:X$116,$C$105:$C$116)<0,0, IF(FORECAST($C101,X$105:X$116,$C$105:$C$116)>100,100, FORECAST($C101,X$105:X$116,$C$105:$C$116)))) -> 79.2095817 | AB101: =IF(MAX(C105:C116)-MIN(C105:C116)<5,AVERAGEIF(C105:C116,">0",AB105:AB116), IF(FORECAST($C101,AB$105:AB$116,$C$105:$C$116)<0,0, IF(FORECAST($C101,AB$105:AB$116,$C$105:$C$116)>100,100, FORECAST($C101,AB$105:AB$116,$C$105:$C$116)))) -> 4.83866361
C102: =MaxRegYear(C100,C105:C116) -> 2020 | D102: =IF(MAX(C105:C116)-MIN(C105:C116)<5,AVERAGEIF(C105:C116,">0",D105:D116), IF(FORECAST($C102,D$105:D$116,$C$105:$C$116)<0,0, IF(FORECAST($C102,D$105:D$116,$C$105:$C$116)>100,100, FORECAST($C102,D$105:D$116,$C$105:$C$116)))) -> 78.23977262 | H102: =IF(MAX(C105:C116)-MIN(C105:C116)<5,AVERAGEIF(C105:C116,">0",H105:H116), IF(FORECAST($C102,H$105:H$116,$C$105:$C$116)<0,0, IF(FORECAST($C102,H$105:H$116,$C$105:$C$116)>100,100, FORECAST($C102,H$105:H$116,$C$105:$C$116)))) -> 7.726133019 | I102: =IF(MAX(C105:C116)-MIN(C105:C116)<5,AVERAGEIF(C105:C116,">0",I105:I116), IF(FORECAST($C102,I$105:I$116,$C$105:$C$116)<0,0, IF(FORECAST($C102,I$105:I$116,$C$105:$C$116)>100,100, FORECAST($C102,I$105:I$116,$C$105:$C$116)))) -> 77.48269658 | M102: =IF(MAX(C105:C116)-MIN(C105:C116)<5,AVERAGEIF(C105:C116,">0",M105:M116), IF(FORECAST($C102,M$105:M$116,$C$105:$C$116)<0,0, IF(FORECAST($C102,M$105:M$116,$C$105:$C$116)>100,100, FORECAST($C102,M$105:M$116,$C$105:$C$116)))) -> 8.184020616 | N102: =IF(MAX(C105:C116)-MIN(C105:C116)<5,AVERAGEIF(C105:C116,">0",N105:N116), IF(FORECAST($C102,N$105:N$116,$C$105:$C$116)<0,0, IF(FORECAST($C102,N$105:N$116,$C$105:$C$116)>100,100, FORECAST($C102,N$105:N$116,$C$105:$C$116)))) -> 78.50594099 | R102: =IF(MAX(C105:C116)-MIN(C105:C116)<5,AVERAGEIF(C105:C116,">0",R105:R116), IF(FORECAST($C102,R$105:R$116,$C$105:$C$116)<0,0, IF(FORECAST($C102,R$105:R$116,$C$105:$C$116)>100,100, FORECAST($C102,R$105:R$116,$C$105:$C$116)))) -> 8.326331995 | S102: =IF(MAX(C105:C116)-MIN(C105:C116)<5,AVERAGEIF(C105:C116,">0",S105:S116), IF(FORECAST($C102,S$105:S$116,$C$105:$C$116)<0,0, IF(FORECAST($C102,S$105:S$116,$C$105:$C$116)>100,100, FORECAST($C102,S$105:S$116,$C$105:$C$116)))) -> 78.98662019 | W102: =IF(MAX(C105:C116)-MIN(C105:C116)<5,AVERAGEIF(C105:C116,">0",W105:W116), IF(FORECAST($C102,W$105:W$116,$C$105:$C$116)<0,0, IF(FORECAST($C102,W$105:W$116,$C$105:$C$116)>100,100, FORECAST($C102,W$105:W$116,$C$105:$C$116)))) -> 5.62305437 | X102: =IF(MAX(C105:C116)-MIN(C105:C116)<5,AVERAGEIF(C105:C116,">0",X105:X116), IF(FORECAST($C102,X$105:X$116,$C$105:$C$116)<0,0, IF(FORECAST($C102,X$105:X$116,$C$105:$C$116)>100,100, FORECAST($C102,X$105:X$116,$C$105:$C$116)))) -> 94.07027797 | AB102: =IF(MAX(C105:C116)-MIN(C105:C116)<5,AVERAGEIF(C105:C116,">0",AB105:AB116), IF(FORECAST($C102,AB$105:AB$116,$C$105:$C$116)<0,0, IF(FORECAST($C102,AB$105:AB$116,$C$105:$C$116)>100,100, FORECAST($C102,AB$105:AB$116,$C$105:$C$116)))) -> 2.242329193
B104: Survey | C104: Year | D104: Improved | E104: % Improved < = 30min | H104: Surface water | I104: Improved | J104: % Improved < = 30min | M104: Surface water | N104: Improved | O104: % Improved < = 30min | R104: Surface water | S104: Improved | T104: % Improved < = 30min | W104: Surface water | X104: Improved | Y104: % Improved < = 30min | AB104: Surface water
B105: DHS01 | C105: 2001 | D105: =IF(ISERROR(INDIRECT(CONCATENATE($B105,"!C16"))),"",INDIRECT(CONCATENATE($B105,"!C16"))) -> 49.89821852 | E105: =IF(ISERROR(INDIRECT(CONCATENATE($B105,"!C23"))),"",INDIRECT(CONCATENATE($B105,"!C23"))) -> N/A | H105: =IF(ISERROR(INDIRECT(CONCATENATE($B105,"!C21"))),"",INDIRECT(CONCATENATE($B105,"!C21"))) -> 16.67539278 | I105: =IF(ISERROR(INDIRECT(CONCATENATE($B105,"!D16"))),"",INDIRECT(CONCATENATE($B105,"!D16"))) -> 52.51348289 | J105: =IF(ISERROR(INDIRECT(CONCATENATE($B105,"!D23"))),"",INDIRECT(CONCATENATE($B105,"!D23"))) -> N/A | M105: =IF(ISERROR(INDIRECT(CONCATENATE($B105,"!D21"))),"",INDIRECT(CONCATENATE($B105,"!D21"))) -> 17.01684344 | N105: =IF(ISERROR(INDIRECT(CONCATENATE($B105,"!E16"))),"",INDIRECT(CONCATENATE($B105,"!E16"))) -> 49.30861376 | O105: =IF(ISERROR(INDIRECT(CONCATENATE($B105,"!E23"))),"",INDIRECT(CONCATENATE($B105,"!E23"))) -> N/A | R105: =IF(ISERROR(INDIRECT(CONCATENATE($B105,"!E21"))),"",INDIRECT(CONCATENATE($B105,"!E21"))) -> 17.05042653 | S105: =IF(ISERROR(INDIRECT(CONCATENATE($B105,"!F16"))),"",INDIRECT(CONCATENATE($B105,"!F16"))) -> 55.60441213 | T105: =IF(ISERROR(INDIRECT(CONCATENATE($B105,"!F23"))),"",INDIRECT(CONCATENATE($B105,"!F23"))) -> N/A | W105: =IF(ISERROR(INDIRECT(CONCATENATE($B105,"!F21"))),"",INDIRECT(CONCATENATE($B105,"!F21"))) -> 13.65684568 | X105: =IF(ISERROR(INDIRECT(CONCATENATE($B105,"!G16"))),"",INDIRECT(CONCATENATE($B105,"!G16"))) -> 79.06606481 | Y105: =IF(ISERROR(INDIRECT(CONCATENATE($B105,"!G23"))),"",INDIRECT(CONCATENATE($B105,"!G23"))) -> N/A | AB105: =IF(ISERROR(INDIRECT(CONCATENATE($B105,"!G221"))),"",INDIRECT(CONCATENATE($B105,"!G21"))) -> 3.376412604
B106: DHS06 | C106: 2006 | D106: 68.4 | E106: 22.4 | H106: 14.4 | I106: 63.4 | J106: 30.8 | M106: 13.2 | N106: 59.2 | O106: 34.9 | R106: 15 | S106: 65.9 | T106: 39.4 | W106: 11.3 | X106: 83.1 | Y106: 62.3 | AB106: 4.7
B107: MIS09 | C107: 2009 | D107: 68.3734727 | E107: N/A | H107: 13.17208829 | I107: 67.70837175 | J107: N/A | M107: 12.57035135 | N107: 62.70710837 | O107: N/A | R107: 15.84183218 | S107: 67.8791533 | T107: N/A | W107: 13.38629578 | X107: 86.8978819 | Y107: N/A | AB107: 5.323522558
B108: AIS11 | C108: 2011 | D108: 66.72536159 | E108: 42.5 | H108: 12.80846165 | I108: 66.71297844 | J108: 51.9 | M108: 13.09840912 | N108: 65.57836845 | O108: 53.8 | R108: 14.77664354 | S108: 71.91321288 | T108: 60.2 | W108: 10.05037635 | X108: 89.264051 | Y108: 84.1 | AB108: 2.87124237
B109: DHS11 | C109: 2011 | D109: 71.8 | E109: 49.7 | H109: 15.4 | I109: 66.6 | J109: 51.1 | M109: 14.4 | N109: 60.6 | O109: 58.6 | R109: 15.5 | S109: 69.4 | T109: 60.9 | W109: 13.1 | X109: 86 | Y109: 84.2 | AB109: 4.5
B110: MIS15 | C110: 2015 | D110: 64.56668421 | E110: 51.05973436 | H110: 11.10900481 | I110: 75.19014637 | J110: 63.38649181 | M110: 6.515740325 | N110: 74.44956949 | O110: 60.06974182 | R110: 8.320014569 | S110: 76.95094011 | T110: 73.76391991 | W110: 3.827463746 | X110: 91.78793823 | Y110: 91.79494939 | AB110: 1.605786369
B111: DHS16 | C111: 2016 | D111: =IF(ISERROR(INDIRECT(CONCATENATE($B111,"!C16"))),"",INDIRECT(CONCATENATE($B111,"!C16"))) -> 77.51537944 | E111: =IF(ISERROR(INDIRECT(CONCATENATE($B111,"!C23"))),"",INDIRECT(CONCATENATE($B111,"!C23"))) -> 55.87995239 | H111: =IF(ISERROR(INDIRECT(CONCATENATE($B111,"!C21"))),"",INDIRECT(CONCATENATE($B111,"!C21"))) -> 9.644304961 | I111: =IF(ISERROR(INDIRECT(CONCATENATE($B111,"!D16"))),"",INDIRECT(CONCATENATE($B111,"!D16"))) -> 73.49688817 | J111: =IF(ISERROR(INDIRECT(CONCATENATE($B111,"!D23"))),"",INDIRECT(CONCATENATE($B111,"!D23"))) -> 58.68567282 | M111: =IF(ISERROR(INDIRECT(CONCATENATE($B111,"!D21"))),"",INDIRECT(CONCATENATE($B111,"!D21"))) -> 10.92957441 | N111: =IF(ISERROR(INDIRECT(CONCATENATE($B111,"!E16"))),"",INDIRECT(CONCATENATE($B111,"!E16"))) -> 71.80986128 | O111: =IF(ISERROR(INDIRECT(CONCATENATE($B111,"!E23"))),"",INDIRECT(CONCATENATE($B111,"!E23"))) -> 60.99976385 | R111: =IF(ISERROR(INDIRECT(CONCATENATE($B111,"!E21"))),"",INDIRECT(CONCATENATE($B111,"!E21"))) -> 11.51403404 | S111: =IF(ISERROR(INDIRECT(CONCATENATE($B111,"!F16"))),"",INDIRECT(CONCATENATE($B111,"!F16"))) -> 77.10045944 | T111: =IF(ISERROR(INDIRECT(CONCATENATE($B111,"!F23"))),"",INDIRECT(CONCATENATE($B111,"!F23"))) -> 68.80009586 | W111: =IF(ISERROR(INDIRECT(CONCATENATE($B111,"!F21"))),"",INDIRECT(CONCATENATE($B111,"!F21"))) -> 8.832328555 | X111: =IF(ISERROR(INDIRECT(CONCATENATE($B111,"!G16"))),"",INDIRECT(CONCATENATE($B111,"!G16"))) -> 92.30248154 | Y111: =IF(ISERROR(INDIRECT(CONCATENATE($B111,"!G23"))),"",INDIRECT(CONCATENATE($B111,"!G23"))) -> 88.41658916 | AB111: =IF(ISERROR(INDIRECT(CONCATENATE($B111,"!G221"))),"",INDIRECT(CONCATENATE($B111,"!G21"))) -> 2.718958451
B112: MIS19 | C112: 2019 | D112: =IF(ISERROR(INDIRECT(CONCATENATE($B112,"!C16"))),"",INDIRECT(CONCATENATE($B112,"!C16"))) -> 75.3299961 | E112: =IF(ISERROR(INDIRECT(CONCATENATE($B112,"!C23"))),"",INDIRECT(CONCATENATE($B112,"!C23"))) -> 59.37714048 | H112: =IF(ISERROR(INDIRECT(CONCATENATE($B112,"!C21"))),"",INDIRECT(CONCATENATE($B112,"!C21"))) -> 6.256884282 | I112: =IF(ISERROR(INDIRECT(CONCATENATE($B112,"!D16"))),"",INDIRECT(CONCATENATE($B112,"!D16"))) -> 72.05205222 | J112: =IF(ISERROR(INDIRECT(CONCATENATE($B112,"!D23"))),"",INDIRECT(CONCATENATE($B112,"!D23"))) -> 61.24827971 | M112: =IF(ISERROR(INDIRECT(CONCATENATE($B112,"!D21"))),"",INDIRECT(CONCATENATE($B112,"!D21"))) -> 9.622875931 | N112: =IF(ISERROR(INDIRECT(CONCATENATE($B112,"!E16"))),"",INDIRECT(CONCATENATE($B112,"!E16"))) -> 76.17184811 | O112: =IF(ISERROR(INDIRECT(CONCATENATE($B112,"!E23"))),"",INDIRECT(CONCATENATE($B112,"!E23"))) -> 64.04562061 | R112: =IF(ISERROR(INDIRECT(CONCATENATE($B112,"!E21"))),"",INDIRECT(CONCATENATE($B112,"!E21"))) -> 7.494466023 | S112: =IF(ISERROR(INDIRECT(CONCATENATE($B112,"!F16"))),"",INDIRECT(CONCATENATE($B112,"!F16"))) -> 71.66372597 | T112: =IF(ISERROR(INDIRECT(CONCATENATE($B112,"!F23"))),"",INDIRECT(CONCATENATE($B112,"!F23"))) -> 69.31757227 | W112: =IF(ISERROR(INDIRECT(CONCATENATE($B112,"!F21"))),"",INDIRECT(CONCATENATE($B112,"!F21"))) -> 5.828507228 | X112: =IF(ISERROR(INDIRECT(CONCATENATE($B112,"!G16"))),"",INDIRECT(CONCATENATE($B112,"!G16"))) -> 90.6452997 | Y112: =IF(ISERROR(INDIRECT(CONCATENATE($B112,"!G23"))),"",INDIRECT(CONCATENATE($B112,"!G23"))) -> 88.20117415 | AB112: =IF(ISERROR(INDIRECT(CONCATENATE($B112,"!G221"))),"",INDIRECT(CONCATENATE($B112,"!G21"))) -> 2.189515094
B118: =CONCATENATE("National use of drinking water sources, ",C99,"–",C100) -> National use of drinking water sources, 2000–2020 | S118: Data points used for regression
E153: =IF(ISERROR(INDIRECT(CONCATENATE($B153,"!M18"))),"",INDIRECT(CONCATENATE($B153,"!M18"))) ->  | F153: =IF(ISERROR(INDIRECT(CONCATENATE($B153,"!M19"))),"",INDIRECT(CONCATENATE($B153,"!M19"))) ->  | G153: =IF(ISERROR(INDIRECT(CONCATENATE($B153,"!M20"))),"",INDIRECT(CONCATENATE($B153,"!M20"))) ->  | H153: =IF(ISERROR(INDIRECT(CONCATENATE($B153,"!M21"))),"",INDIRECT(CONCATENATE($B153,"!M21"))) ->  | J153: =IF(ISERROR(INDIRECT(CONCATENATE($B153,"!N18"))),"",INDIRECT(CONCATENATE($B153,"!N18"))) ->  | K153: =IF(ISERROR(INDIRECT(CONCATENATE($B153,"!N19"))),"",INDIRECT(CONCATENATE($B153,"!N19"))) ->  | L153: =IF(ISERROR(INDIRECT(CONCATENATE($B153,"!N20"))),"",INDIRECT(CONCATENATE($B153,"!N20"))) ->  | M153: =IF(ISERROR(INDIRECT(CONCATENATE($B153,"!N21"))),"",INDIRECT(CONCATENATE($B153,"!N21"))) ->  | O153: =IF(ISERROR(INDIRECT(CONCATENATE($B153,"!O18"))),"",INDIRECT(CONCATENATE($B153,"!O18"))) ->  | P153: =IF(ISERROR(INDIRECT(CONCATENATE($B153,"!O19"))),"",INDIRECT(CONCATENATE($B153,"!O19"))) ->  | Q153: =IF(ISERROR(INDIRECT(CONCATENATE($B153,"!O20"))),"",INDIRECT(CONCATENATE($B153,"!O20"))) ->  | R153: =IF(ISERROR(INDIRECT(CONCATENATE($B153,"!O21"))),"",INDIRECT(CONCATENATE($B153,"!O21"))) ->  | T153: =IF(ISERROR(INDIRECT(CONCATENATE($B153,"!P18"))),"",INDIRECT(CONCATENATE($B153,"!P18"))) ->  | U153: =IF(ISERROR(INDIRECT(CONCATENATE($B153,"!P19"))),"",INDIRECT(CONCATENATE($B153,"!P19"))) ->  | V153: =IF(ISERROR(INDIRECT(CONCATENATE($B153,"!P20"))),"",INDIRECT(CONCATENATE($B153,"!P20"))) ->  | W153: =IF(ISERROR(INDIRECT(CONCATENATE($B153,"!P21"))),"",INDIRECT(CONCATENATE($B153,"!P21"))) ->  | Y153: =IF(ISERROR(INDIRECT(CONCATENATE($B153,"!Q18"))),"",INDIRECT(CONCATENATE($B153,"!Q18"))) ->  | Z153: =IF(ISERROR(INDIRECT(CONCATENATE($B153,"!Q19"))),"",INDIRECT(CONCATENATE($B153,"!Q19"))) ->  | AA153: =IF(ISERROR(INDIRECT(CONCATENATE($B153,"!Q20"))),"",INDIRECT(CONCATENATE($B153,"!Q20"))) ->  | AB153: =IF(ISERROR(INDIRECT(CONCATENATE($B153,"!Q21"))),"",INDIRECT(CONCATENATE($B153,"!Q1"))) -> 
A197: URBAN | D197: Poorest | I197: Poor | N197: Middle | S197: Rich | X197: Richest
D198: Improved | E198: Basic | F198: Limited | G198: Unimproved | H198: Surface water | I198: Improved | J198: Basic | K198: Limited | L198: Unimproved | M198: Surface water | N198: Improved | O198: Basic | P198: Limited | Q198: Unimproved | R198: Surface water | S198: Improved | T198: Basic | U198: Limited | V198: Unimproved | W198: Surface water | X198: Improved | Y198: Basic | Z198: Limited | AA198: Unimproved | AB198: Surface water
A199: Forecast period: | C199: 2000 | D199: =IF((D201+H201)>100,D201*100/(D201+H201),D201) -> 88.14874318 | E199: =D199*AVERAGEIF(E205:E216,">0")/100 -> 58.30864779 | F199: =D199*(100-AVERAGEIF(E205:E216,">0"))/100 -> 29.84009539 | G199: =100-(E199+F199+H199) -> 4.445402345 | H199: =IF((D201+H201)>100,H201*100/(D201+H201),H201) -> 7.405854476 | I199: =IF((I201+M201)>100,I201*100/(I201+M201),I201) -> 91.93192566 | J199: =I199*AVERAGEIF(J205:J216,">0")/100 -> 71.77349534 | K199: =I199*(100-AVERAGEIF(J205:J216,">0"))/100 -> 20.15843032 | L199: =100-(J199+K199+M199) -> 5.204738027 | M199: =IF((I201+M201)>100,M201*100/(I201+M201),M201) -> 2.863336315 | N199: =IF((N201+R201)>100,N201*100/(N201+R201),N201) -> 92.00711872 | O199: =N199*AVERAGEIF(O205:O216,">0")/100 -> 80.06760167 | P199: =N199*(100-AVERAGEIF(O205:O216,">0"))/100 -> 11.93951705 | Q199: =100-(O199+P199+R199) -> 5.895140799 | R199: =IF((N201+R201)>100,R201*100/(N201+R201),R201) -> 2.097740477 | S199: =IF((S201+W201)>100,S201*100/(S201+W201),S201) -> 93.76711275 | T199: =S199*AVERAGEIF(T205:T216,">0")/100 -> 87.17919087 | U199: =S199*(100-AVERAGEIF(T205:T216,">0"))/100 -> 6.587921879 | V199: =100-(T199+U199+W199) -> 5.28936411 | W199: =IF((S201+W201)>100,W201*100/(S201+W201),W201) -> 0.9435231386 | X199: =IF((X201+AB201)>100,X201*100/(X201+AB201),X201) -> 95.2752705 | Y199: =X199*AVERAGEIF(Y205:Y216,">0")/100 -> 91.47528704 | Z199: =X199*(100-AVERAGEIF(Y205:Y216,">0"))/100 -> 3.799983457 | AA199: =100-(Y199+Z199+AB199) -> 4.724729505 | AB199: =IF((X201+AB201)>100,AB201*100/(X201+AB201),AB201) -> 0
C200: 2020 | D200: =IF((D202+H202)>100,D202*100/(D202+H202),D202) -> 77.26564788 | E200: =D200*AVERAGEIF(E205:E216,">0")/100 -> 51.1096958 | F200: =D200*(100-AVERAGEIF(E205:E216,">0"))/100 -> 26.15595208 | G200: =100-(E200+F200+H200) -> 18.91396949 | H200: =IF((D202+H202)>100,H202*100/(D202+H202),H202) -> 3.820382627 | I200: =IF((I202+M202)>100,I202*100/(I202+M202),I202) -> 83.79173596 | J200: =I200*AVERAGEIF(J205:J216,">0")/100 -> 65.41825082 | K200: =I200*(100-AVERAGEIF(J205:J216,">0"))/100 -> 18.37348514 | L200: =100-(J200+K200+M200) -> 12.8052298 | M200: =IF((I202+M202)>100,M202*100/(I202+M202),M202) -> 3.403034238 | N200: =IF((N202+R202)>100,N202*100/(N202+R202),N202) -> 94.28518579 | O200: =N200*AVERAGEIF(O205:O216,">0")/100 -> 82.05005008 | P200: =N200*(100-AVERAGEIF(O205:O216,">0"))/100 -> 12.23513571 | Q200: =100-(O200+P200+R200) -> 4.004389095 | R200: =IF((N202+R202)>100,R202*100/(N202+R202),R202) -> 1.710425119 | S200: =IF((S202+W202)>100,S202*100/(S202+W202),S202) -> 96.90845595 | T200: =S200*AVERAGEIF(T205:T216,">0")/100 -> 90.09982851 | U200: =S200*(100-AVERAGEIF(T205:T216,">0"))/100 -> 6.808627444 | V200: =100-(T200+U200+W200) -> 2.761986508 | W200: =IF((S202+W202)>100,W202*100/(S202+W202),W202) -> 0.3295575389 | X200: =IF((X202+AB202)>100,X202*100/(X202+AB202),X202) -> 99.90199427 | Y200: =X200*AVERAGEIF(Y205:Y216,">0")/100 -> 95.91747737 | Z200: =X200*(100-AVERAGEIF(Y205:Y216,">0"))/100 -> 3.984516901 | AA200: =100-(Y200+Z200+AB200) -> 0 | AB200: =IF((X202+AB202)>100,AB202*100/(X202+AB202),AB202) -> 0.09800572616
A201: Regression period: | C201: =MinRegYear(C199,C205:C216) -> 2000 | D201: =IF(MAX(C205:C216)-MIN(C205:C216)<5,AVERAGEIF(C205:C216,">0",D205:D216), IF(FORECAST($C201,D$205:D$216,$C$205:$C$216)<0,0, IF(FORECAST($C201,D$205:D$216,$C$205:$C$216)>100,100, FORECAST($C201,D$205:D$216,$C$205:$C$216)))) -> 88.14874318 | H201: =IF(MAX(C205:C216)-MIN(C205:C216)<5,AVERAGEIF(C205:C216,">0",H205:H216), IF(FORECAST($C201,H$205:H$216,$C$205:$C$216)<0,0, IF(FORECAST($C201,H$205:H$216,$C$205:$C$216)>100,100, FORECAST($C201,H$205:H$216,$C$205:$C$216)))) -> 7.405854476 | I201: =IF(MAX(C205:C216)-MIN(C205:C216)<5,AVERAGEIF(C205:C216,">0",I205:I216), IF(FORECAST($C201,I$205:I$216,$C$205:$C$216)<0,0, IF(FORECAST($C201,I$205:I$216,$C$205:$C$216)>100,100, FORECAST($C201,I$205:I$216,$C$205:$C$216)))) -> 91.93192566 | M201: =IF(MAX(C205:C216)-MIN(C205:C216)<5,AVERAGEIF(C205:C216,">0",M205:M216), IF(FORECAST($C201,M$205:M$216,$C$205:$C$216)<0,0, IF(FORECAST($C201,M$205:M$216,$C$205:$C$216)>100,100, FORECAST($C201,M$205:M$216,$C$205:$C$216)))) -> 2.863336315 | N201: =IF(MAX(C205:C216)-MIN(C205:C216)<5,AVERAGEIF(C205:C216,">0",N205:N216), IF(FORECAST($C201,N$205:N$216,$C$205:$C$216)<0,0, IF(FORECAST($C201,N$205:N$216,$C$205:$C$216)>100,100, FORECAST($C201,N$205:N$216,$C$205:$C$216)))) -> 92.00711872 | R201: =IF(MAX(C205:C216)-MIN(C205:C216)<5,AVERAGEIF(C205:C216,">0",R205:R216), IF(FORECAST($C201,R$205:R$216,$C$205:$C$216)<0,0, IF(FORECAST($C201,R$205:R$216,$C$205:$C$216)>100,100, FORECAST($C201,R$205:R$216,$C$205:$C$216)))) -> 2.097740477 | S201: =IF(MAX(C205:C216)-MIN(C205:C216)<5,AVERAGEIF(C205:C216,">0",S205:S216), IF(FORECAST($C201,S$205:S$216,$C$205:$C$216)<0,0, IF(FORECAST($C201,S$205:S$216,$C$205:$C$216)>100,100, FORECAST($C201,S$205:S$216,$C$205:$C$216)))) -> 93.76711275 | W201: =IF(MAX(C205:C216)-MIN(C205:C216)<5,AVERAGEIF(C205:C216,">0",W205:W216), IF(FORECAST($C201,W$205:W$216,$C$205:$C$216)<0,0, IF(FORECAST($C201,W$205:W$216,$C$205:$C$216)>100,100, FORECAST($C201,W$205:W$216,$C$205:$C$216)))) -> 0.9435231386 | X201: =IF(MAX(C205:C216)-MIN(C205:C216)<5,AVERAGEIF(C205:C216,">0",X205:X216), IF(FORECAST($C201,X$205:X$216,$C$205:$C$216)<0,0, IF(FORECAST($C201,X$205:X$216,$C$205:$C$216)>100,100, FORECAST($C201,X$205:X$216,$C$205:$C$216)))) -> 95.2752705 | AB201: =IF(MAX(C205:C216)-MIN(C205:C216)<5,AVERAGEIF(C205:C216,">0",AB205:AB216), IF(FORECAST($C201,AB$205:AB$216,$C$205:$C$216)<0,0, IF(FORECAST($C201,AB$205:AB$216,$C$205:$C$216)>100,100, FORECAST($C201,AB$205:AB$216,$C$205:$C$216)))) -> 0
C202: =MaxRegYear(C200,C205:C216) -> 2020 | D202: =IF(MAX(C205:C216)-MIN(C205:C216)<5,AVERAGEIF(C205:C216,">0",D205:D216), IF(FORECAST($C202,D$205:D$216,$C$205:$C$216)<0,0, IF(FORECAST($C202,D$205:D$216,$C$205:$C$216)>100,100, FORECAST($C202,D$205:D$216,$C$205:$C$216)))) -> 77.26564788 | H202: =IF(MAX(C205:C216)-MIN(C205:C216)<5,AVERAGEIF(C205:C216,">0",H205:H216), IF(FORECAST($C202,H$205:H$216,$C$205:$C$216)<0,0, IF(FORECAST($C202,H$205:H$216,$C$205:$C$216)>100,100, FORECAST($C202,H$205:H$216,$C$205:$C$216)))) -> 3.820382627 | I202: =IF(MAX(C205:C216)-MIN(C205:C216)<5,AVERAGEIF(C205:C216,">0",I205:I216), IF(FORECAST($C202,I$205:I$216,$C$205:$C$216)<0,0, IF(FORECAST($C202,I$205:I$216,$C$205:$C$216)>100,100, FORECAST($C202,I$205:I$216,$C$205:$C$216)))) -> 83.79173596 | M202: =IF(MAX(C205:C216)-MIN(C205:C216)<5,AVERAGEIF(C205:C216,">0",M205:M216), IF(FORECAST($C202,M$205:M$216,$C$205:$C$216)<0,0, IF(FORECAST($C202,M$205:M$216,$C$205:$C$216)>100,100, FORECAST($C202,M$205:M$216,$C$205:$C$216)))) -> 3.403034238 | N202: =IF(MAX(C205:C216)-MIN(C205:C216)<5,AVERAGEIF(C205:C216,">0",N205:N216), IF(FORECAST($C202,N$205:N$216,$C$205:$C$216)<0,0, IF(FORECAST($C202,N$205:N$216,$C$205:$C$216)>100,100, FORECAST($C202,N$205:N$216,$C$205:$C$216)))) -> 94.28518579 | R202: =IF(MAX(C205:C216)-MIN(C205:C216)<5,AVERAGEIF(C205:C216,">0",R205:R216), IF(FORECAST($C202,R$205:R$216,$C$205:$C$216)<0,0, IF(FORECAST($C202,R$205:R$216,$C$205:$C$216)>100,100, FORECAST($C202,R$205:R$216,$C$205:$C$216)))) -> 1.710425119 | S202: =IF(MAX(C205:C216)-MIN(C205:C216)<5,AVERAGEIF(C205:C216,">0",S205:S216), IF(FORECAST($C202,S$205:S$216,$C$205:$C$216)<0,0, IF(FORECAST($C202,S$205:S$216,$C$205:$C$216)>100,100, FORECAST($C202,S$205:S$216,$C$205:$C$216)))) -> 96.90845595 | W202: =IF(MAX(C205:C216)-MIN(C205:C216)<5,AVERAGEIF(C205:C216,">0",W205:W216), IF(FORECAST($C202,W$205:W$216,$C$205:$C$216)<0,0, IF(FORECAST($C202,W$205:W$216,$C$205:$C$216)>100,100, FORECAST($C202,W$205:W$216,$C$205:$C$216)))) -> 0.3295575389 | X202: =IF(MAX(C205:C216)-MIN(C205:C216)<5,AVERAGEIF(C205:C216,">0",X205:X216), IF(FORECAST($C202,X$205:X$216,$C$205:$C$216)<0,0, IF(FORECAST($C202,X$205:X$216,$C$205:$C$216)>100,100, FORECAST($C202,X$205:X$216,$C$205:$C$216)))) -> 100 | AB202: =IF(MAX(C205:C216)-MIN(C205:C216)<5,AVERAGEIF(C205:C216,">0",AB205:AB216), IF(FORECAST($C202,AB$205:AB$216,$C$205:$C$216)<0,0, IF(FORECAST($C202,AB$205:AB$216,$C$205:$C$216)>100,100, FORECAST($C202,AB$205:AB$216,$C$205:$C$216)))) -> 0.09810187161
B204: Survey | C204: Year | D204: Improved | E204: % Improved < = 30min | H204: Surface water | I204: Improved | J204: % Improved < = 30min | M204: Surface water | N204: Improved | O204: % Improved < = 30min | R204: Surface water | S204: Improved | T204: % Improved < = 30min | W204: Surface water | X204: Improved | Y204: % Improved < = 30min | AB204: Surface water
B205: DHS01 | C205: 2001 | D205: =IF(ISERROR(INDIRECT(CONCATENATE($B205,"!H16"))),"",INDIRECT(CONCATENATE($B205,"!H16"))) -> 86.53134531 | E205: =IF(ISERROR(INDIRECT(CONCATENATE($B205,"!H23"))),"",INDIRECT(CONCATENATE($B205,"!H23"))) -> N/A | H205: =IF(ISERROR(INDIRECT(CONCATENATE($B205,"!H21"))),"",INDIRECT(CONCATENATE($B205,"!H21"))) -> 2.8472719 | I205: =IF(ISERROR(INDIRECT(CONCATENATE($B205,"!I16"))),"",INDIRECT(CONCATENATE($B205,"!I16"))) -> 85.1759679 | J205: =IF(ISERROR(INDIRECT(CONCATENATE($B205,"!I23"))),"",INDIRECT(CONCATENATE($B205,"!I23"))) -> N/A | M205: =IF(ISERROR(INDIRECT(CONCATENATE($B205,"!I21"))),"",INDIRECT(CONCATENATE($B205,"!I21"))) -> 1.267157621 | N205: =IF(ISERROR(INDIRECT(CONCATENATE($B205,"!J16"))),"",INDIRECT(CONCATENATE($B205,"!J16"))) -> 90.56224872 | O205: =IF(ISERROR(INDIRECT(CONCATENATE($B205,"!J23"))),"",INDIRECT(CONCATENATE($B205,"!J23"))) -> N/A | R205: =IF(ISERROR(INDIRECT(CONCATENATE($B205,"!J21"))),"",INDIRECT(CONCATENATE($B205,"!J21"))) -> 0.8502609347 | S205: =IF(ISERROR(INDIRECT(CONCATENATE($B205,"!K16"))),"",INDIRECT(CONCATENATE($B205,"!K16"))) -> 94.2127721 | T205: =IF(ISERROR(INDIRECT(CONCATENATE($B205,"!K23"))),"",INDIRECT(CONCATENATE($B205,"!K23"))) -> N/A | W205: =IF(ISERROR(INDIRECT(CONCATENATE($B205,"!K21"))),"",INDIRECT(CONCATENATE($B205,"!K21"))) -> 0.125660346 | X205: =IF(ISERROR(INDIRECT(CONCATENATE($B205,"!L16"))),"",INDIRECT(CONCATENATE($B205,"!L16"))) -> 94.59765746 | Y205: =IF(ISERROR(INDIRECT(CONCATENATE($B205,"!L23"))),"",INDIRECT(CONCATENATE($B205,"!L23"))) -> N/A | AB205: =IF(ISERROR(INDIRECT(CONCATENATE($B205,"!L221"))),"",INDIRECT(CONCATENATE($B205,"!L21"))) -> 0
B206: DHS06 | C206: 2006 | D206: 77.3 | E206: 43.7 | H206: 18.5 | I206: 93.6 | J206: 59.5 | M206: 1.2 | N206: 92.6 | O206: 71.7 | R206: 0.6 | S206: 90.5 | T206: 81.4 | W206: 2.6 | X206: 97.5 | Y206: 88.2 | AB206: 0
B207: MIS09 | C207: 2009 | D207: 96.79127207 | E207: N/A | H207: 0 | I207: 84.81917072 | J207: N/A | M207: 12.29662195 | N207: 90.32760818 | O207: N/A | R207: 8.527450833 | S207: 99.41000349 | T207: N/A | W207: 0 | X207: 98.05513689 | Y207: N/A | AB207: 0
B208: AIS11 | C208: 2011 | D208: 85.43572664 | E208: 61.2 | H208: 3.071081302 | I208: 93.70178527 | J208: 82.5 | M208: 0.5650421608 | N208: 97.34236712 | O208: 86.1 | R208: 1.004700917 | S208: 97.79447879 | T208: 93.6 | W208: 0 | X208: 98.50773093 | Y208: 95.7 | AB208: 0
B209: DHS11 | C209: 2011 | D209: 80.1 | E209: 77.9 | H209: 5.2 | I209: 91.3 | J209: 81.5 | M209: 0.8 | N209: 94.8 | O209: 91.1 | R209: 0.1 | S209: 92.7 | T209: 95.3 | W209: 1.1 | X209: 97.7 | Y209: 97.6 | AB209: 0
B210: MIS15 | C210: 2015 | D210: 70.18340115 | E210: 81.24233409 | H210: 4.909229851 | I210: 92.04832806 | J210: 88.53868139 | M210: 1.255967046 | N210: 95.50253874 | O210: 95.6190634 | R210: 1.321527952 | S210: 97.56540731 | T210: 97.64853987 | W210: 0 | X210: 98.86215056 | Y210: 99.08427182 | AB210: 0
B211: DHS16 | C211: 2016 | D211: 83.45682329 | E211: 68.40853718 | H211: 4.053211331 | I211: 81.99402017 | J211: 79.06085507 | M211: 6.205721051 | N211: 95.21484119 | O211: 87.6780211 | R211: 0.8835184407 | S211: 98.08979634 | T211: 93.33986291 | W211: 0.36513435 | X211: 98.65790828 | Y211: 97.59914665 | AB211: 0.214491565
B212: MIS19 | C212: 2019 | D212: 77.50575765 | E212: 64.4372455 | H212: 4.889965288 | I212: 76.99929848 | J212: 77.33508945 | M212: 1.690851548 | N212: 89.73084092 | O212: 89.94252458 | R212: 1.790277164 | S212: 93.68635406 | T212: 96.556592 | W212: 0.6559417741 | X212: 99.71794965 | Y212: 97.88602681 | AB212: 0.06943051117
B218: =CONCATENATE("Urban use of drinking water sources, ",C199,"–",C200) -> Urban use of drinking water sources, 2000–2020 | S218: Data points used for regression
E253: =IF(ISERROR(INDIRECT(CONCATENATE($B253,"!M18"))),"",INDIRECT(CONCATENATE($B253,"!M18"))) ->  | F253: =IF(ISERROR(INDIRECT(CONCATENATE($B253,"!M19"))),"",INDIRECT(CONCATENATE($B253,"!M19"))) ->  | G253: =IF(ISERROR(INDIRECT(CONCATENATE($B253,"!M20"))),"",INDIRECT(CONCATENATE($B253,"!M20"))) ->  | H253: =IF(ISERROR(INDIRECT(CONCATENATE($B253,"!M21"))),"",INDIRECT(CONCATENATE($B253,"!M21"))) ->  | J253: =IF(ISERROR(INDIRECT(CONCATENATE($B253,"!N18"))),"",INDIRECT(CONCATENATE($B253,"!N18"))) ->  | K253: =IF(ISERROR(INDIRECT(CONCATENATE($B253,"!N19"))),"",INDIRECT(CONCATENATE($B253,"!N19"))) ->  | L253: =IF(ISERROR(INDIRECT(CONCATENATE($B253,"!N20"))),"",INDIRECT(CONCATENATE($B253,"!N20"))) ->  | M253: =IF(ISERROR(INDIRECT(CONCATENATE($B253,"!N21"))),"",INDIRECT(CONCATENATE($B253,"!N21"))) ->  | O253: =IF(ISERROR(INDIRECT(CONCATENATE($B253,"!O18"))),"",INDIRECT(CONCATENATE($B253,"!O18"))) ->  | P253: =IF(ISERROR(INDIRECT(CONCATENATE($B253,"!O19"))),"",INDIRECT(CONCATENATE($B253,"!O19"))) ->  | Q253: =IF(ISERROR(INDIRECT(CONCATENATE($B253,"!O20"))),"",INDIRECT(CONCATENATE($B253,"!O20"))) ->  | R253: =IF(ISERROR(INDIRECT(CONCATENATE($B253,"!O21"))),"",INDIRECT(CONCATENATE($B253,"!O21"))) ->  | T253: =IF(ISERROR(INDIRECT(CONCATENATE($B253,"!P18"))),"",INDIRECT(CONCATENATE($B253,"!P18"))) ->  | U253: =IF(ISERROR(INDIRECT(CONCATENATE($B253,"!P19"))),"",INDIRECT(CONCATENATE($B253,"!P19"))) ->  | V253: =IF(ISERROR(INDIRECT(CONCATENATE($B253,"!P20"))),"",INDIRECT(CONCATENATE($B253,"!P20"))) ->  | W253: =IF(ISERROR(INDIRECT(CONCATENATE($B253,"!P21"))),"",INDIRECT(CONCATENATE($B253,"!P21"))) ->  | Y253: =IF(ISERROR(INDIRECT(CONCATENATE($B253,"!Q18"))),"",INDIRECT(CONCATENATE($B253,"!Q18"))) ->  | Z253: =IF(ISERROR(INDIRECT(CONCATENATE($B253,"!Q19"))),"",INDIRECT(CONCATENATE($B253,"!Q19"))) ->  | AA253: =IF(ISERROR(INDIRECT(CONCATENATE($B253,"!Q20"))),"",INDIRECT(CONCATENATE($B253,"!Q20"))) ->  | AB253: =IF(ISERROR(INDIRECT(CONCATENATE($B253,"!Q21"))),"",INDIRECT(CONCATENATE($B253,"!Q1"))) -> 
E254: =IF(ISERROR(INDIRECT(CONCATENATE($B254,"!M18"))),"",INDIRECT(CONCATENATE($B254,"!M18"))) ->  | F254: =IF(ISERROR(INDIRECT(CONCATENATE($B254,"!M19"))),"",INDIRECT(CONCATENATE($B254,"!M19"))) ->  | G254: =IF(ISERROR(INDIRECT(CONCATENATE($B254,"!M20"))),"",INDIRECT(CONCATENATE($B254,"!M20"))) ->  | H254: =IF(ISERROR(INDIRECT(CONCATENATE($B254,"!M21"))),"",INDIRECT(CONCATENATE($B254,"!M21"))) ->  | J254: =IF(ISERROR(INDIRECT(CONCATENATE($B254,"!N18"))),"",INDIRECT(CONCATENATE($B254,"!N18"))) ->  | K254: =IF(ISERROR(INDIRECT(CONCATENATE($B254,"!N19"))),"",INDIRECT(CONCATENATE($B254,"!N19"))) ->  | L254: =IF(ISERROR(INDIRECT(CONCATENATE($B254,"!N20"))),"",INDIRECT(CONCATENATE($B254,"!N20"))) ->  | M254: =IF(ISERROR(INDIRECT(CONCATENATE($B254,"!N21"))),"",INDIRECT(CONCATENATE($B254,"!N21"))) ->  | O254: =IF(ISERROR(INDIRECT(CONCATENATE($B254,"!O18"))),"",INDIRECT(CONCATENATE($B254,"!O18"))) ->  | P254: =IF(ISERROR(INDIRECT(CONCATENATE($B254,"!O19"))),"",INDIRECT(CONCATENATE($B254,"!O19"))) ->  | Q254: =IF(ISERROR(INDIRECT(CONCATENATE($B254,"!O20"))),"",INDIRECT(CONCATENATE($B254,"!O20"))) ->  | R254: =IF(ISERROR(INDIRECT(CONCATENATE($B254,"!O21"))),"",INDIRECT(CONCATENATE($B254,"!O21"))) ->  | T254: =IF(ISERROR(INDIRECT(CONCATENATE($B254,"!P18"))),"",INDIRECT(CONCATENATE($B254,"!P18"))) ->  | U254: =IF(ISERROR(INDIRECT(CONCATENATE($B254,"!P19"))),"",INDIRECT(CONCATENATE($B254,"!P19"))) ->  | V254: =IF(ISERROR(INDIRECT(CONCATENATE($B254,"!P20"))),"",INDIRECT(CONCATENATE($B254,"!P20"))) ->  | W254: =IF(ISERROR(INDIRECT(CONCATENATE($B254,"!P21"))),"",INDIRECT(CONCATENATE($B254,"!P21"))) ->  | Y254: =IF(ISERROR(INDIRECT(CONCATENATE($B254,"!Q18"))),"",INDIRECT(CONCATENATE($B254,"!Q18"))) ->  | Z254: =IF(ISERROR(INDIRECT(CONCATENATE($B254,"!Q19"))),"",INDIRECT(CONCATENATE($B254,"!Q19"))) ->  | AA254: =IF(ISERROR(INDIRECT(CONCATENATE($B254,"!Q20"))),"",INDIRECT(CONCATENATE($B254,"!Q20"))) ->  | AB254: =IF(ISERROR(INDIRECT(CONCATENATE($B254,"!Q21"))),"",INDIRECT(CONCATENATE($B254,"!Q1"))) -> 
E255: =IF(ISERROR(INDIRECT(CONCATENATE($B255,"!M18"))),"",INDIRECT(CONCATENATE($B255,"!M18"))) ->  | F255: =IF(ISERROR(INDIRECT(CONCATENATE($B255,"!M19"))),"",INDIRECT(CONCATENATE($B255,"!M19"))) ->  | G255: =IF(ISERROR(INDIRECT(CONCATENATE($B255,"!M20"))),"",INDIRECT(CONCATENATE($B255,"!M20"))) ->  | H255: =IF(ISERROR(INDIRECT(CONCATENATE($B255,"!M21"))),"",INDIRECT(CONCATENATE($B255,"!M21"))) ->  | J255: =IF(ISERROR(INDIRECT(CONCATENATE($B255,"!N18"))),"",INDIRECT(CONCATENATE($B255,"!N18"))) ->  | K255: =IF(ISERROR(INDIRECT(CONCATENATE($B255,"!N19"))),"",INDIRECT(CONCATENATE($B255,"!N19"))) ->  | L255: =IF(ISERROR(INDIRECT(CONCATENATE($B255,"!N20"))),"",INDIRECT(CONCATENATE($B255,"!N20"))) ->  | M255: =IF(ISERROR(INDIRECT(CONCATENATE($B255,"!N21"))),"",INDIRECT(CONCATENATE($B255,"!N21"))) ->  | O255: =IF(ISERROR(INDIRECT(CONCATENATE($B255,"!O18"))),"",INDIRECT(CONCATENATE($B255,"!O18"))) ->  | P255: =IF(ISERROR(INDIRECT(CONCATENATE($B255,"!O19"))),"",INDIRECT(CONCATENATE($B255,"!O19"))) ->  | Q255: =IF(ISERROR(INDIRECT(CONCATENATE($B255,"!O20"))),"",INDIRECT(CONCATENATE($B255,"!O20"))) ->  | R255: =IF(ISERROR(INDIRECT(CONCATENATE($B255,"!O21"))),"",INDIRECT(CONCATENATE($B255,"!O21"))) ->  | T255: =IF(ISERROR(INDIRECT(CONCATENATE($B255,"!P18"))),"",INDIRECT(CONCATENATE($B255,"!P18"))) ->  | U255: =IF(ISERROR(INDIRECT(CONCATENATE($B255,"!P19"))),"",INDIRECT(CONCATENATE($B255,"!P19"))) ->  | V255: =IF(ISERROR(INDIRECT(CONCATENATE($B255,"!P20"))),"",INDIRECT(CONCATENATE($B255,"!P20"))) ->  | W255: =IF(ISERROR(INDIRECT(CONCATENATE($B255,"!P21"))),"",INDIRECT(CONCATENATE($B255,"!P21"))) ->  | Y255: =IF(ISERROR(INDIRECT(CONCATENATE($B255,"!Q18"))),"",INDIRECT(CONCATENATE($B255,"!Q18"))) ->  | Z255: =IF(ISERROR(INDIRECT(CONCATENATE($B255,"!Q19"))),"",INDIRECT(CONCATENATE($B255,"!Q19"))) ->  | AA255: =IF(ISERROR(INDIRECT(CONCATENATE($B255,"!Q20"))),"",INDIRECT(CONCATENATE($B255,"!Q20"))) ->  | AB255: =IF(ISERROR(INDIRECT(CONCATENATE($B255,"!Q21"))),"",INDIRECT(CONCATENATE($B255,"!Q1"))) -> 
E256: =IF(ISERROR(INDIRECT(CONCATENATE($B256,"!M18"))),"",INDIRECT(CONCATENATE($B256,"!M18"))) ->  | F256: =IF(ISERROR(INDIRECT(CONCATENATE($B256,"!M19"))),"",INDIRECT(CONCATENATE($B256,"!M19"))) ->  | G256: =IF(ISERROR(INDIRECT(CONCATENATE($B256,"!M20"))),"",INDIRECT(CONCATENATE($B256,"!M20"))) ->  | H256: =IF(ISERROR(INDIRECT(CONCATENATE($B256,"!M21"))),"",INDIRECT(CONCATENATE($B256,"!M21"))) ->  | J256: =IF(ISERROR(INDIRECT(CONCATENATE($B256,"!N18"))),"",INDIRECT(CONCATENATE($B256,"!N18"))) ->  | K256: =IF(ISERROR(INDIRECT(CONCATENATE($B256,"!N19"))),"",INDIRECT(CONCATENATE($B256,"!N19"))) ->  | L256: =IF(ISERROR(INDIRECT(CONCATENATE($B256,"!N20"))),"",INDIRECT(CONCATENATE($B256,"!N20"))) ->  | M256: =IF(ISERROR(INDIRECT(CONCATENATE($B256,"!N21"))),"",INDIRECT(CONCATENATE($B256,"!N21"))) ->  | O256: =IF(ISERROR(INDIRECT(CONCATENATE($B256,"!O18"))),"",INDIRECT(CONCATENATE($B256,"!O18"))) ->  | P256: =IF(ISERROR(INDIRECT(CONCATENATE($B256,"!O19"))),"",INDIRECT(CONCATENATE($B256,"!O19"))) ->  | Q256: =IF(ISERROR(INDIRECT(CONCATENATE($B256,"!O20"))),"",INDIRECT(CONCATENATE($B256,"!O20"))) ->  | R256: =IF(ISERROR(INDIRECT(CONCATENATE($B256,"!O21"))),"",INDIRECT(CONCATENATE($B256,"!O21"))) ->  | T256: =IF(ISERROR(INDIRECT(CONCATENATE($B256,"!P18"))),"",INDIRECT(CONCATENATE($B256,"!P18"))) ->  | U256: =IF(ISERROR(INDIRECT(CONCATENATE($B256,"!P19"))),"",INDIRECT(CONCATENATE($B256,"!P19"))) ->  | V256: =IF(ISERROR(INDIRECT(CONCATENATE($B256,"!P20"))),"",INDIRECT(CONCATENATE($B256,"!P20"))) ->  | W256: =IF(ISERROR(INDIRECT(CONCATENATE($B256,"!P21"))),"",INDIRECT(CONCATENATE($B256,"!P21"))) ->  | Y256: =IF(ISERROR(INDIRECT(CONCATENATE($B256,"!Q18"))),"",INDIRECT(CONCATENATE($B256,"!Q18"))) ->  | Z256: =IF(ISERROR(INDIRECT(CONCATENATE($B256,"!Q19"))),"",INDIRECT(CONCATENATE($B256,"!Q19"))) ->  | AA256: =IF(ISERROR(INDIRECT(CONCATENATE($B256,"!Q20"))),"",INDIRECT(CONCATENATE($B256,"!Q20"))) ->  | AB256: =IF(ISERROR(INDIRECT(CONCATENATE($B256,"!Q21"))),"",INDIRECT(CONCATENATE($B256,"!Q1"))) -> 
E257: =IF(ISERROR(INDIRECT(CONCATENATE($B257,"!M18"))),"",INDIRECT(CONCATENATE($B257,"!M18"))) ->  | F257: =IF(ISERROR(INDIRECT(CONCATENATE($B257,"!M19"))),"",INDIRECT(CONCATENATE($B257,"!M19"))) ->  | G257: =IF(ISERROR(INDIRECT(CONCATENATE($B257,"!M20"))),"",INDIRECT(CONCATENATE($B257,"!M20"))) ->  | H257: =IF(ISERROR(INDIRECT(CONCATENATE($B257,"!M21"))),"",INDIRECT(CONCATENATE($B257,"!M21"))) ->  | J257: =IF(ISERROR(INDIRECT(CONCATENATE($B257,"!N18"))),"",INDIRECT(CONCATENATE($B257,"!N18"))) ->  | K257: =IF(ISERROR(INDIRECT(CONCATENATE($B257,"!N19"))),"",INDIRECT(CONCATENATE($B257,"!N19"))) ->  | L257: =IF(ISERROR(INDIRECT(CONCATENATE($B257,"!N20"))),"",INDIRECT(CONCATENATE($B257,"!N20"))) ->  | M257: =IF(ISERROR(INDIRECT(CONCATENATE($B257,"!N21"))),"",INDIRECT(CONCATENATE($B257,"!N21"))) ->  | O257: =IF(ISERROR(INDIRECT(CONCATENATE($B257,"!O18"))),"",INDIRECT(CONCATENATE($B257,"!O18"))) ->  | P257: =IF(ISERROR(INDIRECT(CONCATENATE($B257,"!O19"))),"",INDIRECT(CONCATENATE($B257,"!O19"))) ->  | Q257: =IF(ISERROR(INDIRECT(CONCATENATE($B257,"!O20"))),"",INDIRECT(CONCATENATE($B257,"!O20"))) ->  | R257: =IF(ISERROR(INDIRECT(CONCATENATE($B257,"!O21"))),"",INDIRECT(CONCATENATE($B257,"!O21"))) ->  | T257: =IF(ISERROR(INDIRECT(CONCATENATE($B257,"!P18"))),"",INDIRECT(CONCATENATE($B257,"!P18"))) ->  | U257: =IF(ISERROR(INDIRECT(CONCATENATE($B257,"!P19"))),"",INDIRECT(CONCATENATE($B257,"!P19"))) ->  | V257: =IF(ISERROR(INDIRECT(CONCATENATE($B257,"!P20"))),"",INDIRECT(CONCATENATE($B257,"!P20"))) ->  | W257: =IF(ISERROR(INDIRECT(CONCATENATE($B257,"!P21"))),"",INDIRECT(CONCATENATE($B257,"!P21"))) ->  | Y257: =IF(ISERROR(INDIRECT(CONCATENATE($B257,"!Q18"))),"",INDIRECT(CONCATENATE($B257,"!Q18"))) ->  | Z257: =IF(ISERROR(INDIRECT(CONCATENATE($B257,"!Q19"))),"",INDIRECT(CONCATENATE($B257,"!Q19"))) ->  | AA257: =IF(ISERROR(INDIRECT(CONCATENATE($B257,"!Q20"))),"",INDIRECT(CONCATENATE($B257,"!Q20"))) ->  | AB257: =IF(ISERROR(INDIRECT(CONCATENATE($B257,"!Q21"))),"",INDIRECT(CONCATENATE($B257,"!Q1"))) -> 
A297: RURAL | D297: Poorest | I297: Poor | N297: Middle | S297: Rich | X297: Richest
D298: Improved | E298: Basic | F298: Limited | G298: Unimproved | H298: Surface water | I298: Improved | J298: Basic | K298: Limited | L298: Unimproved | M298: Surface water | N298: Improved | O298: Basic | P298: Limited | Q298: Unimproved | R298: Surface water | S298: Improved | T298: Basic | U298: Limited | V298: Unimproved | W298: Surface water | X298: Improved | Y298: Basic | Z298: Limited | AA298: Unimproved | AB298: Surface water
A299: Forecast period: | C299: 2000 | D299: =IF((D301+H301)>100,D301*100/(D301+H301),D301) -> 55.12361668 | E299: =D299*AVERAGEIF(E305:E316,">0")/100 -> 25.24084341 | F299: =D299*(100-AVERAGEIF(E305:E316,">0"))/100 -> 29.88277327 | G299: =100-(E299+F299+H299) -> 26.79742922 | H299: =IF((D301+H301)>100,H301*100/(D301+H301),H301) -> 18.0789541 | I299: =IF((I301+M301)>100,I301*100/(I301+M301),I301) -> 54.8466165 | J299: =I299*AVERAGEIF(J305:J316,">0")/100 -> 28.53845603 | K299: =I299*(100-AVERAGEIF(J305:J316,">0"))/100 -> 26.30816047 | L299: =100-(J299+K299+M299) -> 27.77603231 | M299: =IF((I301+M301)>100,M301*100/(I301+M301),M301) -> 17.37735119 | N299: =IF((N301+R301)>100,N301*100/(N301+R301),N301) -> 47.42548396 | O299: =N299*AVERAGEIF(O305:O316,">0")/100 -> 25.65710458 | P299: =N299*(100-AVERAGEIF(O305:O316,">0"))/100 -> 21.76837938 | Q299: =100-(O299+P299+R299) -> 33.16796424 | R299: =IF((N301+R301)>100,R301*100/(N301+R301),R301) -> 19.4065518 | S299: =IF((S301+W301)>100,S301*100/(S301+W301),S301) -> 51.16532315 | T299: =S299*AVERAGEIF(T305:T316,">0")/100 -> 28.70349452 | U299: =S299*(100-AVERAGEIF(T305:T316,">0"))/100 -> 22.46182863 | V299: =100-(T299+U299+W299) -> 31.34369401 | W299: =IF((S301+W301)>100,W301*100/(S301+W301),W301) -> 17.49098284 | X299: =IF((X301+AB301)>100,X301*100/(X301+AB301),X301) -> 64.44417126 | Y299: =X299*AVERAGEIF(Y305:Y316,">0")/100 -> 42.42808478 | Z299: =X299*(100-AVERAGEIF(Y305:Y316,">0"))/100 -> 22.01608648 | AA299: =100-(Y299+Z299+AB299) -> 25.27611051 | AB299: =IF((X301+AB301)>100,AB301*100/(X301+AB301),AB301) -> 10.27971823
C300: 2020 | D300: =IF((D302+H302)>100,D302*100/(D302+H302),D302) -> 77.88783524 | E300: =D300*AVERAGEIF(E305:E316,">0")/100 -> 35.66447144 | F300: =D300*(100-AVERAGEIF(E305:E316,">0"))/100 -> 42.22336379 | G300: =100-(E300+F300+H300) -> 13.72991939 | H300: =IF((D302+H302)>100,H302*100/(D302+H302),H302) -> 8.382245366 | I300: =IF((I302+M302)>100,I302*100/(I302+M302),I302) -> 77.57805173 | J300: =I300*AVERAGEIF(J305:J316,">0")/100 -> 40.36635182 | K300: =I300*(100-AVERAGEIF(J305:J316,">0"))/100 -> 37.21169991 | L300: =100-(J300+K300+M300) -> 14.28995601 | M300: =IF((I302+M302)>100,M302*100/(I302+M302),M302) -> 8.131992258 | N300: =IF((N302+R302)>100,N302*100/(N302+R302),N302) -> 77.47259048 | O300: =N300*AVERAGEIF(O305:O316,">0")/100 -> 41.9125371 | P300: =N300*(100-AVERAGEIF(O305:O316,">0"))/100 -> 35.56005338 | Q300: =100-(O300+P300+R300) -> 14.07542355 | R300: =IF((N302+R302)>100,R302*100/(N302+R302),R302) -> 8.451985973 | S300: =IF((S302+W302)>100,S302*100/(S302+W302),S302) -> 77.77787057 | T300: =S300*AVERAGEIF(T305:T316,">0")/100 -> 43.63300267 | U300: =S300*(100-AVERAGEIF(T305:T316,">0"))/100 -> 34.1448679 | V300: =100-(T300+U300+W300) -> 14.13621598 | W300: =IF((S302+W302)>100,W302*100/(S302+W302),W302) -> 8.08591345 | X300: =IF((X302+AB302)>100,X302*100/(X302+AB302),X302) -> 81.54277865 | Y300: =X300*AVERAGEIF(Y305:Y316,">0")/100 -> 53.6852885 | Z300: =X300*(100-AVERAGEIF(Y305:Y316,">0"))/100 -> 27.85749016 | AA300: =100-(Y300+Z300+AB300) -> 12.36177732 | AB300: =IF((X302+AB302)>100,AB302*100/(X302+AB302),AB302) -> 6.095444024
A301: Regression period: | C301: =MinRegYear(C299,C305:C316) -> 2000 | D301: =IF(MAX(C305:C316)-MIN(C305:C316)<5,AVERAGEIF(C305:C316,">0",D305:D316), IF(FORECAST($C301,D$305:D$316,$C$305:$C$316)<0,0, IF(FORECAST($C301,D$305:D$316,$C$305:$C$316)>100,100, FORECAST($C301,D$305:D$316,$C$305:$C$316)))) -> 55.12361668 | H301: =IF(MAX(C305:C316)-MIN(C305:C316)<5,AVERAGEIF(C305:C316,">0",H305:H316), IF(FORECAST($C301,H$305:H$316,$C$305:$C$316)<0,0, IF(FORECAST($C301,H$305:H$316,$C$305:$C$316)>100,100, FORECAST($C301,H$305:H$316,$C$305:$C$316)))) -> 18.0789541 | I301: =IF(MAX(C305:C316)-MIN(C305:C316)<5,AVERAGEIF(C305:C316,">0",I305:I316), IF(FORECAST($C301,I$305:I$316,$C$305:$C$316)<0,0, IF(FORECAST($C301,I$305:I$316,$C$305:$C$316)>100,100, FORECAST($C301,I$305:I$316,$C$305:$C$316)))) -> 54.8466165 | M301: =IF(MAX(C305:C316)-MIN(C305:C316)<5,AVERAGEIF(C305:C316,">0",M305:M316), IF(FORECAST($C301,M$305:M$316,$C$305:$C$316)<0,0, IF(FORECAST($C301,M$305:M$316,$C$305:$C$316)>100,100, FORECAST($C301,M$305:M$316,$C$305:$C$316)))) -> 17.37735119 | N301: =IF(MAX(C305:C316)-MIN(C305:C316)<5,AVERAGEIF(C305:C316,">0",N305:N316), IF(FORECAST($C301,N$305:N$316,$C$305:$C$316)<0,0, IF(FORECAST($C301,N$305:N$316,$C$305:$C$316)>100,100, FORECAST($C301,N$305:N$316,$C$305:$C$316)))) -> 47.42548396 | R301: =IF(MAX(C305:C316)-MIN(C305:C316)<5,AVERAGEIF(C305:C316,">0",R305:R316), IF(FORECAST($C301,R$305:R$316,$C$305:$C$316)<0,0, IF(FORECAST($C301,R$305:R$316,$C$305:$C$316)>100,100, FORECAST($C301,R$305:R$316,$C$305:$C$316)))) -> 19.4065518 | S301: =IF(MAX(C305:C316)-MIN(C305:C316)<5,AVERAGEIF(C305:C316,">0",S305:S316), IF(FORECAST($C301,S$305:S$316,$C$305:$C$316)<0,0, IF(FORECAST($C301,S$305:S$316,$C$305:$C$316)>100,100, FORECAST($C301,S$305:S$316,$C$305:$C$316)))) -> 51.16532315 | W301: =IF(MAX(C305:C316)-MIN(C305:C316)<5,AVERAGEIF(C305:C316,">0",W305:W316), IF(FORECAST($C301,W$305:W$316,$C$305:$C$316)<0,0, IF(FORECAST($C301,W$305:W$316,$C$305:$C$316)>100,100, FORECAST($C301,W$305:W$316,$C$305:$C$316)))) -> 17.49098284 | X301: =IF(MAX(C305:C316)-MIN(C305:C316)<5,AVERAGEIF(C305:C316,">0",X305:X316), IF(FORECAST($C301,X$305:X$316,$C$305:$C$316)<0,0, IF(FORECAST($C301,X$305:X$316,$C$305:$C$316)>100,100, FORECAST($C301,X$305:X$316,$C$305:$C$316)))) -> 64.44417126 | AB301: =IF(MAX(C305:C316)-MIN(C305:C316)<5,AVERAGEIF(C305:C316,">0",AB305:AB316), IF(FORECAST($C301,AB$305:AB$316,$C$305:$C$316)<0,0, IF(FORECAST($C301,AB$305:AB$316,$C$305:$C$316)>100,100, FORECAST($C301,AB$305:AB$316,$C$305:$C$316)))) -> 10.27971823
C302: =MaxRegYear(C300,C305:C316) -> 2020 | D302: =IF(MAX(C305:C316)-MIN(C305:C316)<5,AVERAGEIF(C305:C316,">0",D305:D316), IF(FORECAST($C302,D$305:D$316,$C$305:$C$316)<0,0, IF(FORECAST($C302,D$305:D$316,$C$305:$C$316)>100,100, FORECAST($C302,D$305:D$316,$C$305:$C$316)))) -> 77.88783524 | H302: =IF(MAX(C305:C316)-MIN(C305:C316)<5,AVERAGEIF(C305:C316,">0",H305:H316), IF(FORECAST($C302,H$305:H$316,$C$305:$C$316)<0,0, IF(FORECAST($C302,H$305:H$316,$C$305:$C$316)>100,100, FORECAST($C302,H$305:H$316,$C$305:$C$316)))) -> 8.382245366 | I302: =IF(MAX(C305:C316)-MIN(C305:C316)<5,AVERAGEIF(C305:C316,">0",I305:I316), IF(FORECAST($C302,I$305:I$316,$C$305:$C$316)<0,0, IF(FORECAST($C302,I$305:I$316,$C$305:$C$316)>100,100, FORECAST($C302,I$305:I$316,$C$305:$C$316)))) -> 77.57805173 | M302: =IF(MAX(C305:C316)-MIN(C305:C316)<5,AVERAGEIF(C305:C316,">0",M305:M316), IF(FORECAST($C302,M$305:M$316,$C$305:$C$316)<0,0, IF(FORECAST($C302,M$305:M$316,$C$305:$C$316)>100,100, FORECAST($C302,M$305:M$316,$C$305:$C$316)))) -> 8.131992258 | N302: =IF(MAX(C305:C316)-MIN(C305:C316)<5,AVERAGEIF(C305:C316,">0",N305:N316), IF(FORECAST($C302,N$305:N$316,$C$305:$C$316)<0,0, IF(FORECAST($C302,N$305:N$316,$C$305:$C$316)>100,100, FORECAST($C302,N$305:N$316,$C$305:$C$316)))) -> 77.47259048 | R302: =IF(MAX(C305:C316)-MIN(C305:C316)<5,AVERAGEIF(C305:C316,">0",R305:R316), IF(FORECAST($C302,R$305:R$316,$C$305:$C$316)<0,0, IF(FORECAST($C302,R$305:R$316,$C$305:$C$316)>100,100, FORECAST($C302,R$305:R$316,$C$305:$C$316)))) -> 8.451985973 | S302: =IF(MAX(C305:C316)-MIN(C305:C316)<5,AVERAGEIF(C305:C316,">0",S305:S316), IF(FORECAST($C302,S$305:S$316,$C$305:$C$316)<0,0, IF(FORECAST($C302,S$305:S$316,$C$305:$C$316)>100,100, FORECAST($C302,S$305:S$316,$C$305:$C$316)))) -> 77.77787057 | W302: =IF(MAX(C305:C316)-MIN(C305:C316)<5,AVERAGEIF(C305:C316,">0",W305:W316), IF(FORECAST($C302,W$305:W$316,$C$305:$C$316)<0,0, IF(FORECAST($C302,W$305:W$316,$C$305:$C$316)>100,100, FORECAST($C302,W$305:W$316,$C$305:$C$316)))) -> 8.08591345 | X302: =IF(MAX(C305:C316)-MIN(C305:C316)<5,AVERAGEIF(C305:C316,">0",X305:X316), IF(FORECAST($C302,X$305:X$316,$C$305:$C$316)<0,0, IF(FORECAST($C302,X$305:X$316,$C$305:$C$316)>100,100, FORECAST($C302,X$305:X$316,$C$305:$C$316)))) -> 81.54277865 | AB302: =IF(MAX(C305:C316)-MIN(C305:C316)<5,AVERAGEIF(C305:C316,">0",AB305:AB316), IF(FORECAST($C302,AB$305:AB$316,$C$305:$C$316)<0,0, IF(FORECAST($C302,AB$305:AB$316,$C$305:$C$316)>100,100, FORECAST($C302,AB$305:AB$316,$C$305:$C$316)))) -> 6.095444024
B304: Survey | C304: Year | D304: Improved | E304: % Improved < = 30min | H304: Surface water | I304: Improved | J304: % Improved < = 30min | M304: Surface water | N304: Improved | O304: % Improved < = 30min | R304: Surface water | S304: Improved | T304: % Improved < = 30min | W304: Surface water | X304: Improved | Y304: % Improved < = 30min | AB304: Surface water
B305: DHS01 | C305: 2001 | D305: =IF(ISERROR(INDIRECT(CONCATENATE($B305,"!M16"))),"",INDIRECT(CONCATENATE($B305,"!M16"))) -> 48.96646459 | E305: =IF(ISERROR(INDIRECT(CONCATENATE($B305,"!M23"))),"",INDIRECT(CONCATENATE($B305,"!M23"))) -> N/A | H305: =IF(ISERROR(INDIRECT(CONCATENATE($B305,"!M21"))),"",INDIRECT(CONCATENATE($B305,"!M21"))) -> 17.01286125 | I305: =IF(ISERROR(INDIRECT(CONCATENATE($B305,"!N16"))),"",INDIRECT(CONCATENATE($B305,"!N16"))) -> 53.46593929 | J305: =IF(ISERROR(INDIRECT(CONCATENATE($B305,"!N23"))),"",INDIRECT(CONCATENATE($B305,"!N23"))) -> N/A | M305: =IF(ISERROR(INDIRECT(CONCATENATE($B305,"!N21"))),"",INDIRECT(CONCATENATE($B305,"!N21"))) -> 17.79148923 | N305: =IF(ISERROR(INDIRECT(CONCATENATE($B305,"!O16"))),"",INDIRECT(CONCATENATE($B305,"!O16"))) -> 48.15380164 | O305: =IF(ISERROR(INDIRECT(CONCATENATE($B305,"!O23"))),"",INDIRECT(CONCATENATE($B305,"!O23"))) -> N/A | R305: =IF(ISERROR(INDIRECT(CONCATENATE($B305,"!O21"))),"",INDIRECT(CONCATENATE($B305,"!O21"))) -> 17.37964418 | S305: =IF(ISERROR(INDIRECT(CONCATENATE($B305,"!P16"))),"",INDIRECT(CONCATENATE($B305,"!P16"))) -> 49.06285731 | T305: =IF(ISERROR(INDIRECT(CONCATENATE($B305,"!P23"))),"",INDIRECT(CONCATENATE($B305,"!P23"))) -> N/A | W305: =IF(ISERROR(INDIRECT(CONCATENATE($B305,"!P21"))),"",INDIRECT(CONCATENATE($B305,"!P21"))) -> 15.06238238 | X305: =IF(ISERROR(INDIRECT(CONCATENATE($B305,"!Q16"))),"",INDIRECT(CONCATENATE($B305,"!Q16"))) -> 62.16244909 | Y305: =IF(ISERROR(INDIRECT(CONCATENATE($B305,"!Q23"))),"",INDIRECT(CONCATENATE($B305,"!Q23"))) -> N/A | AB305: =IF(ISERROR(INDIRECT(CONCATENATE($B305,"!Q221"))),"",INDIRECT(CONCATENATE($B305,"!Q21"))) -> 9.85409204
B306: DHS06 | C306: 2006 | D306: 69.5 | E306: 21.3 | H306: 14.1 | I306: 63.2 | J306: 31.7 | M306: 12.2 | N306: 57 | O306: 32 | R306: 15.8 | S306: 62.9 | T306: 35.4 | W306: 12.9 | X306: 70.7 | Y306: 43.2 | AB306: 8.8
B307: MIS09 | C307: 2009 | D307: 67.79098722 | E307: N/A | H307: 12.97827634 | I307: 67.960932 | J307: N/A | M307: 13.76579866 | N307: 60.9938438 | O307: N/A | R307: 14.85468923 | S307: 64.54205192 | T307: N/A | W307: 15.88598818 | X307: 75.22910824 | Y307: N/A | AB307: 8.621657462
B308: AIS11 | C308: 2011 | D308: 67.75364069 | E308: 41.9 | H308: 12.45522919 | I308: 65.0887976 | J308: 49.6 | M308: 13.9402221 | N308: 64.21938886 | O308: 53.9 | R308: 15.10400312 | S308: 66.54915346 | T308: 57.4 | W308: 14.18325494 | X308: 75.47867189 | Y308: 64.9 | AB308: 7.090295217
B309: DHS11 | C309: 2011 | D309: 71.5 | E309: 48.3 | H309: 16.1 | I309: 67.3 | J309: 52.2 | M309: 13.6 | N309: 61.9 | O309: 55.4 | R309: 16.6 | S309: 63.3 | T309: 56.1 | W309: 15.8 | X309: 72.7 | Y309: 66.1 | AB309: 10.5
B310: MIS15 | C310: 2015 | D310: 64.46315845 | E310: 49.54227586 | H310: 12.52414709 | I310: 75.00961578 | J310: 59.99022792 | M310: 6.442220484 | N310: 74.91236571 | O310: 61.41482686 | R310: 6.671954684 | S310: 73.91355473 | T310: 62.57764396 | W310: 7.140466288 | X310: 78.26108029 | Y310: 78.16760202 | AB310: 4.088035657
B311: DHS16 | C311: 2016 | D311: 76.0608698 | E311: 55.37002038 | H311: 10.44257313 | I311: 73.87570424 | J311: 57.06804793 | M311: 10.76302994 | N311: 71.67551179 | O311: 59.5634741 | R311: 12.49556228 | S311: 73.09204956 | T311: 60.96981008 | W311: 10.7643673 | X311: 79.15179074 | Y311: 72.2864939 | AB311: 8.168929068
B312: MIS19 | C312: 2019 | D312: 75.11637434 | E312: 58.32486652 | H312: 6.353027368 | I312: 72.8902581 | J312: 61.64099382 | M312: 9.836469808 | N312: 72.75622856 | O312: 62.32065854 | R312: 8.146471245 | S312: 73.05812688 | T312: 64.14959358 | W312: 6.809098329 | X312: 77.10414238 | Y312: 70.3676783 | AB312: 6.703929891
B318: =CONCATENATE("Rural use of drinking water sources, ",C299,"–",C300) -> Rural use of drinking water sources, 2000–2020 | S318: Data points used for regression

Sheet Sanitation
B4: Summary of trends in use of sanitation facilities by wealth quintile (%)
B5: =IF(ISERROR(INDIRECT(CONCATENATE($B105,"!A2"))),"",INDIRECT(CONCATENATE($B105,"!A2"))) -> Uganda
B7: =B118 -> National use of sanitation facilities, 2000–2020 | J7: =B218 -> Urban use of sanitation facilities, 2000–2020 | R7: =B318 -> Rural use of sanitation facilities, 2000–2020
B31: =IF(ISERROR(INDIRECT(CONCATENATE($B105,"!A2"))),"",INDIRECT(CONCATENATE($B105,"!A2"))) -> Uganda | F31: Poorest | J31: Poor | N31: Middle | R31: Rich | V31: Richest
F32: Basic | G32: Limited | H32: Unimproved | I32: Open defecation | J32: Basic | K32: Limited | L32: Unimproved | M32: Open defecation | N32: Basic | O32: Limited | P32: Unimproved | Q32: Open defecation | R32: Basic | S32: Limited | T32: Unimproved | U32: Open defecation | V32: Basic | W32: Limited | X32: Unimproved | Y32: Open defecation
B33: NATIONAL | D33: Estimate | E33: =C99 -> 2000 | F33: =E99 -> 6.59664684 | G33: =F99 -> 5.099819161 | H33: 53.97435727 | I33: 34.32917672 | J33: =J99 -> 3.803714701 | K33: =K99 -> 2.080315149 | L33: 71.84038671 | M33: 22.27558344 | N33: =O99 -> 6.65859522 | O33: =P99 -> 3.03223599 | P33: 78.95190334 | Q33: 11.35726545 | R33: =T99 -> 11.69222285 | S33: =U99 -> 6.714895831 | T33: 76.87465671 | U33: 4.718224615 | V33: =Y99 -> 33.6746233 | W33: =Z99 -> 28.1193855 | X33: 37.1975963 | Y33: 1.008394901
E34: =C100 -> 2020 | F34: =E100 -> 8.369597456 | G34: 6.470474243 | H34: 68.0577372 | I34: 17.1021911 | J34: =J100 -> 14.64613939 | K34: 8.010218442 | L34: 76.83115737 | M34: 0.5124848004 | N34: =O100 -> 20.7184871 | O34: 9.434924361 | P34: 69.84658854 | Q34: 0 | R34: =T100 -> 32.950195 | S34: 18.92344423 | T34: 48.12636077 | U34: 0 | V34: =Y100 -> 47.33117927 | W34: 39.52304571 | X34: 13.14577502 | Y34: 0
B36: URBAN | D36: Estimate | E36: =C199 -> 2000 | F36: =E199 -> 17.95656971 | G36: =F199 -> 19.82234728 | H36: 56.24313542 | I36: 5.977947586 | J36: =J199 -> 25.82705809 | K36: =K199 -> 33.28007477 | L36: 39.5002567 | M36: 1.392610443 | N36: =O199 -> 21.29963044 | O36: =P199 -> 44.37923764 | P36: 33.89962536 | Q36: 0.4215065617 | R36: =T199 -> 29.37217853 | S36: =U199 -> 45.46590663 | T36: 24.99957661 | U36: 0.1623382418 | V36: =Y199 -> 53.73944255 | W36: =Z199 -> 36.18186253 | X36: 10.07869492 | Y36: 0
E37: =C200 -> 2020 | F37: =E200 -> 13.09815117 | G37: 14.4591147 | H37: 65.75707975 | I37: 6.685654382 | J37: =J200 -> 26.25867409 | K37: 33.8362439 | L37: 39.68784368 | M37: 0.2172383238 | N37: =O200 -> 26.84729462 | O37: 55.93817561 | P37: 17.06991805 | Q37: 0.1446117172 | R37: =T200 -> 36.29302059 | S37: 56.17884571 | T37: 7.499188122 | U37: 0.02894558196 | V37: =Y200 -> 57.87090712 | W37: 38.96350811 | X37: 3.165584765 | Y37: 0
B39: RURAL | D39: Estimate | E39: =C299 -> 2000 | F39: =E299 -> 6.55819974 | G39: =F299 -> 5.40271843 | H39: 54.10781836 | I39: 33.93126347 | J39: =J299 -> 3.487236065 | K39: =K299 -> 1.808462005 | L39: 67.19418055 | M39: 27.51012138 | N39: =O299 -> 5.579452343 | O39: =P299 -> 2.624345087 | P39: 79.05055651 | Q39: 12.74564606 | R39: =T299 -> 8.25032852 | S39: =U299 -> 3.92740282 | T39: 81.29399518 | U39: 6.528273477 | V39: =Y299 -> 31.32091488 | W39: =Z299 -> 10.64593653 | X39: 55.60203632 | Y39: 2.431112268
E40: =C300 -> 2020 | F40: =E300 -> 7.475159809 | G40: 6.158120409 | H40: 66.16525789 | I40: 20.20146189 | J40: =J300 -> 14.24067501 | K40: 7.38513803 | L40: 77.97330612 | M40: 0.400880843 | N40: =O300 -> 16.96608085 | O40: 7.980147188 | P40: 74.62919299 | Q40: 0.4245789698 | R40: =T300 -> 25.64573094 | S40: 12.20813399 | T40: 62.14613508 | U40: 0 | V40: =Y300 -> 47.57105517 | W40: 16.1693372 | X40: 36.25960764 | Y40: 0
A97: NATIONAL | D97: Poorest | I97: Poor | N97: Middle | S97: Rich | X97: Richest
D98: Improved | E98: Basic | F98: Limited | G98: Unimproved | H98: Open defecation | I98: Improved | J98: Basic | K98: Limited | L98: Unimproved | M98: Open defecation | N98: Improved | O98: Basic | P98: Limited | Q98: Unimproved | R98: Open defecation | S98: Improved | T98: Basic | U98: Limited | V98: Unimproved | W98: Open defecation | X98: Improved | Y98: Basic | Z98: Limited | AA98: Unimproved | AB98: Open defecation
A99: Forecast period: | C99: =MinBase(C105:C116) -> 2000 | D99: =IF((D101+H101)>100,D101*100/(D101+H101),D101) -> 11.696466 | E99: =D99*AVERAGEIF(E105:E116,">0")/100 -> 6.59664684 | F99: =D99*(100-AVERAGEIF(E105:E116,">0"))/100 -> 5.099819161 | G99: =100-(E99+F99+H99) -> 53.97435727 | H99: =IF((D101+H101)>100,H101*100/(D101+H101),H101) -> 34.32917672 | I99: =IF((I101+M101)>100,I101*100/(I101+M101),I101) -> 5.88402985 | J99: =I99*AVERAGEIF(J105:J116,">0")/100 -> 3.803714701 | K99: =I99*(100-AVERAGEIF(J105:J116,">0"))/100 -> 2.080315149 | L99: =100-(J99+K99+M99) -> 71.84038671 | M99: =IF((I101+M101)>100,M101*100/(I101+M101),M101) -> 22.27558344 | N99: =IF((N101+R101)>100,N101*100/(N101+R101),N101) -> 9.690831211 | O99: =N99*AVERAGEIF(O105:O116,">0")/100 -> 6.65859522 | P99: =N99*(100-AVERAGEIF(O105:O116,">0"))/100 -> 3.03223599 | Q99: =100-(O99+P99+R99) -> 78.95190334 | R99: =IF((N101+R101)>100,R101*100/(N101+R101),R101) -> 11.35726545 | S99: =IF((S101+W101)>100,S101*100/(S101+W101),S101) -> 18.40711868 | T99: =S99*AVERAGEIF(T105:T116,">0")/100 -> 11.69222285 | U99: =S99*(100-AVERAGEIF(T105:T116,">0"))/100 -> 6.714895831 | V99: =100-(T99+U99+W99) -> 76.87465671 | W99: =IF((S101+W101)>100,W101*100/(S101+W101),W101) -> 4.718224615 | X99: =IF((X101+AB101)>100,X101*100/(X101+AB101),X101) -> 61.7940088 | Y99: =X99*AVERAGEIF(Y105:Y116,">0")/100 -> 33.6746233 | Z99: =X99*(100-AVERAGEIF(Y105:Y116,">0"))/100 -> 28.1193855 | AA99: =100-(Y99+Z99+AB99) -> 37.1975963 | AB99: =IF((X101+AB101)>100,AB101*100/(X101+AB101),AB101) -> 1.008394901
C100: =MaxTarget(C105:C116) -> 2020 | D100: =IF((D102+H102)>100,D102*100/(D102+H102),D102) -> 14.8400717 | E100: =D100*AVERAGEIF(E105:E116,">0")/100 -> 8.369597456 | F100: =D100*(100-AVERAGEIF(E105:E116,">0"))/100 -> 6.470474243 | G100: =100-(E100+F100+H100) -> 68.0577372 | H100: =IF((D102+H102)>100,H102*100/(D102+H102),H102) -> 17.1021911 | I100: =IF((I102+M102)>100,I102*100/(I102+M102),I102) -> 22.65635783 | J100: =I100*AVERAGEIF(J105:J116,">0")/100 -> 14.64613939 | K100: =I100*(100-AVERAGEIF(J105:J116,">0"))/100 -> 8.010218442 | L100: =100-(J100+K100+M100) -> 76.83115737 | M100: =IF((I102+M102)>100,M102*100/(I102+M102),M102) -> 0.5124848004 | N100: =IF((N102+R102)>100,N102*100/(N102+R102),N102) -> 30.15341146 | O100: =N100*AVERAGEIF(O105:O116,">0")/100 -> 20.7184871 | P100: =N100*(100-AVERAGEIF(O105:O116,">0"))/100 -> 9.434924361 | Q100: =100-(O100+P100+R100) -> 69.84658854 | R100: =IF((N102+R102)>100,R102*100/(N102+R102),R102) -> 0 | S100: =IF((S102+W102)>100,S102*100/(S102+W102),S102) -> 51.87363923 | T100: =S100*AVERAGEIF(T105:T116,">0")/100 -> 32.950195 | U100: =S100*(100-AVERAGEIF(T105:T116,">0"))/100 -> 18.92344423 | V100: =100-(T100+U100+W100) -> 48.12636077 | W100: =IF((S102+W102)>100,W102*100/(S102+W102),W102) -> 0 | X100: =IF((X102+AB102)>100,X102*100/(X102+AB102),X102) -> 86.85422498 | Y100: =X100*AVERAGEIF(Y105:Y116,">0")/100 -> 47.33117927 | Z100: =X100*(100-AVERAGEIF(Y105:Y116,">0"))/100 -> 39.52304571 | AA100: =100-(Y100+Z100+AB100) -> 13.14577502 | AB100: =IF((X102+AB102)>100,AB102*100/(X102+AB102),AB102) -> 0
A101: Regression period: | C101: =MinRegYear(C99,C105:C116) -> 2000 | D101: =IF(MAX(C105:C116)-MIN(C105:C116)<5,AVERAGEIF(C105:C116,">0",D105:D116), IF(FORECAST($C101,D$105:D$116,$C$105:$C$116)<0,0, IF(FORECAST($C101,D$105:D$116,$C$105:$C$116)>100,100, FORECAST($C101,D$105:D$116,$C$105:$C$116)))) -> 11.696466 | H101: =IF(MAX(C105:C116)-MIN(C105:C116)<5,AVERAGEIF(C105:C116,">0",H105:H116), IF(FORECAST($C101,H$105:H$116,$C$105:$C$116)<0,0, IF(FORECAST($C101,H$105:H$116,$C$105:$C$116)>100,100, FORECAST($C101,H$105:H$116,$C$105:$C$116)))) -> 34.32917672 | I101: =IF(MAX(C105:C116)-MIN(C105:C116)<5,AVERAGEIF(C105:C116,">0",I105:I116), IF(FORECAST($C101,I$105:I$116,$C$105:$C$116)<0,0, IF(FORECAST($C101,I$105:I$116,$C$105:$C$116)>100,100, FORECAST($C101,I$105:I$116,$C$105:$C$116)))) -> 5.88402985 | M101: =IF(MAX(C105:C116)-MIN(C105:C116)<5,AVERAGEIF(C105:C116,">0",M105:M116), IF(FORECAST($C101,M$105:M$116,$C$105:$C$116)<0,0, IF(FORECAST($C101,M$105:M$116,$C$105:$C$116)>100,100, FORECAST($C101,M$105:M$116,$C$105:$C$116)))) -> 22.27558344 | N101: =IF(MAX(C105:C116)-MIN(C105:C116)<5,AVERAGEIF(C105:C116,">0",N105:N116), IF(FORECAST($C101,N$105:N$116,$C$105:$C$116)<0,0, IF(FORECAST($C101,N$105:N$116,$C$105:$C$116)>100,100, FORECAST($C101,N$105:N$116,$C$105:$C$116)))) -> 9.690831211 | R101: =IF(MAX(C105:C116)-MIN(C105:C116)<5,AVERAGEIF(C105:C116,">0",R105:R116), IF(FORECAST($C101,R$105:R$116,$C$105:$C$116)<0,0, IF(FORECAST($C101,R$105:R$116,$C$105:$C$116)>100,100, FORECAST($C101,R$105:R$116,$C$105:$C$116)))) -> 11.35726545 | S101: =IF(MAX(C105:C116)-MIN(C105:C116)<5,AVERAGEIF(C105:C116,">0",S105:S116), IF(FORECAST($C101,S$105:S$116,$C$105:$C$116)<0,0, IF(FORECAST($C101,S$105:S$116,$C$105:$C$116)>100,100, FORECAST($C101,S$105:S$116,$C$105:$C$116)))) -> 18.40711868 | W101: =IF(MAX(C105:C116)-MIN(C105:C116)<5,AVERAGEIF(C105:C116,">0",W105:W116), IF(FORECAST($C101,W$105:W$116,$C$105:$C$116)<0,0, IF(FORECAST($C101,W$105:W$116,$C$105:$C$116)>100,100, FORECAST($C101,W$105:W$116,$C$105:$C$116)))) -> 4.718224615 | X101: =IF(MAX(C105:C116)-MIN(C105:C116)<5,AVERAGEIF(C105:C116,">0",X105:X116), IF(FORECAST($C101,X$105:X$116,$C$105:$C$116)<0,0, IF(FORECAST($C101,X$105:X$116,$C$105:$C$116)>100,100, FORECAST($C101,X$105:X$116,$C$105:$C$116)))) -> 61.7940088 | AB101: =IF(MAX(C105:C116)-MIN(C105:C116)<5,AVERAGEIF(C105:C116,">0",AB105:AB116), IF(FORECAST($C101,AB$105:AB$116,$C$105:$C$116)<0,0, IF(FORECAST($C101,AB$105:AB$116,$C$105:$C$116)>100,100, FORECAST($C101,AB$105:AB$116,$C$105:$C$116)))) -> 1.008394901
C102: =MaxRegYear(C100,C105:C116) -> 2020 | D102: =IF(MAX(C105:C116)-MIN(C105:C116)<5,AVERAGEIF(C105:C116,">0",D105:D116), IF(FORECAST($C102,D$105:D$116,$C$105:$C$116)<0,0, IF(FORECAST($C102,D$105:D$116,$C$105:$C$116)>100,100, FORECAST($C102,D$105:D$116,$C$105:$C$116)))) -> 14.8400717 | H102: =IF(MAX(C105:C116)-MIN(C105:C116)<5,AVERAGEIF(C105:C116,">0",H105:H116), IF(FORECAST($C102,H$105:H$116,$C$105:$C$116)<0,0, IF(FORECAST($C102,H$105:H$116,$C$105:$C$116)>100,100, FORECAST($C102,H$105:H$116,$C$105:$C$116)))) -> 17.1021911 | I102: =IF(MAX(C105:C116)-MIN(C105:C116)<5,AVERAGEIF(C105:C116,">0",I105:I116), IF(FORECAST($C102,I$105:I$116,$C$105:$C$116)<0,0, IF(FORECAST($C102,I$105:I$116,$C$105:$C$116)>100,100, FORECAST($C102,I$105:I$116,$C$105:$C$116)))) -> 22.65635783 | M102: =IF(MAX(C105:C116)-MIN(C105:C116)<5,AVERAGEIF(C105:C116,">0",M105:M116), IF(FORECAST($C102,M$105:M$116,$C$105:$C$116)<0,0, IF(FORECAST($C102,M$105:M$116,$C$105:$C$116)>100,100, FORECAST($C102,M$105:M$116,$C$105:$C$116)))) -> 0.5124848004 | N102: =IF(MAX(C105:C116)-MIN(C105:C116)<5,AVERAGEIF(C105:C116,">0",N105:N116), IF(FORECAST($C102,N$105:N$116,$C$105:$C$116)<0,0, IF(FORECAST($C102,N$105:N$116,$C$105:$C$116)>100,100, FORECAST($C102,N$105:N$116,$C$105:$C$116)))) -> 30.15341146 | R102: =IF(MAX(C105:C116)-MIN(C105:C116)<5,AVERAGEIF(C105:C116,">0",R105:R116), IF(FORECAST($C102,R$105:R$116,$C$105:$C$116)<0,0, IF(FORECAST($C102,R$105:R$116,$C$105:$C$116)>100,100, FORECAST($C102,R$105:R$116,$C$105:$C$116)))) -> 0 | S102: =IF(MAX(C105:C116)-MIN(C105:C116)<5,AVERAGEIF(C105:C116,">0",S105:S116), IF(FORECAST($C102,S$105:S$116,$C$105:$C$116)<0,0, IF(FORECAST($C102,S$105:S$116,$C$105:$C$116)>100,100, FORECAST($C102,S$105:S$116,$C$105:$C$116)))) -> 51.87363923 | W102: =IF(MAX(C105:C116)-MIN(C105:C116)<5,AVERAGEIF(C105:C116,">0",W105:W116), IF(FORECAST($C102,W$105:W$116,$C$105:$C$116)<0,0, IF(FORECAST($C102,W$105:W$116,$C$105:$C$116)>100,100, FORECAST($C102,W$105:W$116,$C$105:$C$116)))) -> 0 | X102: =IF(MAX(C105:C116)-MIN(C105:C116)<5,AVERAGEIF(C105:C116,">0",X105:X116), IF(FORECAST($C102,X$105:X$116,$C$105:$C$116)<0,0, IF(FORECAST($C102,X$105:X$116,$C$105:$C$116)>100,100, FORECAST($C102,X$105:X$116,$C$105:$C$116)))) -> 86.85422498 | AB102: =IF(MAX(C105:C116)-MIN(C105:C116)<5,AVERAGEIF(C105:C116,">0",AB105:AB116), IF(FORECAST($C102,AB$105:AB$116,$C$105:$C$116)<0,0, IF(FORECAST($C102,AB$105:AB$116,$C$105:$C$116)>100,100, FORECAST($C102,AB$105:AB$116,$C$105:$C$116)))) -> 0
B104: Survey | C104: Year | D104: Improved | E104: Not shared | H104: Open defecation | I104: Improved | J104: Not shared | M104: Open defecation | N104: Improved | O104: Not shared | R104: Open defecation | S104: Improved | T104: Not shared | W104: Open defecation | X104: Improved | Y104: Not shared | AB104: Open defecation
B105: DHS01 | C105: 2001 | D105: =IF(ISERROR(INDIRECT(CONCATENATE($B105,"!C122"))),"",INDIRECT(CONCATENATE($B105,"!C122"))) -> 13.5504716 | E105: =IF(ISERROR(INDIRECT(CONCATENATE($B105,"!C129"))),"",INDIRECT(CONCATENATE($B105,"!C129"))) -> N/A | H105: =IF(ISERROR(INDIRECT(CONCATENATE($B105,"!C127"))),"",INDIRECT(CONCATENATE($B105,"!C127"))) -> 31.97094211 | I105: =IF(ISERROR(INDIRECT(CONCATENATE($B105,"!D122"))),"",INDIRECT(CONCATENATE($B105,"!D122"))) -> 7.761161042 | J105: =IF(ISERROR(INDIRECT(CONCATENATE($B105,"!D129"))),"",INDIRECT(CONCATENATE($B105,"!D129"))) -> N/A | M105: =IF(ISERROR(INDIRECT(CONCATENATE($B105,"!D127"))),"",INDIRECT(CONCATENATE($B105,"!D127"))) -> 23.63009166 | N105: =IF(ISERROR(INDIRECT(CONCATENATE($B105,"!E122"))),"",INDIRECT(CONCATENATE($B105,"!E122"))) -> 10.35905014 | O105: =IF(ISERROR(INDIRECT(CONCATENATE($B105,"!E129"))),"",INDIRECT(CONCATENATE($B105,"!E129"))) -> N/A | R105: =IF(ISERROR(INDIRECT(CONCATENATE($B105,"!E127"))),"",INDIRECT(CONCATENATE($B105,"!E127"))) -> 11.82182148 | S105: =IF(ISERROR(INDIRECT(CONCATENATE($B105,"!F122"))),"",INDIRECT(CONCATENATE($B105,"!F122"))) -> 20.67228636 | T105: =IF(ISERROR(INDIRECT(CONCATENATE($B105,"!F129"))),"",INDIRECT(CONCATENATE($B105,"!F129"))) -> N/A | W105: =IF(ISERROR(INDIRECT(CONCATENATE($B105,"!F127"))),"",INDIRECT(CONCATENATE($B105,"!F127"))) -> 5.40859395 | X105: =IF(ISERROR(INDIRECT(CONCATENATE($B105,"!G122"))),"",INDIRECT(CONCATENATE($B105,"!G122"))) -> 63.72181911 | Y105: =IF(ISERROR(INDIRECT(CONCATENATE($B105,"!G129"))),"",INDIRECT(CONCATENATE($B105,"!G129"))) -> N/A | AB105: =IF(ISERROR(INDIRECT(CONCATENATE($B105,"!G2127"))),"",INDIRECT(CONCATENATE($B105,"!G127"))) -> 0.958803297
B106: DHS06 | D106: 15.01008165 | E106: N/A | H106: 33.3133713 | I106: 8.365889761 | J106: N/A | M106: 16.37420893 | N106: 11.81588586 | O106: N/A | R106: 6.684699161 | S106: 22.78139412 | T106: N/A | W106: 1.913114974 | X106: 64.6282245 | Y106: N/A | AB106: 0.2088317264
B107: MIS09 | C107: 2009 | D107: 16.38854542 | E107: N/A | H107: 22.75336048 | I107: 13.94915654 | J107: N/A | M107: 9.108040487 | N107: 20.53741311 | O107: N/A | R107: 4.566186118 | S107: 31.13030986 | T107: N/A | W107: 0.794979817 | X107: 69.52225998 | Y107: N/A | AB107: 0.7079761636
B108: AIS11 | C108: 2011 | D108: 11.61849232 | E108: 55.03541582 | H108: 27.88991875 | I108: 14.84631319 | J108: 62.43911094 | M108: 9.530633676 | N108: 21.87885011 | O108: 68.31949993 | R108: 4.735181734 | S108: 40.57865813 | T108: 60.19418293 | W108: 1.695713952 | X108: 80.39233342 | Y108: 44.11991236 | AB108: 0.286294731
B109: DHS11 | C109: 2011 | D109: 10.56324562 | E109: N/A | H109: 31.01638101 | I109: 14.94788352 | J109: N/A | M109: 9.791778528 | N109: 23.26504271 | O109: N/A | R109: 4.960995722 | S109: 37.52177833 | T109: N/A | W109: 1.816292044 | X109: 73.82007134 | Y109: N/A | AB109: 0.2065535165
B110: MIS15 | C110: 2015 | D110: 10.68876369 | E110: 51.67633228 | H110: 19.15237843 | I110: 16.38518814 | J110: 58.9802674 | M110: 5.117876842 | N110: 18.64020905 | O110: 64.67342489 | R110: 2.646807284 | S110: 37.01741183 | T110: 57.43330868 | W110: 0.6336328407 | X110: 78.18508542 | Y110: 56.9718398 | AB110: 0
B111: DHS16 | C111: 2016 | D111: 10.04384551 | E111: 49.9013231 | H111: 20.75620671 | I111: 15.24545346 | J111: 63.25118556 | M111: 6.008387441 | N111: 22.58331744 | O111: 67.89530041 | R111: 2.268167296 | S111: 46.14315446 | T111: 62.28831115 | W111: 1.229072102 | X111: 84.67325416 | Y111: 53.97638578 | AB111: 0.1534016581
B112: MIS19 | C112: 2019 | D112: 21.91068121 | E112: 68.98145761 | H112: 16.13440852 | I112: 26.81959778 | J112: 73.90832152 | M112: 3.513571023 | N112: 34.46851495 | O112: 73.95281062 | R112: 1.267033649 | S112: 52.99896606 | T112: 74.16465495 | W112: 0.3202366367 | X112: 84.99012453 | Y112: 62.91172098 | AB112: 0
B118: =CONCATENATE("National use of sanitation facilities, ",C99,"–",C100) -> National use of sanitation facilities, 2000–2020 | S118: Data points used for regression
A197: URBAN | D197: Poorest | I197: Poor | N197: Middle | S197: Rich | X197: Richest
D198: Improved | E198: Basic | F198: Limited | G198: Unimproved | H198: Open defecation | I198: Improved | J198: Basic | K198: Limited | L198: Unimproved | M198: Open defecation | N198: Improved | O198: Basic | P198: Limited | Q198: Unimproved | R198: Open defecation | S198: Improved | T198: Basic | U198: Limited | V198: Unimproved | W198: Open defecation | X198: Improved | Y198: Basic | Z198: Limited | AA198: Unimproved | AB198: Open defecation
A199: Forecast period: | C199: =MinBase(C205:C216) -> 2000 | D199: =IF((D201+H201)>100,D201*100/(D201+H201),D201) -> 37.77891699 | E199: =D199*AVERAGEIF(E205:E216,">0")/100 -> 17.95656971 | F199: =D199*(100-AVERAGEIF(E205:E216,">0"))/100 -> 19.82234728 | G199: =100-(E199+F199+H199) -> 56.24313542 | H199: =IF((D201+H201)>100,H201*100/(D201+H201),H201) -> 5.977947586 | I199: =IF((I201+M201)>100,I201*100/(I201+M201),I201) -> 59.10713286 | J199: =I199*AVERAGEIF(J205:J216,">0")/100 -> 25.82705809 | K199: =I199*(100-AVERAGEIF(J205:J216,">0"))/100 -> 33.28007477 | L199: =100-(J199+K199+M199) -> 39.5002567 | M199: =IF((I201+M201)>100,M201*100/(I201+M201),M201) -> 1.392610443 | N199: =IF((N201+R201)>100,N201*100/(N201+R201),N201) -> 65.67886808 | O199: =N199*AVERAGEIF(O205:O216,">0")/100 -> 21.29963044 | P199: =N199*(100-AVERAGEIF(O205:O216,">0"))/100 -> 44.37923764 | Q199: =100-(O199+P199+R199) -> 33.89962536 | R199: =IF((N201+R201)>100,R201*100/(N201+R201),R201) -> 0.4215065617 | S199: =IF((S201+W201)>100,S201*100/(S201+W201),S201) -> 74.83808515 | T199: =S199*AVERAGEIF(T205:T216,">0")/100 -> 29.37217853 | U199: =S199*(100-AVERAGEIF(T205:T216,">0"))/100 -> 45.46590663 | V199: =100-(T199+U199+W199) -> 24.99957661 | W199: =IF((S201+W201)>100,W201*100/(S201+W201),W201) -> 0.1623382418 | X199: =IF((X201+AB201)>100,X201*100/(X201+AB201),X201) -> 89.92130508 | Y199: =X199*AVERAGEIF(Y205:Y216,">0")/100 -> 53.73944255 | Z199: =X199*(100-AVERAGEIF(Y205:Y216,">0"))/100 -> 36.18186253 | AA199: =100-(Y199+Z199+AB199) -> 10.07869492 | AB199: =IF((X201+AB201)>100,AB201*100/(X201+AB201),AB201) -> 0
C200: =MaxTarget(C205:C216) -> 2020 | D200: =IF((D202+H202)>100,D202*100/(D202+H202),D202) -> 27.55726587 | E200: =D200*AVERAGEIF(E205:E216,">0")/100 -> 13.09815117 | F200: =D200*(100-AVERAGEIF(E205:E216,">0"))/100 -> 14.4591147 | G200: =100-(E200+F200+H200) -> 65.75707975 | H200: =IF((D202+H202)>100,H202*100/(D202+H202),H202) -> 6.685654382 | I200: =IF((I202+M202)>100,I202*100/(I202+M202),I202) -> 60.09491799 | J200: =I200*AVERAGEIF(J205:J216,">0")/100 -> 26.25867409 | K200: =I200*(100-AVERAGEIF(J205:J216,">0"))/100 -> 33.8362439 | L200: =100-(J200+K200+M200) -> 39.68784368 | M200: =IF((I202+M202)>100,M202*100/(I202+M202),M202) -> 0.2172383238 | N200: =IF((N202+R202)>100,N202*100/(N202+R202),N202) -> 82.78547023 | O200: =N200*AVERAGEIF(O205:O216,">0")/100 -> 26.84729462 | P200: =N200*(100-AVERAGEIF(O205:O216,">0"))/100 -> 55.93817561 | Q200: =100-(O200+P200+R200) -> 17.06991805 | R200: =IF((N202+R202)>100,R202*100/(N202+R202),R202) -> 0.1446117172 | S200: =IF((S202+W202)>100,S202*100/(S202+W202),S202) -> 92.4718663 | T200: =S200*AVERAGEIF(T205:T216,">0")/100 -> 36.29302059 | U200: =S200*(100-AVERAGEIF(T205:T216,">0"))/100 -> 56.17884571 | V200: =100-(T200+U200+W200) -> 7.499188122 | W200: =IF((S202+W202)>100,W202*100/(S202+W202),W202) -> 0.02894558196 | X200: =IF((X202+AB202)>100,X202*100/(X202+AB202),X202) -> 96.83441524 | Y200: =X200*AVERAGEIF(Y205:Y216,">0")/100 -> 57.87090712 | Z200: =X200*(100-AVERAGEIF(Y205:Y216,">0"))/100 -> 38.96350811 | AA200: =100-(Y200+Z200+AB200) -> 3.165584765 | AB200: =IF((X202+AB202)>100,AB202*100/(X202+AB202),AB202) -> 0
A201: Regression period: | C201: =MinRegYear(C199,C205:C216) -> 2000 | D201: =IF(MAX(C205:C216)-MIN(C205:C216)<5,AVERAGEIF(C205:C216,">0",D205:D216), IF(FORECAST($C201,D$205:D$216,$C$205:$C$216)<0,0, IF(FORECAST($C201,D$205:D$216,$C$205:$C$216)>100,100, FORECAST($C201,D$205:D$216,$C$205:$C$216)))) -> 37.77891699 | H201: =IF(MAX(C205:C216)-MIN(C205:C216)<5,AVERAGEIF(C205:C216,">0",H205:H216), IF(FORECAST($C201,H$205:H$216,$C$205:$C$216)<0,0, IF(FORECAST($C201,H$205:H$216,$C$205:$C$216)>100,100, FORECAST($C201,H$205:H$216,$C$205:$C$216)))) -> 5.977947586 | I201: =IF(MAX(C205:C216)-MIN(C205:C216)<5,AVERAGEIF(C205:C216,">0",I205:I216), IF(FORECAST($C201,I$205:I$216,$C$205:$C$216)<0,0, IF(FORECAST($C201,I$205:I$216,$C$205:$C$216)>100,100, FORECAST($C201,I$205:I$216,$C$205:$C$216)))) -> 59.10713286 | M201: =IF(MAX(C205:C216)-MIN(C205:C216)<5,AVERAGEIF(C205:C216,">0",M205:M216), IF(FORECAST($C201,M$205:M$216,$C$205:$C$216)<0,0, IF(FORECAST($C201,M$205:M$216,$C$205:$C$216)>100,100, FORECAST($C201,M$205:M$216,$C$205:$C$216)))) -> 1.392610443 | N201: =IF(MAX(C205:C216)-MIN(C205:C216)<5,AVERAGEIF(C205:C216,">0",N205:N216), IF(FORECAST($C201,N$205:N$216,$C$205:$C$216)<0,0, IF(FORECAST($C201,N$205:N$216,$C$205:$C$216)>100,100, FORECAST($C201,N$205:N$216,$C$205:$C$216)))) -> 65.67886808 | R201: =IF(MAX(C205:C216)-MIN(C205:C216)<5,AVERAGEIF(C205:C216,">0",R205:R216), IF(FORECAST($C201,R$205:R$216,$C$205:$C$216)<0,0, IF(FORECAST($C201,R$205:R$216,$C$205:$C$216)>100,100, FORECAST($C201,R$205:R$216,$C$205:$C$216)))) -> 0.4215065617 | S201: =IF(MAX(C205:C216)-MIN(C205:C216)<5,AVERAGEIF(C205:C216,">0",S205:S216), IF(FORECAST($C201,S$205:S$216,$C$205:$C$216)<0,0, IF(FORECAST($C201,S$205:S$216,$C$205:$C$216)>100,100, FORECAST($C201,S$205:S$216,$C$205:$C$216)))) -> 74.83808515 | W201: =IF(MAX(C205:C216)-MIN(C205:C216)<5,AVERAGEIF(C205:C216,">0",W205:W216), IF(FORECAST($C201,W$205:W$216,$C$205:$C$216)<0,0, IF(FORECAST($C201,W$205:W$216,$C$205:$C$216)>100,100, FORECAST($C201,W$205:W$216,$C$205:$C$216)))) -> 0.1623382418 | X201: =IF(MAX(C205:C216)-MIN(C205:C216)<5,AVERAGEIF(C205:C216,">0",X205:X216), IF(FORECAST($C201,X$205:X$216,$C$205:$C$216)<0,0, IF(FORECAST($C201,X$205:X$216,$C$205:$C$216)>100,100, FORECAST($C201,X$205:X$216,$C$205:$C$216)))) -> 89.92130508 | AB201: =IF(MAX(C205:C216)-MIN(C205:C216)<5,AVERAGEIF(C205:C216,">0",AB205:AB216), IF(FORECAST($C201,AB$205:AB$216,$C$205:$C$216)<0,0, IF(FORECAST($C201,AB$205:AB$216,$C$205:$C$216)>100,100, FORECAST($C201,AB$205:AB$216,$C$205:$C$216)))) -> 0
C202: =MaxRegYear(C200,C205:C216) -> 2020 | D202: =IF(MAX(C205:C216)-MIN(C205:C216)<5,AVERAGEIF(C205:C216,">0",D205:D216), IF(FORECAST($C202,D$205:D$216,$C$205:$C$216)<0,0, IF(FORECAST($C202,D$205:D$216,$C$205:$C$216)>100,100, FORECAST($C202,D$205:D$216,$C$205:$C$216)))) -> 27.55726587 | H202: =IF(MAX(C205:C216)-MIN(C205:C216)<5,AVERAGEIF(C205:C216,">0",H205:H216), IF(FORECAST($C202,H$205:H$216,$C$205:$C$216)<0,0, IF(FORECAST($C202,H$205:H$216,$C$205:$C$216)>100,100, FORECAST($C202,H$205:H$216,$C$205:$C$216)))) -> 6.685654382 | I202: =IF(MAX(C205:C216)-MIN(C205:C216)<5,AVERAGEIF(C205:C216,">0",I205:I216), IF(FORECAST($C202,I$205:I$216,$C$205:$C$216)<0,0, IF(FORECAST($C202,I$205:I$216,$C$205:$C$216)>100,100, FORECAST($C202,I$205:I$216,$C$205:$C$216)))) -> 60.09491799 | M202: =IF(MAX(C205:C216)-MIN(C205:C216)<5,AVERAGEIF(C205:C216,">0",M205:M216), IF(FORECAST($C202,M$205:M$216,$C$205:$C$216)<0,0, IF(FORECAST($C202,M$205:M$216,$C$205:$C$216)>100,100, FORECAST($C202,M$205:M$216,$C$205:$C$216)))) -> 0.2172383238 | N202: =IF(MAX(C205:C216)-MIN(C205:C216)<5,AVERAGEIF(C205:C216,">0",N205:N216), IF(FORECAST($C202,N$205:N$216,$C$205:$C$216)<0,0, IF(FORECAST($C202,N$205:N$216,$C$205:$C$216)>100,100, FORECAST($C202,N$205:N$216,$C$205:$C$216)))) -> 82.78547023 | R202: =IF(MAX(C205:C216)-MIN(C205:C216)<5,AVERAGEIF(C205:C216,">0",R205:R216), IF(FORECAST($C202,R$205:R$216,$C$205:$C$216)<0,0, IF(FORECAST($C202,R$205:R$216,$C$205:$C$216)>100,100, FORECAST($C202,R$205:R$216,$C$205:$C$216)))) -> 0.1446117172 | S202: =IF(MAX(C205:C216)-MIN(C205:C216)<5,AVERAGEIF(C205:C216,">0",S205:S216), IF(FORECAST($C202,S$205:S$216,$C$205:$C$216)<0,0, IF(FORECAST($C202,S$205:S$216,$C$205:$C$216)>100,100, FORECAST($C202,S$205:S$216,$C$205:$C$216)))) -> 92.4718663 | W202: =IF(MAX(C205:C216)-MIN(C205:C216)<5,AVERAGEIF(C205:C216,">0",W205:W216), IF(FORECAST($C202,W$205:W$216,$C$205:$C$216)<0,0, IF(FORECAST($C202,W$205:W$216,$C$205:$C$216)>100,100, FORECAST($C202,W$205:W$216,$C$205:$C$216)))) -> 0.02894558196 | X202: =IF(MAX(C205:C216)-MIN(C205:C216)<5,AVERAGEIF(C205:C216,">0",X205:X216), IF(FORECAST($C202,X$205:X$216,$C$205:$C$216)<0,0, IF(FORECAST($C202,X$205:X$216,$C$205:$C$216)>100,100, FORECAST($C202,X$205:X$216,$C$205:$C$216)))) -> 96.83441524 | AB202: =IF(MAX(C205:C216)-MIN(C205:C216)<5,AVERAGEIF(C205:C216,">0",AB205:AB216), IF(FORECAST($C202,AB$205:AB$216,$C$205:$C$216)<0,0, IF(FORECAST($C202,AB$205:AB$216,$C$205:$C$216)>100,100, FORECAST($C202,AB$205:AB$216,$C$205:$C$216)))) -> 0
B204: Survey | C204: Year | D204: Improved | E204: Not shared | H204: Open defecation | I204: Improved | J204: Not shared | M204: Open defecation | N204: Improved | O204: Not shared | R204: Open defecation | S204: Improved | T204: Not shared | W204: Open defecation | X204: Improved | Y204: Not shared | AB204: Open defecation
B205: DHS01 | C205: 2001 | D205: =IF(ISERROR(INDIRECT(CONCATENATE($B205,"!H122"))),"",INDIRECT(CONCATENATE($B205,"!H122"))) -> 27.58523065 | E205: =IF(ISERROR(INDIRECT(CONCATENATE($B205,"!H129"))),"",INDIRECT(CONCATENATE($B205,"!H129"))) -> N/A | H205: =IF(ISERROR(INDIRECT(CONCATENATE($B205,"!H127"))),"",INDIRECT(CONCATENATE($B205,"!H127"))) -> 9.194220139 | I205: =IF(ISERROR(INDIRECT(CONCATENATE($B205,"!I122"))),"",INDIRECT(CONCATENATE($B205,"!I122"))) -> 56.12255078 | J205: =IF(ISERROR(INDIRECT(CONCATENATE($B205,"!I129"))),"",INDIRECT(CONCATENATE($B205,"!I129"))) -> N/A | M205: =IF(ISERROR(INDIRECT(CONCATENATE($B205,"!I127"))),"",INDIRECT(CONCATENATE($B205,"!I127"))) -> 1.511906761 | N205: =IF(ISERROR(INDIRECT(CONCATENATE($B205,"!J122"))),"",INDIRECT(CONCATENATE($B205,"!J122"))) -> 67.90203685 | O205: =IF(ISERROR(INDIRECT(CONCATENATE($B205,"!J129"))),"",INDIRECT(CONCATENATE($B205,"!J129"))) -> N/A | R205: =IF(ISERROR(INDIRECT(CONCATENATE($B205,"!J127"))),"",INDIRECT(CONCATENATE($B205,"!J127"))) -> 0.4471159274 | S205: =IF(ISERROR(INDIRECT(CONCATENATE($B205,"!K122"))),"",INDIRECT(CONCATENATE($B205,"!K122"))) -> 77.05894157 | T205: =IF(ISERROR(INDIRECT(CONCATENATE($B205,"!K129"))),"",INDIRECT(CONCATENATE($B205,"!K129"))) -> N/A | W205: =IF(ISERROR(INDIRECT(CONCATENATE($B205,"!K127"))),"",INDIRECT(CONCATENATE($B205,"!K127"))) -> 0.09490919011 | X205: =IF(ISERROR(INDIRECT(CONCATENATE($B205,"!L122"))),"",INDIRECT(CONCATENATE($B205,"!L122"))) -> 87.50172724 | Y205: =IF(ISERROR(INDIRECT(CONCATENATE($B205,"!L129"))),"",INDIRECT(CONCATENATE($B205,"!L129"))) -> N/A | AB205: =IF(ISERROR(INDIRECT(CONCATENATE($B205,"!L2127"))),"",INDIRECT(CONCATENATE($B205,"!L127"))) -> 0
B206: DHS06 | D206: 28.07422341 | E206: N/A | H206: 12.29277406 | I206: 57.89151826 | J206: N/A | M206: 1.036735591 | N206: 68.68376412 | O206: N/A | R206: 0 | S206: 78.7629262 | T206: N/A | W206: 0 | X206: 87.09049265 | Y206: N/A | AB206: 0
B207: MIS09 | C207: 2009 | D207: 51.00555127 | E207: N/A | H207: 0.06272103793 | I207: 58.84380134 | J207: N/A | M207: 0 | N207: 74.09127635 | O207: N/A | R207: 0 | S207: 79.53160606 | T207: N/A | W207: 0 | X207: 98.76590665 | Y207: N/A | AB207: 0
B208: AIS11 | D208: 40.55745984 | E208: 33.82673621 | H208: 7.444384761 | I208: 76.21920992 | J208: 22.14249785 | M208: 0.7433675966 | N208: 84.08310106 | O208: 22.62507422 | R208: 0.3182603784 | S208: 93.49876288 | T208: 32.62636109 | W208: 0 | X208: 96.84724683 | Y208: 50.83072354 | AB208: 0.2281227917
B209: DHS11 | C209: 2011 | D209: 36.51183492 | E209: N/A | H209: 6.581777122 | I209: 69.865708 | J209: N/A | M209: 1.524685048 | N209: 69.68908156 | O209: N/A | R209: 0.5142107178 | S209: 83.56344718 | T209: N/A | W209: 0.4055763183 | X209: 90.85101521 | Y209: N/A | AB209: 0
B210: MIS15 | C210: 2015 | D210: 26.39805195 | E210: 34.63366366 | H210: 3.791727424 | I210: 58.36728815 | J210: 44.63185984 | M210: 0 | N210: 77.40385979 | O210: 27.21189046 | R210: 0 | S210: 89.47002675 | T210: 44.07463129 | W210: 0 | X210: 98.50386586 | Y210: 63.27454176 | AB210: 0
B211: DHS16 | C211: 2016 | D211: 21.61592736 | E211: 57.77215936 | H211: 11.28819664 | I211: 55.1941009 | J211: 49.03372064 | M211: 0.8682635839 | N211: 84.64472052 | O211: 35.80059989 | R211: 0.5847360272 | S211: 92.43548056 | T211: 35.64886902 | W211: 0 | X211: 96.06055026 | Y211: 58.79866337 | AB211: 0
B212: MIS19 | C212: 2019 | D212: 27.27004431 | E212: 63.89009269 | H212: 7.461402274 | I212: 59.75598519 | J212: 58.9732507 | M212: 0.2782362417 | N212: 81.07067103 | O212: 44.08227418 | R212: 0 | S212: 89.56893185 | T212: 44.64067873 | W212: 0 | X212: 92.38630631 | Y212: 66.14706155 | AB212: 0
B218: =CONCATENATE("Urban use of sanitation facilities, ",C199,"–",C200) -> Urban use of sanitation facilities, 2000–2020 | S218: Data points used for regression
A297: RURAL | D297: Poorest | I297: Poor | N297: Middle | S297: Rich | X297: Richest
D298: Improved | E298: Basic | F298: Limited | G298: Unimproved | H298: Open defecation | I298: Improved | J298: Basic | K298: Limited | L298: Unimproved | M298: Open defecation | N298: Improved | O298: Basic | P298: Limited | Q298: Unimproved | R298: Open defecation | S298: Improved | T298: Basic | U298: Limited | V298: Unimproved | W298: Open defecation | X298: Improved | Y298: Basic | Z298: Limited | AA298: Unimproved | AB298: Open defecation
A299: Forecast period: | C299: 2000 | D299: =IF((D301+H301)>100,D301*100/(D301+H301),D301) -> 11.96091817 | E299: =D299*AVERAGEIF(E305:E316,">0")/100 -> 6.55819974 | F299: =D299*(100-AVERAGEIF(E305:E316,">0"))/100 -> 5.40271843 | G299: =100-(E299+F299+H299) -> 54.10781836 | H299: =IF((D301+H301)>100,H301*100/(D301+H301),H301) -> 33.93126347 | I299: =IF((I301+M301)>100,I301*100/(I301+M301),I301) -> 5.295698071 | J299: =I299*AVERAGEIF(J305:J316,">0")/100 -> 3.487236065 | K299: =I299*(100-AVERAGEIF(J305:J316,">0"))/100 -> 1.808462005 | L299: =100-(J299+K299+M299) -> 67.19418055 | M299: =IF((I301+M301)>100,M301*100/(I301+M301),M301) -> 27.51012138 | N299: =IF((N301+R301)>100,N301*100/(N301+R301),N301) -> 8.20379743 | O299: =N299*AVERAGEIF(O305:O316,">0")/100 -> 5.579452343 | P299: =N299*(100-AVERAGEIF(O305:O316,">0"))/100 -> 2.624345087 | Q299: =100-(O299+P299+R299) -> 79.05055651 | R299: =IF((N301+R301)>100,R301*100/(N301+R301),R301) -> 12.74564606 | S299: =IF((S301+W301)>100,S301*100/(S301+W301),S301) -> 12.17773134 | T299: =S299*AVERAGEIF(T305:T316,">0")/100 -> 8.25032852 | U299: =S299*(100-AVERAGEIF(T305:T316,">0"))/100 -> 3.92740282 | V299: =100-(T299+U299+W299) -> 81.29399518 | W299: =IF((S301+W301)>100,W301*100/(S301+W301),W301) -> 6.528273477 | X299: =IF((X301+AB301)>100,X301*100/(X301+AB301),X301) -> 41.96685141 | Y299: =X299*AVERAGEIF(Y305:Y316,">0")/100 -> 31.32091488 | Z299: =X299*(100-AVERAGEIF(Y305:Y316,">0"))/100 -> 10.64593653 | AA299: =100-(Y299+Z299+AB299) -> 55.60203632 | AB299: =IF((X301+AB301)>100,AB301*100/(X301+AB301),AB301) -> 2.431112268
C300: 2020 | D300: =IF((D302+H302)>100,D302*100/(D302+H302),D302) -> 13.63328022 | E300: =D300*AVERAGEIF(E305:E316,">0")/100 -> 7.475159809 | F300: =D300*(100-AVERAGEIF(E305:E316,">0"))/100 -> 6.158120409 | G300: =100-(E300+F300+H300) -> 66.16525789 | H300: =IF((D302+H302)>100,H302*100/(D302+H302),H302) -> 20.20146189 | I300: =IF((I302+M302)>100,I302*100/(I302+M302),I302) -> 21.62581304 | J300: =I300*AVERAGEIF(J305:J316,">0")/100 -> 14.24067501 | K300: =I300*(100-AVERAGEIF(J305:J316,">0"))/100 -> 7.38513803 | L300: =100-(J300+K300+M300) -> 77.97330612 | M300: =IF((I302+M302)>100,M302*100/(I302+M302),M302) -> 0.400880843 | N300: =IF((N302+R302)>100,N302*100/(N302+R302),N302) -> 24.94622804 | O300: =N300*AVERAGEIF(O305:O316,">0")/100 -> 16.96608085 | P300: =N300*(100-AVERAGEIF(O305:O316,">0"))/100 -> 7.980147188 | Q300: =100-(O300+P300+R300) -> 74.62919299 | R300: =IF((N302+R302)>100,R302*100/(N302+R302),R302) -> 0.4245789698 | S300: =IF((S302+W302)>100,S302*100/(S302+W302),S302) -> 37.85386492 | T300: =S300*AVERAGEIF(T305:T316,">0")/100 -> 25.64573094 | U300: =S300*(100-AVERAGEIF(T305:T316,">0"))/100 -> 12.20813399 | V300: =100-(T300+U300+W300) -> 62.14613508 | W300: =IF((S302+W302)>100,W302*100/(S302+W302),W302) -> 0 | X300: =IF((X302+AB302)>100,X302*100/(X302+AB302),X302) -> 63.74039236 | Y300: =X300*AVERAGEIF(Y305:Y316,">0")/100 -> 47.57105517 | Z300: =X300*(100-AVERAGEIF(Y305:Y316,">0"))/100 -> 16.1693372 | AA300: =100-(Y300+Z300+AB300) -> 36.25960764 | AB300: =IF((X302+AB302)>100,AB302*100/(X302+AB302),AB302) -> 0
A301: Regression period: | C301: =MinRegYear(C299,C305:C316) -> 2000 | D301: =IF(MAX(C305:C316)-MIN(C305:C316)<5,AVERAGEIF(C305:C316,">0",D305:D316), IF(FORECAST($C301,D$305:D$316,$C$305:$C$316)<0,0, IF(FORECAST($C301,D$305:D$316,$C$305:$C$316)>100,100, FORECAST($C301,D$305:D$316,$C$305:$C$316)))) -> 11.96091817 | H301: =IF(MAX(C305:C316)-MIN(C305:C316)<5,AVERAGEIF(C305:C316,">0",H305:H316), IF(FORECAST($C301,H$305:H$316,$C$305:$C$316)<0,0, IF(FORECAST($C301,H$305:H$316,$C$305:$C$316)>100,100, FORECAST($C301,H$305:H$316,$C$305:$C$316)))) -> 33.93126347 | I301: =IF(MAX(C305:C316)-MIN(C305:C316)<5,AVERAGEIF(C305:C316,">0",I305:I316), IF(FORECAST($C301,I$305:I$316,$C$305:$C$316)<0,0, IF(FORECAST($C301,I$305:I$316,$C$305:$C$316)>100,100, FORECAST($C301,I$305:I$316,$C$305:$C$316)))) -> 5.295698071 | M301: =IF(MAX(C305:C316)-MIN(C305:C316)<5,AVERAGEIF(C305:C316,">0",M305:M316), IF(FORECAST($C301,M$305:M$316,$C$305:$C$316)<0,0, IF(FORECAST($C301,M$305:M$316,$C$305:$C$316)>100,100, FORECAST($C301,M$305:M$316,$C$305:$C$316)))) -> 27.51012138 | N301: =IF(MAX(C305:C316)-MIN(C305:C316)<5,AVERAGEIF(C305:C316,">0",N305:N316), IF(FORECAST($C301,N$305:N$316,$C$305:$C$316)<0,0, IF(FORECAST($C301,N$305:N$316,$C$305:$C$316)>100,100, FORECAST($C301,N$305:N$316,$C$305:$C$316)))) -> 8.20379743 | R301: =IF(MAX(C305:C316)-MIN(C305:C316)<5,AVERAGEIF(C305:C316,">0",R305:R316), IF(FORECAST($C301,R$305:R$316,$C$305:$C$316)<0,0, IF(FORECAST($C301,R$305:R$316,$C$305:$C$316)>100,100, FORECAST($C301,R$305:R$316,$C$305:$C$316)))) -> 12.74564606 | S301: =IF(MAX(C305:C316)-MIN(C305:C316)<5,AVERAGEIF(C305:C316,">0",S305:S316), IF(FORECAST($C301,S$305:S$316,$C$305:$C$316)<0,0, IF(FORECAST($C301,S$305:S$316,$C$305:$C$316)>100,100, FORECAST($C301,S$305:S$316,$C$305:$C$316)))) -> 12.17773134 | W301: =IF(MAX(C305:C316)-MIN(C305:C316)<5,AVERAGEIF(C305:C316,">0",W305:W316), IF(FORECAST($C301,W$305:W$316,$C$305:$C$316)<0,0, IF(FORECAST($C301,W$305:W$316,$C$305:$C$316)>100,100, FORECAST($C301,W$305:W$316,$C$305:$C$316)))) -> 6.528273477 | X301: =IF(MAX(C305:C316)-MIN(C305:C316)<5,AVERAGEIF(C305:C316,">0",X305:X316), IF(FORECAST($C301,X$305:X$316,$C$305:$C$316)<0,0, IF(FORECAST($C301,X$305:X$316,$C$305:$C$316)>100,100, FORECAST($C301,X$305:X$316,$C$305:$C$316)))) -> 41.96685141 | AB301: =IF(MAX(C305:C316)-MIN(C305:C316)<5,AVERAGEIF(C305:C316,">0",AB305:AB316), IF(FORECAST($C301,AB$305:AB$316,$C$305:$C$316)<0,0, IF(FORECAST($C301,AB$305:AB$316,$C$305:$C$316)>100,100, FORECAST($C301,AB$305:AB$316,$C$305:$C$316)))) -> 2.431112268
C302: =MaxRegYear(C300,C305:C316) -> 2020 | D302: =IF(MAX(C305:C316)-MIN(C305:C316)<5,AVERAGEIF(C305:C316,">0",D305:D316), IF(FORECAST($C302,D$305:D$316,$C$305:$C$316)<0,0, IF(FORECAST($C302,D$305:D$316,$C$305:$C$316)>100,100, FORECAST($C302,D$305:D$316,$C$305:$C$316)))) -> 13.63328022 | H302: =IF(MAX(C305:C316)-MIN(C305:C316)<5,AVERAGEIF(C305:C316,">0",H305:H316), IF(FORECAST($C302,H$305:H$316,$C$305:$C$316)<0,0, IF(FORECAST($C302,H$305:H$316,$C$305:$C$316)>100,100, FORECAST($C302,H$305:H$316,$C$305:$C$316)))) -> 20.20146189 | I302: =IF(MAX(C305:C316)-MIN(C305:C316)<5,AVERAGEIF(C305:C316,">0",I305:I316), IF(FORECAST($C302,I$305:I$316,$C$305:$C$316)<0,0, IF(FORECAST($C302,I$305:I$316,$C$305:$C$316)>100,100, FORECAST($C302,I$305:I$316,$C$305:$C$316)))) -> 21.62581304 | M302: =IF(MAX(C305:C316)-MIN(C305:C316)<5,AVERAGEIF(C305:C316,">0",M305:M316), IF(FORECAST($C302,M$305:M$316,$C$305:$C$316)<0,0, IF(FORECAST($C302,M$305:M$316,$C$305:$C$316)>100,100, FORECAST($C302,M$305:M$316,$C$305:$C$316)))) -> 0.400880843 | N302: =IF(MAX(C305:C316)-MIN(C305:C316)<5,AVERAGEIF(C305:C316,">0",N305:N316), IF(FORECAST($C302,N$305:N$316,$C$305:$C$316)<0,0, IF(FORECAST($C302,N$305:N$316,$C$305:$C$316)>100,100, FORECAST($C302,N$305:N$316,$C$305:$C$316)))) -> 24.94622804 | R302: =IF(MAX(C305:C316)-MIN(C305:C316)<5,AVERAGEIF(C305:C316,">0",R305:R316), IF(FORECAST($C302,R$305:R$316,$C$305:$C$316)<0,0, IF(FORECAST($C302,R$305:R$316,$C$305:$C$316)>100,100, FORECAST($C302,R$305:R$316,$C$305:$C$316)))) -> 0.4245789698 | S302: =IF(MAX(C305:C316)-MIN(C305:C316)<5,AVERAGEIF(C305:C316,">0",S305:S316), IF(FORECAST($C302,S$305:S$316,$C$305:$C$316)<0,0, IF(FORECAST($C302,S$305:S$316,$C$305:$C$316)>100,100, FORECAST($C302,S$305:S$316,$C$305:$C$316)))) -> 37.85386492 | W302: =IF(MAX(C305:C316)-MIN(C305:C316)<5,AVERAGEIF(C305:C316,">0",W305:W316), IF(FORECAST($C302,W$305:W$316,$C$305:$C$316)<0,0, IF(FORECAST($C302,W$305:W$316,$C$305:$C$316)>100,100, FORECAST($C302,W$305:W$316,$C$305:$C$316)))) -> 0 | X302: =IF(MAX(C305:C316)-MIN(C305:C316)<5,AVERAGEIF(C305:C316,">0",X305:X316), IF(FORECAST($C302,X$305:X$316,$C$305:$C$316)<0,0, IF(FORECAST($C302,X$305:X$316,$C$305:$C$316)>100,100, FORECAST($C302,X$305:X$316,$C$305:$C$316)))) -> 63.74039236 | AB302: =IF(MAX(C305:C316)-MIN(C305:C316)<5,AVERAGEIF(C305:C316,">0",AB305:AB316), IF(FORECAST($C302,AB$305:AB$316,$C$305:$C$316)<0,0, IF(FORECAST($C302,AB$305:AB$316,$C$305:$C$316)>100,100, FORECAST($C302,AB$305:AB$316,$C$305:$C$316)))) -> 0
B304: Survey | C304: Year | D304: Improved | E304: Not shared | H304: Open defecation | I304: Improved | J304: Not shared | M304: Open defecation | N304: Improved | O304: Not shared | R304: Open defecation | S304: Improved | T304: Not shared | W304: Open defecation | X304: Improved | Y304: Not shared | AB304: Open defecation
B305: DHS01 | C305: 2001 | D305: =IF(ISERROR(INDIRECT(CONCATENATE($B305,"!M122"))),"",INDIRECT(CONCATENATE($B305,"!M122"))) -> 14.47266704 | E305: =IF(ISERROR(INDIRECT(CONCATENATE($B305,"!M129"))),"",INDIRECT(CONCATENATE($B305,"!M129"))) -> N/A | H305: =IF(ISERROR(INDIRECT(CONCATENATE($B305,"!M127"))),"",INDIRECT(CONCATENATE($B305,"!M127"))) -> 30.04574014 | I305: =IF(ISERROR(INDIRECT(CONCATENATE($B305,"!N122"))),"",INDIRECT(CONCATENATE($B305,"!N122"))) -> 7.137327731 | J305: =IF(ISERROR(INDIRECT(CONCATENATE($B305,"!N129"))),"",INDIRECT(CONCATENATE($B305,"!N129"))) -> N/A | M305: =IF(ISERROR(INDIRECT(CONCATENATE($B305,"!N127"))),"",INDIRECT(CONCATENATE($B305,"!N127"))) -> 30.32406969 | N305: =IF(ISERROR(INDIRECT(CONCATENATE($B305,"!O122"))),"",INDIRECT(CONCATENATE($B305,"!O122"))) -> 9.03254734 | O305: =IF(ISERROR(INDIRECT(CONCATENATE($B305,"!O129"))),"",INDIRECT(CONCATENATE($B305,"!O129"))) -> N/A | R305: =IF(ISERROR(INDIRECT(CONCATENATE($B305,"!O127"))),"",INDIRECT(CONCATENATE($B305,"!O127"))) -> 12.90629792 | S305: =IF(ISERROR(INDIRECT(CONCATENATE($B305,"!P122"))),"",INDIRECT(CONCATENATE($B305,"!P122"))) -> 13.39817134 | T305: =IF(ISERROR(INDIRECT(CONCATENATE($B305,"!P129"))),"",INDIRECT(CONCATENATE($B305,"!P129"))) -> N/A | W305: =IF(ISERROR(INDIRECT(CONCATENATE($B305,"!P127"))),"",INDIRECT(CONCATENATE($B305,"!P127"))) -> 7.39775015 | X305: =IF(ISERROR(INDIRECT(CONCATENATE($B305,"!Q122"))),"",INDIRECT(CONCATENATE($B305,"!Q122"))) -> 42.92683563 | Y305: =IF(ISERROR(INDIRECT(CONCATENATE($B305,"!Q129"))),"",INDIRECT(CONCATENATE($B305,"!Q129"))) -> N/A | AB305: =IF(ISERROR(INDIRECT(CONCATENATE($B305,"!Q2127"))),"",INDIRECT(CONCATENATE($B305,"!Q127"))) -> 2.613837072
B306: DHS06 | D306: 15.52509386 | E306: N/A | H306: 34.6586438 | I306: 7.589086431 | J306: N/A | M306: 19.32214795 | N306: 10.24652842 | O306: N/A | R306: 8.112442713 | S306: 14.66348272 | T306: N/A | W306: 2.782831031 | X306: 44.90951371 | Y306: N/A | AB306: 0.4115409242
B307: MIS09 | C307: 2009 | D307: 15.59955786 | E307: N/A | H307: 24.97410748 | I307: 13.52640501 | J307: N/A | M307: 9.964384694 | N307: 14.74334217 | O307: N/A | R307: 6.064433167 | S307: 26.1654918 | T307: N/A | W307: 1.277179249 | X307: 50.47490443 | Y307: N/A | AB307: 1.237189687
B308: AIS11 | C308: 2011 | D308: 10.93209593 | E308: 54.45110774 | H308: 30.44324385 | I308: 14.52054966 | J308: 67.21384857 | M308: 11.48537988 | N308: 18.13937322 | O308: 67.18426129 | R308: 5.55991577 | S308: 27.4478625 | T308: 65.41495905 | W308: 2.785371475 | X308: 56.69937753 | Y308: 65.91782783 | AB308: 0.4892838534
B309: DHS11 | C309: 2011 | D309: 9.376554826 | E309: N/A | H309: 34.27794959 | I309: 13.52494713 | J309: N/A | M309: 10.88027893 | N309: 21.09081493 | O309: N/A | R309: 5.812406647 | S309: 26.36306567 | T309: N/A | W309: 3.010857202 | X309: 56.82323488 | Y309: N/A | AB309: 0.4937554274
B310: MIS15 | C310: 2015 | D310: 9.571464077 | E310: 50.13488357 | H310: 21.39473047 | I310: 14.97835989 | J310: 60.5473015 | M310: 6.294479581 | N310: 16.98473672 | O310: 61.99026302 | R310: 3.772129007 | S310: 25.02570814 | T310: 61.0048129 | W310: 1.550910385 | X310: 50.85164357 | Y310: 75.61135396 | AB310: 0
B311: DHS16 | C311: 2016 | D311: 8.508825076 | E311: 46.95755133 | H311: 22.49248642 | I311: 14.04583064 | J311: 60.42957275 | M311: 7.364928556 | N311: 18.24852768 | O311: 68.97469199 | R311: 3.170081533 | S311: 30.30141882 | T311: 68.36636539 | W311: 1.62270674 | X311: 59.35042181 | Y311: 72.80917966 | AB311: 0.7392864609
B312: MIS19 | C312: 2019 | D312: 22.12194679 | E312: 67.77740402 | H312: 17.59839987 | I312: 26.28993782 | J312: 75.21070369 | M312: 5.109442125 | N312: 27.83120546 | O312: 73.8932075 | R312: 1.417883317 | S312: 41.81454879 | T312: 76.21108831 | W312: 0.9494070013 | X312: 65.91305993 | Y312: 84.19168145 | AB312: 0.04735632125
B318: =CONCATENATE("Rural use of sanitation facilities, ",C299,"–",C300) -> Rural use of sanitation facilities, 2000–2020 | S318: Data points used for regression

Sheet Hygiene
B4: Access to hygiene facilities by wealth quintile (%)
B5: =IF(ISERROR(INDIRECT(CONCATENATE($E$32,"!A2"))),"",INDIRECT(CONCATENATE($E$32,"!A2"))) -> Uganda
B7: =CONCATENATE("National ",IF(ISERROR(INDIRECT(CONCATENATE($E$32,"!A2"))),"",INDIRECT(CONCATENATE($E$32,"!A210")))) -> National Access to hygiene facilities | K7: =CONCATENATE("Urban ",IF(ISERROR(INDIRECT(CONCATENATE($E$32,"!A2"))),"",INDIRECT(CONCATENATE($E$32,"!A210")))) -> Urban Access to hygiene facilities | S7: =CONCATENATE("Rural ",IF(ISERROR(INDIRECT(CONCATENATE($E$32,"!A2"))),"",INDIRECT(CONCATENATE($E$32,"!A210")))) -> Rural Access to hygiene facilities
E32: =INDEX(B88:B100,A88) -> DHS16 | G32: =IF(ISERROR(INDIRECT(CONCATENATE($E$32,"!A2"))),"",INDIRECT(CONCATENATE($E$32,"!A2"))) -> Uganda | K32: Poorest | N32: Poor | Q32: Middle | T32: Rich | W32: Richest
K33: Basic | L33: Limited | M33: No facility | N33: Basic | O33: Limited | P33: No facility | Q33: Basic | R33: Limited | S33: No facility | T33: Basic | U33: Limited | V33: No facility | W33: Basic | X33: Limited | Y33: No facility
B34: >>> Select Survey : | G34: NATIONAL | J34: =IF(ISERROR(INDIRECT(CONCATENATE(#REF!,"!A2"))),"",INDIRECT(CONCATENATE(#REF!,"!A210"))) ->  | K34: =IF(ISERROR(INDIRECT(CONCATENATE($E$32,"!C222"))),"",INDIRECT(CONCATENATE($E$32,"!C222"))) -> 10.28372689 | L34: =IF(ISERROR(INDIRECT(CONCATENATE($E$32,"!C223"))),"",INDIRECT(CONCATENATE($E$32,"!C223"))) -> 32.35052463 | M34: =IF(ISERROR(INDIRECT(CONCATENATE($E$32,"!C224"))),"",INDIRECT(CONCATENATE($E$32,"!C224"))) -> 57.36574848 | N34: =IF(ISERROR(INDIRECT(CONCATENATE($E$32,"!D222"))),"",INDIRECT(CONCATENATE($E$32,"!D222"))) -> 14.99358061 | O34: =IF(ISERROR(INDIRECT(CONCATENATE($E$32,"!D223"))),"",INDIRECT(CONCATENATE($E$32,"!D223"))) -> 38.34028137 | P34: =IF(ISERROR(INDIRECT(CONCATENATE($E$32,"!D224"))),"",INDIRECT(CONCATENATE($E$32,"!D224"))) -> 46.66613802 | Q34: =IF(ISERROR(INDIRECT(CONCATENATE($E$32,"!E222"))),"",INDIRECT(CONCATENATE($E$32,"!E222"))) -> 23.23998596 | R34: =IF(ISERROR(INDIRECT(CONCATENATE($E$32,"!E223"))),"",INDIRECT(CONCATENATE($E$32,"!E223"))) -> 38.94890287 | S34: =IF(ISERROR(INDIRECT(CONCATENATE($E$32,"!E224"))),"",INDIRECT(CONCATENATE($E$32,"!E224"))) -> 37.81111117 | T34: =IF(ISERROR(INDIRECT(CONCATENATE($E$32,"!F222"))),"",INDIRECT(CONCATENATE($E$32,"!F222"))) -> 26.60342225 | U34: =IF(ISERROR(INDIRECT(CONCATENATE($E$32,"!F223"))),"",INDIRECT(CONCATENATE($E$32,"!F223"))) -> 38.27661271 | V34: =IF(ISERROR(INDIRECT(CONCATENATE($E$32,"!F224"))),"",INDIRECT(CONCATENATE($E$32,"!F224"))) -> 35.11996504 | W34: =IF(ISERROR(INDIRECT(CONCATENATE($E$32,"!G222"))),"",INDIRECT(CONCATENATE($E$32,"!G222"))) -> 51.97339821 | X34: =IF(ISERROR(INDIRECT(CONCATENATE($E$32,"!G223"))),"",INDIRECT(CONCATENATE($E$32,"!G223"))) -> 23.44949117 | Y34: =IF(ISERROR(INDIRECT(CONCATENATE($E$32,"!G224"))),"",INDIRECT(CONCATENATE($E$32,"!G224"))) -> 24.57711062
G37: URBAN | J37: =IF(ISERROR(INDIRECT(CONCATENATE(#REF!,"!A2"))),"",INDIRECT(CONCATENATE(#REF!,"!A210"))) ->  | K37: =IF(ISERROR(INDIRECT(CONCATENATE($E$32,"!H222"))),"",INDIRECT(CONCATENATE($E$32,"!H222"))) -> 26.96137381 | L37: =IF(ISERROR(INDIRECT(CONCATENATE($E$32,"!H223"))),"",INDIRECT(CONCATENATE($E$32,"!H223"))) -> 32.94420054 | M37: =IF(ISERROR(INDIRECT(CONCATENATE($E$32,"!H224"))),"",INDIRECT(CONCATENATE($E$32,"!H224"))) -> 40.09442565 | N37: =IF(ISERROR(INDIRECT(CONCATENATE($E$32,"!I222"))),"",INDIRECT(CONCATENATE($E$32,"!I222"))) -> 36.18663282 | O37: =IF(ISERROR(INDIRECT(CONCATENATE($E$32,"!I223"))),"",INDIRECT(CONCATENATE($E$32,"!I223"))) -> 31.39290279 | P37: =IF(ISERROR(INDIRECT(CONCATENATE($E$32,"!I224"))),"",INDIRECT(CONCATENATE($E$32,"!I224"))) -> 32.4204644 | Q37: =IF(ISERROR(INDIRECT(CONCATENATE($E$32,"!J222"))),"",INDIRECT(CONCATENATE($E$32,"!J222"))) -> 42.03116698 | R37: =IF(ISERROR(INDIRECT(CONCATENATE($E$32,"!J223"))),"",INDIRECT(CONCATENATE($E$32,"!J223"))) -> 27.20756137 | S37: =IF(ISERROR(INDIRECT(CONCATENATE($E$32,"!J224"))),"",INDIRECT(CONCATENATE($E$32,"!J224"))) -> 30.76127164 | T37: =IF(ISERROR(INDIRECT(CONCATENATE($E$32,"!K222"))),"",INDIRECT(CONCATENATE($E$32,"!K222"))) -> 44.72883982 | U37: =IF(ISERROR(INDIRECT(CONCATENATE($E$32,"!K223"))),"",INDIRECT(CONCATENATE($E$32,"!K223"))) -> 29.88907446 | V37: =IF(ISERROR(INDIRECT(CONCATENATE($E$32,"!K224"))),"",INDIRECT(CONCATENATE($E$32,"!K224"))) -> 25.38208571 | W37: =IF(ISERROR(INDIRECT(CONCATENATE($E$32,"!L222"))),"",INDIRECT(CONCATENATE($E$32,"!L222"))) -> 67.47567662 | X37: =IF(ISERROR(INDIRECT(CONCATENATE($E$32,"!L223"))),"",INDIRECT(CONCATENATE($E$32,"!L223"))) -> 15.1992611 | Y37: =IF(ISERROR(INDIRECT(CONCATENATE($E$32,"!L224"))),"",INDIRECT(CONCATENATE($E$32,"!L224"))) -> 17.32506228
G40: RURAL | J40: =IF(ISERROR(INDIRECT(CONCATENATE(#REF!,"!A2"))),"",INDIRECT(CONCATENATE(#REF!,"!A210"))) ->  | K40: =IF(ISERROR(INDIRECT(CONCATENATE($E$32,"!M222"))),"",INDIRECT(CONCATENATE($E$32,"!M222"))) -> 9.07968813 | L40: =IF(ISERROR(INDIRECT(CONCATENATE($E$32,"!M223"))),"",INDIRECT(CONCATENATE($E$32,"!M223"))) -> 32.26092408 | M40: =IF(ISERROR(INDIRECT(CONCATENATE($E$32,"!M224"))),"",INDIRECT(CONCATENATE($E$32,"!M224"))) -> 58.65938779 | N40: =IF(ISERROR(INDIRECT(CONCATENATE($E$32,"!N222"))),"",INDIRECT(CONCATENATE($E$32,"!N222"))) -> 12.66151601 | O40: =IF(ISERROR(INDIRECT(CONCATENATE($E$32,"!N223"))),"",INDIRECT(CONCATENATE($E$32,"!N223"))) -> 36.93667083 | P40: =IF(ISERROR(INDIRECT(CONCATENATE($E$32,"!N224"))),"",INDIRECT(CONCATENATE($E$32,"!N224"))) -> 50.40181316 | Q40: =IF(ISERROR(INDIRECT(CONCATENATE($E$32,"!O222"))),"",INDIRECT(CONCATENATE($E$32,"!O222"))) -> 20.39379648 | R40: =IF(ISERROR(INDIRECT(CONCATENATE($E$32,"!O223"))),"",INDIRECT(CONCATENATE($E$32,"!O223"))) -> 40.19841234 | S40: =IF(ISERROR(INDIRECT(CONCATENATE($E$32,"!O224"))),"",INDIRECT(CONCATENATE($E$32,"!O224"))) -> 39.40779119 | T40: =IF(ISERROR(INDIRECT(CONCATENATE($E$32,"!P222"))),"",INDIRECT(CONCATENATE($E$32,"!P222"))) -> 22.48654353 | U40: =IF(ISERROR(INDIRECT(CONCATENATE($E$32,"!P223"))),"",INDIRECT(CONCATENATE($E$32,"!P223"))) -> 38.01212596 | V40: =IF(ISERROR(INDIRECT(CONCATENATE($E$32,"!P224"))),"",INDIRECT(CONCATENATE($E$32,"!P224"))) -> 39.50133051 | W40: =IF(ISERROR(INDIRECT(CONCATENATE($E$32,"!Q222"))),"",INDIRECT(CONCATENATE($E$32,"!Q222"))) -> 37.22337936 | X40: =IF(ISERROR(INDIRECT(CONCATENATE($E$32,"!Q223"))),"",INDIRECT(CONCATENATE($E$32,"!Q223"))) -> 33.55557321 | Y40: =IF(ISERROR(INDIRECT(CONCATENATE($E$32,"!Q224"))),"",INDIRECT(CONCATENATE($E$32,"!Q224"))) -> 29.22104743
A88: 7 | B88: DHS01
B89: DHS06
B90: MIS09
B91: AIS11
B92: DHS11
B93: MIS15
B94: DHS16
B95: MIS19
B96: Input
B97: Template

Sheet DHS01
A2: =A1026 -> Uganda
A3: =A1034 -> 2001
A4: Use of drinking water sources
A5: by wealth quintile and sub-national region
A6: Notes:
A7: WHO/UNICEF JMP customised wealth index excludes water,
A8: sanitation and hygiene assets.
A9: Survey used for analysis: | B9: =A1025 -> DHS01
A10: =B1028 -> 
A11: =B1027 -> 
A14: Use of drinking water sources | C14: NATIONAL wealth index quintile | H14: URBAN wealth index quintile | M14: RURAL wealth index quintile | R14: REGIONS | BA14: Raw numbers of respondents: | BB14: Use of drinking water sources | BC14: NATIONAL wealth index quintile | BH14: URBAN wealth index quintile | BM14: RURAL wealth index quintile | BR14: SUB-REGIONS:
A15: Weighted percentage (used in graphs) | C15: Poorest | D15: Poor | E15: Middle | F15: Rich | G15: Richest | H15: Poorest | I15: Poor | J15: Middle | K15: Rich | L15: Richest | M15: Poorest | N15: Poor | O15: Middle | P15: Rich | Q15: Richest | R15: Central | S15: Eastern | T15: Northern | U15: Western | BA15: Water data, raw numbers (weighted) | BC15: Poorest | BD15: Poor | BE15: Middle | BF15: Rich | BG15: Richest | BH15: Poorest | BI15: Poor | BJ15: Middle | BK15: Rich | BL15: Richest | BM15: Poorest | BN15: Poor | BO15: Middle | BP15: Rich | BQ15: Richest
A16: Water | B16: Improved | C16: =C58+C59+C60+C63+C64+C65+C66+C71+C72+C73+C74+C67*'MIS09'!C25/100 -> 49.89821852 | D16: =D58+D59+D60+D63+D64+D65+D66+D71+D72+D73+D74+D67*'MIS09'!D25/100 -> 52.51348289 | E16: =E58+E59+E60+E63+E64+E65+E66+E71+E72+E73+E74+E67*'MIS09'!E25/100 -> 49.30861376 | F16: =F58+F59+F60+F63+F64+F65+F66+F71+F72+F73+F74+F67*'MIS09'!F25/100 -> 55.60441213 | G16: =G58+G59+G60+G63+G64+G65+G66+G71+G72+G73+G74+G67*'MIS09'!G25/100 -> 79.06606481 | H16: =H58+H59+H60+H63+H64+H65+H66+H71+H72+H73+H74+H67*'MIS09'!H25/100 -> 86.53134531 | I16: =I58+I59+I60+I63+I64+I65+I66+I71+I72+I73+I74+I67*'MIS09'!I25/100 -> 85.1759679 | J16: =J58+J59+J60+J63+J64+J65+J66+J71+J72+J73+J74+J67*'MIS09'!J25/100 -> 90.56224872 | K16: =K58+K59+K60+K63+K64+K65+K66+K71+K72+K73+K74+K67*'MIS09'!K25/100 -> 94.2127721 | L16: =L58+L59+L60+L63+L64+L65+L66+L71+L72+L73+L74+L67*'MIS09'!L25/100 -> 94.59765746 | M16: =M58+M59+M60+M63+M64+M65+M66+M71+M72+M73+M74+M67*'MIS09'!M25/100 -> 48.96646459 | N16: =N58+N59+N60+N63+N64+N65+N66+N71+N72+N73+N74+N67*'MIS09'!N25/100 -> 53.46593929 | O16: =O58+O59+O60+O63+O64+O65+O66+O71+O72+O73+O74+O67*'MIS09'!O25/100 -> 48.15380164 | P16: =P58+P59+P60+P63+P64+P65+P66+P71+P72+P73+P74+P67*'MIS09'!P25/100 -> 49.06285731 | Q16: =Q58+Q59+Q60+Q63+Q64+Q65+Q66+Q71+Q72+Q73+Q74+Q67*'MIS09'!Q25/100 -> 62.16244909 | R16: N/A | S16: N/A | T16: N/A | U16: N/A | BA16: Water | BB16: Improved | BC16: N/A | BD16: N/A | BE16: N/A | BF16: N/A | BG16: N/A | BH16: N/A | BI16: N/A | BJ16: N/A | BK16: N/A | BL16: N/A | BM16: N/A | BN16: N/A | BO16: N/A | BP16: N/A | BQ16: N/A | BR16: N/A | BS16: N/A | BT16: N/A | BU16: N/A | BV16: N/A | BW16: N/A | BX16: N/A | BY16: N/A | BZ16: N/A | CA16: N/A | CB16: N/A | CC16: N/A | CD16: N/A | CE16: N/A | CF16: N/A | CG16: N/A | CH16: N/A | CI16: N/A | CJ16: N/A | CK16: N/A | CL16: N/A | CM16: N/A | CN16: N/A | CO16: N/A | CP16: N/A | CQ16: N/A | CR16: N/A | CS16: N/A | CT16: N/A | CU16: N/A | CV16: N/A | CW16: N/A | CX16: N/A | CY16: N/A | CZ16: N/A
B17: Not Improved | C17: =100-C16 -> 50.10178148 | D17: =100-D16 -> 47.48651711 | E17: 50.69138624 | F17: 44.39558787 | G17: 20.93393519 | H17: 13.46865469 | I17: 14.8240321 | J17: 9.437751276 | K17: 5.787227899 | L17: 5.402342541 | M17: 51.03353541 | N17: 46.53406071 | O17: 51.84619836 | P17: 50.93714269 | Q17: 37.83755091 | R17: N/A | S17: N/A | T17: N/A | U17: N/A | BB17: Not Improved | BC17: N/A | BD17: N/A | BE17: N/A | BF17: N/A | BG17: N/A | BH17: N/A | BI17: N/A | BJ17: N/A | BK17: N/A | BL17: N/A | BM17: N/A | BN17: N/A | BO17: N/A | BP17: N/A | BQ17: N/A | BR17: N/A | BS17: N/A | BT17: N/A | BU17: N/A | BV17: N/A | BW17: N/A | BX17: N/A | BY17: N/A | BZ17: N/A | CA17: N/A | CB17: N/A | CC17: N/A | CD17: N/A | CE17: N/A | CF17: N/A | CG17: N/A | CH17: N/A | CI17: N/A | CJ17: N/A | CK17: N/A | CL17: N/A | CM17: N/A | CN17: N/A | CO17: N/A | CP17: N/A | CQ17: N/A | CR17: N/A | CS17: N/A | CT17: N/A | CU17: N/A | CV17: N/A | CW17: N/A | CX17: N/A | CY17: N/A | CZ17: N/A
A18: Water ladder | B18: Basic | C18: =C16*'DHS06'!C23/100 -> 11.17720095 | D18: =D16*'DHS06'!D23/100 -> 16.17415273 | E18: =E16*'DHS06'!E23/100 -> 17.2087062 | F18: =F16*'DHS06'!F23/100 -> 21.90813838 | G18: =G16*'DHS06'!G23/100 -> 49.25815838 | H18: =H16*'DHS06'!H23/100 -> 37.8141979 | I18: =I16*'DHS06'!I23/100 -> 50.6797009 | J18: =J16*'DHS06'!J23/100 -> 64.93313234 | K18: =K16*'DHS06'!K23/100 -> 76.68919649 | L18: =L16*'DHS06'!L23/100 -> 83.43513388 | M18: =M16*'DHS06'!M23/100 -> 10.42985696 | N18: =N16*'DHS06'!N23/100 -> 16.94870276 | O18: =O16*'DHS06'!O23/100 -> 15.40921652 | P18: =P16*'DHS06'!P23/100 -> 17.36825149 | Q18: =Q16*'DHS06'!Q23/100 -> 26.85417801 | R18: N/A | S18: N/A | T18: N/A | U18: N/A | BA18: Water ladder | BB18: Basic | BC18: N/A | BD18: N/A | BE18: N/A | BF18: N/A | BG18: N/A | BH18: N/A | BI18: N/A | BJ18: N/A | BK18: N/A | BL18: N/A | BM18: N/A | BN18: N/A | BO18: N/A | BP18: N/A | BQ18: N/A | BR18: N/A | BS18: N/A | BT18: N/A | BU18: N/A | BV18: N/A | BW18: N/A | BX18: N/A | BY18: N/A | BZ18: N/A | CA18: N/A | CB18: N/A | CC18: N/A | CD18: N/A | CE18: N/A | CF18: N/A | CG18: N/A | CH18: N/A | CI18: N/A | CJ18: N/A | CK18: N/A | CL18: N/A | CM18: N/A | CN18: N/A | CO18: N/A | CP18: N/A | CQ18: N/A | CR18: N/A | CS18: N/A | CT18: N/A | CU18: N/A | CV18: N/A | CW18: N/A | CX18: N/A | CY18: N/A | CZ18: N/A
B19: Limited | C19: =C16*'DHS06'!C22/100 -> 38.72101757 | D19: =D16*'DHS06'!D22/100 -> 36.33933016 | E19: =E16*'DHS06'!E22/100 -> 32.09990756 | F19: =F16*'DHS06'!F22/100 -> 33.69627375 | G19: =G16*'DHS06'!G22/100 -> 29.80790643 | H19: =H16*'DHS06'!H22/100 -> 48.71714741 | I19: =I16*'DHS06'!I22/100 -> 34.496267 | J19: =J16*'DHS06'!J22/100 -> 25.62911639 | K19: =K16*'DHS06'!K22/100 -> 17.52357561 | L19: =L16*'DHS06'!L22/100 -> 11.16252358 | M19: =M16*'DHS06'!M22/100 -> 38.53660763 | N19: =N16*'DHS06'!N22/100 -> 36.51723654 | O19: =O16*'DHS06'!O22/100 -> 32.74458511 | P19: =P16*'DHS06'!P22/100 -> 31.69460582 | Q19: =Q16*'DHS06'!Q22/100 -> 35.30827108 | R19: N/A | S19: N/A | T19: N/A | U19: N/A | BB19: Limited | BC19: N/A | BD19: N/A | BE19: N/A | BF19: N/A | BG19: N/A | BH19: N/A | BI19: N/A | BJ19: N/A | BK19: N/A | BL19: N/A | BM19: N/A | BN19: N/A | BO19: N/A | BP19: N/A | BQ19: N/A | BR19: N/A | BS19: N/A | BT19: N/A | BU19: N/A | BV19: N/A | BW19: N/A | BX19: N/A | BY19: N/A | BZ19: N/A | CA19: N/A | CB19: N/A | CC19: N/A | CD19: N/A | CE19: N/A | CF19: N/A | CG19: N/A | CH19: N/A | CI19: N/A | CJ19: N/A | CK19: N/A | CL19: N/A | CM19: N/A | CN19: N/A | CO19: N/A | CP19: N/A | CQ19: N/A | CR19: N/A | CS19: N/A | CT19: N/A | CU19: N/A | CV19: N/A | CW19: N/A | CX19: N/A | CY19: N/A | CZ19: N/A
B20: Unimproved | C20: =100-(C18+C19+C21) -> 33.42638871 | D20: =100-(D18+D19+D21) -> 30.46967367 | E20: 33.64095972 | F20: 30.73874219 | G20: 17.55752258 | H20: 10.62138279 | I20: 13.55687448 | J20: 8.587490341 | K20: 5.661567553 | L20: 5.402342541 | M20: 34.02067416 | N20: 28.74257148 | O20: 34.46655418 | P20: 35.87476031 | Q20: 27.98345887 | R20: N/A | S20: N/A | T20: N/A | U20: N/A | BB20: Unimproved | BC20: N/A | BD20: N/A | BE20: N/A | BF20: N/A | BG20: N/A | BH20: N/A | BI20: N/A | BJ20: N/A | BK20: N/A | BL20: N/A | BM20: N/A | BN20: N/A | BO20: N/A | BP20: N/A | BQ20: N/A | BR20: N/A | BS20: N/A | BT20: N/A | BU20: N/A | BV20: N/A | BW20: N/A | BX20: N/A | BY20: N/A | BZ20: N/A | CA20: N/A | CB20: N/A | CC20: N/A | CD20: N/A | CE20: N/A | CF20: N/A | CG20: N/A | CH20: N/A | CI20: N/A | CJ20: N/A | CK20: N/A | CL20: N/A | CM20: N/A | CN20: N/A | CO20: N/A | CP20: N/A | CQ20: N/A | CR20: N/A | CS20: N/A | CT20: N/A | CU20: N/A | CV20: N/A | CW20: N/A | CX20: N/A | CY20: N/A | CZ20: N/A
B21: Surface water | C21: =C68+C69+C70 -> 16.67539278 | D21: 17.01684344 | E21: 17.05042653 | F21: 13.65684568 | G21: 3.376412604 | H21: 2.8472719 | I21: 1.267157621 | J21: 0.8502609347 | K21: 0.125660346 | L21: 0 | M21: 17.01286125 | N21: 17.79148923 | O21: 17.37964418 | P21: 15.06238238 | Q21: 9.85409204 | R21: N/A | S21: N/A | T21: N/A | U21: N/A | BB21: Surface water | BC21: N/A | BD21: N/A | BE21: N/A | BF21: N/A | BG21: N/A | BH21: N/A | BI21: N/A | BJ21: N/A | BK21: N/A | BL21: N/A | BM21: N/A | BN21: N/A | BO21: N/A | BP21: N/A | BQ21: N/A | BR21: N/A | BS21: N/A | BT21: N/A | BU21: N/A | BV21: N/A | BW21: N/A | BX21: N/A | BY21: N/A | BZ21: N/A | CA21: N/A | CB21: N/A | CC21: N/A | CD21: N/A | CE21: N/A | CF21: N/A | CG21: N/A | CH21: N/A | CI21: N/A | CJ21: N/A | CK21: N/A | CL21: N/A | CM21: N/A | CN21: N/A | CO21: N/A | CP21: N/A | CQ21: N/A | CR21: N/A | CS21: N/A | CT21: N/A | CU21: N/A | CV21: N/A | CW21: N/A | CX21: N/A | CY21: N/A | CZ21: N/A
A22: Improved water point at more than 30 minutes | B22: Yes | C22: N/A | D22: N/A | E22: N/A | F22: N/A | G22: N/A | H22: N/A | I22: N/A | J22: N/A | K22: N/A | L22: N/A | M22: N/A | N22: N/A | O22: N/A | P22: N/A | Q22: N/A | R22: N/A | S22: N/A | T22: N/A | U22: N/A | BA22: Improved water point at more than 30 minutes | BB22: Yes | BC22: N/A | BD22: N/A | BE22: N/A | BF22: N/A | BG22: N/A | BH22: N/A | BI22: N/A | BJ22: N/A | BK22: N/A | BL22: N/A | BM22: N/A | BN22: N/A | BO22: N/A | BP22: N/A | BQ22: N/A | BR22: N/A | BS22: N/A | BT22: N/A | BU22: N/A | BV22: N/A | BW22: N/A | BX22: N/A | BY22: N/A | BZ22: N/A | CA22: N/A | CB22: N/A | CC22: N/A | CD22: N/A | CE22: N/A | CF22: N/A | CG22: N/A | CH22: N/A | CI22: N/A | CJ22: N/A | CK22: N/A | CL22: N/A | CM22: N/A | CN22: N/A | CO22: N/A | CP22: N/A | CQ22: N/A | CR22: N/A | CS22: N/A | CT22: N/A | CU22: N/A | CV22: N/A | CW22: N/A | CX22: N/A | CY22: N/A | CZ22: N/A
B23: No | C23: N/A | D23: N/A | E23: N/A | F23: N/A | G23: N/A | H23: N/A | I23: N/A | J23: N/A | K23: N/A | L23: N/A | M23: N/A | N23: N/A | O23: N/A | P23: N/A | Q23: N/A | R23: N/A | S23: N/A | T23: N/A | U23: N/A | BB23: No | BC23: N/A | BD23: N/A | BE23: N/A | BF23: N/A | BG23: N/A | BH23: N/A | BI23: N/A | BJ23: N/A | BK23: N/A | BL23: N/A | BM23: N/A | BN23: N/A | BO23: N/A | BP23: N/A | BQ23: N/A | BR23: N/A | BS23: N/A | BT23: N/A | BU23: N/A | BV23: N/A | BW23: N/A | BX23: N/A | BY23: N/A | BZ23: N/A | CA23: N/A | CB23: N/A | CC23: N/A | CD23: N/A | CE23: N/A | CF23: N/A | CG23: N/A | CH23: N/A | CI23: N/A | CJ23: N/A | CK23: N/A | CL23: N/A | CM23: N/A | CN23: N/A | CO23: N/A | CP23: N/A | CQ23: N/A | CR23: N/A | CS23: N/A | CT23: N/A | CU23: N/A | CV23: N/A | CW23: N/A | CX23: N/A | CY23: N/A | CZ23: N/A
A24: Manually calculated ratios | B24: Improved wells
B25: Improved springs
B26: Other
C27: NATIONAL wealth index quintile | H27: URBAN wealth index quintile | M27: RURAL wealth index quintile | R27: REGIONS | BA27: Raw numbers of respondents: | BB27: Use of drinking water sources | BC27: NATIONAL wealth index quintile | BH27: URBAN wealth index quintile | BM27: RURAL wealth index quintile | BR27: SUB-REGIONS:
A28: Percentage based on weighted population | C28: Poorest | D28: Poor | E28: Middle | F28: Rich | G28: Richest | H28: Poorest | I28: Poor | J28: Middle | K28: Rich | L28: Richest | M28: Poorest | N28: Poor | O28: Middle | P28: Rich | Q28: Richest | R28: Central | S28: Eastern | T28: Northern | U28: Western | BA28: Water data, raw numbers (weighted) | BC28: Poorest | BD28: Poor | BE28: Middle | BF28: Rich | BG28: Richest | BH28: Poorest | BI28: Poor | BJ28: Middle | BK28: Rich | BL28: Richest | BM28: Poorest | BN28: Poor | BO28: Middle | BP28: Rich | BQ28: Richest
A29: Piped water | B29: Yes | C29: 0.536881648 | D29: 1.386869541 | E29: 2.531122033 | F29: 5.641987979 | G29: 36.46174508 | H29: 43.4104061 | I29: 54.31975405 | J29: 57.56433456 | K29: 74.31712746 | L29: 80.6254313 | M29: 0.4675262479 | N29: 1.039652332 | O29: 0.8230826639 | P29: 1.306490238 | Q29: 3.257963098 | R29: 20.42896239 | S29: 5.053347037 | T29: 1.159738748 | U29: 5.406410015 | BA29: Piped water | BB29: Yes | BC29: N/A | BD29: N/A | BE29: N/A | BF29: N/A | BG29: N/A | BH29: N/A | BI29: N/A | BJ29: N/A | BK29: N/A | BL29: N/A | BM29: N/A | BN29: N/A | BO29: N/A | BP29: N/A | BQ29: N/A | BR29: N/A | BS29: N/A | BT29: N/A | BU29: N/A | BV29: N/A | BW29: N/A | BX29: N/A | BY29: N/A | BZ29: N/A | CA29: N/A | CB29: N/A | CC29: N/A | CD29: N/A | CE29: N/A | CF29: N/A | CG29: N/A | CH29: N/A | CI29: N/A | CJ29: N/A | CK29: N/A | CL29: N/A | CM29: N/A | CN29: N/A | CO29: N/A | CP29: N/A | CQ29: N/A | CR29: N/A | CS29: N/A | CT29: N/A | CU29: N/A | CV29: N/A | CW29: N/A | CX29: N/A | CY29: N/A | CZ29: N/A
B30: No | C30: 99.46311835 | D30: 98.61313046 | E30: 97.46887797 | F30: 94.35801202 | G30: 63.53825492 | H30: 56.5895939 | I30: 45.68024595 | J30: 42.43566544 | K30: 25.68287254 | L30: 19.3745687 | M30: 99.53247375 | N30: 98.96034767 | O30: 99.17691734 | P30: 98.69350976 | Q30: 96.7420369 | R30: 79.57103761 | S30: 94.94665296 | T30: 98.84026125 | U30: 94.59358999 | BB30: No | BC30: N/A | BD30: N/A | BE30: N/A | BF30: N/A | BG30: N/A | BH30: N/A | BI30: N/A | BJ30: N/A | BK30: N/A | BL30: N/A | BM30: N/A | BN30: N/A | BO30: N/A | BP30: N/A | BQ30: N/A | BR30: N/A | BS30: N/A | BT30: N/A | BU30: N/A | BV30: N/A | BW30: N/A | BX30: N/A | BY30: N/A | BZ30: N/A | CA30: N/A | CB30: N/A | CC30: N/A | CD30: N/A | CE30: N/A | CF30: N/A | CG30: N/A | CH30: N/A | CI30: N/A | CJ30: N/A | CK30: N/A | CL30: N/A | CM30: N/A | CN30: N/A | CO30: N/A | CP30: N/A | CQ30: N/A | CR30: N/A | CS30: N/A | CT30: N/A | CU30: N/A | CV30: N/A | CW30: N/A | CX30: N/A | CY30: N/A | CZ30: N/A
A31: Piped water on premises | B31: Yes | C31: 0 | D31: 0 | E31: 0 | F31: 0.2804289317 | G31: 9.889995045 | H31: 1.223051947 | I31: 3.229991304 | J31: 4.800786126 | K31: 15.90360393 | L31: 47.64853551 | M31: 0 | N31: 0 | O31: 0 | P31: 0.04845115945 | Q31: 0.6958411055 | R31: 4.775929171 | S31: 0.8483669092 | T31: 0.417940847 | U31: 0.9715956758 | BA31: Piped water on premises | BB31: Yes | BC31: N/A | BD31: N/A | BE31: N/A | BF31: N/A | BG31: N/A | BH31: N/A | BI31: N/A | BJ31: N/A | BK31: N/A | BL31: N/A | BM31: N/A | BN31: N/A | BO31: N/A | BP31: N/A | BQ31: N/A | BR31: N/A | BS31: N/A | BT31: N/A | BU31: N/A | BV31: N/A | BW31: N/A | BX31: N/A | BY31: N/A | BZ31: N/A | CA31: N/A | CB31: N/A | CC31: N/A | CD31: N/A | CE31: N/A | CF31: N/A | CG31: N/A | CH31: N/A | CI31: N/A | CJ31: N/A | CK31: N/A | CL31: N/A | CM31: N/A | CN31: N/A | CO31: N/A | CP31: N/A | CQ31: N/A | CR31: N/A | CS31: N/A | CT31: N/A | CU31: N/A | CV31: N/A | CW31: N/A | CX31: N/A | CY31: N/A | CZ31: N/A
B32: No | C32: 100 | D32: 100 | E32: 100 | F32: 99.71957107 | G32: 90.11000495 | H32: 98.77694805 | I32: 96.7700087 | J32: 95.19921387 | K32: 84.09639607 | L32: 52.35146449 | M32: 100 | N32: 100 | O32: 100 | P32: 99.95154884 | Q32: 99.30415889 | R32: 95.22407083 | S32: 99.15163309 | T32: 99.58205915 | U32: 99.02840432 | BB32: No | BC32: N/A | BD32: N/A | BE32: N/A | BF32: N/A | BG32: N/A | BH32: N/A | BI32: N/A | BJ32: N/A | BK32: N/A | BL32: N/A | BM32: N/A | BN32: N/A | BO32: N/A | BP32: N/A | BQ32: N/A | BR32: N/A | BS32: N/A | BT32: N/A | BU32: N/A | BV32: N/A | BW32: N/A | BX32: N/A | BY32: N/A | BZ32: N/A | CA32: N/A | CB32: N/A | CC32: N/A | CD32: N/A | CE32: N/A | CF32: N/A | CG32: N/A | CH32: N/A | CI32: N/A | CJ32: N/A | CK32: N/A | CL32: N/A | CM32: N/A | CN32: N/A | CO32: N/A | CP32: N/A | CQ32: N/A | CR32: N/A | CS32: N/A | CT32: N/A | CU32: N/A | CV32: N/A | CW32: N/A | CX32: N/A | CY32: N/A | CZ32: N/A
A33: Piped water into dwelling | B33: Yes | C33: N/A | D33: N/A | E33: N/A | F33: N/A | G33: N/A | H33: N/A | I33: N/A | J33: N/A | K33: N/A | L33: N/A | M33: N/A | N33: N/A | O33: N/A | P33: N/A | Q33: N/A | R33: N/A | S33: N/A | T33: N/A | U33: N/A | V33: N/A | W33: N/A | X33: N/A | Y33: N/A | Z33: N/A | AA33: N/A | AB33: N/A | AC33: N/A | AD33: N/A | AE33: N/A | AF33: N/A | AG33: N/A | AH33: N/A | AI33: N/A | AJ33: N/A | AK33: N/A | AL33: N/A | AM33: N/A | AN33: N/A | AO33: N/A | AP33: N/A | AQ33: N/A | AR33: N/A | AS33: N/A | AT33: N/A | AU33: N/A | AV33: N/A | AW33: N/A | AX33: N/A | AY33: N/A | BA33: Piped water into dwelling | BB33: Yes | BC33: N/A | BD33: N/A | BE33: N/A | BF33: N/A | BG33: N/A | BH33: N/A | BI33: N/A | BJ33: N/A | BK33: N/A | BL33: N/A | BM33: N/A | BN33: N/A | BO33: N/A | BP33: N/A | BQ33: N/A | BR33: N/A | BS33: N/A | BT33: N/A | BU33: N/A | BV33: N/A | BW33: N/A | BX33: N/A | BY33: N/A | BZ33: N/A | CA33: N/A | CB33: N/A | CC33: N/A | CD33: N/A | CE33: N/A | CF33: N/A | CG33: N/A | CH33: N/A | CI33: N/A | CJ33: N/A | CK33: N/A | CL33: N/A | CM33: N/A | CN33: N/A | CO33: N/A | CP33: N/A | CQ33: N/A | CR33: N/A | CS33: N/A | CT33: N/A | CU33: N/A | CV33: N/A | CW33: N/A | CX33: N/A | CY33: N/A | CZ33: N/A
B34: No | C34: N/A | D34: N/A | E34: N/A | F34: N/A | G34: N/A | H34: N/A | I34: N/A | J34: N/A | K34: N/A | L34: N/A | M34: N/A | N34: N/A | O34: N/A | P34: N/A | Q34: N/A | R34: N/A | S34: N/A | T34: N/A | U34: N/A | V34: N/A | W34: N/A | X34: N/A | Y34: N/A | Z34: N/A | AA34: N/A | AB34: N/A | AC34: N/A | AD34: N/A | AE34: N/A | AF34: N/A | AG34: N/A | AH34: N/A | AI34: N/A | AJ34: N/A | AK34: N/A | AL34: N/A | AM34: N/A | AN34: N/A | AO34: N/A | AP34: N/A | AQ34: N/A | AR34: N/A | AS34: N/A | AT34: N/A | AU34: N/A | AV34: N/A | AW34: N/A | AX34: N/A | AY34: N/A | BB34: No | BC34: N/A | BD34: N/A | BE34: N/A | BF34: N/A | BG34: N/A | BH34: N/A | BI34: N/A | BJ34: N/A | BK34: N/A | BL34: N/A | BM34: N/A | BN34: N/A | BO34: N/A | BP34: N/A | BQ34: N/A | BR34: N/A | BS34: N/A | BT34: N/A | BU34: N/A | BV34: N/A | BW34: N/A | BX34: N/A | BY34: N/A | BZ34: N/A | CA34: N/A | CB34: N/A | CC34: N/A | CD34: N/A | CE34: N/A | CF34: N/A | CG34: N/A | CH34: N/A | CI34: N/A | CJ34: N/A | CK34: N/A | CL34: N/A | CM34: N/A | CN34: N/A | CO34: N/A | CP34: N/A | CQ34: N/A | CR34: N/A | CS34: N/A | CT34: N/A | CU34: N/A | CV34: N/A | CW34: N/A | CX34: N/A | CY34: N/A | CZ34: N/A
A35: Water source on premises | B35: Yes | C35: 0.1189772951 | D35: 0.02431591499 | E35: 0.1020340092 | F35: 0.4914108386 | G35: 12.11775477 | H35: 2.323014001 | I35: 5.432606414 | J35: 8.369674853 | K35: 20.06444045 | L35: 52.21701676 | M35: 0.1416698572 | N35: 0.02372304777 | O35: 0.0333013166 | P35: 0.1391914894 | Q35: 1.150198577 | R35: 5.971744492 | S35: 1.080620006 | T35: 0.470430352 | U35: 1.338978421 | BA35: Water source on premises | BB35: Yes | BC35: N/A | BD35: N/A | BE35: N/A | BF35: N/A | BG35: N/A | BH35: N/A | BI35: N/A | BJ35: N/A | BK35: N/A | BL35: N/A | BM35: N/A | BN35: N/A | BO35: N/A | BP35: N/A | BQ35: N/A | BR35: N/A | BS35: N/A | BT35: N/A | BU35: N/A | BV35: N/A | BW35: N/A | BX35: N/A | BY35: N/A | BZ35: N/A | CA35: N/A | CB35: N/A | CC35: N/A | CD35: N/A | CE35: N/A | CF35: N/A | CG35: N/A | CH35: N/A | CI35: N/A | CJ35: N/A | CK35: N/A | CL35: N/A | CM35: N/A | CN35: N/A | CO35: N/A | CP35: N/A | CQ35: N/A | CR35: N/A | CS35: N/A | CT35: N/A | CU35: N/A | CV35: N/A | CW35: N/A | CX35: N/A | CY35: N/A | CZ35: N/A
B36: No | C36: 99.8810227 | D36: 99.97568409 | E36: 99.89796599 | F36: 99.50858916 | G36: 87.88224523 | H36: 97.676986 | I36: 94.56739359 | J36: 91.63032515 | K36: 79.93555955 | L36: 47.78298324 | M36: 99.85833014 | N36: 99.97627695 | O36: 99.96669868 | P36: 99.86080851 | Q36: 98.84980142 | R36: 94.02825551 | S36: 98.91937999 | T36: 99.52956965 | U36: 98.66102158 | BB36: No | BC36: N/A | BD36: N/A | BE36: N/A | BF36: N/A | BG36: N/A | BH36: N/A | BI36: N/A | BJ36: N/A | BK36: N/A | BL36: N/A | BM36: N/A | BN36: N/A | BO36: N/A | BP36: N/A | BQ36: N/A | BR36: N/A | BS36: N/A | BT36: N/A | BU36: N/A | BV36: N/A | BW36: N/A | BX36: N/A | BY36: N/A | BZ36: N/A | CA36: N/A | CB36: N/A | CC36: N/A | CD36: N/A | CE36: N/A | CF36: N/A | CG36: N/A | CH36: N/A | CI36: N/A | CJ36: N/A | CK36: N/A | CL36: N/A | CM36: N/A | CN36: N/A | CO36: N/A | CP36: N/A | CQ36: N/A | CR36: N/A | CS36: N/A | CT36: N/A | CU36: N/A | CV36: N/A | CW36: N/A | CX36: N/A | CY36: N/A | CZ36: N/A
A37: Improved Water source on premises | B37: Yes | C37: N/A | D37: N/A | E37: N/A | F37: N/A | G37: N/A | H37: N/A | I37: N/A | J37: N/A | K37: N/A | L37: N/A | M37: N/A | N37: N/A | O37: N/A | P37: N/A | Q37: N/A | R37: N/A | S37: N/A | T37: N/A | U37: N/A | BA37: Improved water source on premises | BB37: Yes | BC37: N/A | BD37: N/A | BE37: N/A | BF37: N/A | BG37: N/A | BH37: N/A | BI37: N/A | BJ37: N/A | BK37: N/A | BL37: N/A | BM37: N/A | BN37: N/A | BO37: N/A | BP37: N/A | BQ37: N/A | BR37: N/A | BS37: N/A | BT37: N/A | BU37: N/A | BV37: N/A | BW37: N/A | BX37: N/A | BY37: N/A | BZ37: N/A | CA37: N/A | CB37: N/A | CC37: N/A | CD37: N/A | CE37: N/A | CF37: N/A | CG37: N/A | CH37: N/A | CI37: N/A | CJ37: N/A | CK37: N/A | CL37: N/A | CM37: N/A | CN37: N/A | CO37: N/A | CP37: N/A | CQ37: N/A | CR37: N/A | CS37: N/A | CT37: N/A | CU37: N/A | CV37: N/A | CW37: N/A | CX37: N/A | CY37: N/A | CZ37: N/A
B38: No | C38: N/A | D38: N/A | E38: N/A | F38: N/A | G38: N/A | H38: N/A | I38: N/A | J38: N/A | K38: N/A | L38: N/A | M38: N/A | N38: N/A | O38: N/A | P38: N/A | Q38: N/A | R38: N/A | S38: N/A | T38: N/A | U38: N/A | BB38: No | BC38: N/A | BD38: N/A | BE38: N/A | BF38: N/A | BG38: N/A | BH38: N/A | BI38: N/A | BJ38: N/A | BK38: N/A | BL38: N/A | BM38: N/A | BN38: N/A | BO38: N/A | BP38: N/A | BQ38: N/A | BR38: N/A | BS38: N/A | BT38: N/A | BU38: N/A | BV38: N/A | BW38: N/A | BX38: N/A | BY38: N/A | BZ38: N/A | CA38: N/A | CB38: N/A | CC38: N/A | CD38: N/A | CE38: N/A | CF38: N/A | CG38: N/A | CH38: N/A | CI38: N/A | CJ38: N/A | CK38: N/A | CL38: N/A | CM38: N/A | CN38: N/A | CO38: N/A | CP38: N/A | CQ38: N/A | CR38: N/A | CS38: N/A | CT38: N/A | CU38: N/A | CV38: N/A | CW38: N/A | CX38: N/A | CY38: N/A | CZ38: N/A
A39: Piped water on premises available when needed | B39: Yes | C39: N/A | D39: N/A | E39: N/A | F39: N/A | G39: N/A | H39: N/A | I39: N/A | J39: N/A | K39: N/A | L39: N/A | M39: N/A | N39: N/A | O39: N/A | P39: N/A | Q39: N/A | R39: N/A | S39: N/A | T39: N/A | U39: N/A | V39: N/A | W39: N/A | X39: N/A | Y39: N/A | Z39: N/A | AA39: N/A | AB39: N/A | AC39: N/A | AD39: N/A | AE39: N/A | AF39: N/A | AG39: N/A | AH39: N/A | AI39: N/A | AJ39: N/A | AK39: N/A | AL39: N/A | AM39: N/A | AN39: N/A | AO39: N/A | AP39: N/A | AQ39: N/A | AR39: N/A | AS39: N/A | AT39: N/A | AU39: N/A | AV39: N/A | AW39: N/A | AX39: N/A | AY39: N/A | BA39: Piped water on premises available when needed | BB39: Yes | BC39: N/A | BD39: N/A | BE39: N/A | BF39: N/A | BG39: N/A | BH39: N/A | BI39: N/A | BJ39: N/A | BK39: N/A | BL39: N/A | BM39: N/A | BN39: N/A | BO39: N/A | BP39: N/A | BQ39: N/A | BR39: N/A | BS39: N/A | BT39: N/A | BU39: N/A | BV39: N/A | BW39: N/A | BX39: N/A | BY39: N/A | BZ39: N/A | CA39: N/A | CB39: N/A | CC39: N/A | CD39: N/A | CE39: N/A | CF39: N/A | CG39: N/A | CH39: N/A | CI39: N/A | CJ39: N/A | CK39: N/A | CL39: N/A | CM39: N/A | CN39: N/A | CO39: N/A | CP39: N/A | CQ39: N/A | CR39: N/A | CS39: N/A | CT39: N/A | CU39: N/A | CV39: N/A | CW39: N/A | CX39: N/A | CY39: N/A | CZ39: N/A
B40: No | C40: N/A | D40: N/A | E40: N/A | F40: N/A | G40: N/A | H40: N/A | I40: N/A | J40: N/A | K40: N/A | L40: N/A | M40: N/A | N40: N/A | O40: N/A | P40: N/A | Q40: N/A | R40: N/A | S40: N/A | T40: N/A | U40: N/A | V40: N/A | W40: N/A | X40: N/A | Y40: N/A | Z40: N/A | AA40: N/A | AB40: N/A | AC40: N/A | AD40: N/A | AE40: N/A | AF40: N/A | AG40: N/A | AH40: N/A | AI40: N/A | AJ40: N/A | AK40: N/A | AL40: N/A | AM40: N/A | AN40: N/A | AO40: N/A | AP40: N/A | AQ40: N/A | AR40: N/A | AS40: N/A | AT40: N/A | AU40: N/A | AV40: N/A | AW40: N/A | AX40: N/A | AY40: N/A | BB40: No | BC40: N/A | BD40: N/A | BE40: N/A | BF40: N/A | BG40: N/A | BH40: N/A | BI40: N/A | BJ40: N/A | BK40: N/A | BL40: N/A | BM40: N/A | BN40: N/A | BO40: N/A | BP40: N/A | BQ40: N/A | BR40: N/A | BS40: N/A | BT40: N/A | BU40: N/A | BV40: N/A | BW40: N/A | BX40: N/A | BY40: N/A | BZ40: N/A | CA40: N/A | CB40: N/A | CC40: N/A | CD40: N/A | CE40: N/A | CF40: N/A | CG40: N/A | CH40: N/A | CI40: N/A | CJ40: N/A | CK40: N/A | CL40: N/A | CM40: N/A | CN40: N/A | CO40: N/A | CP40: N/A | CQ40: N/A | CR40: N/A | CS40: N/A | CT40: N/A | CU40: N/A | CV40: N/A | CW40: N/A | CX40: N/A | CY40: N/A | CZ40: N/A
A41: Water point at more than 30 minutes | B41: Yes | C41: 50.33950056 | D41: 54.47389637 | E41: 45.61337298 | F41: 44.919048 | G41: 27.46783288 | H41: 28.09330734 | I41: 16.07438912 | J41: 16.25829811 | K41: 10.06320003 | L41: 4.940810898 | M41: 50.06307721 | N41: 55.19675777 | O41: 47.77952286 | P41: 45.79173217 | Q41: 46.05182828 | R41: 41.06779692 | S41: 47.49480694 | T41: 56.43602955 | U41: 38.21451648 | BA41: Water point at more than 30 minutes | BB41: Yes | BC41: N/A | BD41: N/A | BE41: N/A | BF41: N/A | BG41: N/A | BH41: N/A | BI41: N/A | BJ41: N/A | BK41: N/A | BL41: N/A | BM41: N/A | BN41: N/A | BO41: N/A | BP41: N/A | BQ41: N/A | BR41: N/A | BS41: N/A | BT41: N/A | BU41: N/A | BV41: N/A | BW41: N/A | BX41: N/A | BY41: N/A | BZ41: N/A | CA41: N/A | CB41: N/A | CC41: N/A | CD41: N/A | CE41: N/A | CF41: N/A | CG41: N/A | CH41: N/A | CI41: N/A | CJ41: N/A | CK41: N/A | CL41: N/A | CM41: N/A | CN41: N/A | CO41: N/A | CP41: N/A | CQ41: N/A | CR41: N/A | CS41: N/A | CT41: N/A | CU41: N/A | CV41: N/A | CW41: N/A | CX41: N/A | CY41: N/A | CZ41: N/A
B42: No | C42: 49.66049944 | D42: 45.52610363 | E42: 54.38662702 | F42: 55.080952 | G42: 72.53216712 | H42: 71.90669266 | I42: 83.92561088 | J42: 83.74170189 | K42: 89.93679997 | L42: 95.0591891 | M42: 49.93692279 | N42: 44.80324223 | O42: 52.22047714 | P42: 54.20826783 | Q42: 53.94817172 | R42: 58.93220308 | S42: 52.50519306 | T42: 43.56397045 | U42: 61.78548352 | BB42: No | BC42: N/A | BD42: N/A | BE42: N/A | BF42: N/A | BG42: N/A | BH42: N/A | BI42: N/A | BJ42: N/A | BK42: N/A | BL42: N/A | BM42: N/A | BN42: N/A | BO42: N/A | BP42: N/A | BQ42: N/A | BR42: N/A | BS42: N/A | BT42: N/A | BU42: N/A | BV42: N/A | BW42: N/A | BX42: N/A | BY42: N/A | BZ42: N/A | CA42: N/A | CB42: N/A | CC42: N/A | CD42: N/A | CE42: N/A | CF42: N/A | CG42: N/A | CH42: N/A | CI42: N/A | CJ42: N/A | CK42: N/A | CL42: N/A | CM42: N/A | CN42: N/A | CO42: N/A | CP42: N/A | CQ42: N/A | CR42: N/A | CS42: N/A | CT42: N/A | CU42: N/A | CV42: N/A | CW42: N/A | CX42: N/A | CY42: N/A | CZ42: N/A
A43: Water source available when needed | B43: Yes | C43: N/A | D43: N/A | E43: N/A | F43: N/A | G43: N/A | H43: N/A | I43: N/A | J43: N/A | K43: N/A | L43: N/A | M43: N/A | N43: N/A | O43: N/A | P43: N/A | Q43: N/A | R43: N/A | S43: N/A | T43: N/A | U43: N/A | BA43: Water source available when needed | BB43: Yes | BC43: N/A | BD43: N/A | BE43: N/A | BF43: N/A | BG43: N/A | BH43: N/A | BI43: N/A | BJ43: N/A | BK43: N/A | BL43: N/A | BM43: N/A | BN43: N/A | BO43: N/A | BP43: N/A | BQ43: N/A | BR43: N/A | BS43: N/A | BT43: N/A | BU43: N/A | BV43: N/A | BW43: N/A | BX43: N/A | BY43: N/A | BZ43: N/A | CA43: N/A | CB43: N/A | CC43: N/A | CD43: N/A | CE43: N/A | CF43: N/A | CG43: N/A | CH43: N/A | CI43: N/A | CJ43: N/A | CK43: N/A | CL43: N/A | CM43: N/A | CN43: N/A | CO43: N/A | CP43: N/A | CQ43: N/A | CR43: N/A | CS43: N/A | CT43: N/A | CU43: N/A | CV43: N/A | CW43: N/A | CX43: N/A | CY43: N/A | CZ43: N/A
B44: No | C44: N/A | D44: N/A | E44: N/A | F44: N/A | G44: N/A | H44: N/A | I44: N/A | J44: N/A | K44: N/A | L44: N/A | M44: N/A | N44: N/A | O44: N/A | P44: N/A | Q44: N/A | R44: N/A | S44: N/A | T44: N/A | U44: N/A | BB44: No | BC44: N/A | BD44: N/A | BE44: N/A | BF44: N/A | BG44: N/A | BH44: N/A | BI44: N/A | BJ44: N/A | BK44: N/A | BL44: N/A | BM44: N/A | BN44: N/A | BO44: N/A | BP44: N/A | BQ44: N/A | BR44: N/A | BS44: N/A | BT44: N/A | BU44: N/A | BV44: N/A | BW44: N/A | BX44: N/A | BY44: N/A | BZ44: N/A | CA44: N/A | CB44: N/A | CC44: N/A | CD44: N/A | CE44: N/A | CF44: N/A | CG44: N/A | CH44: N/A | CI44: N/A | CJ44: N/A | CK44: N/A | CL44: N/A | CM44: N/A | CN44: N/A | CO44: N/A | CP44: N/A | CQ44: N/A | CR44: N/A | CS44: N/A | CT44: N/A | CU44: N/A | CV44: N/A | CW44: N/A | CX44: N/A | CY44: N/A | CZ44: N/A
A45: Improved water source available when needed | B45: Yes | C45: N/A | D45: N/A | E45: N/A | F45: N/A | G45: N/A | H45: N/A | I45: N/A | J45: N/A | K45: N/A | L45: N/A | M45: N/A | N45: N/A | O45: N/A | P45: N/A | Q45: N/A | R45: N/A | S45: N/A | T45: N/A | U45: N/A | BA45: Improved water source available when needed | BB45: Yes | BC45: N/A | BD45: N/A | BE45: N/A | BF45: N/A | BG45: N/A | BH45: N/A | BI45: N/A | BJ45: N/A | BK45: N/A | BL45: N/A | BM45: N/A | BN45: N/A | BO45: N/A | BP45: N/A | BQ45: N/A | BR45: N/A | BS45: N/A | BT45: N/A | BU45: N/A | BV45: N/A | BW45: N/A | BX45: N/A | BY45: N/A | BZ45: N/A | CA45: N/A | CB45: N/A | CC45: N/A | CD45: N/A | CE45: N/A | CF45: N/A | CG45: N/A | CH45: N/A | CI45: N/A | CJ45: N/A | CK45: N/A | CL45: N/A | CM45: N/A | CN45: N/A | CO45: N/A | CP45: N/A | CQ45: N/A | CR45: N/A | CS45: N/A | CT45: N/A | CU45: N/A | CV45: N/A | CW45: N/A | CX45: N/A | CY45: N/A | CZ45: N/A
B46: No | C46: N/A | D46: N/A | E46: N/A | F46: N/A | G46: N/A | H46: N/A | I46: N/A | J46: N/A | K46: N/A | L46: N/A | M46: N/A | N46: N/A | O46: N/A | P46: N/A | Q46: N/A | R46: N/A | S46: N/A | T46: N/A | U46: N/A | BB46: No | BC46: N/A | BD46: N/A | BE46: N/A | BF46: N/A | BG46: N/A | BH46: N/A | BI46: N/A | BJ46: N/A | BK46: N/A | BL46: N/A | BM46: N/A | BN46: N/A | BO46: N/A | BP46: N/A | BQ46: N/A | BR46: N/A | BS46: N/A | BT46: N/A | BU46: N/A | BV46: N/A | BW46: N/A | BX46: N/A | BY46: N/A | BZ46: N/A | CA46: N/A | CB46: N/A | CC46: N/A | CD46: N/A | CE46: N/A | CF46: N/A | CG46: N/A | CH46: N/A | CI46: N/A | CJ46: N/A | CK46: N/A | CL46: N/A | CM46: N/A | CN46: N/A | CO46: N/A | CP46: N/A | CQ46: N/A | CR46: N/A | CS46: N/A | CT46: N/A | CU46: N/A | CV46: N/A | CW46: N/A | CX46: N/A | CY46: N/A | CZ46: N/A
A47: Microbiological quality at point of collection | B47: Not contaminated (No E. coli in 100 mL) | C47: N/A | D47: N/A | E47: N/A | F47: N/A | G47: N/A | H47: N/A | I47: N/A | J47: N/A | K47: N/A | L47: N/A | M47: N/A | N47: N/A | O47: N/A | P47: N/A | Q47: N/A | R47: N/A | S47: N/A | T47: N/A | U47: N/A | V47: N/A | W47: N/A | X47: N/A | Y47: N/A | Z47: N/A | AA47: N/A | AB47: N/A | AC47: N/A | AD47: N/A | AE47: N/A | AF47: N/A | AG47: N/A | AH47: N/A | AI47: N/A | AJ47: N/A | AK47: N/A | AL47: N/A | AM47: N/A | AN47: N/A | AO47: N/A | AP47: N/A | AQ47: N/A | AR47: N/A | AS47: N/A | AT47: N/A | AU47: N/A | AV47: N/A | AW47: N/A | AX47: N/A | AY47: N/A | BA47: Microbiological quality at point of collection | BB47: Not contaminated (No E. coli in 100 mL) | BC47: N/A | BD47: N/A | BE47: N/A | BF47: N/A | BG47: N/A | BH47: N/A | BI47: N/A | BJ47: N/A | BK47: N/A | BL47: N/A | BM47: N/A | BN47: N/A | BO47: N/A | BP47: N/A | BQ47: N/A | BR47: N/A | BS47: N/A | BT47: N/A | BU47: N/A | BV47: N/A | BW47: N/A | BX47: N/A | BY47: N/A | BZ47: N/A | CA47: N/A | CB47: N/A | CC47: N/A | CD47: N/A | CE47: N/A | CF47: N/A | CG47: N/A | CH47: N/A | CI47: N/A | CJ47: N/A | CK47: N/A | CL47: N/A | CM47: N/A | CN47: N/A | CO47: N/A | CP47: N/A | CQ47: N/A | CR47: N/A | CS47: N/A | CT47: N/A | CU47: N/A | CV47: N/A | CW47: N/A | CX47: N/A | CY47: N/A | CZ47: N/A
B48: Contaminated (E. coli detected in 100 mL) | C48: N/A | D48: N/A | E48: N/A | F48: N/A | G48: N/A | H48: N/A | I48: N/A | J48: N/A | K48: N/A | L48: N/A | M48: N/A | N48: N/A | O48: N/A | P48: N/A | Q48: N/A | R48: N/A | S48: N/A | T48: N/A | U48: N/A | V48: N/A | W48: N/A | X48: N/A | Y48: N/A | Z48: N/A | AA48: N/A | AB48: N/A | AC48: N/A | AD48: N/A | AE48: N/A | AF48: N/A | AG48: N/A | AH48: N/A | AI48: N/A | AJ48: N/A | AK48: N/A | AL48: N/A | AM48: N/A | AN48: N/A | AO48: N/A | AP48: N/A | AQ48: N/A | AR48: N/A | AS48: N/A | AT48: N/A | AU48: N/A | AV48: N/A | AW48: N/A | AX48: N/A | AY48: N/A | BB48: Contaminated (E. coli detected in 100 mL) | BC48: N/A | BD48: N/A | BE48: N/A | BF48: N/A | BG48: N/A | BH48: N/A | BI48: N/A | BJ48: N/A | BK48: N/A | BL48: N/A | BM48: N/A | BN48: N/A | BO48: N/A | BP48: N/A | BQ48: N/A | BR48: N/A | BS48: N/A | BT48: N/A | BU48: N/A | BV48: N/A | BW48: N/A | BX48: N/A | BY48: N/A | BZ48: N/A | CA48: N/A | CB48: N/A | CC48: N/A | CD48: N/A | CE48: N/A | CF48: N/A | CG48: N/A | CH48: N/A | CI48: N/A | CJ48: N/A | CK48: N/A | CL48: N/A | CM48: N/A | CN48: N/A | CO48: N/A | CP48: N/A | CQ48: N/A | CR48: N/A | CS48: N/A | CT48: N/A | CU48: N/A | CV48: N/A | CW48: N/A | CX48: N/A | CY48: N/A | CZ48: N/A
B49: Highly contaminated (>100 CFU/100 mL) | C49: N/A | D49: N/A | E49: N/A | F49: N/A | G49: N/A | H49: N/A | I49: N/A | J49: N/A | K49: N/A | L49: N/A | M49: N/A | N49: N/A | O49: N/A | P49: N/A | Q49: N/A | R49: N/A | S49: N/A | T49: N/A | U49: N/A | V49: N/A | W49: N/A | X49: N/A | Y49: N/A | Z49: N/A | AA49: N/A | AB49: N/A | AC49: N/A | AD49: N/A | AE49: N/A | AF49: N/A | AG49: N/A | AH49: N/A | AI49: N/A | AJ49: N/A | AK49: N/A | AL49: N/A | AM49: N/A | AN49: N/A | AO49: N/A | AP49: N/A | AQ49: N/A | AR49: N/A | AS49: N/A | AT49: N/A | AU49: N/A | AV49: N/A | AW49: N/A | AX49: N/A | AY49: N/A | BB49: Highly contaminated (>100 CFU/100 mL) | BC49: N/A | BD49: N/A | BE49: N/A | BF49: N/A | BG49: N/A | BH49: N/A | BI49: N/A | BJ49: N/A | BK49: N/A | BL49: N/A | BM49: N/A | BN49: N/A | BO49: N/A | BP49: N/A | BQ49: N/A | BR49: N/A | BS49: N/A | BT49: N/A | BU49: N/A | BV49: N/A | BW49: N/A | BX49: N/A | BY49: N/A | BZ49: N/A | CA49: N/A | CB49: N/A | CC49: N/A | CD49: N/A | CE49: N/A | CF49: N/A | CG49: N/A | CH49: N/A | CI49: N/A | CJ49: N/A | CK49: N/A | CL49: N/A | CM49: N/A | CN49: N/A | CO49: N/A | CP49: N/A | CQ49: N/A | CR49: N/A | CS49: N/A | CT49: N/A | CU49: N/A | CV49: N/A | CW49: N/A | CX49: N/A | CY49: N/A | CZ49: N/A
A50: Microbiological quality of improved water sources at point of collection | B50: Not contaminated (No E. coli in 100 mL) | C50: N/A | D50: N/A | E50: N/A | F50: N/A | G50: N/A | H50: N/A | I50: N/A | J50: N/A | K50: N/A | L50: N/A | M50: N/A | N50: N/A | O50: N/A | P50: N/A | Q50: N/A | R50: N/A | S50: N/A | T50: N/A | U50: N/A | V50: N/A | W50: N/A | X50: N/A | Y50: N/A | Z50: N/A | AA50: N/A | AB50: N/A | AC50: N/A | AD50: N/A | AE50: N/A | AF50: N/A | AG50: N/A | AH50: N/A | AI50: N/A | AJ50: N/A | AK50: N/A | AL50: N/A | AM50: N/A | AN50: N/A | AO50: N/A | AP50: N/A | AQ50: N/A | AR50: N/A | AS50: N/A | AT50: N/A | AU50: N/A | AV50: N/A | AW50: N/A | AX50: N/A | AY50: N/A | BA50: Microbiological quality of improved water sources at point of collection | BB50: Not contaminated (No E. coli in 100 mL) | BC50: N/A | BD50: N/A | BE50: N/A | BF50: N/A | BG50: N/A | BH50: N/A | BI50: N/A | BJ50: N/A | BK50: N/A | BL50: N/A | BM50: N/A | BN50: N/A | BO50: N/A | BP50: N/A | BQ50: N/A | BR50: N/A | BS50: N/A | BT50: N/A | BU50: N/A | BV50: N/A | BW50: N/A | BX50: N/A | BY50: N/A | BZ50: N/A | CA50: N/A | CB50: N/A | CC50: N/A | CD50: N/A | CE50: N/A | CF50: N/A | CG50: N/A | CH50: N/A | CI50: N/A | CJ50: N/A | CK50: N/A | CL50: N/A | CM50: N/A | CN50: N/A | CO50: N/A | CP50: N/A | CQ50: N/A | CR50: N/A | CS50: N/A | CT50: N/A | CU50: N/A | CV50: N/A | CW50: N/A | CX50: N/A | CY50: N/A | CZ50: N/A
B51: Contaminated (E. coli detected in 100 mL) | C51: N/A | D51: N/A | E51: N/A | F51: N/A | G51: N/A | H51: N/A | I51: N/A | J51: N/A | K51: N/A | L51: N/A | M51: N/A | N51: N/A | O51: N/A | P51: N/A | Q51: N/A | R51: N/A | S51: N/A | T51: N/A | U51: N/A | V51: N/A | W51: N/A | X51: N/A | Y51: N/A | Z51: N/A | AA51: N/A | AB51: N/A | AC51: N/A | AD51: N/A | AE51: N/A | AF51: N/A | AG51: N/A | AH51: N/A | AI51: N/A | AJ51: N/A | AK51: N/A | AL51: N/A | AM51: N/A | AN51: N/A | AO51: N/A | AP51: N/A | AQ51: N/A | AR51: N/A | AS51: N/A | AT51: N/A | AU51: N/A | AV51: N/A | AW51: N/A | AX51: N/A | AY51: N/A | BB51: Contaminated (E. coli detected in 100 mL) | BC51: N/A | BD51: N/A | BE51: N/A | BF51: N/A | BG51: N/A | BH51: N/A | BI51: N/A | BJ51: N/A | BK51: N/A | BL51: N/A | BM51: N/A | BN51: N/A | BO51: N/A | BP51: N/A | BQ51: N/A | BR51: N/A | BS51: N/A | BT51: N/A | BU51: N/A | BV51: N/A | BW51: N/A | BX51: N/A | BY51: N/A | BZ51: N/A | CA51: N/A | CB51: N/A | CC51: N/A | CD51: N/A | CE51: N/A | CF51: N/A | CG51: N/A | CH51: N/A | CI51: N/A | CJ51: N/A | CK51: N/A | CL51: N/A | CM51: N/A | CN51: N/A | CO51: N/A | CP51: N/A | CQ51: N/A | CR51: N/A | CS51: N/A | CT51: N/A | CU51: N/A | CV51: N/A | CW51: N/A | CX51: N/A | CY51: N/A | CZ51: N/A
B52: Highly contaminated (>100 CFU/100 mL) | C52: N/A | D52: N/A | E52: N/A | F52: N/A | G52: N/A | H52: N/A | I52: N/A | J52: N/A | K52: N/A | L52: N/A | M52: N/A | N52: N/A | O52: N/A | P52: N/A | Q52: N/A | R52: N/A | S52: N/A | T52: N/A | U52: N/A | V52: N/A | W52: N/A | X52: N/A | Y52: N/A | Z52: N/A | AA52: N/A | AB52: N/A | AC52: N/A | AD52: N/A | AE52: N/A | AF52: N/A | AG52: N/A | AH52: N/A | AI52: N/A | AJ52: N/A | AK52: N/A | AL52: N/A | AM52: N/A | AN52: N/A | AO52: N/A | AP52: N/A | AQ52: N/A | AR52: N/A | AS52: N/A | AT52: N/A | AU52: N/A | AV52: N/A | AW52: N/A | AX52: N/A | AY52: N/A | BB52: Highly contaminated (>100 CFU/100 mL) | BC52: N/A | BD52: N/A | BE52: N/A | BF52: N/A | BG52: N/A | BH52: N/A | BI52: N/A | BJ52: N/A | BK52: N/A | BL52: N/A | BM52: N/A | BN52: N/A | BO52: N/A | BP52: N/A | BQ52: N/A | BR52: N/A | BS52: N/A | BT52: N/A | BU52: N/A | BV52: N/A | BW52: N/A | BX52: N/A | BY52: N/A | BZ52: N/A | CA52: N/A | CB52: N/A | CC52: N/A | CD52: N/A | CE52: N/A | CF52: N/A | CG52: N/A | CH52: N/A | CI52: N/A | CJ52: N/A | CK52: N/A | CL52: N/A | CM52: N/A | CN52: N/A | CO52: N/A | CP52: N/A | CQ52: N/A | CR52: N/A | CS52: N/A | CT52: N/A | CU52: N/A | CV52: N/A | CW52: N/A | CX52: N/A | CY52: N/A | CZ52: N/A
A53: Microbiological quality of piped on premises at point of collection | B53: Not contaminated (No E. coli in 100 mL) | C53: N/A | D53: N/A | E53: N/A | F53: N/A | G53: N/A | H53: N/A | I53: N/A | J53: N/A | K53: N/A | L53: N/A | M53: N/A | N53: N/A | O53: N/A | P53: N/A | Q53: N/A | R53: N/A | S53: N/A | T53: N/A | U53: N/A | V53: N/A | W53: N/A | X53: N/A | Y53: N/A | Z53: N/A | AA53: N/A | AB53: N/A | AC53: N/A | AD53: N/A | AE53: N/A | AF53: N/A | AG53: N/A | AH53: N/A | AI53: N/A | AJ53: N/A | AK53: N/A | AL53: N/A | AM53: N/A | AN53: N/A | AO53: N/A | AP53: N/A | AQ53: N/A | AR53: N/A | AS53: N/A | AT53: N/A | AU53: N/A | AV53: N/A | AW53: N/A | AX53: N/A | AY53: N/A | BA53: Microbiological quality of piped on premises at point of collection | BB53: Not contaminated (No E. coli in 100 mL) | BC53: N/A | BD53: N/A | BE53: N/A | BF53: N/A | BG53: N/A | BH53: N/A | BI53: N/A | BJ53: N/A | BK53: N/A | BL53: N/A | BM53: N/A | BN53: N/A | BO53: N/A | BP53: N/A | BQ53: N/A | BR53: N/A | BS53: N/A | BT53: N/A | BU53: N/A | BV53: N/A | BW53: N/A | BX53: N/A | BY53: N/A | BZ53: N/A | CA53: N/A | CB53: N/A | CC53: N/A | CD53: N/A | CE53: N/A | CF53: N/A | CG53: N/A | CH53: N/A | CI53: N/A | CJ53: N/A | CK53: N/A | CL53: N/A | CM53: N/A | CN53: N/A | CO53: N/A | CP53: N/A | CQ53: N/A | CR53: N/A | CS53: N/A | CT53: N/A | CU53: N/A | CV53: N/A | CW53: N/A | CX53: N/A | CY53: N/A | CZ53: N/A
B54: Contaminated (E. coli detected in 100 mL) | C54: N/A | D54: N/A | E54: N/A | F54: N/A | G54: N/A | H54: N/A | I54: N/A | J54: N/A | K54: N/A | L54: N/A | M54: N/A | N54: N/A | O54: N/A | P54: N/A | Q54: N/A | R54: N/A | S54: N/A | T54: N/A | U54: N/A | V54: N/A | W54: N/A | X54: N/A | Y54: N/A | Z54: N/A | AA54: N/A | AB54: N/A | AC54: N/A | AD54: N/A | AE54: N/A | AF54: N/A | AG54: N/A | AH54: N/A | AI54: N/A | AJ54: N/A | AK54: N/A | AL54: N/A | AM54: N/A | AN54: N/A | AO54: N/A | AP54: N/A | AQ54: N/A | AR54: N/A | AS54: N/A | AT54: N/A | AU54: N/A | AV54: N/A | AW54: N/A | AX54: N/A | AY54: N/A | BB54: Contaminated (E. coli detected in 100 mL) | BC54: N/A | BD54: N/A | BE54: N/A | BF54: N/A | BG54: N/A | BH54: N/A | BI54: N/A | BJ54: N/A | BK54: N/A | BL54: N/A | BM54: N/A | BN54: N/A | BO54: N/A | BP54: N/A | BQ54: N/A | BR54: N/A | BS54: N/A | BT54: N/A | BU54: N/A | BV54: N/A | BW54: N/A | BX54: N/A | BY54: N/A | BZ54: N/A | CA54: N/A | CB54: N/A | CC54: N/A | CD54: N/A | CE54: N/A | CF54: N/A | CG54: N/A | CH54: N/A | CI54: N/A | CJ54: N/A | CK54: N/A | CL54: N/A | CM54: N/A | CN54: N/A | CO54: N/A | CP54: N/A | CQ54: N/A | CR54: N/A | CS54: N/A | CT54: N/A | CU54: N/A | CV54: N/A | CW54: N/A | CX54: N/A | CY54: N/A | CZ54: N/A
B55: Highly contaminated (>100 CFU/100 mL) | C55: N/A | D55: N/A | E55: N/A | F55: N/A | G55: N/A | H55: N/A | I55: N/A | J55: N/A | K55: N/A | L55: N/A | M55: N/A | N55: N/A | O55: N/A | P55: N/A | Q55: N/A | R55: N/A | S55: N/A | T55: N/A | U55: N/A | V55: N/A | W55: N/A | X55: N/A | Y55: N/A | Z55: N/A | AA55: N/A | AB55: N/A | AC55: N/A | AD55: N/A | AE55: N/A | AF55: N/A | AG55: N/A | AH55: N/A | AI55: N/A | AJ55: N/A | AK55: N/A | AL55: N/A | AM55: N/A | AN55: N/A | AO55: N/A | AP55: N/A | AQ55: N/A | AR55: N/A | AS55: N/A | AT55: N/A | AU55: N/A | AV55: N/A | AW55: N/A | AX55: N/A | AY55: N/A | BB55: Highly contaminated (>100 CFU/100 mL) | BC55: N/A | BD55: N/A | BE55: N/A | BF55: N/A | BG55: N/A | BH55: N/A | BI55: N/A | BJ55: N/A | BK55: N/A | BL55: N/A | BM55: N/A | BN55: N/A | BO55: N/A | BP55: N/A | BQ55: N/A | BR55: N/A | BS55: N/A | BT55: N/A | BU55: N/A | BV55: N/A | BW55: N/A | BX55: N/A | BY55: N/A | BZ55: N/A | CA55: N/A | CB55: N/A | CC55: N/A | CD55: N/A | CE55: N/A | CF55: N/A | CG55: N/A | CH55: N/A | CI55: N/A | CJ55: N/A | CK55: N/A | CL55: N/A | CM55: N/A | CN55: N/A | CO55: N/A | CP55: N/A | CQ55: N/A | CR55: N/A | CS55: N/A | CT55: N/A | CU55: N/A | CV55: N/A | CW55: N/A | CX55: N/A | CY55: N/A | CZ55: N/A
C56: NATIONAL wealth index quintile | H56: URBAN wealth index quintile | M56: RURAL wealth index quintile | R56: REGIONS | BA56: Raw numbers of respondents: | BB56: Use of drinking water sources | BC56: NATIONAL wealth index quintile | BH56: URBAN wealth index quintile | BM56: RURAL wealth index quintile | BR56: SUB-REGIONS:
A57: Percentage based on weighted population | C57: Poorest | D57: Poor | E57: Middle | F57: Rich | G57: Richest | H57: Poorest | I57: Poor | J57: Middle | K57: Rich | L57: Richest | M57: Poorest | N57: Poor | O57: Middle | P57: Rich | Q57: Richest | R57: Central | S57: Eastern | T57: Northern | U57: Western | BA57: Water data, raw numbers (weighted) | BC57: Poorest | BD57: Poor | BE57: Middle | BF57: Rich | BG57: Richest | BH57: Poorest | BI57: Poor | BJ57: Middle | BK57: Rich | BL57: Richest | BM57: Poorest | BN57: Poor | BO57: Middle | BP57: Rich | BQ57: Richest
A58: Source of drinking water | B58: Piped into dwelling | C58: 0 | D58: 0 | E58: 0 | F58: 0.0876031858 | G58: 5.326302806 | H58: 0 | I58: 0.09366003476 | J58: 1.316701486 | K58: 2.674900421 | L58: 33.91280913 | M58: 0 | N58: 0 | O58: 0 | P58: 0 | Q58: 0.4961606691 | R58: 2.614171157 | S58: 0.4592842816 | T58: 0.300697451 | U58: 0.3652581978
B59: Piped into yard/plot | C59: 0 | D59: 0 | E59: 0 | F59: 0.1928257459 | G59: 4.59160566 | H59: 1.223051947 | I59: 3.136331269 | J59: 3.506761719 | K59: 13.25574027 | L59: 13.73572638 | M59: 0 | N59: 0 | O59: 0 | P59: 0.04845115945 | Q59: 0.2012644949 | R59: 2.1728147 | S59: 0.3896736913 | T59: 0.1185948434 | U59: 0.6072265813
B60: Public tap | C60: 0.5376516798 | D60: 1.390176469 | E60: 2.535418262 | F60: 5.361559048 | G60: 26.64674587 | H60: 42.18735416 | I60: 51.08976274 | J60: 53.01278328 | K60: 58.51282884 | L60: 32.97689579 | M60: 0.4683249197 | N60: 1.042396964 | O60: 0.8246487002 | P60: 1.258039079 | Q60: 2.567954575 | R60: 15.68927133 | S60: 4.207909769 | T60: 0.7441965682 | U60: 4.43887262
B61: Open well in yard/plot | C61: 0 | D61: 0.09088892673 | E61: 0.04755050127 | F61: 0 | G61: 0.1804247331 | H61: 0.3550020239 | I61: 0 | J61: 0 | K61: 0 | L61: 0.06543454713 | M61: 0 | N61: 0.1006277734 | O61: 0 | P61: 0 | Q61: 0.1981320663 | R61: 0.005507388768 | S61: 0.03288637354 | T61: 0.1120224695 | U61: 0.1375095755
B62: Open public well | C62: 28.76995266 | D62: 25.40848397 | E62: 28.97461146 | F62: 28.38166308 | G62: 16.12704915 | H62: 9.306069824 | I62: 12.16939654 | J62: 7.372146587 | K62: 4.891097433 | L62: 4.269256675 | M62: 29.11280302 | N62: 24.67355073 | O62: 29.2873412 | P62: 32.20126062 | Q62: 26.04193554 | R62: 24.10647451 | S62: 21.5163204 | T62: 16.04931958 | U62: 37.89682437
B63: Protected well in yard/plot | C63: 0.2888106166 | D63: 0 | E63: 0.03229560473 | F63: 0.2815200394 | G63: 0.2420514388 | H63: 0.3270637555 | I63: 0.6778874497 | J63: 0 | K63: 0 | L63: 0 | M63: 0.3439896215 | N63: 0 | O63: 0.03620157045 | P63: 0.0969023189 | Q63: 0.3648408752 | R63: 0.05782758206 | S63: 0.3333182104 | T63: 0.03804101201 | U63: 0.2161307563
B64: Protected public well | C64: 17.08464791 | D64: 15.90902191 | E64: 16.7548131 | F64: 16.39524649 | G64: 15.11167768 | H64: 11.93039888 | I64: 12.07950639 | J64: 14.55392758 | K64: 9.315905293 | L64: 3.68244714 | M64: 17.73302321 | N64: 15.66350354 | O64: 16.3239936 | P64: 18.05908748 | Q64: 17.99592213 | R64: 11.28837213 | S64: 12.48340482 | T64: 20.43502754 | U64: 24.12267473
B65: Borehole in yard/plot | C65: 0.07458778792 | D65: 0.3033515186 | E65: 0.1722278232 | F65: 0 | G65: 0.6337731068 | H65: 0 | I65: 0.3589685691 | J65: 0.6885312427 | K65: 0.2224226949 | L65: 0.8621975594 | M65: 0.0888382333 | N65: 0.2546385917 | O65: 0.2739137256 | P65: 0 | Q65: 0.4079423363 | R65: 0.2950639694 | S65: 0.1950719594 | T65: 0.5091302997 | U65: 0.03021293669
B66: Borehole public | C66: 25.68373436 | D66: 28.23359215 | E66: 23.80718641 | F66: 27.39131044 | G66: 23.11879295 | H66: 28.53906339 | I66: 15.11227947 | J66: 16.24348354 | K66: 8.450955711 | L66: 7.472797352 | M66: 23.89078601 | N66: 29.95208719 | O66: 24.78046044 | P66: 22.63390861 | Q66: 34.90200359 | R66: 20.58892451 | S66: 41.41866025 | T66: 40.80823611 | U66: 4.590385385
B67: Spring | C67: 10.53907083 | D67: 10.68571407 | E67: 9.49827243 | F67: 7.097570287 | G67: 2.421325942 | H67: 3.034494907 | I67: 2.100656175 | J67: 0.4696749453 | K67: 0.4250437518 | L67: 0.03702823202 | M67: 10.93708805 | N67: 9.858583962 | O67: 9.973657661 | P67: 9.201920074 | Q67: 5.333309345 | R67: 7.06681652 | S67: 10.71983886 | T67: 5.367704484 | U67: 7.866904112
B68: River, stream | C68: 10.99094071 | D68: 10.10347385 | E68: 10.22050637 | F68: 5.458331803 | G68: 1.447720975 | H68: 0.9674982608 | I68: 0.470502048 | J68: 0.4699430474 | K68: 0 | L68: 0 | M68: 10.61727231 | N68: 11.37455385 | O68: 9.419653027 | P68: 8.715749906 | Q68: 3.446620921 | R68: 2.401673473 | S68: 5.763282516 | T68: 15.16543316 | U68: 11.53851868
B69: Pond, lake | C69: 4.330300513 | D69: 5.275915435 | E69: 5.338030936 | F69: 6.431608826 | G69: 1.584865951 | H69: 1.424289555 | I69: 0.6674646851 | J69: 0.2894635699 | K69: 0.125660346 | L69: 0 | M69: 4.78749 | N69: 5.096112293 | O69: 6.004493049 | P69: 5.122981807 | Q69: 5.032490972 | R69: 10.66367769 | S69: 1.979779292 | T69: 0.3291919871 | U69: 2.650199863
B70: Dam | C70: 1.354151556 | D70: 1.637454162 | E70: 1.491889224 | F70: 1.76690505 | G70: 0.343825678 | H70: 0.4554840838 | I70: 0.1291908882 | J70: 0.09085431727 | K70: 0 | L70: 0 | M70: 1.608098938 | N70: 1.320823089 | O70: 1.955498102 | P70: 1.223650666 | Q70: 1.374980147 | R70: 1.871109262 | S70: 0.2602568791 | T70: 0 | U70: 2.654006952
B71: Rainwater | C71: 0.1245818872 | D71: 0.1201090894 | E71: 0.1645675997 | F71: 0.527144034 | G71: 0.9971101611 | H71: 0.06140751762 | I71: 0.9392785859 | J71: 0.1993879516 | K71: 0.4083961244 | L71: 1.310599056 | M71: 0.1483840058 | N71: 0.01777186465 | O71: 0.1353163665 | P71: 0.5683380079 | Q71: 0.9292605625 | R71: 0.6914048275 | S71: 0 | T71: 0 | U71: 0.6943146813
B72: Tanker truck | C72: 0 | D72: 0 | E72: 0 | F72: 0 | G72: 0.1133264887 | H72: 0 | I72: 0 | J72: 0 | K72: 0.2513206919 | L72: 0.6124186273 | M72: 0 | N72: 0 | O72: 0 | P72: 0 | Q72: 0 | R72: 0.07271178378 | S72: 0 | T72: 0 | U72: 0
B73: Bottled water | C73: 0 | D73: 0 | E73: 0 | F73: 0 | G73: 0.1735157631 | H73: 0 | I73: 0.05178655774 | J73: 0.5709969819 | K73: 0.695258303 | L73: 0 | M73: 0 | N73: 0 | O73: 0 | P73: 0 | Q73: 0 | R73: 0.1041752604 | S73: 0.006157694116 | T73: 0 | U73: 0.001943453734
B74: Gravity flow scheme | C74: 0.1631152217 | D74: 0.7208045664 | E74: 0.6876602829 | F74: 0.5316578575 | G74: 0.2801073455 | H74: 0.06605926747 | I74: 0 | J74: 0 | K74: 0 | L74: 0 | M74: 0.1942793656 | N74: 0.5180619541 | O74: 0.8986645464 | P74: 0.5462975495 | Q74: 0.5472734439 | R74: 0 | S74: 0 | T74: 0 | U74: 1.89162341
B75: Other | C75: 0.05845426724 | D75: 0.1210138903 | E75: 0.2749700062 | F75: 0.09505412033 | G75: 0.6597782969 | H75: 0.12276243 | I75: 0.9233285931 | J75: 1.215343754 | K75: 0.7704701202 | L75: 1.062389514 | M75: 0.06962230648 | N75: 0.1272881953 | O75: 0.08615801208 | P75: 0.3234127169 | Q75: 0.1599083364 | R75: 0.3100039049 | S75: 0.2341550035 | T75: 0.02240449391 | U75: 0.2973937007
A108: =A1026 -> Uganda
A109: =A1034 -> 2001
A110: Use of sanitation facilities
A111: by wealth quintile and sub-national region
A112: Notes:
A113: WHO/UNICEF JMP customised wealth index excludes water,
A114: sanitation and hygiene assets.
A115: Survey used for analysis: | B115: =A1025 -> DHS01
A116: =B1030 -> Ratio of Improved latrines based on: | B116: DHS06
A117: =B1029 -> Ratio of Shared improved based on: | B117: AIS11
A120: Use of sanitation facilities | C120: NATIONAL wealth index quintile | H120: URBAN wealth index quintile | M120: RURAL wealth index quintile | R120: REGIONS | BA120: Raw numbers of respondents: | BB120: Use of sanitation facilities | BC120: NATIONAL wealth index quintile | BH120: URBAN wealth index quintile | BM120: RURAL wealth index quintile | BR120: SUB-REGIONS:
A121: Weighted percentage (used in graphs) | C121: Poorest | D121: Poor | E121: Middle | F121: Rich | G121: Richest | H121: Poorest | I121: Poor | J121: Middle | K121: Rich | L121: Richest | M121: Poorest | N121: Poor | O121: Middle | P121: Rich | Q121: Richest | R121: Central | S121: Eastern | T121: Northern | U121: Western | BA121: Sanitation data, raw numbers (weighted) | BC121: Poorest | BD121: Poor | BE121: Middle | BF121: Rich | BG121: Richest | BH121: Poorest | BI121: Poor | BJ121: Middle | BK121: Rich | BL121: Richest | BM121: Poorest | BN121: Poor | BO121: Middle | BP121: Rich | BQ121: Richest
A122: Sanitation | B122: Improved | C122: =C153+C155+C154*'DHS06'!C130/100 -> 13.5504716 | D122: =D153+D155+D154*'DHS06'!D130/100 -> 7.761161042 | E122: =E153+E155+E154*'DHS06'!E130/100 -> 10.35905014 | F122: =F153+F155+F154*'DHS06'!F130/100 -> 20.67228636 | G122: =G153+G155+G154*'DHS06'!G130/100 -> 63.72181911 | H122: =H153+H155+H154*'DHS06'!H130/100 -> 27.58523065 | I122: =I153+I155+I154*'DHS06'!I130/100 -> 56.12255078 | J122: =J153+J155+J154*'DHS06'!J130/100 -> 67.90203685 | K122: =K153+K155+K154*'DHS06'!K130/100 -> 77.05894157 | L122: =L153+L155+L154*'DHS06'!L130/100 -> 87.50172724 | M122: =M153+M155+M154*'DHS06'!M130/100 -> 14.47266704 | N122: =N153+N155+N154*'DHS06'!N130/100 -> 7.137327731 | O122: =O153+O155+O154*'DHS06'!O130/100 -> 9.03254734 | P122: =P153+P155+P154*'DHS06'!P130/100 -> 13.39817134 | Q122: =Q153+Q155+Q154*'DHS06'!Q130/100 -> 42.92683563 | R122: N/A | S122: N/A | T122: N/A | U122: N/A | BA122: Sanitation | BB122: Improved | BC122: N/A | BD122: N/A | BE122: N/A | BF122: N/A | BG122: N/A | BH122: N/A | BI122: N/A | BJ122: N/A | BK122: N/A | BL122: N/A | BM122: N/A | BN122: N/A | BO122: N/A | BP122: N/A | BQ122: N/A | BR122: N/A | BS122: N/A | BT122: N/A | BU122: N/A | BV122: N/A | BW122: N/A | BX122: N/A | BY122: N/A | BZ122: N/A | CA122: N/A | CB122: N/A | CC122: N/A | CD122: N/A | CE122: N/A | CF122: N/A | CG122: N/A | CH122: N/A | CI122: N/A | CJ122: N/A | CK122: N/A | CL122: N/A | CM122: N/A | CN122: N/A | CO122: N/A | CP122: N/A | CQ122: N/A | CR122: N/A | CS122: N/A | CT122: N/A | CU122: N/A | CV122: N/A | CW122: N/A | CX122: N/A | CY122: N/A | CZ122: N/A
B123: Not Improved | C123: =100-C122 -> 86.4495284 | D123: =100-D122 -> 92.23883896 | E123: 89.64094986 | F123: 79.32771364 | G123: 36.27818089 | H123: 72.41476935 | I123: 43.87744922 | J123: 32.09796315 | K123: 22.94105843 | L123: 12.49827276 | M123: 85.52733296 | N123: 92.86267227 | O123: 90.96745266 | P123: 86.60182866 | Q123: 57.07316437 | R123: N/A | S123: N/A | T123: N/A | U123: N/A | BB123: Not Improved | BC123: N/A | BD123: N/A | BE123: N/A | BF123: N/A | BG123: N/A | BH123: N/A | BI123: N/A | BJ123: N/A | BK123: N/A | BL123: N/A | BM123: N/A | BN123: N/A | BO123: N/A | BP123: N/A | BQ123: N/A | BR123: N/A | BS123: N/A | BT123: N/A | BU123: N/A | BV123: N/A | BW123: N/A | BX123: N/A | BY123: N/A | BZ123: N/A | CA123: N/A | CB123: N/A | CC123: N/A | CD123: N/A | CE123: N/A | CF123: N/A | CG123: N/A | CH123: N/A | CI123: N/A | CJ123: N/A | CK123: N/A | CL123: N/A | CM123: N/A | CN123: N/A | CO123: N/A | CP123: N/A | CQ123: N/A | CR123: N/A | CS123: N/A | CT123: N/A | CU123: N/A | CV123: N/A | CW123: N/A | CX123: N/A | CY123: N/A | CZ123: N/A
A124: Sanitation ladder | B124: Basic | C124: =C122*'AIS11'!C129/100 -> 7.457558388 | D124: =D122*'AIS11'!D129/100 -> 4.845999953 | E124: =E122*'AIS11'!E129/100 -> 7.077251253 | F124: =F122*'AIS11'!F129/100 -> 12.44351387 | G124: =G122*'AIS11'!G129/100 -> 28.11401075 | H124: =H122*'AIS11'!H129/100 -> 9.331183204 | I124: =I122*'AIS11'!I129/100 -> 12.4269346 | J124: =J122*'AIS11'!J129/100 -> 15.36288623 | K124: =K122*'AIS11'!K129/100 -> 25.14152853 | L124: =L122*'AIS11'!L129/100 -> 44.47776107 | M124: =M122*'AIS11'!M129/100 -> 7.880527522 | N124: =N122*'AIS11'!N129/100 -> 4.797272653 | O124: =O122*'AIS11'!O129/100 -> 6.068450206 | P124: =P122*'AIS11'!P129/100 -> 8.764408295 | Q124: =Q122*'AIS11'!Q129/100 -> 28.2964376 | R124: N/A | S124: N/A | T124: N/A | U124: N/A | BA124: Sanitation ladder | BB124: Basic | BC124: N/A | BD124: N/A | BE124: N/A | BF124: N/A | BG124: N/A | BH124: N/A | BI124: N/A | BJ124: N/A | BK124: N/A | BL124: N/A | BM124: N/A | BN124: N/A | BO124: N/A | BP124: N/A | BQ124: N/A | BR124: N/A | BS124: N/A | BT124: N/A | BU124: N/A | BV124: N/A | BW124: N/A | BX124: N/A | BY124: N/A | BZ124: N/A | CA124: N/A | CB124: N/A | CC124: N/A | CD124: N/A | CE124: N/A | CF124: N/A | CG124: N/A | CH124: N/A | CI124: N/A | CJ124: N/A | CK124: N/A | CL124: N/A | CM124: N/A | CN124: N/A | CO124: N/A | CP124: N/A | CQ124: N/A | CR124: N/A | CS124: N/A | CT124: N/A | CU124: N/A | CV124: N/A | CW124: N/A | CX124: N/A | CY124: N/A | CZ124: N/A
B125: Limited | C125: =C122*'AIS11'!C128/100 -> 6.092913208 | D125: =D122*'AIS11'!D128/100 -> 2.915161089 | E125: =E122*'AIS11'!E128/100 -> 3.281798887 | F125: =F122*'AIS11'!F128/100 -> 8.228772495 | G125: =G122*'AIS11'!G128/100 -> 35.60780836 | H125: =H122*'AIS11'!H128/100 -> 18.25404744 | I125: =I122*'AIS11'!I128/100 -> 43.69561618 | J125: =J122*'AIS11'!J128/100 -> 52.53915061 | K125: =K122*'AIS11'!K128/100 -> 51.91741304 | L125: =L122*'AIS11'!L128/100 -> 43.02396617 | M125: =M122*'AIS11'!M128/100 -> 6.592139517 | N125: =N122*'AIS11'!N128/100 -> 2.340055078 | O125: =O122*'AIS11'!O128/100 -> 2.964097134 | P125: =P122*'AIS11'!P128/100 -> 4.633763045 | Q125: =Q122*'AIS11'!Q128/100 -> 14.63039803 | R125: N/A | S125: N/A | T125: N/A | U125: N/A | BB125: Limited | BC125: N/A | BD125: N/A | BE125: N/A | BF125: N/A | BG125: N/A | BH125: N/A | BI125: N/A | BJ125: N/A | BK125: N/A | BL125: N/A | BM125: N/A | BN125: N/A | BO125: N/A | BP125: N/A | BQ125: N/A | BR125: N/A | BS125: N/A | BT125: N/A | BU125: N/A | BV125: N/A | BW125: N/A | BX125: N/A | BY125: N/A | BZ125: N/A | CA125: N/A | CB125: N/A | CC125: N/A | CD125: N/A | CE125: N/A | CF125: N/A | CG125: N/A | CH125: N/A | CI125: N/A | CJ125: N/A | CK125: N/A | CL125: N/A | CM125: N/A | CN125: N/A | CO125: N/A | CP125: N/A | CQ125: N/A | CR125: N/A | CS125: N/A | CT125: N/A | CU125: N/A | CV125: N/A | CW125: N/A | CX125: N/A | CY125: N/A | CZ125: N/A
B126: Unimproved | C126: =100-(C124+C125+C127) -> 54.47858629 | D126: =100-(D124+D125+D127) -> 68.6087473 | E126: 77.81912838 | F126: 73.91911968 | G126: 35.31937759 | H126: 63.22054921 | I126: 42.36554245 | J126: 31.65084723 | K126: 22.84614924 | L126: 12.49827276 | M126: 55.48159282 | N126: 62.53860258 | O126: 78.06115474 | P126: 79.20407851 | Q126: 54.4593273 | R126: N/A | S126: N/A | T126: N/A | U126: N/A | BB126: Unimproved | BC126: N/A | BD126: N/A | BE126: N/A | BF126: N/A | BG126: N/A | BH126: N/A | BI126: N/A | BJ126: N/A | BK126: N/A | BL126: N/A | BM126: N/A | BN126: N/A | BO126: N/A | BP126: N/A | BQ126: N/A | BR126: N/A | BS126: N/A | BT126: N/A | BU126: N/A | BV126: N/A | BW126: N/A | BX126: N/A | BY126: N/A | BZ126: N/A | CA126: N/A | CB126: N/A | CC126: N/A | CD126: N/A | CE126: N/A | CF126: N/A | CG126: N/A | CH126: N/A | CI126: N/A | CJ126: N/A | CK126: N/A | CL126: N/A | CM126: N/A | CN126: N/A | CO126: N/A | CP126: N/A | CQ126: N/A | CR126: N/A | CS126: N/A | CT126: N/A | CU126: N/A | CV126: N/A | CW126: N/A | CX126: N/A | CY126: N/A | CZ126: N/A
B127: Open defecation | C127: =C156 -> 31.97094211 | D127: =D156 -> 23.63009166 | E127: 11.82182148 | F127: 5.40859395 | G127: 0.958803297 | H127: 9.194220139 | I127: 1.511906761 | J127: 0.4471159274 | K127: 0.09490919011 | L127: 0 | M127: 30.04574014 | N127: 30.32406969 | O127: 12.90629792 | P127: 7.39775015 | Q127: 2.613837072 | R127: N/A | S127: N/A | T127: N/A | U127: N/A | BB127: Open defecation | BC127: N/A | BD127: N/A | BE127: N/A | BF127: N/A | BG127: N/A | BH127: N/A | BI127: N/A | BJ127: N/A | BK127: N/A | BL127: N/A | BM127: N/A | BN127: N/A | BO127: N/A | BP127: N/A | BQ127: N/A | BR127: N/A | BS127: N/A | BT127: N/A | BU127: N/A | BV127: N/A | BW127: N/A | BX127: N/A | BY127: N/A | BZ127: N/A | CA127: N/A | CB127: N/A | CC127: N/A | CD127: N/A | CE127: N/A | CF127: N/A | CG127: N/A | CH127: N/A | CI127: N/A | CJ127: N/A | CK127: N/A | CL127: N/A | CM127: N/A | CN127: N/A | CO127: N/A | CP127: N/A | CQ127: N/A | CR127: N/A | CS127: N/A | CT127: N/A | CU127: N/A | CV127: N/A | CW127: N/A | CX127: N/A | CY127: N/A | CZ127: N/A
A128: Shared among Improved Sanitation | B128: Yes | C128: N/A | D128: N/A | E128: N/A | F128: N/A | G128: N/A | H128: N/A | I128: N/A | J128: N/A | K128: N/A | L128: N/A | M128: N/A | N128: N/A | O128: N/A | P128: N/A | Q128: N/A | R128: N/A | S128: N/A | T128: N/A | U128: N/A | BA128: Shared among improved sanitation facilities | BB128: Yes | BC128: N/A | BD128: N/A | BE128: N/A | BF128: N/A | BG128: N/A | BH128: N/A | BI128: N/A | BJ128: N/A | BK128: N/A | BL128: N/A | BM128: N/A | BN128: N/A | BO128: N/A | BP128: N/A | BQ128: N/A | BR128: N/A | BS128: N/A | BT128: N/A | BU128: N/A | BV128: N/A | BW128: N/A | BX128: N/A | BY128: N/A | BZ128: N/A | CA128: N/A | CB128: N/A | CC128: N/A | CD128: N/A | CE128: N/A | CF128: N/A | CG128: N/A | CH128: N/A | CI128: N/A | CJ128: N/A | CK128: N/A | CL128: N/A | CM128: N/A | CN128: N/A | CO128: N/A | CP128: N/A | CQ128: N/A | CR128: N/A | CS128: N/A | CT128: N/A | CU128: N/A | CV128: N/A | CW128: N/A | CX128: N/A | CY128: N/A | CZ128: N/A
B129: No | C129: N/A | D129: N/A | E129: N/A | F129: N/A | G129: N/A | H129: N/A | I129: N/A | J129: N/A | K129: N/A | L129: N/A | M129: N/A | N129: N/A | O129: N/A | P129: N/A | Q129: N/A | R129: N/A | S129: N/A | T129: N/A | U129: N/A | BB129: No | BC129: N/A | BD129: N/A | BE129: N/A | BF129: N/A | BG129: N/A | BH129: N/A | BI129: N/A | BJ129: N/A | BK129: N/A | BL129: N/A | BM129: N/A | BN129: N/A | BO129: N/A | BP129: N/A | BQ129: N/A | BR129: N/A | BS129: N/A | BT129: N/A | BU129: N/A | BV129: N/A | BW129: N/A | BX129: N/A | BY129: N/A | BZ129: N/A | CA129: N/A | CB129: N/A | CC129: N/A | CD129: N/A | CE129: N/A | CF129: N/A | CG129: N/A | CH129: N/A | CI129: N/A | CJ129: N/A | CK129: N/A | CL129: N/A | CM129: N/A | CN129: N/A | CO129: N/A | CP129: N/A | CQ129: N/A | CR129: N/A | CS129: N/A | CT129: N/A | CU129: N/A | CV129: N/A | CW129: N/A | CX129: N/A | CY129: N/A | CZ129: N/A
A130: Manually calculated ratios | B130: Improved latrines
B131: Other
B132: Other
C133: NATIONAL wealth index quintile | H133: URBAN wealth index quintile | M133: RURAL wealth index quintile | R133: REGIONS | BA133: Raw numbers of respondents: | BB133: Use of sanitation facilities | BC133: NATIONAL wealth index quintile | BH133: URBAN wealth index quintile | BM133: RURAL wealth index quintile | BR133: SUB-REGIONS:
A134: Percentage based on weighted population | C134: Poorest | D134: Poor | E134: Middle | F134: Rich | G134: Richest | H134: Poorest | I134: Poor | J134: Middle | K134: Rich | L134: Richest | M134: Poorest | N134: Poor | O134: Middle | P134: Rich | Q134: Richest | R134: Central | S134: Eastern | T134: Northern | U134: Western | BA134: Sanitation data, raw numbers (weighted) | BC134: Poorest | BD134: Poor | BE134: Middle | BF134: Rich | BG134: Richest | BH134: Poorest | BI134: Poor | BJ134: Middle | BK134: Rich | BL134: Richest | BM134: Poorest | BN134: Poor | BO134: Middle | BP134: Rich | BQ134: Richest
A135: Sanitation type | B135: Sewer connection | C135: N/A | D135: N/A | E135: N/A | F135: N/A | G135: N/A | H135: N/A | I135: N/A | J135: N/A | K135: N/A | L135: N/A | M135: N/A | N135: N/A | O135: N/A | P135: N/A | Q135: N/A | R135: N/A | S135: N/A | T135: N/A | U135: N/A | BA135: Sanitation type | BB135: Sewer connection | BC135: N/A | BD135: N/A | BE135: N/A | BF135: N/A | BG135: N/A | BH135: N/A | BI135: N/A | BJ135: N/A | BK135: N/A | BL135: N/A | BM135: N/A | BN135: N/A | BO135: N/A | BP135: N/A | BQ135: N/A | BR135: N/A | BS135: N/A | BT135: N/A | BU135: N/A | BV135: N/A | BW135: N/A | BX135: N/A | BY135: N/A | BZ135: N/A | CA135: N/A | CB135: N/A | CC135: N/A | CD135: N/A | CE135: N/A | CF135: N/A | CG135: N/A | CH135: N/A | CI135: N/A | CJ135: N/A | CK135: N/A | CL135: N/A | CM135: N/A | CN135: N/A | CO135: N/A | CP135: N/A | CQ135: N/A | CR135: N/A | CS135: N/A | CT135: N/A | CU135: N/A | CV135: N/A | CW135: N/A | CX135: N/A | CY135: N/A | CZ135: N/A
B136: Septic tank connection | C136: N/A | D136: N/A | E136: N/A | F136: N/A | G136: N/A | H136: N/A | I136: N/A | J136: N/A | K136: N/A | L136: N/A | M136: N/A | N136: N/A | O136: N/A | P136: N/A | Q136: N/A | R136: N/A | S136: N/A | T136: N/A | U136: N/A | BB136: Septic tank connection | BC136: N/A | BD136: N/A | BE136: N/A | BF136: N/A | BG136: N/A | BH136: N/A | BI136: N/A | BJ136: N/A | BK136: N/A | BL136: N/A | BM136: N/A | BN136: N/A | BO136: N/A | BP136: N/A | BQ136: N/A | BR136: N/A | BS136: N/A | BT136: N/A | BU136: N/A | BV136: N/A | BW136: N/A | BX136: N/A | BY136: N/A | BZ136: N/A | CA136: N/A | CB136: N/A | CC136: N/A | CD136: N/A | CE136: N/A | CF136: N/A | CG136: N/A | CH136: N/A | CI136: N/A | CJ136: N/A | CK136: N/A | CL136: N/A | CM136: N/A | CN136: N/A | CO136: N/A | CP136: N/A | CQ136: N/A | CR136: N/A | CS136: N/A | CT136: N/A | CU136: N/A | CV136: N/A | CW136: N/A | CX136: N/A | CY136: N/A | CZ136: N/A
B137: Improved latrines | C137: N/A | D137: N/A | E137: N/A | F137: N/A | G137: N/A | H137: N/A | I137: N/A | J137: N/A | K137: N/A | L137: N/A | M137: N/A | N137: N/A | O137: N/A | P137: N/A | Q137: N/A | R137: N/A | S137: N/A | T137: N/A | U137: N/A | BB137: Improved latrines | BC137: N/A | BD137: N/A | BE137: N/A | BF137: N/A | BG137: N/A | BH137: N/A | BI137: N/A | BJ137: N/A | BK137: N/A | BL137: N/A | BM137: N/A | BN137: N/A | BO137: N/A | BP137: N/A | BQ137: N/A | BR137: N/A | BS137: N/A | BT137: N/A | BU137: N/A | BV137: N/A | BW137: N/A | BX137: N/A | BY137: N/A | BZ137: N/A | CA137: N/A | CB137: N/A | CC137: N/A | CD137: N/A | CE137: N/A | CF137: N/A | CG137: N/A | CH137: N/A | CI137: N/A | CJ137: N/A | CK137: N/A | CL137: N/A | CM137: N/A | CN137: N/A | CO137: N/A | CP137: N/A | CQ137: N/A | CR137: N/A | CS137: N/A | CT137: N/A | CU137: N/A | CV137: N/A | CW137: N/A | CX137: N/A | CY137: N/A | CZ137: N/A
B138: Unimproved facilities | C138: N/A | D138: N/A | E138: N/A | F138: N/A | G138: N/A | H138: N/A | I138: N/A | J138: N/A | K138: N/A | L138: N/A | M138: N/A | N138: N/A | O138: N/A | P138: N/A | Q138: N/A | R138: N/A | S138: N/A | T138: N/A | U138: N/A | BB138: Unimproved facilities | BC138: N/A | BD138: N/A | BE138: N/A | BF138: N/A | BG138: N/A | BH138: N/A | BI138: N/A | BJ138: N/A | BK138: N/A | BL138: N/A | BM138: N/A | BN138: N/A | BO138: N/A | BP138: N/A | BQ138: N/A | BR138: N/A | BS138: N/A | BT138: N/A | BU138: N/A | BV138: N/A | BW138: N/A | BX138: N/A | BY138: N/A | BZ138: N/A | CA138: N/A | CB138: N/A | CC138: N/A | CD138: N/A | CE138: N/A | CF138: N/A | CG138: N/A | CH138: N/A | CI138: N/A | CJ138: N/A | CK138: N/A | CL138: N/A | CM138: N/A | CN138: N/A | CO138: N/A | CP138: N/A | CQ138: N/A | CR138: N/A | CS138: N/A | CT138: N/A | CU138: N/A | CV138: N/A | CW138: N/A | CX138: N/A | CY138: N/A | CZ138: N/A
B139: Open defecation | C139: =C156 -> 31.97094211 | D139: =D156 -> 23.63009166 | E139: 11.82182148 | F139: 5.40859395 | G139: 0.958803297 | H139: 9.194220139 | I139: 1.511906761 | J139: 0.4471159274 | K139: 0.09490919011 | L139: 0 | M139: 30.04574014 | N139: 30.32406969 | O139: 12.90629792 | P139: 7.39775015 | Q139: 2.613837072 | R139: 5.683324891 | S139: 18.01515734 | T139: 37.51595143 | U139: 8.211625818 | BB139: Open defecation | BC139: N/A | BD139: N/A | BE139: N/A | BF139: N/A | BG139: N/A | BH139: N/A | BI139: N/A | BJ139: N/A | BK139: N/A | BL139: N/A | BM139: N/A | BN139: N/A | BO139: N/A | BP139: N/A | BQ139: N/A | BR139: N/A | BS139: N/A | BT139: N/A | BU139: N/A | BV139: N/A | BW139: N/A | BX139: N/A | BY139: N/A | BZ139: N/A | CA139: N/A | CB139: N/A | CC139: N/A | CD139: N/A | CE139: N/A | CF139: N/A | CG139: N/A | CH139: N/A | CI139: N/A | CJ139: N/A | CK139: N/A | CL139: N/A | CM139: N/A | CN139: N/A | CO139: N/A | CP139: N/A | CQ139: N/A | CR139: N/A | CS139: N/A | CT139: N/A | CU139: N/A | CV139: N/A | CW139: N/A | CX139: N/A | CY139: N/A | CZ139: N/A
A140: Septic tank emptying practices | B140: Not emptied/treated and disposed in situ | C140: N/A | D140: N/A | E140: N/A | F140: N/A | G140: N/A | H140: N/A | I140: N/A | J140: N/A | K140: N/A | L140: N/A | M140: N/A | N140: N/A | O140: N/A | P140: N/A | Q140: N/A | R140: N/A | S140: N/A | T140: N/A | U140: N/A | V140: N/A | W140: N/A | X140: N/A | Y140: N/A | Z140: N/A | AA140: N/A | AB140: N/A | AC140: N/A | AD140: N/A | AE140: N/A | AF140: N/A | AG140: N/A | AH140: N/A | AI140: N/A | AJ140: N/A | AK140: N/A | AL140: N/A | AM140: N/A | AN140: N/A | AO140: N/A | AP140: N/A | AQ140: N/A | AR140: N/A | AS140: N/A | AT140: N/A | AU140: N/A | AV140: N/A | AW140: N/A | AX140: N/A | AY140: N/A | BA140: Septic tank emptying practices | BB140: Not emptied/treated and disposed in situ | BC140: N/A | BD140: N/A | BE140: N/A | BF140: N/A | BG140: N/A | BH140: N/A | BI140: N/A | BJ140: N/A | BK140: N/A | BL140: N/A | BM140: N/A | BN140: N/A | BO140: N/A | BP140: N/A | BQ140: N/A | BR140: N/A | BS140: N/A | BT140: N/A | BU140: N/A | BV140: N/A | BW140: N/A | BX140: N/A | BY140: N/A | BZ140: N/A | CA140: N/A | CB140: N/A | CC140: N/A | CD140: N/A | CE140: N/A | CF140: N/A | CG140: N/A | CH140: N/A | CI140: N/A | CJ140: N/A | CK140: N/A | CL140: N/A | CM140: N/A | CN140: N/A | CO140: N/A | CP140: N/A | CQ140: N/A | CR140: N/A | CS140: N/A | CT140: N/A | CU140: N/A | CV140: N/A | CW140: N/A | CX140: N/A | CY140: N/A | CZ140: N/A
B141: Emptied and buried on site | C141: N/A | D141: N/A | E141: N/A | F141: N/A | G141: N/A | H141: N/A | I141: N/A | J141: N/A | K141: N/A | L141: N/A | M141: N/A | N141: N/A | O141: N/A | P141: N/A | Q141: N/A | R141: N/A | S141: N/A | T141: N/A | U141: N/A | V141: N/A | W141: N/A | X141: N/A | Y141: N/A | Z141: N/A | AA141: N/A | AB141: N/A | AC141: N/A | AD141: N/A | AE141: N/A | AF141: N/A | AG141: N/A | AH141: N/A | AI141: N/A | AJ141: N/A | AK141: N/A | AL141: N/A | AM141: N/A | AN141: N/A | AO141: N/A | AP141: N/A | AQ141: N/A | AR141: N/A | AS141: N/A | AT141: N/A | AU141: N/A | AV141: N/A | AW141: N/A | AX141: N/A | AY141: N/A | BB141: Emptied and buried on site | BC141: N/A | BD141: N/A | BE141: N/A | BF141: N/A | BG141: N/A | BH141: N/A | BI141: N/A | BJ141: N/A | BK141: N/A | BL141: N/A | BM141: N/A | BN141: N/A | BO141: N/A | BP141: N/A | BQ141: N/A | BR141: N/A | BS141: N/A | BT141: N/A | BU141: N/A | BV141: N/A | BW141: N/A | BX141: N/A | BY141: N/A | BZ141: N/A | CA141: N/A | CB141: N/A | CC141: N/A | CD141: N/A | CE141: N/A | CF141: N/A | CG141: N/A | CH141: N/A | CI141: N/A | CJ141: N/A | CK141: N/A | CL141: N/A | CM141: N/A | CN141: N/A | CO141: N/A | CP141: N/A | CQ141: N/A | CR141: N/A | CS141: N/A | CT141: N/A | CU141: N/A | CV141: N/A | CW141: N/A | CX141: N/A | CY141: N/A | CZ141: N/A
B142: Emptied and discharged locally | C142: N/A | D142: N/A | E142: N/A | F142: N/A | G142: N/A | H142: N/A | I142: N/A | J142: N/A | K142: N/A | L142: N/A | M142: N/A | N142: N/A | O142: N/A | P142: N/A | Q142: N/A | R142: N/A | S142: N/A | T142: N/A | U142: N/A | V142: N/A | W142: N/A | X142: N/A | Y142: N/A | Z142: N/A | AA142: N/A | AB142: N/A | AC142: N/A | AD142: N/A | AE142: N/A | AF142: N/A | AG142: N/A | AH142: N/A | AI142: N/A | AJ142: N/A | AK142: N/A | AL142: N/A | AM142: N/A | AN142: N/A | AO142: N/A | AP142: N/A | AQ142: N/A | AR142: N/A | AS142: N/A | AT142: N/A | AU142: N/A | AV142: N/A | AW142: N/A | AX142: N/A | AY142: N/A | BB142: Emptied and discharged locally | BC142: N/A | BD142: N/A | BE142: N/A | BF142: N/A | BG142: N/A | BH142: N/A | BI142: N/A | BJ142: N/A | BK142: N/A | BL142: N/A | BM142: N/A | BN142: N/A | BO142: N/A | BP142: N/A | BQ142: N/A | BR142: N/A | BS142: N/A | BT142: N/A | BU142: N/A | BV142: N/A | BW142: N/A | BX142: N/A | BY142: N/A | BZ142: N/A | CA142: N/A | CB142: N/A | CC142: N/A | CD142: N/A | CE142: N/A | CF142: N/A | CG142: N/A | CH142: N/A | CI142: N/A | CJ142: N/A | CK142: N/A | CL142: N/A | CM142: N/A | CN142: N/A | CO142: N/A | CP142: N/A | CQ142: N/A | CR142: N/A | CS142: N/A | CT142: N/A | CU142: N/A | CV142: N/A | CW142: N/A | CX142: N/A | CY142: N/A | CZ142: N/A
B143: Emptied and removed offsite | C143: N/A | D143: N/A | E143: N/A | F143: N/A | G143: N/A | H143: N/A | I143: N/A | J143: N/A | K143: N/A | L143: N/A | M143: N/A | N143: N/A | O143: N/A | P143: N/A | Q143: N/A | R143: N/A | S143: N/A | T143: N/A | U143: N/A | V143: N/A | W143: N/A | X143: N/A | Y143: N/A | Z143: N/A | AA143: N/A | AB143: N/A | AC143: N/A | AD143: N/A | AE143: N/A | AF143: N/A | AG143: N/A | AH143: N/A | AI143: N/A | AJ143: N/A | AK143: N/A | AL143: N/A | AM143: N/A | AN143: N/A | AO143: N/A | AP143: N/A | AQ143: N/A | AR143: N/A | AS143: N/A | AT143: N/A | AU143: N/A | AV143: N/A | AW143: N/A | AX143: N/A | AY143: N/A | BB143: Emptied and removed offsite | BC143: N/A | BD143: N/A | BE143: N/A | BF143: N/A | BG143: N/A | BH143: N/A | BI143: N/A | BJ143: N/A | BK143: N/A | BL143: N/A | BM143: N/A | BN143: N/A | BO143: N/A | BP143: N/A | BQ143: N/A | BR143: N/A | BS143: N/A | BT143: N/A | BU143: N/A | BV143: N/A | BW143: N/A | BX143: N/A | BY143: N/A | BZ143: N/A | CA143: N/A | CB143: N/A | CC143: N/A | CD143: N/A | CE143: N/A | CF143: N/A | CG143: N/A | CH143: N/A | CI143: N/A | CJ143: N/A | CK143: N/A | CL143: N/A | CM143: N/A | CN143: N/A | CO143: N/A | CP143: N/A | CQ143: N/A | CR143: N/A | CS143: N/A | CT143: N/A | CU143: N/A | CV143: N/A | CW143: N/A | CX143: N/A | CY143: N/A | CZ143: N/A
A144: Latrine emptying practices | B144: Not emptied/treated and disposed in situ | C144: N/A | D144: N/A | E144: N/A | F144: N/A | G144: N/A | H144: N/A | I144: N/A | J144: N/A | K144: N/A | L144: N/A | M144: N/A | N144: N/A | O144: N/A | P144: N/A | Q144: N/A | R144: N/A | S144: N/A | T144: N/A | U144: N/A | V144: N/A | W144: N/A | X144: N/A | Y144: N/A | Z144: N/A | AA144: N/A | AB144: N/A | AC144: N/A | AD144: N/A | AE144: N/A | AF144: N/A | AG144: N/A | AH144: N/A | AI144: N/A | AJ144: N/A | AK144: N/A | AL144: N/A | AM144: N/A | AN144: N/A | AO144: N/A | AP144: N/A | AQ144: N/A | AR144: N/A | AS144: N/A | AT144: N/A | AU144: N/A | AV144: N/A | AW144: N/A | AX144: N/A | AY144: N/A | BA144: Latrine emptying practices | BB144: Not emptied/treated and disposed in situ | BC144: N/A | BD144: N/A | BE144: N/A | BF144: N/A | BG144: N/A | BH144: N/A | BI144: N/A | BJ144: N/A | BK144: N/A | BL144: N/A | BM144: N/A | BN144: N/A | BO144: N/A | BP144: N/A | BQ144: N/A | BR144: N/A | BS144: N/A | BT144: N/A | BU144: N/A | BV144: N/A | BW144: N/A | BX144: N/A | BY144: N/A | BZ144: N/A | CA144: N/A | CB144: N/A | CC144: N/A | CD144: N/A | CE144: N/A | CF144: N/A | CG144: N/A | CH144: N/A | CI144: N/A | CJ144: N/A | CK144: N/A | CL144: N/A | CM144: N/A | CN144: N/A | CO144: N/A | CP144: N/A | CQ144: N/A | CR144: N/A | CS144: N/A | CT144: N/A | CU144: N/A | CV144: N/A | CW144: N/A | CX144: N/A | CY144: N/A | CZ144: N/A
B145: Emptied and buried on site | C145: N/A | D145: N/A | E145: N/A | F145: N/A | G145: N/A | H145: N/A | I145: N/A | J145: N/A | K145: N/A | L145: N/A | M145: N/A | N145: N/A | O145: N/A | P145: N/A | Q145: N/A | R145: N/A | S145: N/A | T145: N/A | U145: N/A | V145: N/A | W145: N/A | X145: N/A | Y145: N/A | Z145: N/A | AA145: N/A | AB145: N/A | AC145: N/A | AD145: N/A | AE145: N/A | AF145: N/A | AG145: N/A | AH145: N/A | AI145: N/A | AJ145: N/A | AK145: N/A | AL145: N/A | AM145: N/A | AN145: N/A | AO145: N/A | AP145: N/A | AQ145: N/A | AR145: N/A | AS145: N/A | AT145: N/A | AU145: N/A | AV145: N/A | AW145: N/A | AX145: N/A | AY145: N/A | BB145: Emptied and buried on site | BC145: N/A | BD145: N/A | BE145: N/A | BF145: N/A | BG145: N/A | BH145: N/A | BI145: N/A | BJ145: N/A | BK145: N/A | BL145: N/A | BM145: N/A | BN145: N/A | BO145: N/A | BP145: N/A | BQ145: N/A | BR145: N/A | BS145: N/A | BT145: N/A | BU145: N/A | BV145: N/A | BW145: N/A | BX145: N/A | BY145: N/A | BZ145: N/A | CA145: N/A | CB145: N/A | CC145: N/A | CD145: N/A | CE145: N/A | CF145: N/A | CG145: N/A | CH145: N/A | CI145: N/A | CJ145: N/A | CK145: N/A | CL145: N/A | CM145: N/A | CN145: N/A | CO145: N/A | CP145: N/A | CQ145: N/A | CR145: N/A | CS145: N/A | CT145: N/A | CU145: N/A | CV145: N/A | CW145: N/A | CX145: N/A | CY145: N/A | CZ145: N/A
B146: Emptied and discharged locally | C146: N/A | D146: N/A | E146: N/A | F146: N/A | G146: N/A | H146: N/A | I146: N/A | J146: N/A | K146: N/A | L146: N/A | M146: N/A | N146: N/A | O146: N/A | P146: N/A | Q146: N/A | R146: N/A | S146: N/A | T146: N/A | U146: N/A | V146: N/A | W146: N/A | X146: N/A | Y146: N/A | Z146: N/A | AA146: N/A | AB146: N/A | AC146: N/A | AD146: N/A | AE146: N/A | AF146: N/A | AG146: N/A | AH146: N/A | AI146: N/A | AJ146: N/A | AK146: N/A | AL146: N/A | AM146: N/A | AN146: N/A | AO146: N/A | AP146: N/A | AQ146: N/A | AR146: N/A | AS146: N/A | AT146: N/A | AU146: N/A | AV146: N/A | AW146: N/A | AX146: N/A | AY146: N/A | BB146: Emptied and discharged locally | BC146: N/A | BD146: N/A | BE146: N/A | BF146: N/A | BG146: N/A | BH146: N/A | BI146: N/A | BJ146: N/A | BK146: N/A | BL146: N/A | BM146: N/A | BN146: N/A | BO146: N/A | BP146: N/A | BQ146: N/A | BR146: N/A | BS146: N/A | BT146: N/A | BU146: N/A | BV146: N/A | BW146: N/A | BX146: N/A | BY146: N/A | BZ146: N/A | CA146: N/A | CB146: N/A | CC146: N/A | CD146: N/A | CE146: N/A | CF146: N/A | CG146: N/A | CH146: N/A | CI146: N/A | CJ146: N/A | CK146: N/A | CL146: N/A | CM146: N/A | CN146: N/A | CO146: N/A | CP146: N/A | CQ146: N/A | CR146: N/A | CS146: N/A | CT146: N/A | CU146: N/A | CV146: N/A | CW146: N/A | CX146: N/A | CY146: N/A | CZ146: N/A
B147: Emptied and removed offsite | C147: N/A | D147: N/A | E147: N/A | F147: N/A | G147: N/A | H147: N/A | I147: N/A | J147: N/A | K147: N/A | L147: N/A | M147: N/A | N147: N/A | O147: N/A | P147: N/A | Q147: N/A | R147: N/A | S147: N/A | T147: N/A | U147: N/A | V147: N/A | W147: N/A | X147: N/A | Y147: N/A | Z147: N/A | AA147: N/A | AB147: N/A | AC147: N/A | AD147: N/A | AE147: N/A | AF147: N/A | AG147: N/A | AH147: N/A | AI147: N/A | AJ147: N/A | AK147: N/A | AL147: N/A | AM147: N/A | AN147: N/A | AO147: N/A | AP147: N/A | AQ147: N/A | AR147: N/A | AS147: N/A | AT147: N/A | AU147: N/A | AV147: N/A | AW147: N/A | AX147: N/A | AY147: N/A | BB147: Emptied and removed offsite | BC147: N/A | BD147: N/A | BE147: N/A | BF147: N/A | BG147: N/A | BH147: N/A | BI147: N/A | BJ147: N/A | BK147: N/A | BL147: N/A | BM147: N/A | BN147: N/A | BO147: N/A | BP147: N/A | BQ147: N/A | BR147: N/A | BS147: N/A | BT147: N/A | BU147: N/A | BV147: N/A | BW147: N/A | BX147: N/A | BY147: N/A | BZ147: N/A | CA147: N/A | CB147: N/A | CC147: N/A | CD147: N/A | CE147: N/A | CF147: N/A | CG147: N/A | CH147: N/A | CI147: N/A | CJ147: N/A | CK147: N/A | CL147: N/A | CM147: N/A | CN147: N/A | CO147: N/A | CP147: N/A | CQ147: N/A | CR147: N/A | CS147: N/A | CT147: N/A | CU147: N/A | CV147: N/A | CW147: N/A | CX147: N/A | CY147: N/A | CZ147: N/A
A148: Shared among improved sanitation facilities | B148: Yes | C148: N/A | D148: N/A | E148: N/A | F148: N/A | G148: N/A | H148: N/A | I148: N/A | J148: N/A | K148: N/A | L148: N/A | M148: N/A | N148: N/A | O148: N/A | P148: N/A | Q148: N/A | R148: N/A | S148: N/A | T148: N/A | U148: N/A | V148: N/A | W148: N/A | X148: N/A | Y148: N/A | Z148: N/A | AA148: N/A | AB148: N/A | AC148: N/A | AD148: N/A | AE148: N/A | AF148: N/A | AG148: N/A | AH148: N/A | AI148: N/A | AJ148: N/A | AK148: N/A | AL148: N/A | AM148: N/A | AN148: N/A | AO148: N/A | AP148: N/A | AQ148: N/A | AR148: N/A | AS148: N/A | AT148: N/A | AU148: N/A | AV148: N/A | AW148: N/A | AX148: N/A | AY148: N/A | BA148: Shared among improved sanitation facilities | BB148: Yes | BC148: N/A | BD148: N/A | BE148: N/A | BF148: N/A | BG148: N/A | BH148: N/A | BI148: N/A | BJ148: N/A | BK148: N/A | BL148: N/A | BM148: N/A | BN148: N/A | BO148: N/A | BP148: N/A | BQ148: N/A | BR148: N/A | BS148: N/A | BT148: N/A | BU148: N/A | BV148: N/A | BW148: N/A | BX148: N/A | BY148: N/A | BZ148: N/A | CA148: N/A | CB148: N/A | CC148: N/A | CD148: N/A | CE148: N/A | CF148: N/A | CG148: N/A | CH148: N/A | CI148: N/A | CJ148: N/A | CK148: N/A | CL148: N/A | CM148: N/A | CN148: N/A | CO148: N/A | CP148: N/A | CQ148: N/A | CR148: N/A | CS148: N/A | CT148: N/A | CU148: N/A | CV148: N/A | CW148: N/A | CX148: N/A | CY148: N/A | CZ148: N/A
B149: No | C149: N/A | D149: N/A | E149: N/A | F149: N/A | G149: N/A | H149: N/A | I149: N/A | J149: N/A | K149: N/A | L149: N/A | M149: N/A | N149: N/A | O149: N/A | P149: N/A | Q149: N/A | R149: N/A | S149: N/A | T149: N/A | U149: N/A | V149: N/A | W149: N/A | X149: N/A | Y149: N/A | Z149: N/A | AA149: N/A | AB149: N/A | AC149: N/A | AD149: N/A | AE149: N/A | AF149: N/A | AG149: N/A | AH149: N/A | AI149: N/A | AJ149: N/A | AK149: N/A | AL149: N/A | AM149: N/A | AN149: N/A | AO149: N/A | AP149: N/A | AQ149: N/A | AR149: N/A | AS149: N/A | AT149: N/A | AU149: N/A | AV149: N/A | AW149: N/A | AX149: N/A | AY149: N/A | BB149: No | BC149: N/A | BD149: N/A | BE149: N/A | BF149: N/A | BG149: N/A | BH149: N/A | BI149: N/A | BJ149: N/A | BK149: N/A | BL149: N/A | BM149: N/A | BN149: N/A | BO149: N/A | BP149: N/A | BQ149: N/A | BR149: N/A | BS149: N/A | BT149: N/A | BU149: N/A | BV149: N/A | BW149: N/A | BX149: N/A | BY149: N/A | BZ149: N/A | CA149: N/A | CB149: N/A | CC149: N/A | CD149: N/A | CE149: N/A | CF149: N/A | CG149: N/A | CH149: N/A | CI149: N/A | CJ149: N/A | CK149: N/A | CL149: N/A | CM149: N/A | CN149: N/A | CO149: N/A | CP149: N/A | CQ149: N/A | CR149: N/A | CS149: N/A | CT149: N/A | CU149: N/A | CV149: N/A | CW149: N/A | CX149: N/A | CY149: N/A | CZ149: N/A
B150: DK/missing | C150: N/A | D150: N/A | E150: N/A | F150: N/A | G150: N/A | H150: N/A | I150: N/A | J150: N/A | K150: N/A | L150: N/A | M150: N/A | N150: N/A | O150: N/A | P150: N/A | Q150: N/A | R150: N/A | S150: N/A | T150: N/A | U150: N/A | V150: N/A | W150: N/A | X150: N/A | Y150: N/A | Z150: N/A | AA150: N/A | AB150: N/A | AC150: N/A | AD150: N/A | AE150: N/A | AF150: N/A | AG150: N/A | AH150: N/A | AI150: N/A | AJ150: N/A | AK150: N/A | AL150: N/A | AM150: N/A | AN150: N/A | AO150: N/A | AP150: N/A | AQ150: N/A | AR150: N/A | AS150: N/A | AT150: N/A | AU150: N/A | AV150: N/A | AW150: N/A | AX150: N/A | AY150: N/A | BB150: DK/missing | BC150: N/A | BD150: N/A | BE150: N/A | BF150: N/A | BG150: N/A | BH150: N/A | BI150: N/A | BJ150: N/A | BK150: N/A | BL150: N/A | BM150: N/A | BN150: N/A | BO150: N/A | BP150: N/A | BQ150: N/A | BR150: N/A | BS150: N/A | BT150: N/A | BU150: N/A | BV150: N/A | BW150: N/A | BX150: N/A | BY150: N/A | BZ150: N/A | CA150: N/A | CB150: N/A | CC150: N/A | CD150: N/A | CE150: N/A | CF150: N/A | CG150: N/A | CH150: N/A | CI150: N/A | CJ150: N/A | CK150: N/A | CL150: N/A | CM150: N/A | CN150: N/A | CO150: N/A | CP150: N/A | CQ150: N/A | CR150: N/A | CS150: N/A | CT150: N/A | CU150: N/A | CV150: N/A | CW150: N/A | CX150: N/A | CY150: N/A | CZ150: N/A
A151: Shared among all sanitation facilities | B151: Yes | C151: 37.77519149 | D151: 27.05482879 | E151: 25.38644677 | F151: 25.66352337 | G151: 45.80804104 | H151: 68.13159245 | I151: 75.32973694 | J151: 70.63956854 | K151: 72.71843003 | L151: 33.9291755 | M151: 37.03682698 | N151: 28.68356437 | O151: 25.59266109 | P151: 22.52250813 | Q151: 23.93343295 | R151: 32.1518588 | S151: 37.23717868 | T151: 44.67827326 | U151: 23.04916834 | BA151: Shared among all sanitation facilities | BB151: Yes | BC151: N/A | BD151: N/A | BE151: N/A | BF151: N/A | BG151: N/A | BH151: N/A | BI151: N/A | BJ151: N/A | BK151: N/A | BL151: N/A | BM151: N/A | BN151: N/A | BO151: N/A | BP151: N/A | BQ151: N/A | BR151: N/A | BS151: N/A | BT151: N/A | BU151: N/A | BV151: N/A | BW151: N/A | BX151: N/A | BY151: N/A | BZ151: N/A | CA151: N/A | CB151: N/A | CC151: N/A | CD151: N/A | CE151: N/A | CF151: N/A | CG151: N/A | CH151: N/A | CI151: N/A | CJ151: N/A | CK151: N/A | CL151: N/A | CM151: N/A | CN151: N/A | CO151: N/A | CP151: N/A | CQ151: N/A | CR151: N/A | CS151: N/A | CT151: N/A | CU151: N/A | CV151: N/A | CW151: N/A | CX151: N/A | CY151: N/A | CZ151: N/A
B152: No | C152: 61.87013343 | D152: 72.07956018 | E152: 73.96181579 | F152: 73.72220075 | G152: 53.71766492 | H152: 31.41486558 | I152: 23.55433262 | J152: 28.86289681 | K152: 26.42657579 | L152: 66.04872128 | M152: 62.7259528 | N152: 70.22890105 | O152: 73.80940591 | P152: 76.80787891 | Q152: 75.66259114 | R152: 67.53707908 | S152: 62.11844697 | T152: 55.06389758 | U152: 75.91673512 | BB152: No | BC152: N/A | BD152: N/A | BE152: N/A | BF152: N/A | BG152: N/A | BH152: N/A | BI152: N/A | BJ152: N/A | BK152: N/A | BL152: N/A | BM152: N/A | BN152: N/A | BO152: N/A | BP152: N/A | BQ152: N/A | BR152: N/A | BS152: N/A | BT152: N/A | BU152: N/A | BV152: N/A | BW152: N/A | BX152: N/A | BY152: N/A | BZ152: N/A | CA152: N/A | CB152: N/A | CC152: N/A | CD152: N/A | CE152: N/A | CF152: N/A | CG152: N/A | CH152: N/A | CI152: N/A | CJ152: N/A | CK152: N/A | CL152: N/A | CM152: N/A | CN152: N/A | CO152: N/A | CP152: N/A | CQ152: N/A | CR152: N/A | CS152: N/A | CT152: N/A | CU152: N/A | CV152: N/A | CW152: N/A | CX152: N/A | CY152: N/A | CZ152: N/A
A153: Type of toilet facility | B153: Flush toilet | C153: 0.411298393 | D153: 0.4343519876 | E153: 0.2827298676 | F153: 0.3136457058 | G153: 7.44911305 | H153: 0.3000331477 | I153: 3.371806139 | J153: 6.081474978 | K153: 9.100641882 | L153: 35.64849379 | M153: 0.3479453077 | N153: 0.4465976721 | O153: 0.4033541935 | P153: 0.3792286821 | Q153: 0.3859111509 | R153: 3.522745027 | S153: 1.031283694 | T153: 1.211104602 | U153: 0.7721586382 | BA153: Type of toilet facility | BB153: Flush toilet | BC153: 33.159324 | BD153: 32.646438 | BE153: 21.546947 | BF153: 25.141177 | BG153: 578.000783 | BH153: 3.067968 | BI153: 34.102822 | BJ153: 62.635968 | BK153: 93.262095 | BL153: 364.459953 | BM153: 23.551691 | BN153: 30.321791 | BO153: 27.428338 | BP153: 25.713798 | BQ153: 25.950245 | BR153: 428.045275 | BS153: 113.445851 | BT153: 74.01241 | BU153: 74.991133
B154: Traditional pit toilet | C154: 65.80545838 | D154: 74.43262572 | E154: 86.98951921 | F154: 93.11981388 | G154: 81.86056926 | H154: 89.02621796 | I154: 88.9253045 | J154: 85.01645777 | K154: 76.78361036 | L154: 49.59025941 | M154: 68.05060459 | N154: 67.37823321 | O154: 85.72891466 | P154: 90.97103488 | Q154: 92.01314651 | R154: 86.30408597 | S154: 78.08175393 | T154: 58.23283713 | U154: 89.69023365 | BB154: Traditional pit toilet | BC154: 5305.307661 | BD154: 5594.449133 | BE154: 6629.503193 | BF154: 7464.287506 | BG154: 6351.826427 | BH154: 910.331375 | BI154: 899.400412 | BJ154: 875.624441 | BK154: 786.867614 | BL154: 506.996557 | BM154: 4606.203263 | BN154: 4574.651489 | BO154: 5829.619936 | BP154: 6168.338328 | BQ154: 6187.340505 | BR154: 10486.72439 | BS154: 8589.344595 | BT154: 3558.695598 | BU154: 8710.609333
B155: Ventilated improved pit latrine | C155: 0.3777122053 | D155: 0.7836168318 | E155: 0.3895299305 | F155: 0.9569169921 | G155: 9.719442943 | H155: 0.8203782981 | I155: 6.098373076 | J155: 8.454951325 | K155: 14.02083857 | L155: 14.7612468 | M155: 0.2787103153 | N155: 1.038129056 | O155: 0.2670848614 | P155: 0.815423331 | Q155: 4.987105263 | R155: 4.33956214 | S155: 1.456552927 | T155: 2.186197394 | U155: 1.325981893 | BB155: Ventilated improved pit latrine | BC155: 30.451569 | BD155: 58.89762 | BE155: 29.686219 | BF155: 76.704444 | BG155: 754.163025 | BH155: 8.388721 | BI155: 61.679623 | BJ155: 87.081516 | BK155: 143.683577 | BL155: 150.914744 | BM155: 18.865319 | BN155: 70.48387 | BO155: 18.161938 | BP155: 55.290203 | BQ155: 335.353366 | BR155: 527.295917 | BS155: 160.227382 | BT155: 133.601786 | BU155: 128.777792
B156: No facility, bush, field | C156: 31.97094211 | D156: 23.63009166 | E156: 11.82182148 | F156: 5.40859395 | G156: 0.958803297 | H156: 9.194220139 | I156: 1.511906761 | J156: 0.4471159274 | K156: 0.09490919011 | L156: 0 | M156: 30.04574014 | N156: 30.32406969 | O156: 12.90629792 | P156: 7.39775015 | Q156: 2.613837072 | R156: 5.683324891 | S156: 18.01515734 | T156: 37.51595143 | U156: 8.211625818 | BB156: No facility, bush, field | BC156: 2577.532142 | BD156: 1776.067209 | BE156: 900.945355 | BF156: 433.541462 | BG156: 74.39665 | BH156: 94.014856 | BI156: 15.291593 | BJ156: 4.605057 | BK156: 0.972616 | BL156: 0 | BM156: 2033.733383 | BN156: 2058.855567 | BO156: 877.636349 | BP156: 501.608296 | BQ156: 175.765101 | BR156: 690.575204 | BS156: 1981.748444 | BT156: 2292.65579 | BU156: 797.50338
B157: Other | C157: 1.43458891 | D157: 0.7193138026 | E157: 0.516399507 | F157: 0.2010294761 | G157: 0.01207145177 | H157: 0.65915046 | I157: 0.09260952228 | J157: 0 | K157: 0 | L157: 0 | M157: 1.276999641 | N157: 0.8129703725 | O157: 0.6943483639 | P157: 0.4365629522 | Q157: 0 | R157: 0.15028197 | S157: 1.4152521 | T157: 0.8539094487 | U157: 0 | BB157: Other | BC157: 115.658119 | BD157: 54.064524 | BE157: 39.354996 | BF157: 16.114098 | BG157: 0.936663 | BH157: 6.740097 | BI157: 0.936663 | BJ157: 0 | BK157: 0 | BL157: 0 | BM157: 86.437438 | BN157: 55.1967 | BO157: 47.216124 | BP157: 29.601378 | BQ157: 0 | BR157: 18.260614 | BS157: 155.684105 | BT157: 52.183681 | BU157: 0
BB158: Total | BC158: 8062.108815 | BD158: 7516.124924 | BE158: 7621.03671 | BF158: 8015.788687 | BG158: 7759.323548 | BH158: 1022.543017 | BI158: 1011.411113 | BJ158: 1029.946982 | BK158: 1024.785902 | BL158: 1022.371254 | BM158: 6768.791094 | BN158: 6789.509417 | BO158: 6800.062685 | BP158: 6780.552003 | BQ158: 6724.409217 | BR158: 12150.9014 | BS158: 11000.45038 | BT158: 6111.149265 | BU158: 9711.881638
A208: =A1026 -> Uganda
A209: =A1034 -> 2001
A210: Access to hygiene facilities
A211: by wealth quintile and sub-national region
A212: Notes:
A213: WHO/UNICEF JMP customised wealth index excludes water,
A214: sanitation and hygiene assets.
A215: Survey used for analysis: | B215: =A1025 -> DHS01
A220: Access to handwashing | C220: NATIONAL wealth index quintile | H220: URBAN wealth index quintile | M220: RURAL wealth index quintile | R220: REGIONS | BA220: Raw numbers of respondents: | BB220: Access to handwashing | BC220: NATIONAL wealth index quintile | BH220: URBAN wealth index quintile | BM220: RURAL wealth index quintile | BR220: SUB-REGIONS:
A221: Weighted percentage (used in graphs) | C221: Poorest | D221: Poor | E221: Middle | F221: Rich | G221: Richest | H221: Poorest | I221: Poor | J221: Middle | K221: Rich | L221: Richest | M221: Poorest | N221: Poor | O221: Middle | P221: Rich | Q221: Richest | R221: Central | S221: Eastern | T221: Northern | U221: Western | BA221: Hygiene data, raw numbers (weighted) | BC221: Poorest | BD221: Poor | BE221: Middle | BF221: Rich | BG221: Richest | BH221: Poorest | BI221: Poor | BJ221: Middle | BK221: Rich | BL221: Richest | BM221: Poorest | BN221: Poor | BO221: Middle | BP221: Rich | BQ221: Richest
A222: Hygiene ladder | B222: Basic | C222: 3.088086954 | D222: 2.296445046 | E222: 4.355589086 | F222: 5.536552703 | G222: 12.67710377 | H222: 6.906425934 | I222: 6.121516088 | J222: 6.094928763 | K222: 8.292482736 | L222: 41.88433451 | M222: 3.461962924 | N222: 1.79452047 | O222: 4.078305495 | P222: 4.893148621 | Q222: 7.581194352 | R222: 9.372457535 | S222: 6.779958019 | T222: 0.3480922504 | U222: 2.865755365 | BA222: Hygiene ladder | BB222: Basic | BC222: 249.092843 | BD222: 172.464333 | BE222: 333.129027 | BF222: 443.52026 | BG222: 990.185915 | BH222: 70.632841 | BI222: 61.913694 | BJ222: 62.835696 | BK222: 84.980194 | BL222: 428.213396 | BM222: 234.476437 | BN222: 121.730247 | BO222: 278.323793 | BP222: 331.667483 | BQ222: 513.618597 | BR222: 1140.390887 | BS222: 747.559561 | BT222: 21.272437 | BU222: 279.169493 | CZ222: N/A
B223: Limited | C223: 13.87007169 | D223: 14.92472717 | E223: 26.13599539 | F223: 24.29746124 | G223: 32.25841337 | H223: 26.15870988 | I223: 30.5469585 | J223: 29.24162724 | K223: 39.95995624 | L223: 30.29346725 | M223: 15.13825704 | N223: 13.33282417 | O223: 23.02379426 | P223: 24.91233018 | Q223: 28.30906967 | R223: 36.93694355 | S223: 18.22235612 | T223: 10.36891379 | U223: 16.0910511 | BB223: Limited | BC223: 1118.794788 | BD223: 1120.855525 | BE223: 1998.962377 | BF223: 1946.41267 | BG223: 2519.647006 | BH223: 267.528243 | BI223: 308.955333 | BJ223: 301.46669 | BK223: 409.503998 | BL223: 309.711701 | BM223: 1025.30404 | BN223: 904.424333 | BO223: 1571.257905 | BP223: 1688.607988 | BQ223: 1917.912135 | BR223: 4494.291243 | BS223: 2009.200721 | BT223: 633.659799 | BU223: 1567.520603 | CZ223: N/A
B224: No facility | C224: 83.04184136 | D224: 82.77882778 | E224: 69.50841553 | F224: 70.16598605 | G224: 55.06448286 | H224: 66.93486419 | I224: 63.33152541 | J224: 64.66344399 | K224: 51.74756102 | L224: 27.82219824 | M224: 81.39978004 | N224: 84.87265537 | O224: 72.89790024 | P224: 70.1945212 | Q224: 64.10973598 | R224: 53.69059891 | S224: 74.99768586 | T224: 89.28299396 | U224: 81.04319353 | BB224: No facility | BC224: 6698.363311 | BD224: 6216.73719 | BE224: 5316.220234 | BF224: 5620.832682 | BG224: 4300.988327 | BH224: 684.550832 | BI224: 640.542086 | BJ224: 666.648072 | BK224: 530.30171 | BL224: 284.446157 | BM224: 5513.152744 | BN224: 5757.286961 | BO224: 4974.914244 | BP224: 4757.926229 | BQ224: 4343.372709 | BR224: 6532.787104 | BS224: 8269.260217 | BT224: 5456.217029 | BU224: 7894.877394 | CZ224: N/A
A225: Place for hand washing | B225: Nowhere | C225: 58.51674705 | D225: 58.71647715 | E225: 45.2259752 | F225: 39.90024326 | G225: 27.93154738 | H225: 48.86626627 | I225: 35.36511112 | J225: 31.86686246 | K225: 20.84404251 | L225: 8.997939314 | M225: 57.75597182 | N225: 59.08397676 | O225: 49.33790325 | P225: 42.27640293 | Q225: 34.28058732 | R225: 30.97937843 | S225: 57.38497468 | T225: 48.0130437 | U225: 50.66889146 | BA225: Observed handwashing place | BB225: Fixed | BC225: N/A | BD225: N/A | BE225: N/A | BF225: N/A | BG225: N/A | BH225: N/A | BI225: N/A | BJ225: N/A | BK225: N/A | BL225: N/A | BM225: N/A | BN225: N/A | BO225: N/A | BP225: N/A | BQ225: N/A | BR225: N/A | BS225: N/A | BT225: N/A | BU225: N/A | BV225: N/A | BW225: N/A | BX225: N/A | BY225: N/A | BZ225: N/A | CA225: N/A | CB225: N/A | CC225: N/A | CD225: N/A | CE225: N/A | CF225: N/A | CG225: N/A | CH225: N/A | CI225: N/A | CJ225: N/A | CK225: N/A | CL225: N/A | CM225: N/A | CN225: N/A | CO225: N/A | CP225: N/A | CQ225: N/A | CR225: N/A | CS225: N/A | CT225: N/A | CU225: N/A | CV225: N/A | CW225: N/A | CX225: N/A | CY225: N/A | CZ225: N/A
B226: In dwelling/yard/plot | C226: 16.941477 | D226: 17.18528056 | E226: 30.49158447 | F226: 29.80539593 | G226: 44.90751863 | H226: 33.06513581 | I226: 36.66847459 | J226: 35.17042436 | K226: 48.25243898 | L226: 72.17780176 | M226: 18.57843326 | N226: 15.0924475 | O226: 27.10209976 | P226: 29.77169506 | Q226: 35.89026402 | R226: 46.28019261 | S226: 24.9533221 | T226: 10.71700604 | U226: 18.94346309 | BB226: Mobile | BC226: N/A | BD226: N/A | BE226: N/A | BF226: N/A | BG226: N/A | BH226: N/A | BI226: N/A | BJ226: N/A | BK226: N/A | BL226: N/A | BM226: N/A | BN226: N/A | BO226: N/A | BP226: N/A | BQ226: N/A | BR226: N/A | BS226: N/A | BT226: N/A | BU226: N/A | BV226: N/A | BW226: N/A | BX226: N/A | BY226: N/A | BZ226: N/A | CA226: N/A | CB226: N/A | CC226: N/A | CD226: N/A | CE226: N/A | CF226: N/A | CG226: N/A | CH226: N/A | CI226: N/A | CJ226: N/A | CK226: N/A | CL226: N/A | CM226: N/A | CN226: N/A | CO226: N/A | CP226: N/A | CQ226: N/A | CR226: N/A | CS226: N/A | CT226: N/A | CU226: N/A | CV226: N/A | CW226: N/A | CX226: N/A | CY226: N/A | CZ226: N/A
B227: Somewhere else | C227: 24.44340656 | D227: 23.8898264 | E227: 24.28244032 | F227: 30.19843669 | G227: 27.09862579 | H227: 18.06859792 | I227: 27.96641429 | J227: 32.49257216 | K227: 30.90351852 | L227: 18.82425892 | M227: 23.54846351 | N227: 25.59288666 | O227: 23.559997 | P227: 27.83855458 | Q227: 29.82914866 | R227: 22.6773565 | S227: 17.46575321 | T227: 41.26995026 | U227: 30.31725714 | BA227: Water / Soap | BB227: Water and soap | BC227: N/A | BD227: N/A | BE227: N/A | BF227: N/A | BG227: N/A | BH227: N/A | BI227: N/A | BJ227: N/A | BK227: N/A | BL227: N/A | BM227: N/A | BN227: N/A | BO227: N/A | BP227: N/A | BQ227: N/A | BR227: N/A | BS227: N/A | BT227: N/A | BU227: N/A | BV227: N/A | BW227: N/A | BX227: N/A | BY227: N/A | BZ227: N/A | CA227: N/A | CB227: N/A | CC227: N/A | CD227: N/A | CE227: N/A | CF227: N/A | CG227: N/A | CH227: N/A | CI227: N/A | CJ227: N/A | CK227: N/A | CL227: N/A | CM227: N/A | CN227: N/A | CO227: N/A | CP227: N/A | CQ227: N/A | CR227: N/A | CS227: N/A | CT227: N/A | CU227: N/A | CV227: N/A | CW227: N/A | CX227: N/A | CY227: N/A | CZ227: N/A
B228: missing | C228: 0.0983693916 | D228: 0.2084158908 | E228: 0 | F228: 0.09592412559 | G228: 0.06230819463 | H228: 0 | I228: 0 | J228: 0.4701410199 | K228: 0 | L228: 0 | M228: 0.1171314043 | N228: 0.2306890785 | O228: 0 | P228: 0.1133474197 | Q228: 0 | R228: 0.06307246325 | S228: 0.1959500069 | T228: 0 | U228: 0.07038831413 | BB228: Water only | BC228: N/A | BD228: N/A | BE228: N/A | BF228: N/A | BG228: N/A | BH228: N/A | BI228: N/A | BJ228: N/A | BK228: N/A | BL228: N/A | BM228: N/A | BN228: N/A | BO228: N/A | BP228: N/A | BQ228: N/A | BR228: N/A | BS228: N/A | BT228: N/A | BU228: N/A | BV228: N/A | BW228: N/A | BX228: N/A | BY228: N/A | BZ228: N/A | CA228: N/A | CB228: N/A | CC228: N/A | CD228: N/A | CE228: N/A | CF228: N/A | CG228: N/A | CH228: N/A | CI228: N/A | CJ228: N/A | CK228: N/A | CL228: N/A | CM228: N/A | CN228: N/A | CO228: N/A | CP228: N/A | CQ228: N/A | CR228: N/A | CS228: N/A | CT228: N/A | CU228: N/A | CV228: N/A | CW228: N/A | CX228: N/A | CY228: N/A | CZ228: N/A
BB229: Soap only | BC229: N/A | BD229: N/A | BE229: N/A | BF229: N/A | BG229: N/A | BH229: N/A | BI229: N/A | BJ229: N/A | BK229: N/A | BL229: N/A | BM229: N/A | BN229: N/A | BO229: N/A | BP229: N/A | BQ229: N/A | BR229: N/A | BS229: N/A | BT229: N/A | BU229: N/A | BV229: N/A | BW229: N/A | BX229: N/A | BY229: N/A | BZ229: N/A | CA229: N/A | CB229: N/A | CC229: N/A | CD229: N/A | CE229: N/A | CF229: N/A | CG229: N/A | CH229: N/A | CI229: N/A | CJ229: N/A | CK229: N/A | CL229: N/A | CM229: N/A | CN229: N/A | CO229: N/A | CP229: N/A | CQ229: N/A | CR229: N/A | CS229: N/A | CT229: N/A | CU229: N/A | CV229: N/A | CW229: N/A | CX229: N/A | CY229: N/A | CZ229: N/A
BB230: Neither | BC230: N/A | BD230: N/A | BE230: N/A | BF230: N/A | BG230: N/A | BH230: N/A | BI230: N/A | BJ230: N/A | BK230: N/A | BL230: N/A | BM230: N/A | BN230: N/A | BO230: N/A | BP230: N/A | BQ230: N/A | BR230: N/A | BS230: N/A | BT230: N/A | BU230: N/A | BV230: N/A | BW230: N/A | BX230: N/A | BY230: N/A | BZ230: N/A | CA230: N/A | CB230: N/A | CC230: N/A | CD230: N/A | CE230: N/A | CF230: N/A | CG230: N/A | CH230: N/A | CI230: N/A | CJ230: N/A | CK230: N/A | CL230: N/A | CM230: N/A | CN230: N/A | CO230: N/A | CP230: N/A | CQ230: N/A | CR230: N/A | CS230: N/A | CT230: N/A | CU230: N/A | CV230: N/A | CW230: N/A | CX230: N/A | CY230: N/A | CZ230: N/A
BA231: Place for hand washing | BB231: Nowhere | BC231: 4724.755373 | BD231: 4418.850517 | BE231: 3459.023525 | BF231: 3199.383947 | BG231: 2183.043453 | BH231: 499.761128 | BI231: 357.686664 | BJ231: 330.083422 | BK231: 213.606809 | BL231: 91.992345 | BM231: 3916.360691 | BN231: 4017.194252 | BO231: 3367.063205 | BP231: 2868.831609 | BQ231: 2322.47669 | BR231: 3771.785297 | BS231: 6339.701718 | BT231: 2934.148767 | BU231: 4939.421033
BB232: In dwelling/yard/plot | BC232: 1367.887631 | BD232: 1293.319858 | BE232: 2332.091404 | BF232: 2389.93293 | BG232: 3509.832921 | BH232: 338.161084 | BI232: 370.869027 | BJ232: 364.302386 | BK232: 494.484192 | BL232: 737.925097 | BM232: 1259.780477 | BN232: 1026.15458 | BO232: 1849.581698 | BP232: 2020.275471 | BQ232: 2431.530732 | BR232: 5634.68213 | BS232: 2756.760282 | BT232: 654.932236 | BU232: 1846.690096
BB233: Somewhere else | BC233: 1973.607938 | BD233: 1797.886673 | BE233: 1857.196709 | BF233: 2421.448735 | BG233: 2117.944874 | BH233: 184.789704 | BI233: 282.855422 | BJ233: 336.56465 | BK233: 316.694901 | BL233: 192.453812 | BM233: 1596.792053 | BN233: 1740.092709 | BO233: 1607.851039 | BP233: 1889.09462 | BQ233: 2020.896019 | BR233: 2761.001807 | BS233: 1929.558499 | BT233: 2522.068262 | BU233: 2955.456361
BB234: missing | BC234: 7.942535 | BD234: 15.684842 | BE234: 0 | BF234: 7.691635 | BG234: 4.869816 | BH234: 0 | BI234: 0 | BJ234: 4.869816 | BK234: 0 | BL234: 0 | BM234: 7.942535 | BN234: 15.684842 | BO234: 0 | BP234: 7.691635 | BQ234: 0 | BR234: 7.679166 | BS234: 21.647907 | BT234: 0 | BU234: 6.861755
BB235: Total | BC235: 8074.193477 | BD235: 7525.74189 | BE235: 7648.311638 | BF235: 8018.457247 | BG235: 7815.691064 | BH235: 1022.711916 | BI235: 1011.411113 | BJ235: 1035.820274 | BK235: 1024.785902 | BL235: 1022.371254 | BM235: 6780.875756 | BN235: 6799.126383 | BO235: 6824.495942 | BP235: 6785.893335 | BQ235: 6774.903441 | BR235: 12175.1484 | BS235: 11047.66841 | BT235: 6111.149265 | BU235: 9748.429245
BA259: Raw numbers of respondents: | BB259: Menstrual health and hygiene | BC259: NATIONAL wealth index quintile | BH259: URBAN wealth index quintile | BM259: RURAL wealth index quintile | BR259: SUB-REGIONS:
BA260: MHH data, raw numbers (weighted) | BC260: Poorest | BD260: Poor | BE260: Middle | BF260: Rich | BG260: Richest | BH260: Poorest | BI260: Poor | BJ260: Middle | BK260: Rich | BL260: Richest | BM260: Poorest | BN260: Poor | BO260: Middle | BP260: Rich | BQ260: Richest
BA261: Private place to wash and change | BB261: Yes | BC261: N/A | BD261: N/A | BE261: N/A | BF261: N/A | BG261: N/A | BH261: N/A | BI261: N/A | BJ261: N/A | BK261: N/A | BL261: N/A | BM261: N/A | BN261: N/A | BO261: N/A | BP261: N/A | BQ261: N/A | BR261: N/A | BS261: N/A | BT261: N/A | BU261: N/A | BV261: N/A | BW261: N/A | BX261: N/A | BY261: N/A | BZ261: N/A | CA261: N/A | CB261: N/A | CC261: N/A | CD261: N/A | CE261: N/A | CF261: N/A | CG261: N/A | CH261: N/A | CI261: N/A | CJ261: N/A | CK261: N/A | CL261: N/A | CM261: N/A | CN261: N/A | CO261: N/A | CP261: N/A | CQ261: N/A | CR261: N/A | CS261: N/A | CT261: N/A | CU261: N/A | CV261: N/A | CW261: N/A | CX261: N/A | CY261: N/A | CZ261: N/A
BB262: No | BC262: N/A | BD262: N/A | BE262: N/A | BF262: N/A | BG262: N/A | BH262: N/A | BI262: N/A | BJ262: N/A | BK262: N/A | BL262: N/A | BM262: N/A | BN262: N/A | BO262: N/A | BP262: N/A | BQ262: N/A | BR262: N/A | BS262: N/A | BT262: N/A | BU262: N/A | BV262: N/A | BW262: N/A | BX262: N/A | BY262: N/A | BZ262: N/A | CA262: N/A | CB262: N/A | CC262: N/A | CD262: N/A | CE262: N/A | CF262: N/A | CG262: N/A | CH262: N/A | CI262: N/A | CJ262: N/A | CK262: N/A | CL262: N/A | CM262: N/A | CN262: N/A | CO262: N/A | CP262: N/A | CQ262: N/A | CR262: N/A | CS262: N/A | CT262: N/A | CU262: N/A | CV262: N/A | CW262: N/A | CX262: N/A | CY262: N/A | CZ262: N/A
BB263: DK/not sure/missing | BC263: N/A | BD263: N/A | BE263: N/A | BF263: N/A | BG263: N/A | BH263: N/A | BI263: N/A | BJ263: N/A | BK263: N/A | BL263: N/A | BM263: N/A | BN263: N/A | BO263: N/A | BP263: N/A | BQ263: N/A | BR263: N/A | BS263: N/A | BT263: N/A | BU263: N/A | BV263: N/A | BW263: N/A | BX263: N/A | BY263: N/A | BZ263: N/A | CA263: N/A | CB263: N/A | CC263: N/A | CD263: N/A | CE263: N/A | CF263: N/A | CG263: N/A | CH263: N/A | CI263: N/A | CJ263: N/A | CK263: N/A | CL263: N/A | CM263: N/A | CN263: N/A | CO263: N/A | CP263: N/A | CQ263: N/A | CR263: N/A | CS263: N/A | CT263: N/A | CU263: N/A | CV263: N/A | CW263: N/A | CX263: N/A | CY263: N/A | CZ263: N/A
BA264: Use of menstrual materials | BB264: Materials reusable | BC264: N/A | BD264: N/A | BE264: N/A | BF264: N/A | BG264: N/A | BH264: N/A | BI264: N/A | BJ264: N/A | BK264: N/A | BL264: N/A | BM264: N/A | BN264: N/A | BO264: N/A | BP264: N/A | BQ264: N/A | BR264: N/A | BS264: N/A | BT264: N/A | BU264: N/A | BV264: N/A | BW264: N/A | BX264: N/A | BY264: N/A | BZ264: N/A | CA264: N/A | CB264: N/A | CC264: N/A | CD264: N/A | CE264: N/A | CF264: N/A | CG264: N/A | CH264: N/A | CI264: N/A | CJ264: N/A | CK264: N/A | CL264: N/A | CM264: N/A | CN264: N/A | CO264: N/A | CP264: N/A | CQ264: N/A | CR264: N/A | CS264: N/A | CT264: N/A | CU264: N/A | CV264: N/A | CW264: N/A | CX264: N/A | CY264: N/A | CZ264: N/A
BB265: Materials not reusable | BC265: N/A | BD265: N/A | BE265: N/A | BF265: N/A | BG265: N/A | BH265: N/A | BI265: N/A | BJ265: N/A | BK265: N/A | BL265: N/A | BM265: N/A | BN265: N/A | BO265: N/A | BP265: N/A | BQ265: N/A | BR265: N/A | BS265: N/A | BT265: N/A | BU265: N/A | BV265: N/A | BW265: N/A | BX265: N/A | BY265: N/A | BZ265: N/A | CA265: N/A | CB265: N/A | CC265: N/A | CD265: N/A | CE265: N/A | CF265: N/A | CG265: N/A | CH265: N/A | CI265: N/A | CJ265: N/A | CK265: N/A | CL265: N/A | CM265: N/A | CN265: N/A | CO265: N/A | CP265: N/A | CQ265: N/A | CR265: N/A | CS265: N/A | CT265: N/A | CU265: N/A | CV265: N/A | CW265: N/A | CX265: N/A | CY265: N/A | CZ265: N/A
BB266: No materials used | BC266: N/A | BD266: N/A | BE266: N/A | BF266: N/A | BG266: N/A | BH266: N/A | BI266: N/A | BJ266: N/A | BK266: N/A | BL266: N/A | BM266: N/A | BN266: N/A | BO266: N/A | BP266: N/A | BQ266: N/A | BR266: N/A | BS266: N/A | BT266: N/A | BU266: N/A | BV266: N/A | BW266: N/A | BX266: N/A | BY266: N/A | BZ266: N/A | CA266: N/A | CB266: N/A | CC266: N/A | CD266: N/A | CE266: N/A | CF266: N/A | CG266: N/A | CH266: N/A | CI266: N/A | CJ266: N/A | CK266: N/A | CL266: N/A | CM266: N/A | CN266: N/A | CO266: N/A | CP266: N/A | CQ266: N/A | CR266: N/A | CS266: N/A | CT266: N/A | CU266: N/A | CV266: N/A | CW266: N/A | CX266: N/A | CY266: N/A | CZ266: N/A
BB267: DK/not sure/missing | BC267: N/A | BD267: N/A | BE267: N/A | BF267: N/A | BG267: N/A | BH267: N/A | BI267: N/A | BJ267: N/A | BK267: N/A | BL267: N/A | BM267: N/A | BN267: N/A | BO267: N/A | BP267: N/A | BQ267: N/A | BR267: N/A | BS267: N/A | BT267: N/A | BU267: N/A | BV267: N/A | BW267: N/A | BX267: N/A | BY267: N/A | BZ267: N/A | CA267: N/A | CB267: N/A | CC267: N/A | CD267: N/A | CE267: N/A | CF267: N/A | CG267: N/A | CH267: N/A | CI267: N/A | CJ267: N/A | CK267: N/A | CL267: N/A | CM267: N/A | CN267: N/A | CO267: N/A | CP267: N/A | CQ267: N/A | CR267: N/A | CS267: N/A | CT267: N/A | CU267: N/A | CV267: N/A | CW267: N/A | CX267: N/A | CY267: N/A | CZ267: N/A
BA268: Use of menstrual materials with private place to wash and change | BB268: Materials reusable | BC268: N/A | BD268: N/A | BE268: N/A | BF268: N/A | BG268: N/A | BH268: N/A | BI268: N/A | BJ268: N/A | BK268: N/A | BL268: N/A | BM268: N/A | BN268: N/A | BO268: N/A | BP268: N/A | BQ268: N/A | BR268: N/A | BS268: N/A | BT268: N/A | BU268: N/A | BV268: N/A | BW268: N/A | BX268: N/A | BY268: N/A | BZ268: N/A | CA268: N/A | CB268: N/A | CC268: N/A | CD268: N/A | CE268: N/A | CF268: N/A | CG268: N/A | CH268: N/A | CI268: N/A | CJ268: N/A | CK268: N/A | CL268: N/A | CM268: N/A | CN268: N/A | CO268: N/A | CP268: N/A | CQ268: N/A | CR268: N/A | CS268: N/A | CT268: N/A | CU268: N/A | CV268: N/A | CW268: N/A | CX268: N/A | CY268: N/A | CZ268: N/A
BB269: Materials not reusable | BC269: N/A | BD269: N/A | BE269: N/A | BF269: N/A | BG269: N/A | BH269: N/A | BI269: N/A | BJ269: N/A | BK269: N/A | BL269: N/A | BM269: N/A | BN269: N/A | BO269: N/A | BP269: N/A | BQ269: N/A | BR269: N/A | BS269: N/A | BT269: N/A | BU269: N/A | BV269: N/A | BW269: N/A | BX269: N/A | BY269: N/A | BZ269: N/A | CA269: N/A | CB269: N/A | CC269: N/A | CD269: N/A | CE269: N/A | CF269: N/A | CG269: N/A | CH269: N/A | CI269: N/A | CJ269: N/A | CK269: N/A | CL269: N/A | CM269: N/A | CN269: N/A | CO269: N/A | CP269: N/A | CQ269: N/A | CR269: N/A | CS269: N/A | CT269: N/A | CU269: N/A | CV269: N/A | CW269: N/A | CX269: N/A | CY269: N/A | CZ269: N/A
BB270: No materials used | BC270: N/A | BD270: N/A | BE270: N/A | BF270: N/A | BG270: N/A | BH270: N/A | BI270: N/A | BJ270: N/A | BK270: N/A | BL270: N/A | BM270: N/A | BN270: N/A | BO270: N/A | BP270: N/A | BQ270: N/A | BR270: N/A | BS270: N/A | BT270: N/A | BU270: N/A | BV270: N/A | BW270: N/A | BX270: N/A | BY270: N/A | BZ270: N/A | CA270: N/A | CB270: N/A | CC270: N/A | CD270: N/A | CE270: N/A | CF270: N/A | CG270: N/A | CH270: N/A | CI270: N/A | CJ270: N/A | CK270: N/A | CL270: N/A | CM270: N/A | CN270: N/A | CO270: N/A | CP270: N/A | CQ270: N/A | CR270: N/A | CS270: N/A | CT270: N/A | CU270: N/A | CV270: N/A | CW270: N/A | CX270: N/A | CY270: N/A | CZ270: N/A
BA271: Awareness of menstruation before menarche | BB271: Yes | BC271: N/A | BD271: N/A | BE271: N/A | BF271: N/A | BG271: N/A | BH271: N/A | BI271: N/A | BJ271: N/A | BK271: N/A | BL271: N/A | BM271: N/A | BN271: N/A | BO271: N/A | BP271: N/A | BQ271: N/A | BR271: N/A | BS271: N/A | BT271: N/A | BU271: N/A | BV271: N/A | BW271: N/A | BX271: N/A | BY271: N/A | BZ271: N/A | CA271: N/A | CB271: N/A | CC271: N/A | CD271: N/A | CE271: N/A | CF271: N/A | CG271: N/A | CH271: N/A | CI271: N/A | CJ271: N/A | CK271: N/A | CL271: N/A | CM271: N/A | CN271: N/A | CO271: N/A | CP271: N/A | CQ271: N/A | CR271: N/A | CS271: N/A | CT271: N/A | CU271: N/A | CV271: N/A | CW271: N/A | CX271: N/A | CY271: N/A | CZ271: N/A
BB272: No | BC272: N/A | BD272: N/A | BE272: N/A | BF272: N/A | BG272: N/A | BH272: N/A | BI272: N/A | BJ272: N/A | BK272: N/A | BL272: N/A | BM272: N/A | BN272: N/A | BO272: N/A | BP272: N/A | BQ272: N/A | BR272: N/A | BS272: N/A | BT272: N/A | BU272: N/A | BV272: N/A | BW272: N/A | BX272: N/A | BY272: N/A | BZ272: N/A | CA272: N/A | CB272: N/A | CC272: N/A | CD272: N/A | CE272: N/A | CF272: N/A | CG272: N/A | CH272: N/A | CI272: N/A | CJ272: N/A | CK272: N/A | CL272: N/A | CM272: N/A | CN272: N/A | CO272: N/A | CP272: N/A | CQ272: N/A | CR272: N/A | CS272: N/A | CT272: N/A | CU272: N/A | CV272: N/A | CW272: N/A | CX272: N/A | CY272: N/A | CZ272: N/A
BB273: DK/not sure/missing | BC273: N/A | BD273: N/A | BE273: N/A | BF273: N/A | BG273: N/A | BH273: N/A | BI273: N/A | BJ273: N/A | BK273: N/A | BL273: N/A | BM273: N/A | BN273: N/A | BO273: N/A | BP273: N/A | BQ273: N/A | BR273: N/A | BS273: N/A | BT273: N/A | BU273: N/A | BV273: N/A | BW273: N/A | BX273: N/A | BY273: N/A | BZ273: N/A | CA273: N/A | CB273: N/A | CC273: N/A | CD273: N/A | CE273: N/A | CF273: N/A | CG273: N/A | CH273: N/A | CI273: N/A | CJ273: N/A | CK273: N/A | CL273: N/A | CM273: N/A | CN273: N/A | CO273: N/A | CP273: N/A | CQ273: N/A | CR273: N/A | CS273: N/A | CT273: N/A | CU273: N/A | CV273: N/A | CW273: N/A | CX273: N/A | CY273: N/A | CZ273: N/A
BA274: Participation in (all) activities during menstruation | BB274: Yes | BC274: N/A | BD274: N/A | BE274: N/A | BF274: N/A | BG274: N/A | BH274: N/A | BI274: N/A | BJ274: N/A | BK274: N/A | BL274: N/A | BM274: N/A | BN274: N/A | BO274: N/A | BP274: N/A | BQ274: N/A | BR274: N/A | BS274: N/A | BT274: N/A | BU274: N/A | BV274: N/A | BW274: N/A | BX274: N/A | BY274: N/A | BZ274: N/A | CA274: N/A | CB274: N/A | CC274: N/A | CD274: N/A | CE274: N/A | CF274: N/A | CG274: N/A | CH274: N/A | CI274: N/A | CJ274: N/A | CK274: N/A | CL274: N/A | CM274: N/A | CN274: N/A | CO274: N/A | CP274: N/A | CQ274: N/A | CR274: N/A | CS274: N/A | CT274: N/A | CU274: N/A | CV274: N/A | CW274: N/A | CX274: N/A | CY274: N/A | CZ274: N/A
BB275: No | BC275: N/A | BD275: N/A | BE275: N/A | BF275: N/A | BG275: N/A | BH275: N/A | BI275: N/A | BJ275: N/A | BK275: N/A | BL275: N/A | BM275: N/A | BN275: N/A | BO275: N/A | BP275: N/A | BQ275: N/A | BR275: N/A | BS275: N/A | BT275: N/A | BU275: N/A | BV275: N/A | BW275: N/A | BX275: N/A | BY275: N/A | BZ275: N/A | CA275: N/A | CB275: N/A | CC275: N/A | CD275: N/A | CE275: N/A | CF275: N/A | CG275: N/A | CH275: N/A | CI275: N/A | CJ275: N/A | CK275: N/A | CL275: N/A | CM275: N/A | CN275: N/A | CO275: N/A | CP275: N/A | CQ275: N/A | CR275: N/A | CS275: N/A | CT275: N/A | CU275: N/A | CV275: N/A | CW275: N/A | CX275: N/A | CY275: N/A | CZ275: N/A
BB276: DK/not sure/missing/no such activity | BC276: N/A | BD276: N/A | BE276: N/A | BF276: N/A | BG276: N/A | BH276: N/A | BI276: N/A | BJ276: N/A | BK276: N/A | BL276: N/A | BM276: N/A | BN276: N/A | BO276: N/A | BP276: N/A | BQ276: N/A | BR276: N/A | BS276: N/A | BT276: N/A | BU276: N/A | BV276: N/A | BW276: N/A | BX276: N/A | BY276: N/A | BZ276: N/A | CA276: N/A | CB276: N/A | CC276: N/A | CD276: N/A | CE276: N/A | CF276: N/A | CG276: N/A | CH276: N/A | CI276: N/A | CJ276: N/A | CK276: N/A | CL276: N/A | CM276: N/A | CN276: N/A | CO276: N/A | CP276: N/A | CQ276: N/A | CR276: N/A | CS276: N/A | CT276: N/A | CU276: N/A | CV276: N/A | CW276: N/A | CX276: N/A | CY276: N/A | CZ276: N/A
BA277: Participation in specific activities during menstruation | BB277: Did not go to school (amongst those usually attending school) | BC277: N/A | BD277: N/A | BE277: N/A | BF277: N/A | BG277: N/A | BH277: N/A | BI277: N/A | BJ277: N/A | BK277: N/A | BL277: N/A | BM277: N/A | BN277: N/A | BO277: N/A | BP277: N/A | BQ277: N/A | BR277: N/A | BS277: N/A | BT277: N/A | BU277: N/A | BV277: N/A | BW277: N/A | BX277: N/A | BY277: N/A | BZ277: N/A | CA277: N/A | CB277: N/A | CC277: N/A | CD277: N/A | CE277: N/A | CF277: N/A | CG277: N/A | CH277: N/A | CI277: N/A | CJ277: N/A | CK277: N/A | CL277: N/A | CM277: N/A | CN277: N/A | CO277: N/A | CP277: N/A | CQ277: N/A | CR277: N/A | CS277: N/A | CT277: N/A | CU277: N/A | CV277: N/A | CW277: N/A | CX277: N/A | CY277: N/A | CZ277: N/A
BB278: Did not go to work (amongst those who usually work) | BC278: N/A | BD278: N/A | BE278: N/A | BF278: N/A | BG278: N/A | BH278: N/A | BI278: N/A | BJ278: N/A | BK278: N/A | BL278: N/A | BM278: N/A | BN278: N/A | BO278: N/A | BP278: N/A | BQ278: N/A | BR278: N/A | BS278: N/A | BT278: N/A | BU278: N/A | BV278: N/A | BW278: N/A | BX278: N/A | BY278: N/A | BZ278: N/A | CA278: N/A | CB278: N/A | CC278: N/A | CD278: N/A | CE278: N/A | CF278: N/A | CG278: N/A | CH278: N/A | CI278: N/A | CJ278: N/A | CK278: N/A | CL278: N/A | CM278: N/A | CN278: N/A | CO278: N/A | CP278: N/A | CQ278: N/A | CR278: N/A | CS278: N/A | CT278: N/A | CU278: N/A | CV278: N/A | CW278: N/A | CX278: N/A | CY278: N/A | CZ278: N/A
BB279: Did not participate in social activities | BC279: N/A | BD279: N/A | BE279: N/A | BF279: N/A | BG279: N/A | BH279: N/A | BI279: N/A | BJ279: N/A | BK279: N/A | BL279: N/A | BM279: N/A | BN279: N/A | BO279: N/A | BP279: N/A | BQ279: N/A | BR279: N/A | BS279: N/A | BT279: N/A | BU279: N/A | BV279: N/A | BW279: N/A | BX279: N/A | BY279: N/A | BZ279: N/A | CA279: N/A | CB279: N/A | CC279: N/A | CD279: N/A | CE279: N/A | CF279: N/A | CG279: N/A | CH279: N/A | CI279: N/A | CJ279: N/A | CK279: N/A | CL279: N/A | CM279: N/A | CN279: N/A | CO279: N/A | CP279: N/A | CQ279: N/A | CR279: N/A | CS279: N/A | CT279: N/A | CU279: N/A | CV279: N/A | CW279: N/A | CX279: N/A | CY279: N/A | CZ279: N/A
BB280: Did not cook food | BC280: N/A | BD280: N/A | BE280: N/A | BF280: N/A | BG280: N/A | BH280: N/A | BI280: N/A | BJ280: N/A | BK280: N/A | BL280: N/A | BM280: N/A | BN280: N/A | BO280: N/A | BP280: N/A | BQ280: N/A | BR280: N/A | BS280: N/A | BT280: N/A | BU280: N/A | BV280: N/A | BW280: N/A | BX280: N/A | BY280: N/A | BZ280: N/A | CA280: N/A | CB280: N/A | CC280: N/A | CD280: N/A | CE280: N/A | CF280: N/A | CG280: N/A | CH280: N/A | CI280: N/A | CJ280: N/A | CK280: N/A | CL280: N/A | CM280: N/A | CN280: N/A | CO280: N/A | CP280: N/A | CQ280: N/A | CR280: N/A | CS280: N/A | CT280: N/A | CU280: N/A | CV280: N/A | CW280: N/A | CX280: N/A | CY280: N/A | CZ280: N/A
BB281: Did not eat with others | BC281: N/A | BD281: N/A | BE281: N/A | BF281: N/A | BG281: N/A | BH281: N/A | BI281: N/A | BJ281: N/A | BK281: N/A | BL281: N/A | BM281: N/A | BN281: N/A | BO281: N/A | BP281: N/A | BQ281: N/A | BR281: N/A | BS281: N/A | BT281: N/A | BU281: N/A | BV281: N/A | BW281: N/A | BX281: N/A | BY281: N/A | BZ281: N/A | CA281: N/A | CB281: N/A | CC281: N/A | CD281: N/A | CE281: N/A | CF281: N/A | CG281: N/A | CH281: N/A | CI281: N/A | CJ281: N/A | CK281: N/A | CL281: N/A | CM281: N/A | CN281: N/A | CO281: N/A | CP281: N/A | CQ281: N/A | CR281: N/A | CS281: N/A | CT281: N/A | CU281: N/A | CV281: N/A | CW281: N/A | CX281: N/A | CY281: N/A | CZ281: N/A
BB282: Did not bathe in regular place | BC282: N/A | BD282: N/A | BE282: N/A | BF282: N/A | BG282: N/A | BH282: N/A | BI282: N/A | BJ282: N/A | BK282: N/A | BL282: N/A | BM282: N/A | BN282: N/A | BO282: N/A | BP282: N/A | BQ282: N/A | BR282: N/A | BS282: N/A | BT282: N/A | BU282: N/A | BV282: N/A | BW282: N/A | BX282: N/A | BY282: N/A | BZ282: N/A | CA282: N/A | CB282: N/A | CC282: N/A | CD282: N/A | CE282: N/A | CF282: N/A | CG282: N/A | CH282: N/A | CI282: N/A | CJ282: N/A | CK282: N/A | CL282: N/A | CM282: N/A | CN282: N/A | CO282: N/A | CP282: N/A | CQ282: N/A | CR282: N/A | CS282: N/A | CT282: N/A | CU282: N/A | CV282: N/A | CW282: N/A | CX282: N/A | CY282: N/A | CZ282: N/A
BB283: Did not participate in other activities | BC283: N/A | BD283: N/A | BE283: N/A | BF283: N/A | BG283: N/A | BH283: N/A | BI283: N/A | BJ283: N/A | BK283: N/A | BL283: N/A | BM283: N/A | BN283: N/A | BO283: N/A | BP283: N/A | BQ283: N/A | BR283: N/A | BS283: N/A | BT283: N/A | BU283: N/A | BV283: N/A | BW283: N/A | BX283: N/A | BY283: N/A | BZ283: N/A | CA283: N/A | CB283: N/A | CC283: N/A | CD283: N/A | CE283: N/A | CF283: N/A | CG283: N/A | CH283: N/A | CI283: N/A | CJ283: N/A | CK283: N/A | CL283: N/A | CM283: N/A | CN283: N/A | CO283: N/A | CP283: N/A | CQ283: N/A | CR283: N/A | CS283: N/A | CT283: N/A | CU283: N/A | CV283: N/A | CW283: N/A | CX283: N/A | CY283: N/A | CZ283: N/A
BB284: DK/not sure/missing/no such activity | BC284: N/A | BD284: N/A | BE284: N/A | BF284: N/A | BG284: N/A | BH284: N/A | BI284: N/A | BJ284: N/A | BK284: N/A | BL284: N/A | BM284: N/A | BN284: N/A | BO284: N/A | BP284: N/A | BQ284: N/A | BR284: N/A | BS284: N/A | BT284: N/A | BU284: N/A | BV284: N/A | BW284: N/A | BX284: N/A | BY284: N/A | BZ284: N/A | CA284: N/A | CB284: N/A | CC284: N/A | CD284: N/A | CE284: N/A | CF284: N/A | CG284: N/A | CH284: N/A | CI284: N/A | CJ284: N/A | CK284: N/A | CL284: N/A | CM284: N/A | CN284: N/A | CO284: N/A | CP284: N/A | CQ284: N/A | CR284: N/A | CS284: N/A | CT284: N/A | CU284: N/A | CV284: N/A | CW284: N/A | CX284: N/A | CY284: N/A | CZ284: N/A
BA339: Raw numbers of respondents: | BB339: Basic water, sanitation and hygiene | BC339: NATIONAL wealth index quintile | BH339: URBAN wealth index quintile | BM339: RURAL wealth index quintile | BR339: SUB-REGIONS:
BA340: WatSan data, raw numbers (weighted) | BC340: Poorest | BD340: Poor | BE340: Middle | BF340: Rich | BG340: Richest | BH340: Poorest | BI340: Poor | BJ340: Middle | BK340: Rich | BL340: Richest | BM340: Poorest | BN340: Poor | BO340: Middle | BP340: Rich | BQ340: Richest
BA341: Use of Basic Water Sanitation and Hygiene | BB341: Yes | BC341: N/A | BD341: N/A | BE341: N/A | BF341: N/A | BG341: N/A | BH341: N/A | BI341: N/A | BJ341: N/A | BK341: N/A | BL341: N/A | BM341: N/A | BN341: N/A | BO341: N/A | BP341: N/A | BQ341: N/A | BR341: N/A | BS341: N/A | BT341: N/A | BU341: N/A | BV341: N/A | BW341: N/A | BX341: N/A | BY341: N/A | BZ341: N/A | CA341: N/A | CB341: N/A | CC341: N/A | CD341: N/A | CE341: N/A | CF341: N/A | CG341: N/A | CH341: N/A | CI341: N/A | CJ341: N/A | CK341: N/A | CL341: N/A | CM341: N/A | CN341: N/A | CO341: N/A | CP341: N/A | CQ341: N/A | CR341: N/A | CS341: N/A | CT341: N/A | CU341: N/A | CV341: N/A | CW341: N/A | CX341: N/A | CY341: N/A | CZ341: N/A
BB342: No | BC342: N/A | BD342: N/A | BE342: N/A | BF342: N/A | BG342: N/A | BH342: N/A | BI342: N/A | BJ342: N/A | BK342: N/A | BL342: N/A | BM342: N/A | BN342: N/A | BO342: N/A | BP342: N/A | BQ342: N/A | BR342: N/A | BS342: N/A | BT342: N/A | BU342: N/A | BV342: N/A | BW342: N/A | BX342: N/A | BY342: N/A | BZ342: N/A | CA342: N/A | CB342: N/A | CC342: N/A | CD342: N/A | CE342: N/A | CF342: N/A | CG342: N/A | CH342: N/A | CI342: N/A | CJ342: N/A | CK342: N/A | CL342: N/A | CM342: N/A | CN342: N/A | CO342: N/A | CP342: N/A | CQ342: N/A | CR342: N/A | CS342: N/A | CT342: N/A | CU342: N/A | CV342: N/A | CW342: N/A | CX342: N/A | CY342: N/A | CZ342: N/A
BA343: Use of Basic Water and Sanitation | BB343: Yes | BC343: N/A | BD343: N/A | BE343: N/A | BF343: N/A | BG343: N/A | BH343: N/A | BI343: N/A | BJ343: N/A | BK343: N/A | BL343: N/A | BM343: N/A | BN343: N/A | BO343: N/A | BP343: N/A | BQ343: N/A | BR343: N/A | BS343: N/A | BT343: N/A | BU343: N/A | BV343: N/A | BW343: N/A | BX343: N/A | BY343: N/A | BZ343: N/A | CA343: N/A | CB343: N/A | CC343: N/A | CD343: N/A | CE343: N/A | CF343: N/A | CG343: N/A | CH343: N/A | CI343: N/A | CJ343: N/A | CK343: N/A | CL343: N/A | CM343: N/A | CN343: N/A | CO343: N/A | CP343: N/A | CQ343: N/A | CR343: N/A | CS343: N/A | CT343: N/A | CU343: N/A | CV343: N/A | CW343: N/A | CX343: N/A | CY343: N/A | CZ343: N/A
BB344: No | BC344: N/A | BD344: N/A | BE344: N/A | BF344: N/A | BG344: N/A | BH344: N/A | BI344: N/A | BJ344: N/A | BK344: N/A | BL344: N/A | BM344: N/A | BN344: N/A | BO344: N/A | BP344: N/A | BQ344: N/A | BR344: N/A | BS344: N/A | BT344: N/A | BU344: N/A | BV344: N/A | BW344: N/A | BX344: N/A | BY344: N/A | BZ344: N/A | CA344: N/A | CB344: N/A | CC344: N/A | CD344: N/A | CE344: N/A | CF344: N/A | CG344: N/A | CH344: N/A | CI344: N/A | CJ344: N/A | CK344: N/A | CL344: N/A | CM344: N/A | CN344: N/A | CO344: N/A | CP344: N/A | CQ344: N/A | CR344: N/A | CS344: N/A | CT344: N/A | CU344: N/A | CV344: N/A | CW344: N/A | CX344: N/A | CY344: N/A | CZ344: N/A
BA345: Use of Basic Water and Hygiene | BB345: Yes | BC345: N/A | BD345: N/A | BE345: N/A | BF345: N/A | BG345: N/A | BH345: N/A | BI345: N/A | BJ345: N/A | BK345: N/A | BL345: N/A | BM345: N/A | BN345: N/A | BO345: N/A | BP345: N/A | BQ345: N/A | BR345: N/A | BS345: N/A | BT345: N/A | BU345: N/A | BV345: N/A | BW345: N/A | BX345: N/A | BY345: N/A | BZ345: N/A | CA345: N/A | CB345: N/A | CC345: N/A | CD345: N/A | CE345: N/A | CF345: N/A | CG345: N/A | CH345: N/A | CI345: N/A | CJ345: N/A | CK345: N/A | CL345: N/A | CM345: N/A | CN345: N/A | CO345: N/A | CP345: N/A | CQ345: N/A | CR345: N/A | CS345: N/A | CT345: N/A | CU345: N/A | CV345: N/A | CW345: N/A | CX345: N/A | CY345: N/A | CZ345: N/A
BB346: No | BC346: N/A | BD346: N/A | BE346: N/A | BF346: N/A | BG346: N/A | BH346: N/A | BI346: N/A | BJ346: N/A | BK346: N/A | BL346: N/A | BM346: N/A | BN346: N/A | BO346: N/A | BP346: N/A | BQ346: N/A | BR346: N/A | BS346: N/A | BT346: N/A | BU346: N/A | BV346: N/A | BW346: N/A | BX346: N/A | BY346: N/A | BZ346: N/A | CA346: N/A | CB346: N/A | CC346: N/A | CD346: N/A | CE346: N/A | CF346: N/A | CG346: N/A | CH346: N/A | CI346: N/A | CJ346: N/A | CK346: N/A | CL346: N/A | CM346: N/A | CN346: N/A | CO346: N/A | CP346: N/A | CQ346: N/A | CR346: N/A | CS346: N/A | CT346: N/A | CU346: N/A | CV346: N/A | CW346: N/A | CX346: N/A | CY346: N/A | CZ346: N/A
BA347: Use of Basic Sanitation and Hygiene | BB347: Yes | BC347: N/A | BD347: N/A | BE347: N/A | BF347: N/A | BG347: N/A | BH347: N/A | BI347: N/A | BJ347: N/A | BK347: N/A | BL347: N/A | BM347: N/A | BN347: N/A | BO347: N/A | BP347: N/A | BQ347: N/A | BR347: N/A | BS347: N/A | BT347: N/A | BU347: N/A | BV347: N/A | BW347: N/A | BX347: N/A | BY347: N/A | BZ347: N/A | CA347: N/A | CB347: N/A | CC347: N/A | CD347: N/A | CE347: N/A | CF347: N/A | CG347: N/A | CH347: N/A | CI347: N/A | CJ347: N/A | CK347: N/A | CL347: N/A | CM347: N/A | CN347: N/A | CO347: N/A | CP347: N/A | CQ347: N/A | CR347: N/A | CS347: N/A | CT347: N/A | CU347: N/A | CV347: N/A | CW347: N/A | CX347: N/A | CY347: N/A | CZ347: N/A
BB348: No | BC348: N/A | BD348: N/A | BE348: N/A | BF348: N/A | BG348: N/A | BH348: N/A | BI348: N/A | BJ348: N/A | BK348: N/A | BL348: N/A | BM348: N/A | BN348: N/A | BO348: N/A | BP348: N/A | BQ348: N/A | BR348: N/A | BS348: N/A | BT348: N/A | BU348: N/A | BV348: N/A | BW348: N/A | BX348: N/A | BY348: N/A | BZ348: N/A | CA348: N/A | CB348: N/A | CC348: N/A | CD348: N/A | CE348: N/A | CF348: N/A | CG348: N/A | CH348: N/A | CI348: N/A | CJ348: N/A | CK348: N/A | CL348: N/A | CM348: N/A | CN348: N/A | CO348: N/A | CP348: N/A | CQ348: N/A | CR348: N/A | CS348: N/A | CT348: N/A | CU348: N/A | CV348: N/A | CW348: N/A | CX348: N/A | CY348: N/A | CZ348: N/A
BA349: Use of Basic Water | BB349: Yes | BC349: N/A | BD349: N/A | BE349: N/A | BF349: N/A | BG349: N/A | BH349: N/A | BI349: N/A | BJ349: N/A | BK349: N/A | BL349: N/A | BM349: N/A | BN349: N/A | BO349: N/A | BP349: N/A | BQ349: N/A | BR349: N/A | BS349: N/A | BT349: N/A | BU349: N/A | BV349: N/A | BW349: N/A | BX349: N/A | BY349: N/A | BZ349: N/A | CA349: N/A | CB349: N/A | CC349: N/A | CD349: N/A | CE349: N/A | CF349: N/A | CG349: N/A | CH349: N/A | CI349: N/A | CJ349: N/A | CK349: N/A | CL349: N/A | CM349: N/A | CN349: N/A | CO349: N/A | CP349: N/A | CQ349: N/A | CR349: N/A | CS349: N/A | CT349: N/A | CU349: N/A | CV349: N/A | CW349: N/A | CX349: N/A | CY349: N/A | CZ349: N/A
BB350: No | BC350: N/A | BD350: N/A | BE350: N/A | BF350: N/A | BG350: N/A | BH350: N/A | BI350: N/A | BJ350: N/A | BK350: N/A | BL350: N/A | BM350: N/A | BN350: N/A | BO350: N/A | BP350: N/A | BQ350: N/A | BR350: N/A | BS350: N/A | BT350: N/A | BU350: N/A | BV350: N/A | BW350: N/A | BX350: N/A | BY350: N/A | BZ350: N/A | CA350: N/A | CB350: N/A | CC350: N/A | CD350: N/A | CE350: N/A | CF350: N/A | CG350: N/A | CH350: N/A | CI350: N/A | CJ350: N/A | CK350: N/A | CL350: N/A | CM350: N/A | CN350: N/A | CO350: N/A | CP350: N/A | CQ350: N/A | CR350: N/A | CS350: N/A | CT350: N/A | CU350: N/A | CV350: N/A | CW350: N/A | CX350: N/A | CY350: N/A | CZ350: N/A
BA351: Use of Basic Sanitation | BB351: Yes | BC351: N/A | BD351: N/A | BE351: N/A | BF351: N/A | BG351: N/A | BH351: N/A | BI351: N/A | BJ351: N/A | BK351: N/A | BL351: N/A | BM351: N/A | BN351: N/A | BO351: N/A | BP351: N/A | BQ351: N/A | BR351: N/A | BS351: N/A | BT351: N/A | BU351: N/A | BV351: N/A | BW351: N/A | BX351: N/A | BY351: N/A | BZ351: N/A | CA351: N/A | CB351: N/A | CC351: N/A | CD351: N/A | CE351: N/A | CF351: N/A | CG351: N/A | CH351: N/A | CI351: N/A | CJ351: N/A | CK351: N/A | CL351: N/A | CM351: N/A | CN351: N/A | CO351: N/A | CP351: N/A | CQ351: N/A | CR351: N/A | CS351: N/A | CT351: N/A | CU351: N/A | CV351: N/A | CW351: N/A | CX351: N/A | CY351: N/A | CZ351: N/A
BB352: No | BC352: N/A | BD352: N/A | BE352: N/A | BF352: N/A | BG352: N/A | BH352: N/A | BI352: N/A | BJ352: N/A | BK352: N/A | BL352: N/A | BM352: N/A | BN352: N/A | BO352: N/A | BP352: N/A | BQ352: N/A | BR352: N/A | BS352: N/A | BT352: N/A | BU352: N/A | BV352: N/A | BW352: N/A | BX352: N/A | BY352: N/A | BZ352: N/A | CA352: N/A | CB352: N/A | CC352: N/A | CD352: N/A | CE352: N/A | CF352: N/A | CG352: N/A | CH352: N/A | CI352: N/A | CJ352: N/A | CK352: N/A | CL352: N/A | CM352: N/A | CN352: N/A | CO352: N/A | CP352: N/A | CQ352: N/A | CR352: N/A | CS352: N/A | CT352: N/A | CU352: N/A | CV352: N/A | CW352: N/A | CX352: N/A | CY352: N/A | CZ352: N/A
BA353: Access to Basic Hygiene | BB353: Yes | BC353: N/A | BD353: N/A | BE353: N/A | BF353: N/A | BG353: N/A | BH353: N/A | BI353: N/A | BJ353: N/A | BK353: N/A | BL353: N/A | BM353: N/A | BN353: N/A | BO353: N/A | BP353: N/A | BQ353: N/A | BR353: N/A | BS353: N/A | BT353: N/A | BU353: N/A | BV353: N/A | BW353: N/A | BX353: N/A | BY353: N/A | BZ353: N/A | CA353: N/A | CB353: N/A | CC353: N/A | CD353: N/A | CE353: N/A | CF353: N/A | CG353: N/A | CH353: N/A | CI353: N/A | CJ353: N/A | CK353: N/A | CL353: N/A | CM353: N/A | CN353: N/A | CO353: N/A | CP353: N/A | CQ353: N/A | CR353: N/A | CS353: N/A | CT353: N/A | CU353: N/A | CV353: N/A | CW353: N/A | CX353: N/A | CY353: N/A | CZ353: N/A
BB354: No | BC354: N/A | BD354: N/A | BE354: N/A | BF354: N/A | BG354: N/A | BH354: N/A | BI354: N/A | BJ354: N/A | BK354: N/A | BL354: N/A | BM354: N/A | BN354: N/A | BO354: N/A | BP354: N/A | BQ354: N/A | BR354: N/A | BS354: N/A | BT354: N/A | BU354: N/A | BV354: N/A | BW354: N/A | BX354: N/A | BY354: N/A | BZ354: N/A | CA354: N/A | CB354: N/A | CC354: N/A | CD354: N/A | CE354: N/A | CF354: N/A | CG354: N/A | CH354: N/A | CI354: N/A | CJ354: N/A | CK354: N/A | CL354: N/A | CM354: N/A | CN354: N/A | CO354: N/A | CP354: N/A | CQ354: N/A | CR354: N/A | CS354: N/A | CT354: N/A | CU354: N/A | CV354: N/A | CW354: N/A | CX354: N/A | CY354: N/A | CZ354: N/A
C399: INITIAL (national) Wealth Index | H399: URBAN Wealth Index | M399: RURAL Wealth Index
C400: Component Matrix | H400: Component Matrix | M400: Component Matrix
E401: Component | J401: Component | O401: Component
B402: Note: The INITIAL (national) Wealth Index is based on the first component of the Principal Component Analysis (PCA) which has been obtained at national level. The final national-level (NATIONAL) Wealth Index is based on the URBAN and RURAL specific wealth indexes. Regression procedures are used to establish the relationships between the two sets of scores (urban and rural) and the initial (national) wealth factors. This allows best use of the available information for each area and a better precision of the FINAL (NATIONAL) Wealth Index. For dependency reasons, all WASH variables (contained in the generic MICS and DHS scripts) have been excluded from the sets of asset variables used in the PCAs. The PCA can extracts as many components as there are asset variables in the input. Only the first of the components is used to represent the Wealth Index. The scores represent the weights of the asset variables on the Wealth Index (correlations between the variables and the component). The communalities are the proportion of each variable's variance that can be explained by the component. Proportion of explained variance is the part of the model's total variance that is explained by the component. For more information on the procedure used: The DHS Wealth Index, DHS Comparative Reports No. 6, Shea Oscar Rutstein, Kiersten Johnson, ORC Macro International Inc., 2004. The DHS Wealth Index: Approaches for Rural and Urban Areas, Shea O. Rutstein, ORC Macro International Inc., 2008. MICS Methodological Paper No. 4, Review of options for reporting water, sanitation and hygiene coverage by wealth quintile, UNICEF, 2016. | E402: 1 | J402: 1 | O402: 1
C403: Household light: electricity | E403: 0.8224496031 | H403: Has electricity | J403: 0.8233262779 | M403: Household light: electricity | O403: 0.6336359834
C404: Has electricity | E404: 0.8173409587 | H404: Household light: electricity | J404: 0.822977259 | M404: Has bricks and plaster wall | O404: 0.6147983656
C405: Household light: kerozene | E405: -0.7164546672 | H405: Household light: kerozene | J405: -0.8034243769 | M405: Has electricity | O405: 0.5917343253
C406: Household fuel type: wood, straw | E406: -0.7154436879 | H406: Has television | J406: 0.6647048954 | M406: Has cement floor | O406: 0.5431021622
C407: Has bricks and plaster wall | E407: 0.6878762426 | H407: Has bricks and plaster wall | J407: 0.6161699297 | M407: Has jute roof | O407: -0.5350041057
C408: Has television | E408: 0.6720880622 | H408: Has mud and poles wall | J408: -0.6106400288 | M408: Lantern | O408: 0.5332594573
C409: Has cement floor | E409: 0.6210567177 | H409: Has earth/sand floor | J409: -0.5661337487 | M409: Has corrugated iron roof | O409: 0.521000738
C410: Household fuel type: charcoal | E410: 0.581983908 | H410: Has telephone | J410: 0.5464194277 | M410: Has television | O410: 0.5181255948
C411: Has mud and poles wall | E411: -0.5560094419 | H411: Has refrigerator | J411: 0.5324168398 | M411: Cupboard | O411: 0.4853525133
... 192 more rows

Sheet DHS06
A2: =A1026 -> Uganda
A3: =A1034 -> 2006
A4: Use of drinking water sources
A5: by wealth quintile and sub-national region
A6: Notes:
A7: WHO/UNICEF JMP customised wealth index excludes water,
A8: sanitation and hygiene assets.
A9: Survey used for analysis: | B9: =A1025 -> DHS06
A10: =B1028 -> 
A11: =B1027 -> 
A14: Use of drinking water sources | C14: NATIONAL wealth index quintile | H14: URBAN wealth index quintile | M14: RURAL wealth index quintile | R14: REGIONS | BA14: Raw numbers of respondents: | BB14: Use of drinking water sources | BC14: NATIONAL wealth index quintile | BH14: URBAN wealth index quintile | BM14: RURAL wealth index quintile | BR14: SUB-REGIONS:
A15: Weighted percentage (used in graphs) | C15: Poorest | D15: Poor | E15: Middle | F15: Rich | G15: Richest | H15: Poorest | I15: Poor | J15: Middle | K15: Rich | L15: Richest | M15: Poorest | N15: Poor | O15: Middle | P15: Rich | Q15: Richest | R15: Central 1 | S15: Central 2 | T15: East Central | U15: Eastern | V15: Kampala | W15: North | X15: Southwest | Y15: West Nile | Z15: Western | BA15: Water data, raw numbers (weighted) | BC15: Poorest | BD15: Poor | BE15: Middle | BF15: Rich | BG15: Richest | BH15: Poorest | BI15: Poor | BJ15: Middle | BK15: Rich | BL15: Richest | BM15: Poorest | BN15: Poor | BO15: Middle | BP15: Rich | BQ15: Richest
A16: Water | B16: Improved | C16: 68.4 | D16: 63.4 | E16: 59.2 | F16: 65.9 | G16: 83.1 | H16: 77.3 | I16: 93.6 | J16: 92.6 | K16: 90.5 | L16: 97.5 | M16: 69.5 | N16: 63.2 | O16: 57 | P16: 62.9 | Q16: 70.7 | R16: 47.8 | S16: 62.7 | T16: 77.4 | U16: 83.7 | V16: 94.3 | W16: 74.4 | X16: 49.2 | Y16: 73.4 | Z16: 60.7 | BA16: Water | BB16: Improved | BC16: N/A | BD16: N/A | BE16: N/A | BF16: N/A | BG16: N/A | BH16: N/A | BI16: N/A | BJ16: N/A | BK16: N/A | BL16: N/A | BM16: N/A | BN16: N/A | BO16: N/A | BP16: N/A | BQ16: N/A | BR16: N/A | BS16: N/A | BT16: N/A | BU16: N/A | BV16: N/A | BW16: N/A | BX16: N/A | BY16: N/A | BZ16: N/A | CA16: N/A | CB16: N/A | CC16: N/A | CD16: N/A | CE16: N/A | CF16: N/A | CG16: N/A | CH16: N/A | CI16: N/A | CJ16: N/A | CK16: N/A | CL16: N/A | CM16: N/A | CN16: N/A | CO16: N/A | CP16: N/A | CQ16: N/A | CR16: N/A | CS16: N/A | CT16: N/A | CU16: N/A | CV16: N/A | CW16: N/A | CX16: N/A | CY16: N/A | CZ16: N/A
B17: Not Improved | C17: 31.6 | D17: 36.6 | E17: 40.8 | F17: 34.1 | G17: 16.9 | H17: 22.7 | I17: 6.4 | J17: 7.4 | K17: 9.5 | L17: 2.5 | M17: 30.5 | N17: 36.8 | O17: 43 | P17: 37.1 | Q17: 29.3 | R17: 52.2 | S17: 37.3 | T17: 22.6 | U17: 16.3 | V17: 5.7 | W17: 25.6 | X17: 50.8 | Y17: 26.6 | Z17: 39.3 | BB17: Not Improved | BC17: N/A | BD17: N/A | BE17: N/A | BF17: N/A | BG17: N/A | BH17: N/A | BI17: N/A | BJ17: N/A | BK17: N/A | BL17: N/A | BM17: N/A | BN17: N/A | BO17: N/A | BP17: N/A | BQ17: N/A | BR17: N/A | BS17: N/A | BT17: N/A | BU17: N/A | BV17: N/A | BW17: N/A | BX17: N/A | BY17: N/A | BZ17: N/A | CA17: N/A | CB17: N/A | CC17: N/A | CD17: N/A | CE17: N/A | CF17: N/A | CG17: N/A | CH17: N/A | CI17: N/A | CJ17: N/A | CK17: N/A | CL17: N/A | CM17: N/A | CN17: N/A | CO17: N/A | CP17: N/A | CQ17: N/A | CR17: N/A | CS17: N/A | CT17: N/A | CU17: N/A | CV17: N/A | CW17: N/A | CX17: N/A | CY17: N/A | CZ17: N/A
A18: Water ladder | B18: Basic | C18: 15.3 | D18: 19.5 | E18: 20.7 | F18: 25.9 | G18: 51.8 | H18: 33.8 | I18: 55.7 | J18: 66.4 | K18: 73.7 | L18: 85.9 | M18: 14.8 | N18: 20.1 | O18: 18.3 | P18: 22.3 | Q18: 30.5 | R18: 23.1 | S18: 24.7 | T18: 22.9 | U18: 34.4 | V18: 82.4 | W18: 13.9 | X18: 18.4 | Y18: 30.7 | Z18: 23.2 | BA18: Water ladder | BB18: Basic | BC18: N/A | BD18: N/A | BE18: N/A | BF18: N/A | BG18: N/A | BH18: N/A | BI18: N/A | BJ18: N/A | BK18: N/A | BL18: N/A | BM18: N/A | BN18: N/A | BO18: N/A | BP18: N/A | BQ18: N/A | BR18: N/A | BS18: N/A | BT18: N/A | BU18: N/A | BV18: N/A | BW18: N/A | BX18: N/A | BY18: N/A | BZ18: N/A | CA18: N/A | CB18: N/A | CC18: N/A | CD18: N/A | CE18: N/A | CF18: N/A | CG18: N/A | CH18: N/A | CI18: N/A | CJ18: N/A | CK18: N/A | CL18: N/A | CM18: N/A | CN18: N/A | CO18: N/A | CP18: N/A | CQ18: N/A | CR18: N/A | CS18: N/A | CT18: N/A | CU18: N/A | CV18: N/A | CW18: N/A | CX18: N/A | CY18: N/A | CZ18: N/A
B19: Limited | C19: 53.1 | D19: 43.9 | E19: 38.5 | F19: 40 | G19: 31.3 | H19: 43.6 | I19: 37.9 | J19: 26.2 | K19: 16.8 | L19: 11.5 | M19: 54.7 | N19: 43.2 | O19: 38.8 | P19: 40.6 | Q19: 40.2 | R19: 24.7 | S19: 38.1 | T19: 54.5 | U19: 49.2 | V19: 11.8 | W19: 60.5 | X19: 30.8 | Y19: 42.7 | Z19: 37.5 | BB19: Limited | BC19: N/A | BD19: N/A | BE19: N/A | BF19: N/A | BG19: N/A | BH19: N/A | BI19: N/A | BJ19: N/A | BK19: N/A | BL19: N/A | BM19: N/A | BN19: N/A | BO19: N/A | BP19: N/A | BQ19: N/A | BR19: N/A | BS19: N/A | BT19: N/A | BU19: N/A | BV19: N/A | BW19: N/A | BX19: N/A | BY19: N/A | BZ19: N/A | CA19: N/A | CB19: N/A | CC19: N/A | CD19: N/A | CE19: N/A | CF19: N/A | CG19: N/A | CH19: N/A | CI19: N/A | CJ19: N/A | CK19: N/A | CL19: N/A | CM19: N/A | CN19: N/A | CO19: N/A | CP19: N/A | CQ19: N/A | CR19: N/A | CS19: N/A | CT19: N/A | CU19: N/A | CV19: N/A | CW19: N/A | CX19: N/A | CY19: N/A | CZ19: N/A
B20: Unimproved | C20: 17.2 | D20: 23.4 | E20: 25.9 | F20: 22.8 | G20: 12.2 | H20: 4.2 | I20: 5.2 | J20: 6.9 | K20: 6.9 | L20: 2.5 | M20: 16.4 | N20: 24.6 | O20: 27.2 | P20: 24.2 | Q20: 20.5 | R20: 41 | S20: 20.2 | T20: 16.2 | U20: 10.6 | V20: 5.6 | W20: 15.7 | X20: 32.1 | Y20: 12.8 | Z20: 21.6 | BB20: Unimproved | BC20: N/A | BD20: N/A | BE20: N/A | BF20: N/A | BG20: N/A | BH20: N/A | BI20: N/A | BJ20: N/A | BK20: N/A | BL20: N/A | BM20: N/A | BN20: N/A | BO20: N/A | BP20: N/A | BQ20: N/A | BR20: N/A | BS20: N/A | BT20: N/A | BU20: N/A | BV20: N/A | BW20: N/A | BX20: N/A | BY20: N/A | BZ20: N/A | CA20: N/A | CB20: N/A | CC20: N/A | CD20: N/A | CE20: N/A | CF20: N/A | CG20: N/A | CH20: N/A | CI20: N/A | CJ20: N/A | CK20: N/A | CL20: N/A | CM20: N/A | CN20: N/A | CO20: N/A | CP20: N/A | CQ20: N/A | CR20: N/A | CS20: N/A | CT20: N/A | CU20: N/A | CV20: N/A | CW20: N/A | CX20: N/A | CY20: N/A | CZ20: N/A
B21: Surface water | C21: 14.4 | D21: 13.2 | E21: 15 | F21: 11.3 | G21: 4.7 | H21: 18.5 | I21: 1.2 | J21: 0.6 | K21: 2.6 | L21: 0 | M21: 14.1 | N21: 12.2 | O21: 15.8 | P21: 12.9 | Q21: 8.8 | R21: 11.2 | S21: 17.1 | T21: 6.4 | U21: 5.7 | V21: 0.1 | W21: 9.9 | X21: 18.8 | Y21: 13.8 | Z21: 17.7 | BB21: Surface water | BC21: N/A | BD21: N/A | BE21: N/A | BF21: N/A | BG21: N/A | BH21: N/A | BI21: N/A | BJ21: N/A | BK21: N/A | BL21: N/A | BM21: N/A | BN21: N/A | BO21: N/A | BP21: N/A | BQ21: N/A | BR21: N/A | BS21: N/A | BT21: N/A | BU21: N/A | BV21: N/A | BW21: N/A | BX21: N/A | BY21: N/A | BZ21: N/A | CA21: N/A | CB21: N/A | CC21: N/A | CD21: N/A | CE21: N/A | CF21: N/A | CG21: N/A | CH21: N/A | CI21: N/A | CJ21: N/A | CK21: N/A | CL21: N/A | CM21: N/A | CN21: N/A | CO21: N/A | CP21: N/A | CQ21: N/A | CR21: N/A | CS21: N/A | CT21: N/A | CU21: N/A | CV21: N/A | CW21: N/A | CX21: N/A | CY21: N/A | CZ21: N/A
A22: Improved water point at more than 30 minutes | B22: Yes | C22: 77.6 | D22: 69.2 | E22: 65.1 | F22: 60.6 | G22: 37.7 | H22: 56.3 | I22: 40.5 | J22: 28.3 | K22: 18.6 | L22: 11.8 | M22: 78.7 | N22: 68.3 | O22: 68 | P22: 64.6 | Q22: 56.8 | R22: 51.7 | S22: 60.7 | T22: 70.4 | U22: 58.8 | V22: 12.6 | W22: 81.4 | X22: 62.6 | Y22: 58.2 | Z22: 61.8 | BA22: Improved water point at more than 30 minutes | BB22: Yes | BC22: N/A | BD22: N/A | BE22: N/A | BF22: N/A | BG22: N/A | BH22: N/A | BI22: N/A | BJ22: N/A | BK22: N/A | BL22: N/A | BM22: N/A | BN22: N/A | BO22: N/A | BP22: N/A | BQ22: N/A | BR22: N/A | BS22: N/A | BT22: N/A | BU22: N/A | BV22: N/A | BW22: N/A | BX22: N/A | BY22: N/A | BZ22: N/A | CA22: N/A | CB22: N/A | CC22: N/A | CD22: N/A | CE22: N/A | CF22: N/A | CG22: N/A | CH22: N/A | CI22: N/A | CJ22: N/A | CK22: N/A | CL22: N/A | CM22: N/A | CN22: N/A | CO22: N/A | CP22: N/A | CQ22: N/A | CR22: N/A | CS22: N/A | CT22: N/A | CU22: N/A | CV22: N/A | CW22: N/A | CX22: N/A | CY22: N/A | CZ22: N/A
B23: No | C23: 22.4 | D23: 30.8 | E23: 34.9 | F23: 39.4 | G23: 62.3 | H23: 43.7 | I23: 59.5 | J23: 71.7 | K23: 81.4 | L23: 88.2 | M23: 21.3 | N23: 31.7 | O23: 32 | P23: 35.4 | Q23: 43.2 | R23: 48.3 | S23: 39.3 | T23: 29.6 | U23: 41.2 | V23: 87.4 | W23: 18.6 | X23: 37.4 | Y23: 41.8 | Z23: 38.2 | BB23: No | BC23: N/A | BD23: N/A | BE23: N/A | BF23: N/A | BG23: N/A | BH23: N/A | BI23: N/A | BJ23: N/A | BK23: N/A | BL23: N/A | BM23: N/A | BN23: N/A | BO23: N/A | BP23: N/A | BQ23: N/A | BR23: N/A | BS23: N/A | BT23: N/A | BU23: N/A | BV23: N/A | BW23: N/A | BX23: N/A | BY23: N/A | BZ23: N/A | CA23: N/A | CB23: N/A | CC23: N/A | CD23: N/A | CE23: N/A | CF23: N/A | CG23: N/A | CH23: N/A | CI23: N/A | CJ23: N/A | CK23: N/A | CL23: N/A | CM23: N/A | CN23: N/A | CO23: N/A | CP23: N/A | CQ23: N/A | CR23: N/A | CS23: N/A | CT23: N/A | CU23: N/A | CV23: N/A | CW23: N/A | CX23: N/A | CY23: N/A | CZ23: N/A
A24: Manually calculated ratios | B24: Improved wells
B25: Improved springs
B26: Other
C27: NATIONAL wealth index quintile | H27: URBAN wealth index quintile | M27: RURAL wealth index quintile | R27: REGIONS | BA27: Raw numbers of respondents: | BB27: Use of drinking water sources | BC27: NATIONAL wealth index quintile | BH27: URBAN wealth index quintile | BM27: RURAL wealth index quintile | BR27: SUB-REGIONS:
A28: Percentage based on weighted population | C28: Poorest | D28: Poor | E28: Middle | F28: Rich | G28: Richest | H28: Poorest | I28: Poor | J28: Middle | K28: Rich | L28: Richest | M28: Poorest | N28: Poor | O28: Middle | P28: Rich | Q28: Richest | R28: Central 1 | S28: Central 2 | T28: East Central | U28: Eastern | V28: Kampala | W28: North | X28: Southwest | Y28: West Nile | Z28: Western | BA28: Water data, raw numbers (weighted) | BC28: Poorest | BD28: Poor | BE28: Middle | BF28: Rich | BG28: Richest | BH28: Poorest | BI28: Poor | BJ28: Middle | BK28: Rich | BL28: Richest | BM28: Poorest | BN28: Poor | BO28: Middle | BP28: Rich | BQ28: Richest
A29: Piped water | B29: Yes | C29: 5.6 | D29: 5.6 | E29: 6.9 | F29: 7.7 | G29: 40.5 | H29: 19.9 | I29: 50.9 | J29: 62.4 | K29: 67.5 | L29: 85.3 | M29: 5.7 | N29: 5 | O29: 6.2 | P29: 5.8 | Q29: 10.7 | R29: 13.2 | S29: 5.9 | T29: 8 | U29: 2.3 | V29: 76.1 | W29: 7.1 | X29: 14.1 | Y29: 5.2 | Z29: 16.7 | BA29: Piped water | BB29: Yes | BC29: N/A | BD29: N/A | BE29: N/A | BF29: N/A | BG29: N/A | BH29: N/A | BI29: N/A | BJ29: N/A | BK29: N/A | BL29: N/A | BM29: N/A | BN29: N/A | BO29: N/A | BP29: N/A | BQ29: N/A | BR29: N/A | BS29: N/A | BT29: N/A | BU29: N/A | BV29: N/A | BW29: N/A | BX29: N/A | BY29: N/A | BZ29: N/A | CA29: N/A | CB29: N/A | CC29: N/A | CD29: N/A | CE29: N/A | CF29: N/A | CG29: N/A | CH29: N/A | CI29: N/A | CJ29: N/A | CK29: N/A | CL29: N/A | CM29: N/A | CN29: N/A | CO29: N/A | CP29: N/A | CQ29: N/A | CR29: N/A | CS29: N/A | CT29: N/A | CU29: N/A | CV29: N/A | CW29: N/A | CX29: N/A | CY29: N/A | CZ29: N/A
B30: No | C30: 94.4 | D30: 94.4 | E30: 93.1 | F30: 92.3 | G30: 59.5 | H30: 80.1 | I30: 49.1 | J30: 37.6 | K30: 32.5 | L30: 14.7 | M30: 94.3 | N30: 95 | O30: 93.8 | P30: 94.2 | Q30: 89.3 | R30: 86.8 | S30: 94.1 | T30: 92 | U30: 97.7 | V30: 23.9 | W30: 92.9 | X30: 85.9 | Y30: 94.8 | Z30: 83.3 | BB30: No | BC30: N/A | BD30: N/A | BE30: N/A | BF30: N/A | BG30: N/A | BH30: N/A | BI30: N/A | BJ30: N/A | BK30: N/A | BL30: N/A | BM30: N/A | BN30: N/A | BO30: N/A | BP30: N/A | BQ30: N/A | BR30: N/A | BS30: N/A | BT30: N/A | BU30: N/A | BV30: N/A | BW30: N/A | BX30: N/A | BY30: N/A | BZ30: N/A | CA30: N/A | CB30: N/A | CC30: N/A | CD30: N/A | CE30: N/A | CF30: N/A | CG30: N/A | CH30: N/A | CI30: N/A | CJ30: N/A | CK30: N/A | CL30: N/A | CM30: N/A | CN30: N/A | CO30: N/A | CP30: N/A | CQ30: N/A | CR30: N/A | CS30: N/A | CT30: N/A | CU30: N/A | CV30: N/A | CW30: N/A | CX30: N/A | CY30: N/A | CZ30: N/A
A31: Piped water on premises | B31: Yes | C31: 0 | D31: 0.1 | E31: 0.2 | F31: 0.7 | G31: 15.8 | H31: 1 | I31: 7.8 | J31: 14.2 | K31: 25 | L31: 56.9 | M31: 0 | N31: 0.1 | O31: 0.1 | P31: 0.3 | Q31: 3 | R31: 5.5 | S31: 1.1 | T31: 1.8 | U31: 0.6 | V31: 29.5 | W31: 0.3 | X31: 3.1 | Y31: 1.5 | Z31: 1.2 | BA31: Piped water on premises | BB31: Yes | BC31: N/A | BD31: N/A | BE31: N/A | BF31: N/A | BG31: N/A | BH31: N/A | BI31: N/A | BJ31: N/A | BK31: N/A | BL31: N/A | BM31: N/A | BN31: N/A | BO31: N/A | BP31: N/A | BQ31: N/A | BR31: N/A | BS31: N/A | BT31: N/A | BU31: N/A | BV31: N/A | BW31: N/A | BX31: N/A | BY31: N/A | BZ31: N/A | CA31: N/A | CB31: N/A | CC31: N/A | CD31: N/A | CE31: N/A | CF31: N/A | CG31: N/A | CH31: N/A | CI31: N/A | CJ31: N/A | CK31: N/A | CL31: N/A | CM31: N/A | CN31: N/A | CO31: N/A | CP31: N/A | CQ31: N/A | CR31: N/A | CS31: N/A | CT31: N/A | CU31: N/A | CV31: N/A | CW31: N/A | CX31: N/A | CY31: N/A | CZ31: N/A
B32: No | C32: 100 | D32: 99.9 | E32: 99.8 | F32: 99.3 | G32: 84.2 | H32: 99 | I32: 92.2 | J32: 85.8 | K32: 75 | L32: 43.1 | M32: 100 | N32: 99.9 | O32: 99.9 | P32: 99.7 | Q32: 97 | R32: 94.5 | S32: 98.9 | T32: 98.2 | U32: 99.4 | V32: 70.5 | W32: 99.7 | X32: 96.9 | Y32: 98.5 | Z32: 98.8 | BB32: No | BC32: N/A | BD32: N/A | BE32: N/A | BF32: N/A | BG32: N/A | BH32: N/A | BI32: N/A | BJ32: N/A | BK32: N/A | BL32: N/A | BM32: N/A | BN32: N/A | BO32: N/A | BP32: N/A | BQ32: N/A | BR32: N/A | BS32: N/A | BT32: N/A | BU32: N/A | BV32: N/A | BW32: N/A | BX32: N/A | BY32: N/A | BZ32: N/A | CA32: N/A | CB32: N/A | CC32: N/A | CD32: N/A | CE32: N/A | CF32: N/A | CG32: N/A | CH32: N/A | CI32: N/A | CJ32: N/A | CK32: N/A | CL32: N/A | CM32: N/A | CN32: N/A | CO32: N/A | CP32: N/A | CQ32: N/A | CR32: N/A | CS32: N/A | CT32: N/A | CU32: N/A | CV32: N/A | CW32: N/A | CX32: N/A | CY32: N/A | CZ32: N/A
A33: Piped water into dwelling | B33: Yes | C33: N/A | D33: N/A | E33: N/A | F33: N/A | G33: N/A | H33: N/A | I33: N/A | J33: N/A | K33: N/A | L33: N/A | M33: N/A | N33: N/A | O33: N/A | P33: N/A | Q33: N/A | R33: N/A | S33: N/A | T33: N/A | U33: N/A | V33: N/A | W33: N/A | X33: N/A | Y33: N/A | Z33: N/A | AA33: N/A | AB33: N/A | AC33: N/A | AD33: N/A | AE33: N/A | AF33: N/A | AG33: N/A | AH33: N/A | AI33: N/A | AJ33: N/A | AK33: N/A | AL33: N/A | AM33: N/A | AN33: N/A | AO33: N/A | AP33: N/A | AQ33: N/A | AR33: N/A | AS33: N/A | AT33: N/A | AU33: N/A | AV33: N/A | AW33: N/A | AX33: N/A | AY33: N/A | BA33: Piped water into dwelling | BB33: Yes | BC33: N/A | BD33: N/A | BE33: N/A | BF33: N/A | BG33: N/A | BH33: N/A | BI33: N/A | BJ33: N/A | BK33: N/A | BL33: N/A | BM33: N/A | BN33: N/A | BO33: N/A | BP33: N/A | BQ33: N/A | BR33: N/A | BS33: N/A | BT33: N/A | BU33: N/A | BV33: N/A | BW33: N/A | BX33: N/A | BY33: N/A | BZ33: N/A | CA33: N/A | CB33: N/A | CC33: N/A | CD33: N/A | CE33: N/A | CF33: N/A | CG33: N/A | CH33: N/A | CI33: N/A | CJ33: N/A | CK33: N/A | CL33: N/A | CM33: N/A | CN33: N/A | CO33: N/A | CP33: N/A | CQ33: N/A | CR33: N/A | CS33: N/A | CT33: N/A | CU33: N/A | CV33: N/A | CW33: N/A | CX33: N/A | CY33: N/A | CZ33: N/A
B34: No | C34: N/A | D34: N/A | E34: N/A | F34: N/A | G34: N/A | H34: N/A | I34: N/A | J34: N/A | K34: N/A | L34: N/A | M34: N/A | N34: N/A | O34: N/A | P34: N/A | Q34: N/A | R34: N/A | S34: N/A | T34: N/A | U34: N/A | V34: N/A | W34: N/A | X34: N/A | Y34: N/A | Z34: N/A | AA34: N/A | AB34: N/A | AC34: N/A | AD34: N/A | AE34: N/A | AF34: N/A | AG34: N/A | AH34: N/A | AI34: N/A | AJ34: N/A | AK34: N/A | AL34: N/A | AM34: N/A | AN34: N/A | AO34: N/A | AP34: N/A | AQ34: N/A | AR34: N/A | AS34: N/A | AT34: N/A | AU34: N/A | AV34: N/A | AW34: N/A | AX34: N/A | AY34: N/A | BB34: No | BC34: N/A | BD34: N/A | BE34: N/A | BF34: N/A | BG34: N/A | BH34: N/A | BI34: N/A | BJ34: N/A | BK34: N/A | BL34: N/A | BM34: N/A | BN34: N/A | BO34: N/A | BP34: N/A | BQ34: N/A | BR34: N/A | BS34: N/A | BT34: N/A | BU34: N/A | BV34: N/A | BW34: N/A | BX34: N/A | BY34: N/A | BZ34: N/A | CA34: N/A | CB34: N/A | CC34: N/A | CD34: N/A | CE34: N/A | CF34: N/A | CG34: N/A | CH34: N/A | CI34: N/A | CJ34: N/A | CK34: N/A | CL34: N/A | CM34: N/A | CN34: N/A | CO34: N/A | CP34: N/A | CQ34: N/A | CR34: N/A | CS34: N/A | CT34: N/A | CU34: N/A | CV34: N/A | CW34: N/A | CX34: N/A | CY34: N/A | CZ34: N/A
A35: Water source on premises | B35: Yes | C35: 0.3 | D35: 1 | E35: 0.8 | F35: 2.6 | G35: 20.5 | H35: 2.1 | I35: 11 | J35: 19 | K35: 31.4 | L35: 59.1 | M35: 0.2 | N35: 0.9 | O35: 0.8 | P35: 1.3 | Q35: 7.3 | R35: 7.5 | S35: 2.4 | T35: 3.7 | U35: 2.4 | V35: 33.4 | W35: 0.6 | X35: 6 | Y35: 3.9 | Z35: 1.9 | BA35: Water source on premises | BB35: Yes | BC35: N/A | BD35: N/A | BE35: N/A | BF35: N/A | BG35: N/A | BH35: N/A | BI35: N/A | BJ35: N/A | BK35: N/A | BL35: N/A | BM35: N/A | BN35: N/A | BO35: N/A | BP35: N/A | BQ35: N/A | BR35: N/A | BS35: N/A | BT35: N/A | BU35: N/A | BV35: N/A | BW35: N/A | BX35: N/A | BY35: N/A | BZ35: N/A | CA35: N/A | CB35: N/A | CC35: N/A | CD35: N/A | CE35: N/A | CF35: N/A | CG35: N/A | CH35: N/A | CI35: N/A | CJ35: N/A | CK35: N/A | CL35: N/A | CM35: N/A | CN35: N/A | CO35: N/A | CP35: N/A | CQ35: N/A | CR35: N/A | CS35: N/A | CT35: N/A | CU35: N/A | CV35: N/A | CW35: N/A | CX35: N/A | CY35: N/A | CZ35: N/A
B36: No | C36: 99.7 | D36: 99 | E36: 99.2 | F36: 97.4 | G36: 79.5 | H36: 97.9 | I36: 89 | J36: 81 | K36: 68.6 | L36: 40.9 | M36: 99.8 | N36: 99.1 | O36: 99.2 | P36: 98.7 | Q36: 92.7 | R36: 92.5 | S36: 97.6 | T36: 96.3 | U36: 97.6 | V36: 66.6 | W36: 99.4 | X36: 94 | Y36: 96.1 | Z36: 98.1 | BB36: No | BC36: N/A | BD36: N/A | BE36: N/A | BF36: N/A | BG36: N/A | BH36: N/A | BI36: N/A | BJ36: N/A | BK36: N/A | BL36: N/A | BM36: N/A | BN36: N/A | BO36: N/A | BP36: N/A | BQ36: N/A | BR36: N/A | BS36: N/A | BT36: N/A | BU36: N/A | BV36: N/A | BW36: N/A | BX36: N/A | BY36: N/A | BZ36: N/A | CA36: N/A | CB36: N/A | CC36: N/A | CD36: N/A | CE36: N/A | CF36: N/A | CG36: N/A | CH36: N/A | CI36: N/A | CJ36: N/A | CK36: N/A | CL36: N/A | CM36: N/A | CN36: N/A | CO36: N/A | CP36: N/A | CQ36: N/A | CR36: N/A | CS36: N/A | CT36: N/A | CU36: N/A | CV36: N/A | CW36: N/A | CX36: N/A | CY36: N/A | CZ36: N/A
A37: Improved Water source on premises | B37: Yes | C37: 0.2 | D37: 0.9 | E37: 0.6 | F37: 2.5 | G37: 20.2 | H37: 2.1 | I37: 11 | J37: 19 | K37: 31.4 | L37: 59.1 | M37: 0.2 | N37: 0.7 | O37: 0.7 | P37: 1.3 | Q37: 6.8 | R37: 7.3 | S37: 2.3 | T37: 3.7 | U37: 2.2 | V37: 33.3 | W37: 0.6 | X37: 5.4 | Y37: 3.5 | Z37: 1.9 | BA37: Improved water source on premises | BB37: Yes | BC37: N/A | BD37: N/A | BE37: N/A | BF37: N/A | BG37: N/A | BH37: N/A | BI37: N/A | BJ37: N/A | BK37: N/A | BL37: N/A | BM37: N/A | BN37: N/A | BO37: N/A | BP37: N/A | BQ37: N/A | BR37: N/A | BS37: N/A | BT37: N/A | BU37: N/A | BV37: N/A | BW37: N/A | BX37: N/A | BY37: N/A | BZ37: N/A | CA37: N/A | CB37: N/A | CC37: N/A | CD37: N/A | CE37: N/A | CF37: N/A | CG37: N/A | CH37: N/A | CI37: N/A | CJ37: N/A | CK37: N/A | CL37: N/A | CM37: N/A | CN37: N/A | CO37: N/A | CP37: N/A | CQ37: N/A | CR37: N/A | CS37: N/A | CT37: N/A | CU37: N/A | CV37: N/A | CW37: N/A | CX37: N/A | CY37: N/A | CZ37: N/A
B38: No | C38: 99.8 | D38: 99.1 | E38: 99.4 | F38: 97.5 | G38: 79.8 | H38: 97.9 | I38: 89 | J38: 81 | K38: 68.6 | L38: 40.9 | M38: 99.8 | N38: 99.3 | O38: 99.3 | P38: 98.7 | Q38: 93.2 | R38: 92.7 | S38: 97.7 | T38: 96.3 | U38: 97.8 | V38: 66.7 | W38: 99.4 | X38: 94.6 | Y38: 96.5 | Z38: 98.1 | BB38: No | BC38: N/A | BD38: N/A | BE38: N/A | BF38: N/A | BG38: N/A | BH38: N/A | BI38: N/A | BJ38: N/A | BK38: N/A | BL38: N/A | BM38: N/A | BN38: N/A | BO38: N/A | BP38: N/A | BQ38: N/A | BR38: N/A | BS38: N/A | BT38: N/A | BU38: N/A | BV38: N/A | BW38: N/A | BX38: N/A | BY38: N/A | BZ38: N/A | CA38: N/A | CB38: N/A | CC38: N/A | CD38: N/A | CE38: N/A | CF38: N/A | CG38: N/A | CH38: N/A | CI38: N/A | CJ38: N/A | CK38: N/A | CL38: N/A | CM38: N/A | CN38: N/A | CO38: N/A | CP38: N/A | CQ38: N/A | CR38: N/A | CS38: N/A | CT38: N/A | CU38: N/A | CV38: N/A | CW38: N/A | CX38: N/A | CY38: N/A | CZ38: N/A
A39: Piped water on premises available when needed | B39: Yes | C39: N/A | D39: N/A | E39: N/A | F39: N/A | G39: N/A | H39: N/A | I39: N/A | J39: N/A | K39: N/A | L39: N/A | M39: N/A | N39: N/A | O39: N/A | P39: N/A | Q39: N/A | R39: N/A | S39: N/A | T39: N/A | U39: N/A | V39: N/A | W39: N/A | X39: N/A | Y39: N/A | Z39: N/A | AA39: N/A | AB39: N/A | AC39: N/A | AD39: N/A | AE39: N/A | AF39: N/A | AG39: N/A | AH39: N/A | AI39: N/A | AJ39: N/A | AK39: N/A | AL39: N/A | AM39: N/A | AN39: N/A | AO39: N/A | AP39: N/A | AQ39: N/A | AR39: N/A | AS39: N/A | AT39: N/A | AU39: N/A | AV39: N/A | AW39: N/A | AX39: N/A | AY39: N/A | BA39: Piped water on premises available when needed | BB39: Yes | BC39: N/A | BD39: N/A | BE39: N/A | BF39: N/A | BG39: N/A | BH39: N/A | BI39: N/A | BJ39: N/A | BK39: N/A | BL39: N/A | BM39: N/A | BN39: N/A | BO39: N/A | BP39: N/A | BQ39: N/A | BR39: N/A | BS39: N/A | BT39: N/A | BU39: N/A | BV39: N/A | BW39: N/A | BX39: N/A | BY39: N/A | BZ39: N/A | CA39: N/A | CB39: N/A | CC39: N/A | CD39: N/A | CE39: N/A | CF39: N/A | CG39: N/A | CH39: N/A | CI39: N/A | CJ39: N/A | CK39: N/A | CL39: N/A | CM39: N/A | CN39: N/A | CO39: N/A | CP39: N/A | CQ39: N/A | CR39: N/A | CS39: N/A | CT39: N/A | CU39: N/A | CV39: N/A | CW39: N/A | CX39: N/A | CY39: N/A | CZ39: N/A
B40: No | C40: N/A | D40: N/A | E40: N/A | F40: N/A | G40: N/A | H40: N/A | I40: N/A | J40: N/A | K40: N/A | L40: N/A | M40: N/A | N40: N/A | O40: N/A | P40: N/A | Q40: N/A | R40: N/A | S40: N/A | T40: N/A | U40: N/A | V40: N/A | W40: N/A | X40: N/A | Y40: N/A | Z40: N/A | AA40: N/A | AB40: N/A | AC40: N/A | AD40: N/A | AE40: N/A | AF40: N/A | AG40: N/A | AH40: N/A | AI40: N/A | AJ40: N/A | AK40: N/A | AL40: N/A | AM40: N/A | AN40: N/A | AO40: N/A | AP40: N/A | AQ40: N/A | AR40: N/A | AS40: N/A | AT40: N/A | AU40: N/A | AV40: N/A | AW40: N/A | AX40: N/A | AY40: N/A | BB40: No | BC40: N/A | BD40: N/A | BE40: N/A | BF40: N/A | BG40: N/A | BH40: N/A | BI40: N/A | BJ40: N/A | BK40: N/A | BL40: N/A | BM40: N/A | BN40: N/A | BO40: N/A | BP40: N/A | BQ40: N/A | BR40: N/A | BS40: N/A | BT40: N/A | BU40: N/A | BV40: N/A | BW40: N/A | BX40: N/A | BY40: N/A | BZ40: N/A | CA40: N/A | CB40: N/A | CC40: N/A | CD40: N/A | CE40: N/A | CF40: N/A | CG40: N/A | CH40: N/A | CI40: N/A | CJ40: N/A | CK40: N/A | CL40: N/A | CM40: N/A | CN40: N/A | CO40: N/A | CP40: N/A | CQ40: N/A | CR40: N/A | CS40: N/A | CT40: N/A | CU40: N/A | CV40: N/A | CW40: N/A | CX40: N/A | CY40: N/A | CZ40: N/A
A41: Water point at more than 30 minutes | B41: Yes | C41: 71.7 | D41: 66.9 | E41: 64.2 | F41: 61.3 | G41: 42.3 | H41: 48.6 | I41: 41.6 | J41: 31.6 | K41: 21 | L41: 12.5 | M41: 73.1 | N41: 66.9 | O41: 65.5 | P41: 64.6 | Q41: 59 | R41: 55.3 | S41: 61.4 | T41: 69.7 | U41: 58.8 | V41: 14.1 | W41: 76.5 | X41: 63.1 | Y41: 57.3 | Z41: 63.8 | BA41: Water point at more than 30 minutes | BB41: Yes | BC41: N/A | BD41: N/A | BE41: N/A | BF41: N/A | BG41: N/A | BH41: N/A | BI41: N/A | BJ41: N/A | BK41: N/A | BL41: N/A | BM41: N/A | BN41: N/A | BO41: N/A | BP41: N/A | BQ41: N/A | BR41: N/A | BS41: N/A | BT41: N/A | BU41: N/A | BV41: N/A | BW41: N/A | BX41: N/A | BY41: N/A | BZ41: N/A | CA41: N/A | CB41: N/A | CC41: N/A | CD41: N/A | CE41: N/A | CF41: N/A | CG41: N/A | CH41: N/A | CI41: N/A | CJ41: N/A | CK41: N/A | CL41: N/A | CM41: N/A | CN41: N/A | CO41: N/A | CP41: N/A | CQ41: N/A | CR41: N/A | CS41: N/A | CT41: N/A | CU41: N/A | CV41: N/A | CW41: N/A | CX41: N/A | CY41: N/A | CZ41: N/A
B42: No | C42: 28.3 | D42: 33.1 | E42: 35.8 | F42: 38.7 | G42: 57.7 | H42: 51.4 | I42: 58.4 | J42: 68.4 | K42: 79 | L42: 87.5 | M42: 26.9 | N42: 33.1 | O42: 34.5 | P42: 35.4 | Q42: 41 | R42: 44.7 | S42: 38.6 | T42: 30.3 | U42: 41.2 | V42: 85.9 | W42: 23.5 | X42: 36.9 | Y42: 42.7 | Z42: 36.2 | BB42: No | BC42: N/A | BD42: N/A | BE42: N/A | BF42: N/A | BG42: N/A | BH42: N/A | BI42: N/A | BJ42: N/A | BK42: N/A | BL42: N/A | BM42: N/A | BN42: N/A | BO42: N/A | BP42: N/A | BQ42: N/A | BR42: N/A | BS42: N/A | BT42: N/A | BU42: N/A | BV42: N/A | BW42: N/A | BX42: N/A | BY42: N/A | BZ42: N/A | CA42: N/A | CB42: N/A | CC42: N/A | CD42: N/A | CE42: N/A | CF42: N/A | CG42: N/A | CH42: N/A | CI42: N/A | CJ42: N/A | CK42: N/A | CL42: N/A | CM42: N/A | CN42: N/A | CO42: N/A | CP42: N/A | CQ42: N/A | CR42: N/A | CS42: N/A | CT42: N/A | CU42: N/A | CV42: N/A | CW42: N/A | CX42: N/A | CY42: N/A | CZ42: N/A
A43: Water source available when needed | B43: Yes | C43: N/A | D43: N/A | E43: N/A | F43: N/A | G43: N/A | H43: N/A | I43: N/A | J43: N/A | K43: N/A | L43: N/A | M43: N/A | N43: N/A | O43: N/A | P43: N/A | Q43: N/A | R43: N/A | S43: N/A | T43: N/A | U43: N/A | V43: N/A | W43: N/A | X43: N/A | Y43: N/A | Z43: N/A | BA43: Water source available when needed | BB43: Yes | BC43: N/A | BD43: N/A | BE43: N/A | BF43: N/A | BG43: N/A | BH43: N/A | BI43: N/A | BJ43: N/A | BK43: N/A | BL43: N/A | BM43: N/A | BN43: N/A | BO43: N/A | BP43: N/A | BQ43: N/A | BR43: N/A | BS43: N/A | BT43: N/A | BU43: N/A | BV43: N/A | BW43: N/A | BX43: N/A | BY43: N/A | BZ43: N/A | CA43: N/A | CB43: N/A | CC43: N/A | CD43: N/A | CE43: N/A | CF43: N/A | CG43: N/A | CH43: N/A | CI43: N/A | CJ43: N/A | CK43: N/A | CL43: N/A | CM43: N/A | CN43: N/A | CO43: N/A | CP43: N/A | CQ43: N/A | CR43: N/A | CS43: N/A | CT43: N/A | CU43: N/A | CV43: N/A | CW43: N/A | CX43: N/A | CY43: N/A | CZ43: N/A
B44: No | C44: N/A | D44: N/A | E44: N/A | F44: N/A | G44: N/A | H44: N/A | I44: N/A | J44: N/A | K44: N/A | L44: N/A | M44: N/A | N44: N/A | O44: N/A | P44: N/A | Q44: N/A | R44: N/A | S44: N/A | T44: N/A | U44: N/A | V44: N/A | W44: N/A | X44: N/A | Y44: N/A | Z44: N/A | BB44: No | BC44: N/A | BD44: N/A | BE44: N/A | BF44: N/A | BG44: N/A | BH44: N/A | BI44: N/A | BJ44: N/A | BK44: N/A | BL44: N/A | BM44: N/A | BN44: N/A | BO44: N/A | BP44: N/A | BQ44: N/A | BR44: N/A | BS44: N/A | BT44: N/A | BU44: N/A | BV44: N/A | BW44: N/A | BX44: N/A | BY44: N/A | BZ44: N/A | CA44: N/A | CB44: N/A | CC44: N/A | CD44: N/A | CE44: N/A | CF44: N/A | CG44: N/A | CH44: N/A | CI44: N/A | CJ44: N/A | CK44: N/A | CL44: N/A | CM44: N/A | CN44: N/A | CO44: N/A | CP44: N/A | CQ44: N/A | CR44: N/A | CS44: N/A | CT44: N/A | CU44: N/A | CV44: N/A | CW44: N/A | CX44: N/A | CY44: N/A | CZ44: N/A
A45: Improved water source available when needed | B45: Yes | C45: N/A | D45: N/A | E45: N/A | F45: N/A | G45: N/A | H45: N/A | I45: N/A | J45: N/A | K45: N/A | L45: N/A | M45: N/A | N45: N/A | O45: N/A | P45: N/A | Q45: N/A | R45: N/A | S45: N/A | T45: N/A | U45: N/A | V45: N/A | W45: N/A | X45: N/A | Y45: N/A | Z45: N/A | BA45: Improved water source available when needed | BB45: Yes | BC45: N/A | BD45: N/A | BE45: N/A | BF45: N/A | BG45: N/A | BH45: N/A | BI45: N/A | BJ45: N/A | BK45: N/A | BL45: N/A | BM45: N/A | BN45: N/A | BO45: N/A | BP45: N/A | BQ45: N/A | BR45: N/A | BS45: N/A | BT45: N/A | BU45: N/A | BV45: N/A | BW45: N/A | BX45: N/A | BY45: N/A | BZ45: N/A | CA45: N/A | CB45: N/A | CC45: N/A | CD45: N/A | CE45: N/A | CF45: N/A | CG45: N/A | CH45: N/A | CI45: N/A | CJ45: N/A | CK45: N/A | CL45: N/A | CM45: N/A | CN45: N/A | CO45: N/A | CP45: N/A | CQ45: N/A | CR45: N/A | CS45: N/A | CT45: N/A | CU45: N/A | CV45: N/A | CW45: N/A | CX45: N/A | CY45: N/A | CZ45: N/A
B46: No | C46: N/A | D46: N/A | E46: N/A | F46: N/A | G46: N/A | H46: N/A | I46: N/A | J46: N/A | K46: N/A | L46: N/A | M46: N/A | N46: N/A | O46: N/A | P46: N/A | Q46: N/A | R46: N/A | S46: N/A | T46: N/A | U46: N/A | V46: N/A | W46: N/A | X46: N/A | Y46: N/A | Z46: N/A | BB46: No | BC46: N/A | BD46: N/A | BE46: N/A | BF46: N/A | BG46: N/A | BH46: N/A | BI46: N/A | BJ46: N/A | BK46: N/A | BL46: N/A | BM46: N/A | BN46: N/A | BO46: N/A | BP46: N/A | BQ46: N/A | BR46: N/A | BS46: N/A | BT46: N/A | BU46: N/A | BV46: N/A | BW46: N/A | BX46: N/A | BY46: N/A | BZ46: N/A | CA46: N/A | CB46: N/A | CC46: N/A | CD46: N/A | CE46: N/A | CF46: N/A | CG46: N/A | CH46: N/A | CI46: N/A | CJ46: N/A | CK46: N/A | CL46: N/A | CM46: N/A | CN46: N/A | CO46: N/A | CP46: N/A | CQ46: N/A | CR46: N/A | CS46: N/A | CT46: N/A | CU46: N/A | CV46: N/A | CW46: N/A | CX46: N/A | CY46: N/A | CZ46: N/A
A47: Microbiological quality at point of collection | B47: Not contaminated (No E. coli in 100 mL) | C47: N/A | D47: N/A | E47: N/A | F47: N/A | G47: N/A | H47: N/A | I47: N/A | J47: N/A | K47: N/A | L47: N/A | M47: N/A | N47: N/A | O47: N/A | P47: N/A | Q47: N/A | R47: N/A | S47: N/A | T47: N/A | U47: N/A | V47: N/A | W47: N/A | X47: N/A | Y47: N/A | Z47: N/A | AA47: N/A | AB47: N/A | AC47: N/A | AD47: N/A | AE47: N/A | AF47: N/A | AG47: N/A | AH47: N/A | AI47: N/A | AJ47: N/A | AK47: N/A | AL47: N/A | AM47: N/A | AN47: N/A | AO47: N/A | AP47: N/A | AQ47: N/A | AR47: N/A | AS47: N/A | AT47: N/A | AU47: N/A | AV47: N/A | AW47: N/A | AX47: N/A | AY47: N/A | BA47: Microbiological quality at point of collection | BB47: Not contaminated (No E. coli in 100 mL) | BC47: N/A | BD47: N/A | BE47: N/A | BF47: N/A | BG47: N/A | BH47: N/A | BI47: N/A | BJ47: N/A | BK47: N/A | BL47: N/A | BM47: N/A | BN47: N/A | BO47: N/A | BP47: N/A | BQ47: N/A | BR47: N/A | BS47: N/A | BT47: N/A | BU47: N/A | BV47: N/A | BW47: N/A | BX47: N/A | BY47: N/A | BZ47: N/A | CA47: N/A | CB47: N/A | CC47: N/A | CD47: N/A | CE47: N/A | CF47: N/A | CG47: N/A | CH47: N/A | CI47: N/A | CJ47: N/A | CK47: N/A | CL47: N/A | CM47: N/A | CN47: N/A | CO47: N/A | CP47: N/A | CQ47: N/A | CR47: N/A | CS47: N/A | CT47: N/A | CU47: N/A | CV47: N/A | CW47: N/A | CX47: N/A | CY47: N/A | CZ47: N/A
B48: Contaminated (E. coli detected in 100 mL) | C48: N/A | D48: N/A | E48: N/A | F48: N/A | G48: N/A | H48: N/A | I48: N/A | J48: N/A | K48: N/A | L48: N/A | M48: N/A | N48: N/A | O48: N/A | P48: N/A | Q48: N/A | R48: N/A | S48: N/A | T48: N/A | U48: N/A | V48: N/A | W48: N/A | X48: N/A | Y48: N/A | Z48: N/A | AA48: N/A | AB48: N/A | AC48: N/A | AD48: N/A | AE48: N/A | AF48: N/A | AG48: N/A | AH48: N/A | AI48: N/A | AJ48: N/A | AK48: N/A | AL48: N/A | AM48: N/A | AN48: N/A | AO48: N/A | AP48: N/A | AQ48: N/A | AR48: N/A | AS48: N/A | AT48: N/A | AU48: N/A | AV48: N/A | AW48: N/A | AX48: N/A | AY48: N/A | BB48: Contaminated (E. coli detected in 100 mL) | BC48: N/A | BD48: N/A | BE48: N/A | BF48: N/A | BG48: N/A | BH48: N/A | BI48: N/A | BJ48: N/A | BK48: N/A | BL48: N/A | BM48: N/A | BN48: N/A | BO48: N/A | BP48: N/A | BQ48: N/A | BR48: N/A | BS48: N/A | BT48: N/A | BU48: N/A | BV48: N/A | BW48: N/A | BX48: N/A | BY48: N/A | BZ48: N/A | CA48: N/A | CB48: N/A | CC48: N/A | CD48: N/A | CE48: N/A | CF48: N/A | CG48: N/A | CH48: N/A | CI48: N/A | CJ48: N/A | CK48: N/A | CL48: N/A | CM48: N/A | CN48: N/A | CO48: N/A | CP48: N/A | CQ48: N/A | CR48: N/A | CS48: N/A | CT48: N/A | CU48: N/A | CV48: N/A | CW48: N/A | CX48: N/A | CY48: N/A | CZ48: N/A
B49: Highly contaminated (>100 CFU/100 mL) | C49: N/A | D49: N/A | E49: N/A | F49: N/A | G49: N/A | H49: N/A | I49: N/A | J49: N/A | K49: N/A | L49: N/A | M49: N/A | N49: N/A | O49: N/A | P49: N/A | Q49: N/A | R49: N/A | S49: N/A | T49: N/A | U49: N/A | V49: N/A | W49: N/A | X49: N/A | Y49: N/A | Z49: N/A | AA49: N/A | AB49: N/A | AC49: N/A | AD49: N/A | AE49: N/A | AF49: N/A | AG49: N/A | AH49: N/A | AI49: N/A | AJ49: N/A | AK49: N/A | AL49: N/A | AM49: N/A | AN49: N/A | AO49: N/A | AP49: N/A | AQ49: N/A | AR49: N/A | AS49: N/A | AT49: N/A | AU49: N/A | AV49: N/A | AW49: N/A | AX49: N/A | AY49: N/A | BB49: Highly contaminated (>100 CFU/100 mL) | BC49: N/A | BD49: N/A | BE49: N/A | BF49: N/A | BG49: N/A | BH49: N/A | BI49: N/A | BJ49: N/A | BK49: N/A | BL49: N/A | BM49: N/A | BN49: N/A | BO49: N/A | BP49: N/A | BQ49: N/A | BR49: N/A | BS49: N/A | BT49: N/A | BU49: N/A | BV49: N/A | BW49: N/A | BX49: N/A | BY49: N/A | BZ49: N/A | CA49: N/A | CB49: N/A | CC49: N/A | CD49: N/A | CE49: N/A | CF49: N/A | CG49: N/A | CH49: N/A | CI49: N/A | CJ49: N/A | CK49: N/A | CL49: N/A | CM49: N/A | CN49: N/A | CO49: N/A | CP49: N/A | CQ49: N/A | CR49: N/A | CS49: N/A | CT49: N/A | CU49: N/A | CV49: N/A | CW49: N/A | CX49: N/A | CY49: N/A | CZ49: N/A
A50: Microbiological quality of improved water sources at point of collection | B50: Not contaminated (No E. coli in 100 mL) | C50: N/A | D50: N/A | E50: N/A | F50: N/A | G50: N/A | H50: N/A | I50: N/A | J50: N/A | K50: N/A | L50: N/A | M50: N/A | N50: N/A | O50: N/A | P50: N/A | Q50: N/A | R50: N/A | S50: N/A | T50: N/A | U50: N/A | V50: N/A | W50: N/A | X50: N/A | Y50: N/A | Z50: N/A | AA50: N/A | AB50: N/A | AC50: N/A | AD50: N/A | AE50: N/A | AF50: N/A | AG50: N/A | AH50: N/A | AI50: N/A | AJ50: N/A | AK50: N/A | AL50: N/A | AM50: N/A | AN50: N/A | AO50: N/A | AP50: N/A | AQ50: N/A | AR50: N/A | AS50: N/A | AT50: N/A | AU50: N/A | AV50: N/A | AW50: N/A | AX50: N/A | AY50: N/A | BA50: Microbiological quality of improved water sources at point of collection | BB50: Not contaminated (No E. coli in 100 mL) | BC50: N/A | BD50: N/A | BE50: N/A | BF50: N/A | BG50: N/A | BH50: N/A | BI50: N/A | BJ50: N/A | BK50: N/A | BL50: N/A | BM50: N/A | BN50: N/A | BO50: N/A | BP50: N/A | BQ50: N/A | BR50: N/A | BS50: N/A | BT50: N/A | BU50: N/A | BV50: N/A | BW50: N/A | BX50: N/A | BY50: N/A | BZ50: N/A | CA50: N/A | CB50: N/A | CC50: N/A | CD50: N/A | CE50: N/A | CF50: N/A | CG50: N/A | CH50: N/A | CI50: N/A | CJ50: N/A | CK50: N/A | CL50: N/A | CM50: N/A | CN50: N/A | CO50: N/A | CP50: N/A | CQ50: N/A | CR50: N/A | CS50: N/A | CT50: N/A | CU50: N/A | CV50: N/A | CW50: N/A | CX50: N/A | CY50: N/A | CZ50: N/A
B51: Contaminated (E. coli detected in 100 mL) | C51: N/A | D51: N/A | E51: N/A | F51: N/A | G51: N/A | H51: N/A | I51: N/A | J51: N/A | K51: N/A | L51: N/A | M51: N/A | N51: N/A | O51: N/A | P51: N/A | Q51: N/A | R51: N/A | S51: N/A | T51: N/A | U51: N/A | V51: N/A | W51: N/A | X51: N/A | Y51: N/A | Z51: N/A | AA51: N/A | AB51: N/A | AC51: N/A | AD51: N/A | AE51: N/A | AF51: N/A | AG51: N/A | AH51: N/A | AI51: N/A | AJ51: N/A | AK51: N/A | AL51: N/A | AM51: N/A | AN51: N/A | AO51: N/A | AP51: N/A | AQ51: N/A | AR51: N/A | AS51: N/A | AT51: N/A | AU51: N/A | AV51: N/A | AW51: N/A | AX51: N/A | AY51: N/A | BB51: Contaminated (E. coli detected in 100 mL) | BC51: N/A | BD51: N/A | BE51: N/A | BF51: N/A | BG51: N/A | BH51: N/A | BI51: N/A | BJ51: N/A | BK51: N/A | BL51: N/A | BM51: N/A | BN51: N/A | BO51: N/A | BP51: N/A | BQ51: N/A | BR51: N/A | BS51: N/A | BT51: N/A | BU51: N/A | BV51: N/A | BW51: N/A | BX51: N/A | BY51: N/A | BZ51: N/A | CA51: N/A | CB51: N/A | CC51: N/A | CD51: N/A | CE51: N/A | CF51: N/A | CG51: N/A | CH51: N/A | CI51: N/A | CJ51: N/A | CK51: N/A | CL51: N/A | CM51: N/A | CN51: N/A | CO51: N/A | CP51: N/A | CQ51: N/A | CR51: N/A | CS51: N/A | CT51: N/A | CU51: N/A | CV51: N/A | CW51: N/A | CX51: N/A | CY51: N/A | CZ51: N/A
B52: Highly contaminated (>100 CFU/100 mL) | C52: N/A | D52: N/A | E52: N/A | F52: N/A | G52: N/A | H52: N/A | I52: N/A | J52: N/A | K52: N/A | L52: N/A | M52: N/A | N52: N/A | O52: N/A | P52: N/A | Q52: N/A | R52: N/A | S52: N/A | T52: N/A | U52: N/A | V52: N/A | W52: N/A | X52: N/A | Y52: N/A | Z52: N/A | AA52: N/A | AB52: N/A | AC52: N/A | AD52: N/A | AE52: N/A | AF52: N/A | AG52: N/A | AH52: N/A | AI52: N/A | AJ52: N/A | AK52: N/A | AL52: N/A | AM52: N/A | AN52: N/A | AO52: N/A | AP52: N/A | AQ52: N/A | AR52: N/A | AS52: N/A | AT52: N/A | AU52: N/A | AV52: N/A | AW52: N/A | AX52: N/A | AY52: N/A | BB52: Highly contaminated (>100 CFU/100 mL) | BC52: N/A | BD52: N/A | BE52: N/A | BF52: N/A | BG52: N/A | BH52: N/A | BI52: N/A | BJ52: N/A | BK52: N/A | BL52: N/A | BM52: N/A | BN52: N/A | BO52: N/A | BP52: N/A | BQ52: N/A | BR52: N/A | BS52: N/A | BT52: N/A | BU52: N/A | BV52: N/A | BW52: N/A | BX52: N/A | BY52: N/A | BZ52: N/A | CA52: N/A | CB52: N/A | CC52: N/A | CD52: N/A | CE52: N/A | CF52: N/A | CG52: N/A | CH52: N/A | CI52: N/A | CJ52: N/A | CK52: N/A | CL52: N/A | CM52: N/A | CN52: N/A | CO52: N/A | CP52: N/A | CQ52: N/A | CR52: N/A | CS52: N/A | CT52: N/A | CU52: N/A | CV52: N/A | CW52: N/A | CX52: N/A | CY52: N/A | CZ52: N/A
A53: Microbiological quality of piped on premises at point of collection | B53: Not contaminated (No E. coli in 100 mL) | C53: N/A | D53: N/A | E53: N/A | F53: N/A | G53: N/A | H53: N/A | I53: N/A | J53: N/A | K53: N/A | L53: N/A | M53: N/A | N53: N/A | O53: N/A | P53: N/A | Q53: N/A | R53: N/A | S53: N/A | T53: N/A | U53: N/A | V53: N/A | W53: N/A | X53: N/A | Y53: N/A | Z53: N/A | AA53: N/A | AB53: N/A | AC53: N/A | AD53: N/A | AE53: N/A | AF53: N/A | AG53: N/A | AH53: N/A | AI53: N/A | AJ53: N/A | AK53: N/A | AL53: N/A | AM53: N/A | AN53: N/A | AO53: N/A | AP53: N/A | AQ53: N/A | AR53: N/A | AS53: N/A | AT53: N/A | AU53: N/A | AV53: N/A | AW53: N/A | AX53: N/A | AY53: N/A | BA53: Microbiological quality of piped on premises at point of collection | BB53: Not contaminated (No E. coli in 100 mL) | BC53: N/A | BD53: N/A | BE53: N/A | BF53: N/A | BG53: N/A | BH53: N/A | BI53: N/A | BJ53: N/A | BK53: N/A | BL53: N/A | BM53: N/A | BN53: N/A | BO53: N/A | BP53: N/A | BQ53: N/A | BR53: N/A | BS53: N/A | BT53: N/A | BU53: N/A | BV53: N/A | BW53: N/A | BX53: N/A | BY53: N/A | BZ53: N/A | CA53: N/A | CB53: N/A | CC53: N/A | CD53: N/A | CE53: N/A | CF53: N/A | CG53: N/A | CH53: N/A | CI53: N/A | CJ53: N/A | CK53: N/A | CL53: N/A | CM53: N/A | CN53: N/A | CO53: N/A | CP53: N/A | CQ53: N/A | CR53: N/A | CS53: N/A | CT53: N/A | CU53: N/A | CV53: N/A | CW53: N/A | CX53: N/A | CY53: N/A | CZ53: N/A
B54: Contaminated (E. coli detected in 100 mL) | C54: N/A | D54: N/A | E54: N/A | F54: N/A | G54: N/A | H54: N/A | I54: N/A | J54: N/A | K54: N/A | L54: N/A | M54: N/A | N54: N/A | O54: N/A | P54: N/A | Q54: N/A | R54: N/A | S54: N/A | T54: N/A | U54: N/A | V54: N/A | W54: N/A | X54: N/A | Y54: N/A | Z54: N/A | AA54: N/A | AB54: N/A | AC54: N/A | AD54: N/A | AE54: N/A | AF54: N/A | AG54: N/A | AH54: N/A | AI54: N/A | AJ54: N/A | AK54: N/A | AL54: N/A | AM54: N/A | AN54: N/A | AO54: N/A | AP54: N/A | AQ54: N/A | AR54: N/A | AS54: N/A | AT54: N/A | AU54: N/A | AV54: N/A | AW54: N/A | AX54: N/A | AY54: N/A | BB54: Contaminated (E. coli detected in 100 mL) | BC54: N/A | BD54: N/A | BE54: N/A | BF54: N/A | BG54: N/A | BH54: N/A | BI54: N/A | BJ54: N/A | BK54: N/A | BL54: N/A | BM54: N/A | BN54: N/A | BO54: N/A | BP54: N/A | BQ54: N/A | BR54: N/A | BS54: N/A | BT54: N/A | BU54: N/A | BV54: N/A | BW54: N/A | BX54: N/A | BY54: N/A | BZ54: N/A | CA54: N/A | CB54: N/A | CC54: N/A | CD54: N/A | CE54: N/A | CF54: N/A | CG54: N/A | CH54: N/A | CI54: N/A | CJ54: N/A | CK54: N/A | CL54: N/A | CM54: N/A | CN54: N/A | CO54: N/A | CP54: N/A | CQ54: N/A | CR54: N/A | CS54: N/A | CT54: N/A | CU54: N/A | CV54: N/A | CW54: N/A | CX54: N/A | CY54: N/A | CZ54: N/A
B55: Highly contaminated (>100 CFU/100 mL) | C55: N/A | D55: N/A | E55: N/A | F55: N/A | G55: N/A | H55: N/A | I55: N/A | J55: N/A | K55: N/A | L55: N/A | M55: N/A | N55: N/A | O55: N/A | P55: N/A | Q55: N/A | R55: N/A | S55: N/A | T55: N/A | U55: N/A | V55: N/A | W55: N/A | X55: N/A | Y55: N/A | Z55: N/A | AA55: N/A | AB55: N/A | AC55: N/A | AD55: N/A | AE55: N/A | AF55: N/A | AG55: N/A | AH55: N/A | AI55: N/A | AJ55: N/A | AK55: N/A | AL55: N/A | AM55: N/A | AN55: N/A | AO55: N/A | AP55: N/A | AQ55: N/A | AR55: N/A | AS55: N/A | AT55: N/A | AU55: N/A | AV55: N/A | AW55: N/A | AX55: N/A | AY55: N/A | BB55: Highly contaminated (>100 CFU/100 mL) | BC55: N/A | BD55: N/A | BE55: N/A | BF55: N/A | BG55: N/A | BH55: N/A | BI55: N/A | BJ55: N/A | BK55: N/A | BL55: N/A | BM55: N/A | BN55: N/A | BO55: N/A | BP55: N/A | BQ55: N/A | BR55: N/A | BS55: N/A | BT55: N/A | BU55: N/A | BV55: N/A | BW55: N/A | BX55: N/A | BY55: N/A | BZ55: N/A | CA55: N/A | CB55: N/A | CC55: N/A | CD55: N/A | CE55: N/A | CF55: N/A | CG55: N/A | CH55: N/A | CI55: N/A | CJ55: N/A | CK55: N/A | CL55: N/A | CM55: N/A | CN55: N/A | CO55: N/A | CP55: N/A | CQ55: N/A | CR55: N/A | CS55: N/A | CT55: N/A | CU55: N/A | CV55: N/A | CW55: N/A | CX55: N/A | CY55: N/A | CZ55: N/A
C56: NATIONAL wealth index quintile | H56: URBAN wealth index quintile | M56: RURAL wealth index quintile | R56: REGIONS | BA56: Raw numbers of respondents: | BB56: Use of drinking water sources | BC56: NATIONAL wealth index quintile | BH56: URBAN wealth index quintile | BM56: RURAL wealth index quintile | BR56: SUB-REGIONS:
A57: Percentage based on weighted population | C57: Poorest | D57: Poor | E57: Middle | F57: Rich | G57: Richest | H57: Poorest | I57: Poor | J57: Middle | K57: Rich | L57: Richest | M57: Poorest | N57: Poor | O57: Middle | P57: Rich | Q57: Richest | R57: Central 1 | S57: Central 2 | T57: East Central | U57: Eastern | V57: Kampala | W57: North | X57: Southwest | Y57: West Nile | Z57: Western | BA57: Water data, raw numbers (weighted) | BC57: Poorest | BD57: Poor | BE57: Middle | BF57: Rich | BG57: Richest | BH57: Poorest | BI57: Poor | BJ57: Middle | BK57: Rich | BL57: Richest | BM57: Poorest | BN57: Poor | BO57: Middle | BP57: Rich | BQ57: Richest
A58: Source of drinking water | B58: Piped into dwelling | C58: 0 | D58: 0 | E58: 0.03571370415 | F58: 0.03569527881 | G58: 4.106422651 | H58: 0 | I58: 0.2285974987 | J58: 0.2774187996 | K58: 3.2540027 | L58: 25.25769283 | M58: 0 | N58: 0 | O58: 0.04103919582 | P58: 0.04107156993 | Q58: 0.3780833319 | R58: 0.5838635815 | S58: 0.0768730507 | T58: 0.6001545578 | U58: 0.1011338597 | V58: 10.22949757 | W58: 0.2872887995 | X58: 0.2918289761 | Y58: 0 | Z58: 0.08473298729
B59: Piped to yard/plot | C59: 0.02692733674 | D59: 0.1014195126 | E59: 0.133737031 | F59: 0.6497329506 | G59: 11.56198284 | H59: 0.9525233635 | I59: 7.584965234 | J59: 13.81506523 | K59: 21.58882871 | L59: 31.19686699 | M59: 0 | N59: 0.1166423778 | O59: 0.0457261709 | P59: 0.2655531033 | Q59: 2.656190898 | R59: 4.902175955 | S59: 0.9932849998 | T59: 1.206963755 | U59: 0.488103764 | V59: 19.02372544 | W59: 0 | X59: 2.748114921 | Y59: 1.484237107 | Z59: 1.072717011
B60: Public tap/standpipe | C60: 5.620545279 | D60: 5.464266211 | E60: 6.769422648 | F60: 6.967471815 | G60: 24.57036213 | H60: 18.9076263 | I60: 42.94226785 | J60: 47.67108672 | K60: 41.98642094 | L60: 28.17207494 | M60: 5.702216675 | N60: 4.910508177 | O60: 6.099824407 | P60: 5.443751829 | Q60: 7.701758706 | R60: 7.672582749 | S60: 4.863755442 | T60: 6.137349294 | U60: 1.7143559 | V60: 46.19176764 | W60: 6.813045714 | X60: 11.0217193 | Y60: 3.704566212 | Z60: 15.49801573
B61: Borehole in yard/plot | C61: 0.2342051487 | D61: 0.484765621 | E61: 0.2072877449 | F61: 0.8018545154 | G61: 0.3984642841 | H61: 0 | I61: 0 | J61: 0 | K61: 0.2988957223 | L61: 0 | M61: 0.2693402011 | N61: 0.44661104 | O61: 0.3134772929 | P61: 0.4530146864 | Q61: 0.9179112004 | R61: 0 | S61: 0.7132563478 | T61: 1.675730877 | U61: 0.8717547964 | V61: 0 | W61: 0.1334816353 | X61: 0.1034331178 | Y61: 0.1454350314 | Z61: 0.1222796929
B62: Public borehole | C62: 48.86415534 | D62: 37.49624123 | E62: 26.96430286 | F62: 31.20262144 | G62: 21.65328453 | H62: 41.21605983 | I62: 23.51546503 | J62: 11.13367643 | K62: 7.375527646 | L62: 1.000649193 | M62: 50.59023476 | N62: 37.28807158 | O62: 26.50510581 | P62: 30.92193829 | Q62: 33.16298982 | R62: 14.53327453 | S62: 34.45635481 | T62: 54.99646302 | U62: 48.11566252 | V62: 0.2146788849 | W62: 60.51048127 | X62: 5.568559484 | Y62: 38.2304067 | Z62: 20.72334057
B63: Protected well/spring in yard/plot | C63: 0.02506262768 | D63: 0.0135212893 | E63: 0.1507818193 | F63: 0.1998970808 | G63: 0.1535676458 | H63: 0 | I63: 1.197621842 | J63: 0.5275617564 | K63: 0 | L63: 0 | M63: 0.02882247985 | N63: 0.01555080767 | O63: 0.1732658304 | P63: 0.05004613354 | Q63: 0.09744504737 | R63: 0.01847134369 | S63: 0 | T63: 0 | U63: 0.09545162287 | V63: 0.7740537669 | W63: 0 | X63: 0.138126033 | Y63: 0.2523009809 | Z63: 0.1109920345
B64: Protected public well/spring | C64: 13.44395969 | D64: 18.87555342 | E64: 23.29396123 | F64: 24.15032148 | G64: 17.74718973 | H64: 16.26169662 | I64: 16.85236113 | J64: 17.33857273 | K64: 12.62865412 | L64: 10.32237072 | M64: 12.66449675 | N64: 19.70277888 | O64: 22.12743063 | P64: 23.99103867 | Q64: 22.63532941 | R64: 17.08548889 | S64: 20.28341817 | T64: 12.69643527 | U64: 27.94950669 | V64: 16.18810184 | W64: 6.606488013 | X64: 27.17528013 | Y64: 28.97557288 | Z64: 22.68314425
B65: Unprotected well/spring in yard/plot | C65: 0.1263864926 | D65: 0 | E65: 0.1044585283 | F65: 0 | G65: 0.09821958498 | H65: 0 | I65: 0 | J65: 0 | K65: 0 | L65: 0 | M65: 0.01820950366 | N65: 0.1272425916 | O65: 0.04236994578 | P65: 0.07772630744 | Q65: 0.11286877 | R65: 0 | S65: 0.08145785695 | T65: 0 | U65: 0.2032840524 | V65: 0 | W65: 0.01931068814 | X65: 0.2051123853 | Y65: 0 | Z65: 0
B66: Unprotected public well/spring | C66: 17.03065988 | D66: 23.38439708 | E66: 25.56103488 | F66: 22.46189017 | G66: 11.52629199 | H66: 3.981805227 | I66: 4.669787229 | J66: 6.452849825 | K66: 6.239185614 | L66: 2.393866542 | M66: 16.34943217 | N66: 24.40358274 | O66: 27.00627916 | P66: 23.73484545 | Q66: 19.88907329 | R66: 40.47118952 | S66: 19.49756033 | T66: 16.082416 | U66: 10.41895101 | V66: 5.135776345 | W66: 15.48739508 | X66: 31.64592634 | Y66: 12.78390959 | Z66: 21.52808716
B67: River/stream | C67: 9.191003186 | D67: 7.304852453 | E67: 8.68450696 | F67: 5.236533098 | G67: 2.507525594 | H67: 14.81946194 | I67: 0.7096651827 | J67: 0.5629271261 | K67: 2.623475307 | L67: 0 | M67: 8.572835092 | N67: 7.609730955 | O67: 8.782514457 | P67: 5.722744263 | Q67: 4.370397707 | R67: 0.3251154361 | S67: 5.212581326 | T67: 0.5348345307 | U67: 4.258192069 | V67: 0.1286250693 | W67: 7.140681387 | X67: 10.41929803 | Y67: 11.77946049 | Z67: 14.87523431
B68: Pond/lake | C68: 3.516952017 | D68: 4.087719332 | E68: 5.051460557 | F68: 4.930037596 | G68: 1.736430138 | H68: 3.670979346 | I68: 0.5080428222 | J68: 0 | K68: 0 | L68: 0 | M68: 3.596212827 | N68: 3.276929393 | O68: 5.290091613 | P68: 5.773779821 | Q68: 3.655464647 | R68: 8.048628027 | S68: 8.624517705 | T68: 4.815662832 | U68: 1.273710648 | V68: 0 | W68: 1.444430605 | X68: 6.19996706 | Y68: 2.036002574 | Z68: 2.662067182
B69: Dam | C69: 1.696134068 | D69: 1.776669081 | E69: 1.215406102 | F69: 1.081518123 | G69: 0.4596952453 | H69: 0 | I69: 0 | J69: 0 | K69: 0 | L69: 0 | M69: 1.950585175 | N69: 1.304303627 | O69: 1.704193666 | P69: 1.426928698 | Q69: 0.7766206554 | R69: 2.850662032 | S69: 3.293787091 | T69: 1.072964336 | U69: 0.1778735458 | V69: 0 | W69: 1.302355616 | X69: 2.114158611 | Y69: 0 | Z69: 0.1395482268
B70: Rainwater | C70: 0.04221999497 | D70: 0.142438767 | E70: 0.1975829809 | F70: 0.8023243234 | G70: 1.727937777 | H70: 0 | I70: 0.298238826 | J70: 0.7898674836 | K70: 0.9846178079 | L70: 0.4054454799 | M70: 0.04855376579 | N70: 0.0666305655 | O70: 0.1568665039 | P70: 0.6171507204 | Q70: 2.087471504 | R70: 1.78133188 | S70: 1.244487059 | T70: 0 | U70: 0.02212840594 | V70: 0.1286690778 | W70: 0 | X70: 2.100430481 | Y70: 0 | Z70: 0.03699734482
B71: Tanker truck | C71: 0 | D71: 0 | E71: 0 | F71: 0 | G71: 0.1050592788 | H71: 0 | I71: 0 | J71: 0 | K71: 0 | L71: 0 | M71: 0 | N71: 0 | O71: 0 | P71: 0 | Q71: 0.1207285856 | R71: 0.1998564807 | S71: 0 | T71: 0 | U71: 0 | V71: 0 | W71: 0 | X71: 0 | Y71: 0 | Z71: 0
B72: Vendor = Cart with small tank | C72: 0 | D72: 0 | E72: 0.1317893147 | F72: 0.1475350826 | G72: 0.7527712987 | H72: 0 | I72: 0.5501058036 | J72: 0.4331316171 | K72: 1.474083091 | L72: 0.4419428785 | M72: 0 | N72: 0 | O72: 0.03343881746 | P72: 0.1979842271 | Q72: 0.5204156407 | R72: 0.9989323771 | S72: 0.02476897092 | T72: 0 | U72: 0 | V72: 0.622528683 | W72: 0.03546861906 | X72: 0 | Y72: 0 | Z72: 0.3729385184
B73: Bottled water | C73: 0 | D73: 0.01372446325 | E73: 0.01372185814 | F73: 0.03377389269 | G73: 0.3233097997 | H73: 0 | I73: 0.4327714718 | J73: 0.5944899816 | K73: 0.8900536945 | L73: 0.6708945791 | M73: 0 | N73: 0.01578447761 | O73: 0.01576800941 | P73: 0 | Q73: 0.02264037508 | R73: 0.03747932324 | S73: 0.05720787405 | T73: 0.06505276327 | U73: 0.01264173246 | V73: 0.8951263564 | W73: 0 | X73: 0.05647183668 | Y73: 0 | Z73: 0
B74: Gravity flow water | C74: 0.1610797256 | D74: 0.8279648543 | E74: 1.318403923 | F74: 0.9251425104 | G74: 0.04342178745 | H74: 0 | I74: 0 | J74: 0 | K74: 0 | L74: 0 | M74: 0.1852446282 | N74: 0.6851935019 | O74: 1.515405659 | P74: 0.9355651665 | Q74: 0.4451054222 | R74: 0 | S74: 0 | T74: 0 | U74: 4.297249394 | V74: 0 | W74: 0 | X74: 0 | Y74: 0.5836262344 | Z74: 0
B75: Other | C75: 0.02070921029 | D75: 0.0264666829 | E75: 0.1664278566 | F75: 0.3736506509 | G75: 0.5280636915 | H75: 0.1898473833 | I75: 0.5101100865 | J75: 0.4033523065 | K75: 0.6562546442 | L75: 0.138195851 | M75: 0.02381597029 | N75: 0.03043927884 | O75: 0.1472028251 | P75: 0.3468610689 | Q75: 0.4495049858 | R75: 0.4909478699 | S75: 0.5766889604 | T75: 0.1159727663 | U75: 0 | V75: 0.4674493268 | W75: 0.2195725797 | X75: 0.2115732842 | Y75: 0.02448220716 | Z75: 0.08990498903
A108: =A1026 -> Uganda
A109: =A1034 -> 2006
A110: Use of sanitation facilities
A111: by wealth quintile and sub-national region
A112: Notes:
A113: WHO/UNICEF JMP customised wealth index excludes water,
A114: sanitation and hygiene assets.
A115: Survey used for analysis: | B115: =A1025 -> DHS06
A117: =B1029 -> Ratio of Shared improved based on: | B117: AIS11
A120: Use of sanitation facilities | C120: NATIONAL wealth index quintile | H120: URBAN wealth index quintile | M120: RURAL wealth index quintile | R120: REGIONS | BA120: Raw numbers of respondents: | BB120: Use of sanitation facilities | BC120: NATIONAL wealth index quintile | BH120: URBAN wealth index quintile | BM120: RURAL wealth index quintile | BR120: SUB-REGIONS:
A121: Weighted percentage (used in graphs) | C121: Poorest | D121: Poor | E121: Middle | F121: Rich | G121: Richest | H121: Poorest | I121: Poor | J121: Middle | K121: Rich | L121: Richest | M121: Poorest | N121: Poor | O121: Middle | P121: Rich | Q121: Richest | R121: Central 1 | S121: Central 2 | T121: East Central | U121: Eastern | V121: Kampala | W121: North | X121: Southwest | Y121: West Nile | Z121: Western | BA121: Sanitation data, raw numbers (weighted) | BC121: Poorest | BD121: Poor | BE121: Middle | BF121: Rich | BG121: Richest | BH121: Poorest | BI121: Poor | BJ121: Middle | BK121: Rich | BL121: Richest | BM121: Poorest | BN121: Poor | BO121: Middle | BP121: Rich | BQ121: Richest
A122: Sanitation | B122: Improved | C122: =C153+C154+C156+C158+C160 -> 15.01008165 | D122: =D153+D154+D156+D158+D160 -> 8.365889761 | E122: 11.81588586 | F122: 22.78139412 | G122: 64.6282245 | H122: 28.07422341 | I122: 57.89151826 | J122: 68.68376412 | K122: 78.7629262 | L122: 87.09049265 | M122: 15.52509386 | N122: 7.589086431 | O122: 10.24652842 | P122: 14.66348272 | Q122: 44.90951371 | R122: N/A | S122: N/A | T122: N/A | U122: N/A | V122: N/A | W122: N/A | X122: N/A | Y122: N/A | Z122: N/A | BA122: Sanitation | BB122: Improved | BC122: N/A | BD122: N/A | BE122: N/A | BF122: N/A | BG122: N/A | BH122: N/A | BI122: N/A | BJ122: N/A | BK122: N/A | BL122: N/A | BM122: N/A | BN122: N/A | BO122: N/A | BP122: N/A | BQ122: N/A | BR122: N/A | BS122: N/A | BT122: N/A | BU122: N/A | BV122: N/A | BW122: N/A | BX122: N/A | BY122: N/A | BZ122: N/A | CA122: N/A | CB122: N/A | CC122: N/A | CD122: N/A | CE122: N/A | CF122: N/A | CG122: N/A | CH122: N/A | CI122: N/A | CJ122: N/A | CK122: N/A | CL122: N/A | CM122: N/A | CN122: N/A | CO122: N/A | CP122: N/A | CQ122: N/A | CR122: N/A | CS122: N/A | CT122: N/A | CU122: N/A | CV122: N/A | CW122: N/A | CX122: N/A | CY122: N/A | CZ122: N/A
B123: Not Improved | C123: =100-C122 -> 84.98991835 | D123: =100-D122 -> 91.63411024 | E123: 88.18411414 | F123: 77.21860588 | G123: 35.3717755 | H123: 71.92577659 | I123: 42.10848174 | J123: 31.31623588 | K123: 21.2370738 | L123: 12.90950735 | M123: 84.47490614 | N123: 92.41091357 | O123: 89.75347158 | P123: 85.33651728 | Q123: 55.09048629 | R123: N/A | S123: N/A | T123: N/A | U123: N/A | V123: N/A | W123: N/A | X123: N/A | Y123: N/A | Z123: N/A | BB123: Not Improved | BC123: N/A | BD123: N/A | BE123: N/A | BF123: N/A | BG123: N/A | BH123: N/A | BI123: N/A | BJ123: N/A | BK123: N/A | BL123: N/A | BM123: N/A | BN123: N/A | BO123: N/A | BP123: N/A | BQ123: N/A | BR123: N/A | BS123: N/A | BT123: N/A | BU123: N/A | BV123: N/A | BW123: N/A | BX123: N/A | BY123: N/A | BZ123: N/A | CA123: N/A | CB123: N/A | CC123: N/A | CD123: N/A | CE123: N/A | CF123: N/A | CG123: N/A | CH123: N/A | CI123: N/A | CJ123: N/A | CK123: N/A | CL123: N/A | CM123: N/A | CN123: N/A | CO123: N/A | CP123: N/A | CQ123: N/A | CR123: N/A | CS123: N/A | CT123: N/A | CU123: N/A | CV123: N/A | CW123: N/A | CX123: N/A | CY123: N/A | CZ123: N/A
A124: Sanitation ladder | B124: Basic | C124: =C122*'AIS11'!C129/100 -> 8.260860849 | D124: =D122*'AIS11'!D129/100 -> 5.223587189 | E124: =E122*'AIS11'!E129/100 -> 8.072554129 | F124: =F122*'AIS11'!F129/100 -> 13.71307405 | G124: =G122*'AIS11'!G129/100 -> 28.51391601 | H124: =H122*'AIS11'!H129/100 -> 9.496593494 | I124: =I122*'AIS11'!I129/100 -> 12.81862819 | J124: =J122*'AIS11'!J129/100 -> 15.53975261 | K124: =K122*'AIS11'!K129/100 -> 25.69747671 | L124: =L122*'AIS11'!L129/100 -> 44.26872755 | M124: =M122*'AIS11'!M129/100 -> 8.453585585 | N124: =N122*'AIS11'!N129/100 -> 5.100917062 | O124: =O122*'AIS11'!O129/100 -> 6.884054429 | P124: =P122*'AIS11'!P129/100 -> 9.592111218 | Q124: =Q122*'AIS11'!Q129/100 -> 29.60337593 | R124: N/A | S124: N/A | T124: N/A | U124: N/A | V124: N/A | W124: N/A | X124: N/A | Y124: N/A | Z124: N/A | BA124: Sanitation ladder | BB124: Basic | BC124: N/A | BD124: N/A | BE124: N/A | BF124: N/A | BG124: N/A | BH124: N/A | BI124: N/A | BJ124: N/A | BK124: N/A | BL124: N/A | BM124: N/A | BN124: N/A | BO124: N/A | BP124: N/A | BQ124: N/A | BR124: N/A | BS124: N/A | BT124: N/A | BU124: N/A | BV124: N/A | BW124: N/A | BX124: N/A | BY124: N/A | BZ124: N/A | CA124: N/A | CB124: N/A | CC124: N/A | CD124: N/A | CE124: N/A | CF124: N/A | CG124: N/A | CH124: N/A | CI124: N/A | CJ124: N/A | CK124: N/A | CL124: N/A | CM124: N/A | CN124: N/A | CO124: N/A | CP124: N/A | CQ124: N/A | CR124: N/A | CS124: N/A | CT124: N/A | CU124: N/A | CV124: N/A | CW124: N/A | CX124: N/A | CY124: N/A | CZ124: N/A
B125: Limited | C125: =C122*'AIS11'!C128/100 -> 6.749220798 | D125: =D122*'AIS11'!D128/100 -> 3.142302572 | E125: =E122*'AIS11'!E128/100 -> 3.743331727 | F125: =F122*'AIS11'!F128/100 -> 9.068320069 | G125: =G122*'AIS11'!G128/100 -> 36.11430849 | H125: =H122*'AIS11'!H128/100 -> 18.57762991 | I125: =I122*'AIS11'!I128/100 -> 45.07289007 | J125: =J122*'AIS11'!J128/100 -> 53.14401151 | K125: =K122*'AIS11'!K128/100 -> 53.06544949 | L125: =L122*'AIS11'!L128/100 -> 42.8217651 | M125: =M122*'AIS11'!M128/100 -> 7.071508276 | N125: =N122*'AIS11'!N128/100 -> 2.488169369 | O125: =O122*'AIS11'!O128/100 -> 3.362473995 | P125: =P122*'AIS11'!P128/100 -> 5.071371505 | Q125: =Q122*'AIS11'!Q128/100 -> 15.30613779 | R125: N/A | S125: N/A | T125: N/A | U125: N/A | V125: N/A | W125: N/A | X125: N/A | Y125: N/A | Z125: N/A | BB125: Limited | BC125: N/A | BD125: N/A | BE125: N/A | BF125: N/A | BG125: N/A | BH125: N/A | BI125: N/A | BJ125: N/A | BK125: N/A | BL125: N/A | BM125: N/A | BN125: N/A | BO125: N/A | BP125: N/A | BQ125: N/A | BR125: N/A | BS125: N/A | BT125: N/A | BU125: N/A | BV125: N/A | BW125: N/A | BX125: N/A | BY125: N/A | BZ125: N/A | CA125: N/A | CB125: N/A | CC125: N/A | CD125: N/A | CE125: N/A | CF125: N/A | CG125: N/A | CH125: N/A | CI125: N/A | CJ125: N/A | CK125: N/A | CL125: N/A | CM125: N/A | CN125: N/A | CO125: N/A | CP125: N/A | CQ125: N/A | CR125: N/A | CS125: N/A | CT125: N/A | CU125: N/A | CV125: N/A | CW125: N/A | CX125: N/A | CY125: N/A | CZ125: N/A
B126: Unimproved | C126: =100-(C124+C125+C127) -> 51.67654706 | D126: =100-(D124+D125+D127) -> 75.25990131 | E126: 81.49941498 | F126: 75.30549091 | G126: 35.16294378 | H126: 59.63300254 | I126: 41.07174615 | J126: 31.31623588 | K126: 21.2370738 | L126: 12.90950735 | M126: 49.81626234 | N126: 73.08876562 | O126: 81.64102886 | P126: 82.55368625 | Q126: 54.67894536 | R126: N/A | S126: N/A | T126: N/A | U126: N/A | V126: N/A | W126: N/A | X126: N/A | Y126: N/A | Z126: N/A | BB126: Unimproved | BC126: N/A | BD126: N/A | BE126: N/A | BF126: N/A | BG126: N/A | BH126: N/A | BI126: N/A | BJ126: N/A | BK126: N/A | BL126: N/A | BM126: N/A | BN126: N/A | BO126: N/A | BP126: N/A | BQ126: N/A | BR126: N/A | BS126: N/A | BT126: N/A | BU126: N/A | BV126: N/A | BW126: N/A | BX126: N/A | BY126: N/A | BZ126: N/A | CA126: N/A | CB126: N/A | CC126: N/A | CD126: N/A | CE126: N/A | CF126: N/A | CG126: N/A | CH126: N/A | CI126: N/A | CJ126: N/A | CK126: N/A | CL126: N/A | CM126: N/A | CN126: N/A | CO126: N/A | CP126: N/A | CQ126: N/A | CR126: N/A | CS126: N/A | CT126: N/A | CU126: N/A | CV126: N/A | CW126: N/A | CX126: N/A | CY126: N/A | CZ126: N/A
B127: Open defecation | C127: =C159 -> 33.3133713 | D127: =D159 -> 16.37420893 | E127: 6.684699161 | F127: 1.913114974 | G127: 0.2088317264 | H127: 12.29277406 | I127: 1.036735591 | J127: 0 | K127: 0 | L127: 0 | M127: 34.6586438 | N127: 19.32214795 | O127: 8.112442713 | P127: 2.782831031 | Q127: 0.4115409242 | R127: N/A | S127: N/A | T127: N/A | U127: N/A | V127: N/A | W127: N/A | X127: N/A | Y127: N/A | Z127: N/A | BB127: Open defecation | BC127: N/A | BD127: N/A | BE127: N/A | BF127: N/A | BG127: N/A | BH127: N/A | BI127: N/A | BJ127: N/A | BK127: N/A | BL127: N/A | BM127: N/A | BN127: N/A | BO127: N/A | BP127: N/A | BQ127: N/A | BR127: N/A | BS127: N/A | BT127: N/A | BU127: N/A | BV127: N/A | BW127: N/A | BX127: N/A | BY127: N/A | BZ127: N/A | CA127: N/A | CB127: N/A | CC127: N/A | CD127: N/A | CE127: N/A | CF127: N/A | CG127: N/A | CH127: N/A | CI127: N/A | CJ127: N/A | CK127: N/A | CL127: N/A | CM127: N/A | CN127: N/A | CO127: N/A | CP127: N/A | CQ127: N/A | CR127: N/A | CS127: N/A | CT127: N/A | CU127: N/A | CV127: N/A | CW127: N/A | CX127: N/A | CY127: N/A | CZ127: N/A
A128: Shared among Improved Sanitation | B128: Yes | C128: N/A | D128: N/A | E128: N/A | F128: N/A | G128: N/A | H128: N/A | I128: N/A | J128: N/A | K128: N/A | L128: N/A | M128: N/A | N128: N/A | O128: N/A | P128: N/A | Q128: N/A | R128: N/A | S128: N/A | T128: N/A | U128: N/A | V128: N/A | W128: N/A | X128: N/A | Y128: N/A | Z128: N/A | BA128: Shared among improved sanitation facilities | BB128: Yes | BC128: N/A | BD128: N/A | BE128: N/A | BF128: N/A | BG128: N/A | BH128: N/A | BI128: N/A | BJ128: N/A | BK128: N/A | BL128: N/A | BM128: N/A | BN128: N/A | BO128: N/A | BP128: N/A | BQ128: N/A | BR128: N/A | BS128: N/A | BT128: N/A | BU128: N/A | BV128: N/A | BW128: N/A | BX128: N/A | BY128: N/A | BZ128: N/A | CA128: N/A | CB128: N/A | CC128: N/A | CD128: N/A | CE128: N/A | CF128: N/A | CG128: N/A | CH128: N/A | CI128: N/A | CJ128: N/A | CK128: N/A | CL128: N/A | CM128: N/A | CN128: N/A | CO128: N/A | CP128: N/A | CQ128: N/A | CR128: N/A | CS128: N/A | CT128: N/A | CU128: N/A | CV128: N/A | CW128: N/A | CX128: N/A | CY128: N/A | CZ128: N/A
B129: No | C129: N/A | D129: N/A | E129: N/A | F129: N/A | G129: N/A | H129: N/A | I129: N/A | J129: N/A | K129: N/A | L129: N/A | M129: N/A | N129: N/A | O129: N/A | P129: N/A | Q129: N/A | R129: N/A | S129: N/A | T129: N/A | U129: N/A | V129: N/A | W129: N/A | X129: N/A | Y129: N/A | Z129: N/A | BB129: No | BC129: N/A | BD129: N/A | BE129: N/A | BF129: N/A | BG129: N/A | BH129: N/A | BI129: N/A | BJ129: N/A | BK129: N/A | BL129: N/A | BM129: N/A | BN129: N/A | BO129: N/A | BP129: N/A | BQ129: N/A | BR129: N/A | BS129: N/A | BT129: N/A | BU129: N/A | BV129: N/A | BW129: N/A | BX129: N/A | BY129: N/A | BZ129: N/A | CA129: N/A | CB129: N/A | CC129: N/A | CD129: N/A | CE129: N/A | CF129: N/A | CG129: N/A | CH129: N/A | CI129: N/A | CJ129: N/A | CK129: N/A | CL129: N/A | CM129: N/A | CN129: N/A | CO129: N/A | CP129: N/A | CQ129: N/A | CR129: N/A | CS129: N/A | CT129: N/A | CU129: N/A | CV129: N/A | CW129: N/A | CX129: N/A | CY129: N/A | CZ129: N/A
A130: Manually calculated ratios | B130: Improved latrines | C130: =(C156+C158)/(C155+C156+C157+C158)*100 -> 19.39270892 | D130: =(D156+D158)/(D155+D156+D157+D158)*100 -> 8.7907583 | E130: 11.13558326 | F130: 20.83522599 | G130: 56.86897067 | H130: 29.72699482 | I130: 52.46242544 | J130: 62.77091747 | K130: 70.24606015 | L130: 74.79691999 | M130: 20.34663983 | N130: 8.389357711 | O130: 9.754128252 | P130: 13.41473068 | Q130: 40.81353658 | R130: 33.56568099 | S130: 38.32039751 | T130: 26.81572249 | U130: 11.71723313 | V130: 70.71216799 | W130: 31.17612225 | X130: 6.113744032 | Y130: 17.87120484 | Z130: 8.891118816
B131: Other
B132: Other
C133: NATIONAL wealth index quintile | H133: URBAN wealth index quintile | M133: RURAL wealth index quintile | R133: REGIONS | BA133: Raw numbers of respondents: | BB133: Use of sanitation facilities | BC133: NATIONAL wealth index quintile | BH133: URBAN wealth index quintile | BM133: RURAL wealth index quintile | BR133: SUB-REGIONS:
A134: Percentage based on weighted population | C134: Poorest | D134: Poor | E134: Middle | F134: Rich | G134: Richest | H134: Poorest | I134: Poor | J134: Middle | K134: Rich | L134: Richest | M134: Poorest | N134: Poor | O134: Middle | P134: Rich | Q134: Richest | R134: Central 1 | S134: Central 2 | T134: East Central | U134: Eastern | V134: Kampala | W134: North | X134: Southwest | Y134: West Nile | Z134: Western | BA134: Sanitation data, raw numbers (weighted) | BC134: Poorest | BD134: Poor | BE134: Middle | BF134: Rich | BG134: Richest | BH134: Poorest | BI134: Poor | BJ134: Middle | BK134: Rich | BL134: Richest | BM134: Poorest | BN134: Poor | BO134: Middle | BP134: Rich | BQ134: Richest
A135: Sanitation type | B135: Sewer connection | C135: N/A | D135: N/A | E135: N/A | F135: N/A | G135: N/A | H135: N/A | I135: N/A | J135: N/A | K135: N/A | L135: N/A | M135: N/A | N135: N/A | O135: N/A | P135: N/A | Q135: N/A | R135: N/A | S135: N/A | T135: N/A | U135: N/A | V135: N/A | W135: N/A | X135: N/A | Y135: N/A | Z135: N/A | BA135: Sanitation type | BB135: Sewer connection | BC135: N/A | BD135: N/A | BE135: N/A | BF135: N/A | BG135: N/A | BH135: N/A | BI135: N/A | BJ135: N/A | BK135: N/A | BL135: N/A | BM135: N/A | BN135: N/A | BO135: N/A | BP135: N/A | BQ135: N/A | BR135: N/A | BS135: N/A | BT135: N/A | BU135: N/A | BV135: N/A | BW135: N/A | BX135: N/A | BY135: N/A | BZ135: N/A | CA135: N/A | CB135: N/A | CC135: N/A | CD135: N/A | CE135: N/A | CF135: N/A | CG135: N/A | CH135: N/A | CI135: N/A | CJ135: N/A | CK135: N/A | CL135: N/A | CM135: N/A | CN135: N/A | CO135: N/A | CP135: N/A | CQ135: N/A | CR135: N/A | CS135: N/A | CT135: N/A | CU135: N/A | CV135: N/A | CW135: N/A | CX135: N/A | CY135: N/A | CZ135: N/A
